Workbook

Sheet Cover
B3: Attachment 9.05
B4: Long run marginal cost model
B6: 2025-30 Regulatory Proposal
B8: 26 November 2024

Sheet Table Of Contents
A1: Table Of Contents
A3: Table Of Contents | B3: Description
A4: Control and Output Summary
A5: Output Comparator
A6: Outputs ->
A7: Import LRMC
A8: Export LRMC
A9: Calculations ->
A10: Import AIC
A11: Export AIC
A12: Capex Summary
A13: Export Summary
A14: Import Summary
A15: Raw Inputs ->
A16: Import Forecast
A17: Export Forecast
A18: Import Expenditure Forecast
A19: Export Expenditure Forecast
A20: Asset Specification
A21: RIN Summary - Import Export LRMC

Sheet Control and Output Summary
B1: Control and Outputs
B3: Parameters and Assumptions | C3: Costs ($) is based on 2024 - 2025 | D3: 2023-06-27T11:15:33.990
B5: Parameter Name | C5: Import | D5: Export
B6: Real Vanilla WACC | C6: 0.0375 | D6: 0.0375
B7: Percentage repex saved per percentage demand reduction | C7: 1.12 | D7: N/A | E7: v
B8: Opex Proportion of Capex | C8: 0.0096 | D8: 0.01
B9: Growth Related Repex Percentage | C9: 0 | D9: N/A
B10: Growth Related Connections Cost Percentage | C10: 0.05 | D10: N/A
B12: Display Option
B14: Pricing Zone | C14: Energex
B17: LRMC
B19: Import | F19: Export
B21: Demand at Voltage Level | C21: $/kW p.a | D21: $/kVA p.a. | F21: Demand at Voltage Level | G21: $/kW p.a | H21: $/kVA p.a.
B22: LV | C22: ='Import LRMC'!E19 -> 172.6331666 | D22: ='Import LRMC'!F19 -> 155.3698499 | F22: LV | G22: ='Export LRMC'!E19 -> 14.19129525 | H22: ='Export LRMC'!F19 -> 12.77216573
B23: HV | C23: ='Import LRMC'!E20 -> 103.3880254 | D23: ='Import LRMC'!F20 -> 93.04922289 | F23: HV | G23: ='Export LRMC'!E20 -> 1.751954721 | H23: ='Export LRMC'!F20 -> 1.576759249
B24: ST | C24: ='Import LRMC'!E21 -> 16.23583643 | D24: ='Import LRMC'!F21 -> 14.61225278 | F24: ST | G24: ='Export LRMC'!E21 -> 0 | H24: ='Export LRMC'!F21 -> 0

Sheet Output Comparator
B1: LRMC Estimates (LV, HV & ST) By Pricing Zone and Network
B3: Energex | D3: 2023-11-28T10:19:43.370
B85: LRMC Estimates (LV, HV & ST) By Pricing Zone and Network
B87: Energex | D87: 2023-11-29T15:37:59.500
B89: Import
B91: Demand at Voltage Level | F91: Parameter Name
B92: LV | C92: 172.6331666 | D92: 155.3698499 | F92: Real Vanilla WACC | G92: 0.0375
B93: HV | C93: 103.3880254 | D93: 93.04922289 | F93: Percentage repex saved per percentage demand reudction | G93: 1.12
B94: ST | C94: 16.23583643 | D94: 14.61225278 | F94: Opex Proportion of Capex | G94: 0.0096
F95: Growth Related Repex Percentage | G95: 0
F96: Growth Related Connections Cost Percentage | G96: 0.05
B99: Export
B101: Demand at Voltage Level | F101: Parameter Name
B102: LV | C102: 14.19129525 | D102: 12.77216573 | F102: Real Vanilla WACC | G102: 0.0375
B103: HV | C103: 1.751954721 | D103: 1.576759249 | F103: Opex Proportion of Capex | G103: 0.01
B104: ST | C104: 0 | D104: 0

Sheet Outputs ->

Sheet Import LRMC
B1: Import LRMC
B3: Pricing Zone: | C3: ='Control and Output Summary'!$C$14 -> Energex
B5: Network Level Break Down
B7: Demand at Voltage Level | C7: Incremental Demand NPV (MW) | D7: Total Allocated NPV Cost ($m) | E7: $/kW p.a | F7: $/kVA p.a.
B8: LV Line | C8: =SUMIFS('Import AIC'!$E$7:$E$12,'Import AIC'!$B$7:$B$12,$B8&"*",'Import AIC'!$C$7:$C$12,$C$3) -> 119.5951525 | D8: =SUMIFS('Import AIC'!$I$32:$I$37,'Import AIC'!$B$32:$B$37,$B8&"*") -> 23.00437402 | E8: =$D8*1000/$C8 -> 192.3520606 | F8: =$E8*IF('Control and Output Summary'!$C$14<>"Ergon",AVERAGEIFS('Asset Specification'!$F$8:$F$43,'Asset Specification'!$B$8:$B$43, $B8&"*",'Asset Specification'!$C$8:$C$43,$C$3, 'Asset Specification'!$D$8:$D$43,"Import" ),AVERAGEIFS(#REF!,#REF!, $B8&"*",#REF!, "Import" )) -> 173.1168545
B9: LV Bus | C9: =SUMIFS('Import AIC'!$E$7:$E$12,'Import AIC'!$B$7:$B$12,$B9&"*",'Import AIC'!$C$7:$C$12,$C$3) -> 121.5039939 | D9: =SUMIFS('Import AIC'!$I$32:$I$37,'Import AIC'!$B$32:$B$37,$B9&"*") -> 18.61733508 | E9: 153.2240586 | F9: =$E9*IF('Control and Output Summary'!$C$14<>"Ergon",AVERAGEIFS('Asset Specification'!$F$8:$F$43,'Asset Specification'!$B$8:$B$43, $B9&"*",'Asset Specification'!$C$8:$C$43,$C$3, 'Asset Specification'!$D$8:$D$43,"Import" ),AVERAGEIFS(#REF!,#REF!, $B9&"*",#REF!, "Import" )) -> 137.9016527
B10: HV Line | C10: =SUMIFS('Import AIC'!$E$7:$E$12,'Import AIC'!$B$7:$B$12,$B10&"*",'Import AIC'!$C$7:$C$12,$C$3) -> 31.83607038 | D10: =SUMIFS('Import AIC'!$I$32:$I$37,'Import AIC'!$B$32:$B$37,$B10&"*") -> 4.615386881 | E10: 144.9735104 | F10: =$E10*IF('Control and Output Summary'!$C$14<>"Ergon",AVERAGEIFS('Asset Specification'!$F$8:$F$43,'Asset Specification'!$B$8:$B$43, $B10&"*",'Asset Specification'!$C$8:$C$43,$C$3, 'Asset Specification'!$D$8:$D$43,"Import" ),AVERAGEIFS(#REF!,#REF!, $B10&"*",#REF!, "Import" )) -> 130.4761594
B11: HV Bus | C11: =SUMIFS('Import AIC'!$E$7:$E$12,'Import AIC'!$B$7:$B$12,$B11&"*",'Import AIC'!$C$7:$C$12,$C$3) -> 32.07680808 | D11: =SUMIFS('Import AIC'!$I$32:$I$37,'Import AIC'!$B$32:$B$37,$B11&"*") -> 1.992439423 | E11: 62.11464114 | F11: =$E11*IF('Control and Output Summary'!$C$14<>"Ergon",AVERAGEIFS('Asset Specification'!$F$8:$F$43,'Asset Specification'!$B$8:$B$43, $B11&"*",'Asset Specification'!$C$8:$C$43,$C$3, 'Asset Specification'!$D$8:$D$43,"Import" ),AVERAGEIFS(#REF!,#REF!, $B11&"*",#REF!, "Import" )) -> 55.90317703
B12: ST 33/66 kV | C12: =SUMIFS('Import AIC'!$E$7:$E$12,'Import AIC'!$B$7:$B$12,$B12&"*",'Import AIC'!$C$7:$C$12,$C$3) -> 3.221149026 | D12: =SUMIFS('Import AIC'!$I$32:$I$37,'Import AIC'!$B$32:$B$37,$B12&"*") -> 0.0579791679 | E12: 17.99952981 | F12: =$E12*IF('Control and Output Summary'!$C$14<>"Ergon",AVERAGEIFS('Asset Specification'!$F$8:$F$43,'Asset Specification'!$B$8:$B$43, $B12&"*",'Asset Specification'!$C$8:$C$43,$C$3, 'Asset Specification'!$D$8:$D$43,"Import" ),AVERAGEIFS(#REF!,#REF!, $B12&"*",#REF!, "Import" )) -> 16.19957683
B13: ST 110/132 kV | C13: =SUMIFS('Import AIC'!$E$7:$E$12,'Import AIC'!$B$7:$B$12,$B13&"*",'Import AIC'!$C$7:$C$12,$C$3) -> 3.241557776 | D13: =SUMIFS('Import AIC'!$I$32:$I$37,'Import AIC'!$B$32:$B$37,$B13&"*") -> 0.04694828262 | E13: 14.48324721 | F13: =$E13*IF('Control and Output Summary'!$C$14<>"Ergon",AVERAGEIFS('Asset Specification'!$F$8:$F$43,'Asset Specification'!$B$8:$B$43, $B13&"*",'Asset Specification'!$C$8:$C$43,$C$3, 'Asset Specification'!$D$8:$D$43,"Import" ),AVERAGEIFS(#REF!,#REF!, $B13&"*",#REF!, "Import" )) -> 13.03492249
B16: Aggregated Estimate
B18: Demand at Voltage Level | C18: Incremental Demand NPV (MW) | D18: Total Allocated NPV Cost ($m) | E18: $/kW p.a | F18: $/kVA p.a.
B19: LV | C19: =SUMIFS('Import AIC'!$E$7:$E$12,'Import AIC'!$B$7:$B$12,$B19&"*",'Import AIC'!$C$7:$C$12,$C$3) -> 241.0991464 | D19: =SUMIFS('Import AIC'!$I$32:$I$37,'Import AIC'!$B$32:$B$37,$B19&"*") -> 41.6217091 | E19: =$D19*1000/$C19 -> 172.6331666 | F19: =$E19*IF('Control and Output Summary'!$C$14<>"Ergon",AVERAGEIFS('Asset Specification'!$F$8:$F$43,'Asset Specification'!$B$8:$B$43, $B19&"*",'Asset Specification'!$C$8:$C$43,$C$3, 'Asset Specification'!$D$8:$D$43,"Import" ),AVERAGEIFS(#REF!,#REF!, $B19&"*",#REF!, "Import" )) -> 155.3698499
B20: HV | C20: =SUMIFS('Import AIC'!$E$7:$E$12,'Import AIC'!$B$7:$B$12,$B20&"*",'Import AIC'!$C$7:$C$12,$C$3) -> 63.91287846 | D20: =SUMIFS('Import AIC'!$I$32:$I$37,'Import AIC'!$B$32:$B$37,$B20&"*") -> 6.607826304 | E20: =$D20*1000/$C20 -> 103.3880254 | F20: =$E20*IF('Control and Output Summary'!$C$14<>"Ergon",AVERAGEIFS('Asset Specification'!$F$8:$F$43,'Asset Specification'!$B$8:$B$43, $B20&"*",'Asset Specification'!$C$8:$C$43,$C$3, 'Asset Specification'!$D$8:$D$43,"Import" ),AVERAGEIFS(#REF!,#REF!, $B20&"*",#REF!, "Import" )) -> 93.04922289
B21: ST | C21: =SUMIFS('Import AIC'!$E$7:$E$12,'Import AIC'!$B$7:$B$12,$B21&"*",'Import AIC'!$C$7:$C$12,$C$3) -> 6.462706802 | D21: =SUMIFS('Import AIC'!$I$32:$I$37,'Import AIC'!$B$32:$B$37,$B21&"*") -> 0.1049274505 | E21: =$D21*1000/$C21 -> 16.23583643 | F21: =$E21*IF('Control and Output Summary'!$C$14<>"Ergon",AVERAGEIFS('Asset Specification'!$F$8:$F$43,'Asset Specification'!$B$8:$B$43, $B21&"*",'Asset Specification'!$C$8:$C$43,$C$3, 'Asset Specification'!$D$8:$D$43,"Import" ),AVERAGEIFS(#REF!,#REF!, $B21&"*",#REF!, "Import" )) -> 14.61225278

Sheet Export LRMC
B1: Export LRMC
B3: Pricing Zone: | C3: ='Control and Output Summary'!$C$14 -> Energex
B5: Network Level Break Down
B7: Demand at Voltage Level | C7: Incremental Demand NPV (MW) | D7: Total Allocated NPV Cost ($m) | E7: $/kW p.a | F7: $/kVA p.a.
B8: LV Line | C8: =SUMIFS('Export AIC'!$D$7:$D$12,'Export AIC'!$B$7:$B$12,$B8&"*",'Export AIC'!$C$7:$C$12,$C$3) -> 1034.839106 | D8: =SUMIFS('Export AIC'!$I$32:$I$37,'Export AIC'!$B$32:$B$37,$B8&"*") -> 21.12206531 | E8: =IFERROR($D8*1000/$C8,0) -> 20.41096552 | F8: =$E8*IF('Control and Output Summary'!$C$14<>"Ergon",AVERAGEIFS('Asset Specification'!$F$8:$F$43,'Asset Specification'!$B$8:$B$43, $B8&"*",'Asset Specification'!$C$8:$C$43,$C$3, 'Asset Specification'!$D$8:$D$43,"Export" ),AVERAGEIFS(#REF!,#REF!, $B8&"*",#REF!, "Export" )) -> 18.36986897
B9: LV Bus | C9: =SUMIFS('Export AIC'!$D$7:$D$12,'Export AIC'!$B$7:$B$12,$B9&"*",'Export AIC'!$C$7:$C$12,$C$3) -> 1034.839106 | D9: =SUMIFS('Export AIC'!$I$32:$I$37,'Export AIC'!$B$32:$B$37,$B9&"*") -> 8.249349275 | E9: 7.971624988 | F9: =$E9*IF('Control and Output Summary'!$C$14<>"Ergon",AVERAGEIFS('Asset Specification'!$F$8:$F$43,'Asset Specification'!$B$8:$B$43, $B9&"*",'Asset Specification'!$C$8:$C$43,$C$3, 'Asset Specification'!$D$8:$D$43,"Export" ),AVERAGEIFS(#REF!,#REF!, $B9&"*",#REF!, "Export" )) -> 7.174462489
B10: HV Line | C10: =SUMIFS('Export AIC'!$D$7:$D$12,'Export AIC'!$B$7:$B$12,$B10&"*",'Export AIC'!$C$7:$C$12,$C$3) -> 54.4652161 | D10: =SUMIFS('Export AIC'!$I$32:$I$37,'Export AIC'!$B$32:$B$37,$B10&"*") -> 0.09542059248 | E10: 1.751954721 | F10: =$E10*IF('Control and Output Summary'!$C$14<>"Ergon",AVERAGEIFS('Asset Specification'!$F$8:$F$43,'Asset Specification'!$B$8:$B$43, $B10&"*",'Asset Specification'!$C$8:$C$43,$C$3, 'Asset Specification'!$D$8:$D$43,"Export" ),AVERAGEIFS(#REF!,#REF!, $B10&"*",#REF!, "Export" )) -> 1.576759249
B11: HV Bus | C11: =SUMIFS('Export AIC'!$D$7:$D$12,'Export AIC'!$B$7:$B$12,$B11&"*",'Export AIC'!$C$7:$C$12,$C$3) -> 54.4652161 | D11: =SUMIFS('Export AIC'!$I$32:$I$37,'Export AIC'!$B$32:$B$37,$B11&"*") -> 0.09542059248 | E11: 1.751954721 | F11: =$E11*IF('Control and Output Summary'!$C$14<>"Ergon",AVERAGEIFS('Asset Specification'!$F$8:$F$43,'Asset Specification'!$B$8:$B$43, $B11&"*",'Asset Specification'!$C$8:$C$43,$C$3, 'Asset Specification'!$D$8:$D$43,"Export" ),AVERAGEIFS(#REF!,#REF!, $B11&"*",#REF!, "Export" )) -> 1.576759249
B12: ST 33/66 kV | C12: =SUMIFS('Export AIC'!$D$7:$D$12,'Export AIC'!$B$7:$B$12,$B12&"*",'Export AIC'!$C$7:$C$12,$C$3) -> 0 | D12: =SUMIFS('Export AIC'!$I$32:$I$37,'Export AIC'!$B$32:$B$37,$B12&"*") -> 0 | E12: 0 | F12: =$E12*IF('Control and Output Summary'!$C$14<>"Ergon",AVERAGEIFS('Asset Specification'!$F$8:$F$43,'Asset Specification'!$B$8:$B$43, $B12&"*",'Asset Specification'!$C$8:$C$43,$C$3, 'Asset Specification'!$D$8:$D$43,"Export" ),AVERAGEIFS(#REF!,#REF!, $B12&"*",#REF!, "Export" )) -> 0
B13: ST 110/132 kV | C13: =SUMIFS('Export AIC'!$D$7:$D$12,'Export AIC'!$B$7:$B$12,$B13&"*",'Export AIC'!$C$7:$C$12,$C$3) -> 0 | D13: =SUMIFS('Export AIC'!$I$32:$I$37,'Export AIC'!$B$32:$B$37,$B13&"*") -> 0 | E13: 0 | F13: =$E13*IF('Control and Output Summary'!$C$14<>"Ergon",AVERAGEIFS('Asset Specification'!$F$8:$F$43,'Asset Specification'!$B$8:$B$43, $B13&"*",'Asset Specification'!$C$8:$C$43,$C$3, 'Asset Specification'!$D$8:$D$43,"Export" ),AVERAGEIFS(#REF!,#REF!, $B13&"*",#REF!, "Export" )) -> 0
B16: Aggregated Estimate
B18: Demand at Voltage Level | C18: Incremental Demand NPV (MW) | D18: Total Allocated NPV Cost ($m) | E18: $/kW p.a | F18: $/kVA p.a.
B19: LV | C19: =SUMIFS('Export AIC'!$D$7:$D$12,'Export AIC'!$B$7:$B$12,$B19&"*",'Export AIC'!$C$7:$C$12,$C$3) -> 2069.678212 | D19: =SUMIFS('Export AIC'!$I$32:$I$37,'Export AIC'!$B$32:$B$37,$B19&"*") -> 29.37141459 | E19: =IFERROR($D19*1000/$C19,0) -> 14.19129525 | F19: =$E19*IF('Control and Output Summary'!$C$14<>"Ergon",AVERAGEIFS('Asset Specification'!$F$8:$F$43,'Asset Specification'!$B$8:$B$43, $B19&"*",'Asset Specification'!$C$8:$C$43,$C$3, 'Asset Specification'!$D$8:$D$43,"Export" ),AVERAGEIFS(#REF!,#REF!, $B19&"*",#REF!, "Export" )) -> 12.77216573
B20: HV | C20: =SUMIFS('Export AIC'!$D$7:$D$12,'Export AIC'!$B$7:$B$12,$B20&"*",'Export AIC'!$C$7:$C$12,$C$3) -> 108.9304322 | D20: =SUMIFS('Export AIC'!$I$32:$I$37,'Export AIC'!$B$32:$B$37,$B20&"*") -> 0.190841185 | E20: =IFERROR($D20*1000/$C20,0) -> 1.751954721 | F20: =$E20*IF('Control and Output Summary'!$C$14<>"Ergon",AVERAGEIFS('Asset Specification'!$F$8:$F$43,'Asset Specification'!$B$8:$B$43, $B20&"*",'Asset Specification'!$C$8:$C$43,$C$3, 'Asset Specification'!$D$8:$D$43,"Export" ),AVERAGEIFS(#REF!,#REF!, $B20&"*",#REF!, "Export" )) -> 1.576759249
B21: ST | C21: =SUMIFS('Export AIC'!$D$7:$D$12,'Export AIC'!$B$7:$B$12,$B21&"*",'Export AIC'!$C$7:$C$12,$C$3) -> 0 | D21: =SUMIFS('Export AIC'!$I$32:$I$37,'Export AIC'!$B$32:$B$37,$B21&"*") -> 0 | E21: =IFERROR($D21*1000/$C21,0) -> 0 | F21: =$E21*IF('Control and Output Summary'!$C$14<>"Ergon",AVERAGEIFS('Asset Specification'!$F$8:$F$43,'Asset Specification'!$B$8:$B$43, $B21&"*",'Asset Specification'!$C$8:$C$43,$C$3, 'Asset Specification'!$D$8:$D$43,"Export" ),AVERAGEIFS(#REF!,#REF!, $B21&"*",#REF!, "Export" )) -> 0

Sheet Calculations ->

Sheet Import AIC
B1: Import Growing AIC
B3: Incremental Demand (MW)
B6: Voltage Level | C6: Pricing Zone | D6: NPV | E6: NPV (DLF Adjusted) | F6: ='Import Expenditure Forecast'!G$7 -> 2024 | G6: ='Import Expenditure Forecast'!H$7 -> 2025 | H6: ='Import Expenditure Forecast'!I$7 -> 2026 | I6: ='Import Expenditure Forecast'!J$7 -> 2027 | J6: ='Import Expenditure Forecast'!K$7 -> 2028 | K6: ='Import Expenditure Forecast'!L$7 -> 2029 | L6: ='Import Expenditure Forecast'!M$7 -> 2030 | M6: ='Import Expenditure Forecast'!N$7 -> 2031 | N6: ='Import Expenditure Forecast'!O$7 -> 2032 | O6: ='Import Expenditure Forecast'!P$7 -> 2033
B7: LV Line | C7: ='Control and Output Summary'!$C$14 -> Energex | D7: =NPV('Control and Output Summary'!$C$6,$F7:$O7) -> 126.9024163 | E7: =$D7/IF('Control and Output Summary'!$C$14<>"Ergon",INDEX('Asset Specification'!$E$8:$E$43,MATCH(1,($B7='Asset Specification'!$B$8:$B$43)*($C7='Asset Specification'!$C$8:$C$43) * ("Import" = 'Asset Specification'!$D$8:$D$43 ),0)),INDEX(#REF!,MATCH(1,($B7=#REF!) * ("Import" =#REF! ),0))) -> 119.5951525 | F7: ='Import Summary'!E19 -> 33.15000302 | G7: ='Import Summary'!F19 -> 14.27399968 | H7: ='Import Summary'!G19 -> 11.11499572 | I7: ='Import Summary'!H19 -> 8.463005133 | J7: ='Import Summary'!I19 -> 9.243000112 | K7: ='Import Summary'!J19 -> 11.73899829 | L7: ='Import Summary'!K19 -> 10.99800002 | M7: ='Import Summary'!L19 -> 23.86800709 | N7: ='Import Summary'!M19 -> 26.0519891 | O7: ='Import Summary'!N19 -> 3.39300132
B8: LV Bus | C8: ='Control and Output Summary'!$C$14 -> Energex | D8: =NPV('Control and Output Summary'!$C$6,$F8:$O8) -> 126.9024163 | E8: =$D8/IF('Control and Output Summary'!$C$14<>"Ergon",INDEX('Asset Specification'!$E$8:$E$43,MATCH(1,($B8='Asset Specification'!$B$8:$B$43)*($C8='Asset Specification'!$C$8:$C$43) * ("Import" = 'Asset Specification'!$D$8:$D$43 ),0)),INDEX(#REF!,MATCH(1,($B8=#REF!) * ("Import" =#REF! ),0))) -> 121.5039939 | F8: ='Import Summary'!E20 -> 33.15000302 | G8: ='Import Summary'!F20 -> 14.27399968 | H8: ='Import Summary'!G20 -> 11.11499572 | I8: ='Import Summary'!H20 -> 8.463005133 | J8: ='Import Summary'!I20 -> 9.243000112 | K8: ='Import Summary'!J20 -> 11.73899829 | L8: ='Import Summary'!K20 -> 10.99800002 | M8: ='Import Summary'!L20 -> 23.86800709 | N8: ='Import Summary'!M20 -> 26.0519891 | O8: ='Import Summary'!N20 -> 3.39300132
B9: HV Line | C9: ='Control and Output Summary'!$C$14 -> Energex | D9: =NPV('Control and Output Summary'!$C$6,$F9:$O9) -> 32.53582721 | E9: =$D9/IF('Control and Output Summary'!$C$14<>"Ergon",INDEX('Asset Specification'!$E$8:$E$43,MATCH(1,($B9='Asset Specification'!$B$8:$B$43)*($C9='Asset Specification'!$C$8:$C$43) * ("Import" = 'Asset Specification'!$D$8:$D$43 ),0)),INDEX(#REF!,MATCH(1,($B9=#REF!) * ("Import" =#REF! ),0))) -> 31.83607038 | F9: ='Import Summary'!E21 -> 8.499150775 | G9: ='Import Summary'!F21 -> 3.659633919 | H9: ='Import Summary'!G21 -> 2.849713903 | I9: ='Import Summary'!H21 -> 2.169784316 | J9: ='Import Summary'!I21 -> 2.369763029 | K9: ='Import Summary'!J21 -> 3.009698561 | L9: ='Import Summary'!K21 -> 2.819718005 | M9: ='Import Summary'!L21 -> 6.119389817 | N9: ='Import Summary'!M21 -> 6.679329206 | O9: ='Import Summary'!N21 -> 0.8699133385
B10: HV Bus | C10: ='Control and Output Summary'!$C$14 -> Energex | D10: =NPV('Control and Output Summary'!$C$6,$F10:$O10) -> 32.53582721 | E10: =$D10/IF('Control and Output Summary'!$C$14<>"Ergon",INDEX('Asset Specification'!$E$8:$E$43,MATCH(1,($B10='Asset Specification'!$B$8:$B$43)*($C10='Asset Specification'!$C$8:$C$43) * ("Import" = 'Asset Specification'!$D$8:$D$43 ),0)),INDEX(#REF!,MATCH(1,($B10=#REF!) * ("Import" =#REF! ),0))) -> 32.07680808 | F10: ='Import Summary'!E22 -> 8.499150775 | G10: ='Import Summary'!F22 -> 3.659633919 | H10: ='Import Summary'!G22 -> 2.849713903 | I10: ='Import Summary'!H22 -> 2.169784316 | J10: ='Import Summary'!I22 -> 2.369763029 | K10: ='Import Summary'!J22 -> 3.009698561 | L10: ='Import Summary'!K22 -> 2.819718005 | M10: ='Import Summary'!L22 -> 6.119389817 | N10: ='Import Summary'!M22 -> 6.679329206 | O10: ='Import Summary'!N22 -> 0.8699133385
B11: ST 33/66 kv | C11: ='Control and Output Summary'!$C$14 -> Energex | D11: =NPV('Control and Output Summary'!$C$6,$F11:$O11) -> 3.253908111 | E11: =$D11/IF('Control and Output Summary'!$C$14<>"Ergon",INDEX('Asset Specification'!$E$8:$E$43,MATCH(1,($B11='Asset Specification'!$B$8:$B$43)*($C11='Asset Specification'!$C$8:$C$43) * ("Import" = 'Asset Specification'!$D$8:$D$43 ),0)),INDEX(#REF!,MATCH(1,($B11=#REF!) * ("Import" =#REF! ),0))) -> 3.221149026 | F11: ='Import Summary'!E23 -> 0.8500000775 | G11: ='Import Summary'!F23 -> 0.3659999919 | H11: ='Import Summary'!G23 -> 0.2849998903 | I11: ='Import Summary'!H23 -> 0.2170001316 | J11: ='Import Summary'!I23 -> 0.2370000029 | K11: ='Import Summary'!J23 -> 0.3009999561 | L11: ='Import Summary'!K23 -> 0.2820000005 | M11: ='Import Summary'!L23 -> 0.6120001817 | N11: ='Import Summary'!M23 -> 0.6679997206 | O11: ='Import Summary'!N23 -> 0.08700003386
B12: ST 110/132 kv | C12: ='Control and Output Summary'!$C$14 -> Energex | D12: =NPV('Control and Output Summary'!$C$6,$F12:$O12) -> 3.253908111 | E12: =$D12/IF('Control and Output Summary'!$C$14<>"Ergon",INDEX('Asset Specification'!$E$8:$E$43,MATCH(1,($B12='Asset Specification'!$B$8:$B$43)*($C12='Asset Specification'!$C$8:$C$43) * ("Import" = 'Asset Specification'!$D$8:$D$43 ),0)),INDEX(#REF!,MATCH(1,($B12=#REF!) * ("Import" =#REF! ),0))) -> 3.241557776 | F12: ='Import Summary'!E24 -> 0.8500000775 | G12: ='Import Summary'!F24 -> 0.3659999919 | H12: ='Import Summary'!G24 -> 0.2849998903 | I12: ='Import Summary'!H24 -> 0.2170001316 | J12: ='Import Summary'!I24 -> 0.2370000029 | K12: ='Import Summary'!J24 -> 0.3009999561 | L12: ='Import Summary'!K24 -> 0.2820000005 | M12: ='Import Summary'!L24 -> 0.6120001817 | N12: ='Import Summary'!M24 -> 0.6679997206 | O12: ='Import Summary'!N24 -> 0.08700003386
B15: Incremental Costs ($m)
B18: Voltage Level | C18: Pricing Zone | D18: NPV | E18: =F$6 -> 2024 | F18: 2025 | G18: 2026 | H18: 2027 | I18: 2028 | J18: 2029 | K18: 2030 | L18: 2031 | M18: 2032 | N18: 2033
B19: LV Line | C19: ='Control and Output Summary'!$C$14 -> Energex | D19: =NPV('Control and Output Summary'!$C$6,$E19:$N19) -> 4.679519361 | E19: ='Capex Summary'!E85 -> 0.1969719791 | F19: ='Capex Summary'!F85 -> 0.2774523528 | G19: ='Capex Summary'!G85 -> 0.3634258357 | H19: ='Capex Summary'!H85 -> 0.4522405915 | I19: ='Capex Summary'!I85 -> 0.5441909008 | J19: ='Capex Summary'!J85 -> 0.639397619 | K19: ='Capex Summary'!K85 -> 0.7338796174 | L19: ='Capex Summary'!L85 -> 0.8283616159 | M19: ='Capex Summary'!M85 -> 0.9228436143 | N19: ='Capex Summary'!N85 -> 1.017325613
B20: LV Bus | C20: ='Control and Output Summary'!$C$14 -> Energex | D20: =NPV('Control and Output Summary'!$C$6,$E20:$N20) -> 1.989200124 | E20: ='Capex Summary'!E86 -> 0.08334876342 | F20: ='Capex Summary'!F86 -> 0.1208121805 | G20: ='Capex Summary'!G86 -> 0.1609712769 | H20: ='Capex Summary'!H86 -> 0.2006491976 | I20: ='Capex Summary'!I86 -> 0.2403668026 | J20: ='Capex Summary'!J86 -> 0.2800849535 | K20: ='Capex Summary'!K86 -> 0.3053689486 | L20: ='Capex Summary'!L86 -> 0.3441098133 | M20: ='Capex Summary'!M86 -> 0.3808680776 | N20: ='Capex Summary'!N86 -> 0.417626342
B21: HV Line | C21: ='Control and Output Summary'!$C$14 -> Energex | D21: =NPV('Control and Output Summary'!$C$6,$E21:$N21) -> 22.61510345 | E21: ='Capex Summary'!E87 -> 0.7917551415 | F21: ='Capex Summary'!F87 -> 1.248443846 | G21: ='Capex Summary'!G87 -> 1.861624436 | H21: ='Capex Summary'!H87 -> 2.214855489 | I21: ='Capex Summary'!I87 -> 2.641393427 | J21: ='Capex Summary'!J87 -> 3.128242558 | K21: ='Capex Summary'!K87 -> 3.59999505 | L21: ='Capex Summary'!L87 -> 4.035543325 | M21: ='Capex Summary'!M87 -> 4.477832447 | N21: ='Capex Summary'!N87 -> 4.920121569
B22: HV Bus | C22: ='Control and Output Summary'!$C$14 -> Energex | D22: =NPV('Control and Output Summary'!$C$6,$E22:$N22) -> 13.45563944 | E22: ='Capex Summary'!E88 -> 0.09900262869 | F22: ='Capex Summary'!F88 -> 0.3219159912 | G22: ='Capex Summary'!G88 -> 0.6977356772 | H22: ='Capex Summary'!H88 -> 0.9914978386 | I22: ='Capex Summary'!I88 -> 1.430580265 | J22: ='Capex Summary'!J88 -> 1.687748491 | K22: ='Capex Summary'!K88 -> 2.508019038 | L22: ='Capex Summary'!L88 -> 2.873805132 | M22: ='Capex Summary'!M88 -> 3.304972955 | N22: ='Capex Summary'!N88 -> 3.736140778
B23: ST 33/66 kv | C23: ='Control and Output Summary'!$C$14 -> Energex | D23: =NPV('Control and Output Summary'!$C$6,$E23:$N23) -> 1.083834945 | E23: ='Capex Summary'!E89 -> 0 | F23: ='Capex Summary'!F89 -> 0 | G23: ='Capex Summary'!G89 -> 0.01091781406 | H23: ='Capex Summary'!H89 -> 0.03084918672 | I23: ='Capex Summary'!I89 -> 0.08251874932 | J23: ='Capex Summary'!J89 -> 0.1332985286 | K23: ='Capex Summary'!K89 -> 0.2172791693 | L23: ='Capex Summary'!L89 -> 0.2704427527 | M23: ='Capex Summary'!M89 -> 0.3281088831 | N23: ='Capex Summary'!N89 -> 0.3857750136
B24: ST 110/132 kv | C24: ='Control and Output Summary'!$C$14 -> Energex | D24: =NPV('Control and Output Summary'!$C$6,$E24:$N24) -> 4.511165539 | E24: ='Capex Summary'!E90 -> 0.313641743 | F24: ='Capex Summary'!F90 -> 0.6264789047 | G24: ='Capex Summary'!G90 -> 0.5663567106 | H24: ='Capex Summary'!H90 -> 0.5663567106 | I24: ='Capex Summary'!I90 -> 0.5665263443 | J24: ='Capex Summary'!J90 -> 0.5729305773 | K24: ='Capex Summary'!K90 -> 0.5764058753 | L24: ='Capex Summary'!L90 -> 0.5793055283 | M24: ='Capex Summary'!M90 -> 0.5823706268 | N24: ='Capex Summary'!N90 -> 0.5854357253
B27: AIC To Each Part of The Network
B29: Cost Break Down ($m)
B31: Demand at each Voltage Level | C31: LV Line | D31: LV Bus | E31: HV Line | F31: HV Bus | G31: ST 33/66 kV | H31: ST 110/132 kV | I31: Total Network Cost ($m)
B32: LV Line | C32: =INDEX($E$7:$E$12, MATCH(1, ($B32 = $B$7:$B$12)*('Control and Output Summary'!$C$14 = $C$7:$C$12),0 )) /SUMPRODUCT(SUMIFS($E$7:$E$12,$C$7:$C$12,'Control and Output Summary'!$C$14,$B$7:$B$12,$C$31:C$31)) *SUM( IF( C$31 = $B32:$B$37, 1, 0)) * INDEX($D$19:$D$24, MATCH(1, (C$31 = $B$19:$B$24 )*('Control and Output Summary'!$C$14 = $C$19:$C$24),0)) -> 4.679519361 | D32: =INDEX($E$7:$E$12, MATCH(1, ($B32 = $B$7:$B$12)*('Control and Output Summary'!$C$14 = $C$7:$C$12),0 )) /SUMPRODUCT(SUMIFS($E$7:$E$12,$C$7:$C$12,'Control and Output Summary'!$C$14,$B$7:$B$12,$C$31:D$31)) *SUM( IF( D$31 = $B32:$B$37, 1, 0)) * INDEX($D$19:$D$24, MATCH(1, (D$31 = $B$19:$B$24 )*('Control and Output Summary'!$C$14 = $C$19:$C$24),0)) -> 0.9867255684 | E32: =INDEX($E$7:$E$12, MATCH(1, ($B32 = $B$7:$B$12)*('Control and Output Summary'!$C$14 = $C$7:$C$12),0 )) /SUMPRODUCT(SUMIFS($E$7:$E$12,$C$7:$C$12,'Control and Output Summary'!$C$14,$B$7:$B$12,$C$31:E$31)) *SUM( IF( E$31 = $B32:$B$37, 1, 0)) * INDEX($D$19:$D$24, MATCH(1, (E$31 = $B$19:$B$24 )*('Control and Output Summary'!$C$14 = $C$19:$C$24),0)) -> 9.90951911 | F32: =INDEX($E$7:$E$12, MATCH(1, ($B32 = $B$7:$B$12)*('Control and Output Summary'!$C$14 = $C$7:$C$12),0 )) /SUMPRODUCT(SUMIFS($E$7:$E$12,$C$7:$C$12,'Control and Output Summary'!$C$14,$B$7:$B$12,$C$31:F$31)) *SUM( IF( F$31 = $B32:$B$37, 1, 0)) * INDEX($D$19:$D$24, MATCH(1, (F$31 = $B$19:$B$24 )*('Control and Output Summary'!$C$14 = $C$19:$C$24),0)) -> 5.275953469 | G32: =INDEX($E$7:$E$12, MATCH(1, ($B32 = $B$7:$B$12)*('Control and Output Summary'!$C$14 = $C$7:$C$12),0 )) /SUMPRODUCT(SUMIFS($E$7:$E$12,$C$7:$C$12,'Control and Output Summary'!$C$14,$B$7:$B$12,$C$31:G$31)) *SUM( IF( G$31 = $B32:$B$37, 1, 0)) * INDEX($D$19:$D$24, MATCH(1, (G$31 = $B$19:$B$24 )*('Control and Output Summary'!$C$14 = $C$19:$C$24),0)) -> 0.4205303534 | H32: =INDEX($E$7:$E$12, MATCH(1, ($B32 = $B$7:$B$12)*('Control and Output Summary'!$C$14 = $C$7:$C$12),0 )) /SUMPRODUCT(SUMIFS($E$7:$E$12,$C$7:$C$12,'Control and Output Summary'!$C$14,$B$7:$B$12,$C$31:H$31)) *SUM( IF( H$31 = $B32:$B$37, 1, 0)) * INDEX($D$19:$D$24, MATCH(1, (H$31 = $B$19:$B$24 )*('Control and Output Summary'!$C$14 = $C$19:$C$24),0)) -> 1.732126159 | I32: =SUM($C32:$H32) -> 23.00437402
B33: LV Bus | C33: =INDEX($E$7:$E$12, MATCH(1, ($B33 = $B$7:$B$12)*('Control and Output Summary'!$C$14 = $C$7:$C$12),0 )) /SUMPRODUCT(SUMIFS($E$7:$E$12,$C$7:$C$12,'Control and Output Summary'!$C$14,$B$7:$B$12,$C$31:C$31)) *SUM( IF( C$31 = $B33:$B$37, 1, 0)) * INDEX($D$19:$D$24, MATCH(1, (C$31 = $B$19:$B$24 )*('Control and Output Summary'!$C$14 = $C$19:$C$24),0)) -> 0 | D33: =INDEX($E$7:$E$12, MATCH(1, ($B33 = $B$7:$B$12)*('Control and Output Summary'!$C$14 = $C$7:$C$12),0 )) /SUMPRODUCT(SUMIFS($E$7:$E$12,$C$7:$C$12,'Control and Output Summary'!$C$14,$B$7:$B$12,$C$31:D$31)) *SUM( IF( D$31 = $B33:$B$37, 1, 0)) * INDEX($D$19:$D$24, MATCH(1, (D$31 = $B$19:$B$24 )*('Control and Output Summary'!$C$14 = $C$19:$C$24),0)) -> 1.002474556 | E33: =INDEX($E$7:$E$12, MATCH(1, ($B33 = $B$7:$B$12)*('Control and Output Summary'!$C$14 = $C$7:$C$12),0 )) /SUMPRODUCT(SUMIFS($E$7:$E$12,$C$7:$C$12,'Control and Output Summary'!$C$14,$B$7:$B$12,$C$31:E$31)) *SUM( IF( E$31 = $B33:$B$37, 1, 0)) * INDEX($D$19:$D$24, MATCH(1, (E$31 = $B$19:$B$24 )*('Control and Output Summary'!$C$14 = $C$19:$C$24),0)) -> 10.06768355 | F33: =INDEX($E$7:$E$12, MATCH(1, ($B33 = $B$7:$B$12)*('Control and Output Summary'!$C$14 = $C$7:$C$12),0 )) /SUMPRODUCT(SUMIFS($E$7:$E$12,$C$7:$C$12,'Control and Output Summary'!$C$14,$B$7:$B$12,$C$31:F$31)) *SUM( IF( F$31 = $B33:$B$37, 1, 0)) * INDEX($D$19:$D$24, MATCH(1, (F$31 = $B$19:$B$24 )*('Control and Output Summary'!$C$14 = $C$19:$C$24),0)) -> 5.360162218 | G33: =INDEX($E$7:$E$12, MATCH(1, ($B33 = $B$7:$B$12)*('Control and Output Summary'!$C$14 = $C$7:$C$12),0 )) /SUMPRODUCT(SUMIFS($E$7:$E$12,$C$7:$C$12,'Control and Output Summary'!$C$14,$B$7:$B$12,$C$31:G$31)) *SUM( IF( G$31 = $B33:$B$37, 1, 0)) * INDEX($D$19:$D$24, MATCH(1, (G$31 = $B$19:$B$24 )*('Control and Output Summary'!$C$14 = $C$19:$C$24),0)) -> 0.4272423791 | H33: =INDEX($E$7:$E$12, MATCH(1, ($B33 = $B$7:$B$12)*('Control and Output Summary'!$C$14 = $C$7:$C$12),0 )) /SUMPRODUCT(SUMIFS($E$7:$E$12,$C$7:$C$12,'Control and Output Summary'!$C$14,$B$7:$B$12,$C$31:H$31)) *SUM( IF( H$31 = $B33:$B$37, 1, 0)) * INDEX($D$19:$D$24, MATCH(1, (H$31 = $B$19:$B$24 )*('Control and Output Summary'!$C$14 = $C$19:$C$24),0)) -> 1.759772381 | I33: 18.61733508
B34: HV Line | C34: =INDEX($E$7:$E$12, MATCH(1, ($B34 = $B$7:$B$12)*('Control and Output Summary'!$C$14 = $C$7:$C$12),0 )) /SUMPRODUCT(SUMIFS($E$7:$E$12,$C$7:$C$12,'Control and Output Summary'!$C$14,$B$7:$B$12,$C$31:C$31)) *SUM( IF( C$31 = $B34:$B$37, 1, 0)) * INDEX($D$19:$D$24, MATCH(1, (C$31 = $B$19:$B$24 )*('Control and Output Summary'!$C$14 = $C$19:$C$24),0)) -> 0 | D34: =INDEX($E$7:$E$12, MATCH(1, ($B34 = $B$7:$B$12)*('Control and Output Summary'!$C$14 = $C$7:$C$12),0 )) /SUMPRODUCT(SUMIFS($E$7:$E$12,$C$7:$C$12,'Control and Output Summary'!$C$14,$B$7:$B$12,$C$31:D$31)) *SUM( IF( D$31 = $B34:$B$37, 1, 0)) * INDEX($D$19:$D$24, MATCH(1, (D$31 = $B$19:$B$24 )*('Control and Output Summary'!$C$14 = $C$19:$C$24),0)) -> 0 | E34: =INDEX($E$7:$E$12, MATCH(1, ($B34 = $B$7:$B$12)*('Control and Output Summary'!$C$14 = $C$7:$C$12),0 )) /SUMPRODUCT(SUMIFS($E$7:$E$12,$C$7:$C$12,'Control and Output Summary'!$C$14,$B$7:$B$12,$C$31:E$31)) *SUM( IF( E$31 = $B34:$B$37, 1, 0)) * INDEX($D$19:$D$24, MATCH(1, (E$31 = $B$19:$B$24 )*('Control and Output Summary'!$C$14 = $C$19:$C$24),0)) -> 2.637900794 | F34: =INDEX($E$7:$E$12, MATCH(1, ($B34 = $B$7:$B$12)*('Control and Output Summary'!$C$14 = $C$7:$C$12),0 )) /SUMPRODUCT(SUMIFS($E$7:$E$12,$C$7:$C$12,'Control and Output Summary'!$C$14,$B$7:$B$12,$C$31:F$31)) *SUM( IF( F$31 = $B34:$B$37, 1, 0)) * INDEX($D$19:$D$24, MATCH(1, (F$31 = $B$19:$B$24 )*('Control and Output Summary'!$C$14 = $C$19:$C$24),0)) -> 1.404451789 | G34: =INDEX($E$7:$E$12, MATCH(1, ($B34 = $B$7:$B$12)*('Control and Output Summary'!$C$14 = $C$7:$C$12),0 )) /SUMPRODUCT(SUMIFS($E$7:$E$12,$C$7:$C$12,'Control and Output Summary'!$C$14,$B$7:$B$12,$C$31:G$31)) *SUM( IF( G$31 = $B34:$B$37, 1, 0)) * INDEX($D$19:$D$24, MATCH(1, (G$31 = $B$19:$B$24 )*('Control and Output Summary'!$C$14 = $C$19:$C$24),0)) -> 0.1119446202 | H34: =INDEX($E$7:$E$12, MATCH(1, ($B34 = $B$7:$B$12)*('Control and Output Summary'!$C$14 = $C$7:$C$12),0 )) /SUMPRODUCT(SUMIFS($E$7:$E$12,$C$7:$C$12,'Control and Output Summary'!$C$14,$B$7:$B$12,$C$31:H$31)) *SUM( IF( H$31 = $B34:$B$37, 1, 0)) * INDEX($D$19:$D$24, MATCH(1, (H$31 = $B$19:$B$24 )*('Control and Output Summary'!$C$14 = $C$19:$C$24),0)) -> 0.4610896775 | I34: 4.615386881
B35: HV Bus | C35: =INDEX($E$7:$E$12, MATCH(1, ($B35 = $B$7:$B$12)*('Control and Output Summary'!$C$14 = $C$7:$C$12),0 )) /SUMPRODUCT(SUMIFS($E$7:$E$12,$C$7:$C$12,'Control and Output Summary'!$C$14,$B$7:$B$12,$C$31:C$31)) *SUM( IF( C$31 = $B35:$B$37, 1, 0)) * INDEX($D$19:$D$24, MATCH(1, (C$31 = $B$19:$B$24 )*('Control and Output Summary'!$C$14 = $C$19:$C$24),0)) -> 0 | D35: =INDEX($E$7:$E$12, MATCH(1, ($B35 = $B$7:$B$12)*('Control and Output Summary'!$C$14 = $C$7:$C$12),0 )) /SUMPRODUCT(SUMIFS($E$7:$E$12,$C$7:$C$12,'Control and Output Summary'!$C$14,$B$7:$B$12,$C$31:D$31)) *SUM( IF( D$31 = $B35:$B$37, 1, 0)) * INDEX($D$19:$D$24, MATCH(1, (D$31 = $B$19:$B$24 )*('Control and Output Summary'!$C$14 = $C$19:$C$24),0)) -> 0 | E35: =INDEX($E$7:$E$12, MATCH(1, ($B35 = $B$7:$B$12)*('Control and Output Summary'!$C$14 = $C$7:$C$12),0 )) /SUMPRODUCT(SUMIFS($E$7:$E$12,$C$7:$C$12,'Control and Output Summary'!$C$14,$B$7:$B$12,$C$31:E$31)) *SUM( IF( E$31 = $B35:$B$37, 1, 0)) * INDEX($D$19:$D$24, MATCH(1, (E$31 = $B$19:$B$24 )*('Control and Output Summary'!$C$14 = $C$19:$C$24),0)) -> 0 | F35: =INDEX($E$7:$E$12, MATCH(1, ($B35 = $B$7:$B$12)*('Control and Output Summary'!$C$14 = $C$7:$C$12),0 )) /SUMPRODUCT(SUMIFS($E$7:$E$12,$C$7:$C$12,'Control and Output Summary'!$C$14,$B$7:$B$12,$C$31:F$31)) *SUM( IF( F$31 = $B35:$B$37, 1, 0)) * INDEX($D$19:$D$24, MATCH(1, (F$31 = $B$19:$B$24 )*('Control and Output Summary'!$C$14 = $C$19:$C$24),0)) -> 1.41507196 | G35: =INDEX($E$7:$E$12, MATCH(1, ($B35 = $B$7:$B$12)*('Control and Output Summary'!$C$14 = $C$7:$C$12),0 )) /SUMPRODUCT(SUMIFS($E$7:$E$12,$C$7:$C$12,'Control and Output Summary'!$C$14,$B$7:$B$12,$C$31:G$31)) *SUM( IF( G$31 = $B35:$B$37, 1, 0)) * INDEX($D$19:$D$24, MATCH(1, (G$31 = $B$19:$B$24 )*('Control and Output Summary'!$C$14 = $C$19:$C$24),0)) -> 0.112791122 | H35: =INDEX($E$7:$E$12, MATCH(1, ($B35 = $B$7:$B$12)*('Control and Output Summary'!$C$14 = $C$7:$C$12),0 )) /SUMPRODUCT(SUMIFS($E$7:$E$12,$C$7:$C$12,'Control and Output Summary'!$C$14,$B$7:$B$12,$C$31:H$31)) *SUM( IF( H$31 = $B35:$B$37, 1, 0)) * INDEX($D$19:$D$24, MATCH(1, (H$31 = $B$19:$B$24 )*('Control and Output Summary'!$C$14 = $C$19:$C$24),0)) -> 0.4645763412 | I35: 1.992439423
B36: ST 33/66 kv | C36: =INDEX($E$7:$E$12, MATCH(1, ($B36 = $B$7:$B$12)*('Control and Output Summary'!$C$14 = $C$7:$C$12),0 )) /SUMPRODUCT(SUMIFS($E$7:$E$12,$C$7:$C$12,'Control and Output Summary'!$C$14,$B$7:$B$12,$C$31:C$31)) *SUM( IF( C$31 = $B36:$B$37, 1, 0)) * INDEX($D$19:$D$24, MATCH(1, (C$31 = $B$19:$B$24 )*('Control and Output Summary'!$C$14 = $C$19:$C$24),0)) -> 0 | D36: =INDEX($E$7:$E$12, MATCH(1, ($B36 = $B$7:$B$12)*('Control and Output Summary'!$C$14 = $C$7:$C$12),0 )) /SUMPRODUCT(SUMIFS($E$7:$E$12,$C$7:$C$12,'Control and Output Summary'!$C$14,$B$7:$B$12,$C$31:D$31)) *SUM( IF( D$31 = $B36:$B$37, 1, 0)) * INDEX($D$19:$D$24, MATCH(1, (D$31 = $B$19:$B$24 )*('Control and Output Summary'!$C$14 = $C$19:$C$24),0)) -> 0 | E36: =INDEX($E$7:$E$12, MATCH(1, ($B36 = $B$7:$B$12)*('Control and Output Summary'!$C$14 = $C$7:$C$12),0 )) /SUMPRODUCT(SUMIFS($E$7:$E$12,$C$7:$C$12,'Control and Output Summary'!$C$14,$B$7:$B$12,$C$31:E$31)) *SUM( IF( E$31 = $B36:$B$37, 1, 0)) * INDEX($D$19:$D$24, MATCH(1, (E$31 = $B$19:$B$24 )*('Control and Output Summary'!$C$14 = $C$19:$C$24),0)) -> 0 | F36: =INDEX($E$7:$E$12, MATCH(1, ($B36 = $B$7:$B$12)*('Control and Output Summary'!$C$14 = $C$7:$C$12),0 )) /SUMPRODUCT(SUMIFS($E$7:$E$12,$C$7:$C$12,'Control and Output Summary'!$C$14,$B$7:$B$12,$C$31:F$31)) *SUM( IF( F$31 = $B36:$B$37, 1, 0)) * INDEX($D$19:$D$24, MATCH(1, (F$31 = $B$19:$B$24 )*('Control and Output Summary'!$C$14 = $C$19:$C$24),0)) -> 0 | G36: =INDEX($E$7:$E$12, MATCH(1, ($B36 = $B$7:$B$12)*('Control and Output Summary'!$C$14 = $C$7:$C$12),0 )) /SUMPRODUCT(SUMIFS($E$7:$E$12,$C$7:$C$12,'Control and Output Summary'!$C$14,$B$7:$B$12,$C$31:G$31)) *SUM( IF( G$31 = $B36:$B$37, 1, 0)) * INDEX($D$19:$D$24, MATCH(1, (G$31 = $B$19:$B$24 )*('Control and Output Summary'!$C$14 = $C$19:$C$24),0)) -> 0.01132647026 | H36: =INDEX($E$7:$E$12, MATCH(1, ($B36 = $B$7:$B$12)*('Control and Output Summary'!$C$14 = $C$7:$C$12),0 )) /SUMPRODUCT(SUMIFS($E$7:$E$12,$C$7:$C$12,'Control and Output Summary'!$C$14,$B$7:$B$12,$C$31:H$31)) *SUM( IF( H$31 = $B36:$B$37, 1, 0)) * INDEX($D$19:$D$24, MATCH(1, (H$31 = $B$19:$B$24 )*('Control and Output Summary'!$C$14 = $C$19:$C$24),0)) -> 0.04665269764 | I36: 0.0579791679
B37: ST 110/132 kv | C37: =INDEX($E$7:$E$12, MATCH(1, ($B37 = $B$7:$B$12)*('Control and Output Summary'!$C$14 = $C$7:$C$12),0 )) /SUMPRODUCT(SUMIFS($E$7:$E$12,$C$7:$C$12,'Control and Output Summary'!$C$14,$B$7:$B$12,$C$31:C$31)) *SUM( IF( C$31 = $B37:$B$37, 1, 0)) * INDEX($D$19:$D$24, MATCH(1, (C$31 = $B$19:$B$24 )*('Control and Output Summary'!$C$14 = $C$19:$C$24),0)) -> 0 | D37: =INDEX($E$7:$E$12, MATCH(1, ($B37 = $B$7:$B$12)*('Control and Output Summary'!$C$14 = $C$7:$C$12),0 )) /SUMPRODUCT(SUMIFS($E$7:$E$12,$C$7:$C$12,'Control and Output Summary'!$C$14,$B$7:$B$12,$C$31:D$31)) *SUM( IF( D$31 = $B37:$B$37, 1, 0)) * INDEX($D$19:$D$24, MATCH(1, (D$31 = $B$19:$B$24 )*('Control and Output Summary'!$C$14 = $C$19:$C$24),0)) -> 0 | E37: =INDEX($E$7:$E$12, MATCH(1, ($B37 = $B$7:$B$12)*('Control and Output Summary'!$C$14 = $C$7:$C$12),0 )) /SUMPRODUCT(SUMIFS($E$7:$E$12,$C$7:$C$12,'Control and Output Summary'!$C$14,$B$7:$B$12,$C$31:E$31)) *SUM( IF( E$31 = $B37:$B$37, 1, 0)) * INDEX($D$19:$D$24, MATCH(1, (E$31 = $B$19:$B$24 )*('Control and Output Summary'!$C$14 = $C$19:$C$24),0)) -> 0 | F37: =INDEX($E$7:$E$12, MATCH(1, ($B37 = $B$7:$B$12)*('Control and Output Summary'!$C$14 = $C$7:$C$12),0 )) /SUMPRODUCT(SUMIFS($E$7:$E$12,$C$7:$C$12,'Control and Output Summary'!$C$14,$B$7:$B$12,$C$31:F$31)) *SUM( IF( F$31 = $B37:$B$37, 1, 0)) * INDEX($D$19:$D$24, MATCH(1, (F$31 = $B$19:$B$24 )*('Control and Output Summary'!$C$14 = $C$19:$C$24),0)) -> 0 | G37: =INDEX($E$7:$E$12, MATCH(1, ($B37 = $B$7:$B$12)*('Control and Output Summary'!$C$14 = $C$7:$C$12),0 )) /SUMPRODUCT(SUMIFS($E$7:$E$12,$C$7:$C$12,'Control and Output Summary'!$C$14,$B$7:$B$12,$C$31:G$31)) *SUM( IF( G$31 = $B37:$B$37, 1, 0)) * INDEX($D$19:$D$24, MATCH(1, (G$31 = $B$19:$B$24 )*('Control and Output Summary'!$C$14 = $C$19:$C$24),0)) -> 0 | H37: =INDEX($E$7:$E$12, MATCH(1, ($B37 = $B$7:$B$12)*('Control and Output Summary'!$C$14 = $C$7:$C$12),0 )) /SUMPRODUCT(SUMIFS($E$7:$E$12,$C$7:$C$12,'Control and Output Summary'!$C$14,$B$7:$B$12,$C$31:H$31)) *SUM( IF( H$31 = $B37:$B$37, 1, 0)) * INDEX($D$19:$D$24, MATCH(1, (H$31 = $B$19:$B$24 )*('Control and Output Summary'!$C$14 = $C$19:$C$24),0)) -> 0.04694828262 | I37: 0.04694828262
B39: LRMC Component Break Down ($/kW)
B41: Demand at each Voltage Level | C41: LV Line | D41: LV Bus | E41: HV Line | F41: HV Bus | G41: ST 33/66 kV | H41: ST 110/132 kV | I41: Total LRMC | J41: $/kVA p.a.
B42: LV Line | C42: =IFERROR( C32* 1000/ INDEX($E$7:$E$12, MATCH(1, ($B42 = $B$7:$B$12)*('Control and Output Summary'!$C$14 = $C$7:$C$12),0 )), 0) -> 39.12800195 | D42: =IFERROR( D32* 1000/ INDEX($E$7:$E$12, MATCH(1, ($B42 = $B$7:$B$12)*('Control and Output Summary'!$C$14 = $C$7:$C$12),0 )), 0) -> 8.250548183 | E42: =IFERROR( E32* 1000/ INDEX($E$7:$E$12, MATCH(1, ($B42 = $B$7:$B$12)*('Control and Output Summary'!$C$14 = $C$7:$C$12),0 )), 0) -> 82.85886928 | F42: =IFERROR( F32* 1000/ INDEX($E$7:$E$12, MATCH(1, ($B42 = $B$7:$B$12)*('Control and Output Summary'!$C$14 = $C$7:$C$12),0 )), 0) -> 44.11511133 | G42: =IFERROR( G32* 1000/ INDEX($E$7:$E$12, MATCH(1, ($B42 = $B$7:$B$12)*('Control and Output Summary'!$C$14 = $C$7:$C$12),0 )), 0) -> 3.516282596 | H42: =IFERROR( H32* 1000/ INDEX($E$7:$E$12, MATCH(1, ($B42 = $B$7:$B$12)*('Control and Output Summary'!$C$14 = $C$7:$C$12),0 )), 0) -> 14.48324721 | I42: =SUM($C42:$H42) -> 192.3520606 | J42: =$I42 *IF('Control and Output Summary'!$C$14<>"Ergon", INDEX('Asset Specification'!$F$8:$F$43, MATCH(1, ($B42 = 'Asset Specification'!$B$8:$B$43)*('Control and Output Summary'!$C$14 ='Asset Specification'!$C$8:$C$43 ) *("Import" = 'Asset Specification'!$D$8:$D$43 ),0 )),INDEX(#REF!, MATCH(1, ($B42 =#REF!) *("Import" =#REF! ),0 ))) -> 173.1168545
B43: LV Bus | C43: =IFERROR( C33* 1000/ INDEX($E$7:$E$12, MATCH(1, ($B43 = $B$7:$B$12)*('Control and Output Summary'!$C$14 = $C$7:$C$12),0 )), 0) -> 0 | D43: =IFERROR( D33* 1000/ INDEX($E$7:$E$12, MATCH(1, ($B43 = $B$7:$B$12)*('Control and Output Summary'!$C$14 = $C$7:$C$12),0 )), 0) -> 8.250548183 | E43: =IFERROR( E33* 1000/ INDEX($E$7:$E$12, MATCH(1, ($B43 = $B$7:$B$12)*('Control and Output Summary'!$C$14 = $C$7:$C$12),0 )), 0) -> 82.85886928 | F43: =IFERROR( F33* 1000/ INDEX($E$7:$E$12, MATCH(1, ($B43 = $B$7:$B$12)*('Control and Output Summary'!$C$14 = $C$7:$C$12),0 )), 0) -> 44.11511133 | G43: =IFERROR( G33* 1000/ INDEX($E$7:$E$12, MATCH(1, ($B43 = $B$7:$B$12)*('Control and Output Summary'!$C$14 = $C$7:$C$12),0 )), 0) -> 3.516282596 | H43: =IFERROR( H33* 1000/ INDEX($E$7:$E$12, MATCH(1, ($B43 = $B$7:$B$12)*('Control and Output Summary'!$C$14 = $C$7:$C$12),0 )), 0) -> 14.48324721 | I43: =SUM($C43:$H43) -> 153.2240586 | J43: =$I43 *IF('Control and Output Summary'!$C$14<>"Ergon", INDEX('Asset Specification'!$F$8:$F$43, MATCH(1, ($B43 = 'Asset Specification'!$B$8:$B$43)*('Control and Output Summary'!$C$14 ='Asset Specification'!$C$8:$C$43 ) *("Import" = 'Asset Specification'!$D$8:$D$43 ),0 )),INDEX(#REF!, MATCH(1, ($B43 =#REF!) *("Import" =#REF! ),0 ))) -> 137.9016527
B44: HV Line | C44: =IFERROR( C34* 1000/ INDEX($E$7:$E$12, MATCH(1, ($B44 = $B$7:$B$12)*('Control and Output Summary'!$C$14 = $C$7:$C$12),0 )), 0) -> 0 | D44: =IFERROR( D34* 1000/ INDEX($E$7:$E$12, MATCH(1, ($B44 = $B$7:$B$12)*('Control and Output Summary'!$C$14 = $C$7:$C$12),0 )), 0) -> 0 | E44: =IFERROR( E34* 1000/ INDEX($E$7:$E$12, MATCH(1, ($B44 = $B$7:$B$12)*('Control and Output Summary'!$C$14 = $C$7:$C$12),0 )), 0) -> 82.85886928 | F44: =IFERROR( F34* 1000/ INDEX($E$7:$E$12, MATCH(1, ($B44 = $B$7:$B$12)*('Control and Output Summary'!$C$14 = $C$7:$C$12),0 )), 0) -> 44.11511133 | G44: =IFERROR( G34* 1000/ INDEX($E$7:$E$12, MATCH(1, ($B44 = $B$7:$B$12)*('Control and Output Summary'!$C$14 = $C$7:$C$12),0 )), 0) -> 3.516282596 | H44: =IFERROR( H34* 1000/ INDEX($E$7:$E$12, MATCH(1, ($B44 = $B$7:$B$12)*('Control and Output Summary'!$C$14 = $C$7:$C$12),0 )), 0) -> 14.48324721 | I44: 144.9735104 | J44: =$I44 *IF('Control and Output Summary'!$C$14<>"Ergon", INDEX('Asset Specification'!$F$8:$F$43, MATCH(1, ($B44 = 'Asset Specification'!$B$8:$B$43)*('Control and Output Summary'!$C$14 ='Asset Specification'!$C$8:$C$43 ) *("Import" = 'Asset Specification'!$D$8:$D$43 ),0 )),INDEX(#REF!, MATCH(1, ($B44 =#REF!) *("Import" =#REF! ),0 ))) -> 130.4761594
B45: HV Bus | C45: =IFERROR( C35* 1000/ INDEX($E$7:$E$12, MATCH(1, ($B45 = $B$7:$B$12)*('Control and Output Summary'!$C$14 = $C$7:$C$12),0 )), 0) -> 0 | D45: =IFERROR( D35* 1000/ INDEX($E$7:$E$12, MATCH(1, ($B45 = $B$7:$B$12)*('Control and Output Summary'!$C$14 = $C$7:$C$12),0 )), 0) -> 0 | E45: =IFERROR( E35* 1000/ INDEX($E$7:$E$12, MATCH(1, ($B45 = $B$7:$B$12)*('Control and Output Summary'!$C$14 = $C$7:$C$12),0 )), 0) -> 0 | F45: =IFERROR( F35* 1000/ INDEX($E$7:$E$12, MATCH(1, ($B45 = $B$7:$B$12)*('Control and Output Summary'!$C$14 = $C$7:$C$12),0 )), 0) -> 44.11511133 | G45: =IFERROR( G35* 1000/ INDEX($E$7:$E$12, MATCH(1, ($B45 = $B$7:$B$12)*('Control and Output Summary'!$C$14 = $C$7:$C$12),0 )), 0) -> 3.516282596 | H45: =IFERROR( H35* 1000/ INDEX($E$7:$E$12, MATCH(1, ($B45 = $B$7:$B$12)*('Control and Output Summary'!$C$14 = $C$7:$C$12),0 )), 0) -> 14.48324721 | I45: 62.11464114 | J45: =$I45 *IF('Control and Output Summary'!$C$14<>"Ergon", INDEX('Asset Specification'!$F$8:$F$43, MATCH(1, ($B45 = 'Asset Specification'!$B$8:$B$43)*('Control and Output Summary'!$C$14 ='Asset Specification'!$C$8:$C$43 ) *("Import" = 'Asset Specification'!$D$8:$D$43 ),0 )),INDEX(#REF!, MATCH(1, ($B45 =#REF!) *("Import" =#REF! ),0 ))) -> 55.90317703
B46: ST 33/66 kv | C46: =IFERROR( C36* 1000/ INDEX($E$7:$E$12, MATCH(1, ($B46 = $B$7:$B$12)*('Control and Output Summary'!$C$14 = $C$7:$C$12),0 )), 0) -> 0 | D46: =IFERROR( D36* 1000/ INDEX($E$7:$E$12, MATCH(1, ($B46 = $B$7:$B$12)*('Control and Output Summary'!$C$14 = $C$7:$C$12),0 )), 0) -> 0 | E46: =IFERROR( E36* 1000/ INDEX($E$7:$E$12, MATCH(1, ($B46 = $B$7:$B$12)*('Control and Output Summary'!$C$14 = $C$7:$C$12),0 )), 0) -> 0 | F46: =IFERROR( F36* 1000/ INDEX($E$7:$E$12, MATCH(1, ($B46 = $B$7:$B$12)*('Control and Output Summary'!$C$14 = $C$7:$C$12),0 )), 0) -> 0 | G46: =IFERROR( G36* 1000/ INDEX($E$7:$E$12, MATCH(1, ($B46 = $B$7:$B$12)*('Control and Output Summary'!$C$14 = $C$7:$C$12),0 )), 0) -> 3.516282596 | H46: =IFERROR( H36* 1000/ INDEX($E$7:$E$12, MATCH(1, ($B46 = $B$7:$B$12)*('Control and Output Summary'!$C$14 = $C$7:$C$12),0 )), 0) -> 14.48324721 | I46: 17.99952981 | J46: =$I46 *IF('Control and Output Summary'!$C$14<>"Ergon", INDEX('Asset Specification'!$F$8:$F$43, MATCH(1, ($B46 = 'Asset Specification'!$B$8:$B$43)*('Control and Output Summary'!$C$14 ='Asset Specification'!$C$8:$C$43 ) *("Import" = 'Asset Specification'!$D$8:$D$43 ),0 )),INDEX(#REF!, MATCH(1, ($B46 =#REF!) *("Import" =#REF! ),0 ))) -> 16.19957683
B47: ST 110/132 kv | C47: =IFERROR( C37* 1000/ INDEX($E$7:$E$12, MATCH(1, ($B47 = $B$7:$B$12)*('Control and Output Summary'!$C$14 = $C$7:$C$12),0 )), 0) -> 0 | D47: =IFERROR( D37* 1000/ INDEX($E$7:$E$12, MATCH(1, ($B47 = $B$7:$B$12)*('Control and Output Summary'!$C$14 = $C$7:$C$12),0 )), 0) -> 0 | E47: =IFERROR( E37* 1000/ INDEX($E$7:$E$12, MATCH(1, ($B47 = $B$7:$B$12)*('Control and Output Summary'!$C$14 = $C$7:$C$12),0 )), 0) -> 0 | F47: =IFERROR( F37* 1000/ INDEX($E$7:$E$12, MATCH(1, ($B47 = $B$7:$B$12)*('Control and Output Summary'!$C$14 = $C$7:$C$12),0 )), 0) -> 0 | G47: =IFERROR( G37* 1000/ INDEX($E$7:$E$12, MATCH(1, ($B47 = $B$7:$B$12)*('Control and Output Summary'!$C$14 = $C$7:$C$12),0 )), 0) -> 0 | H47: =IFERROR( H37* 1000/ INDEX($E$7:$E$12, MATCH(1, ($B47 = $B$7:$B$12)*('Control and Output Summary'!$C$14 = $C$7:$C$12),0 )), 0) -> 14.48324721 | I47: 14.48324721 | J47: =$I47 *IF('Control and Output Summary'!$C$14<>"Ergon", INDEX('Asset Specification'!$F$8:$F$43, MATCH(1, ($B47 = 'Asset Specification'!$B$8:$B$43)*('Control and Output Summary'!$C$14 ='Asset Specification'!$C$8:$C$43 ) *("Import" = 'Asset Specification'!$D$8:$D$43 ),0 )),INDEX(#REF!, MATCH(1, ($B47 =#REF!) *("Import" =#REF! ),0 ))) -> 13.03492249

Sheet Export AIC
B1: Export AIC
B3: Incremental Capacity (MW)
B6: Voltage Level | C6: Pricing Zone | D6: NPV | E6: ='Import Expenditure Forecast'!G$7 -> 2024 | F6: ='Import Expenditure Forecast'!H$7 -> 2025 | G6: ='Import Expenditure Forecast'!I$7 -> 2026 | H6: ='Import Expenditure Forecast'!J$7 -> 2027 | I6: ='Import Expenditure Forecast'!K$7 -> 2028 | J6: ='Import Expenditure Forecast'!L$7 -> 2029 | K6: ='Import Expenditure Forecast'!M$7 -> 2030 | L6: ='Import Expenditure Forecast'!N$7 -> 2031 | M6: ='Import Expenditure Forecast'!O$7 -> 2032 | N6: ='Import Expenditure Forecast'!P$7 -> 2033
B7: LV Line | C7: ='Control and Output Summary'!$C$14 -> Energex | D7: =NPV('Control and Output Summary'!$C$6,$E7:$N7) -> 1034.839106 | E7: ='Export Summary'!E19 -> 124.5185715 | F7: ='Export Summary'!F19 -> 157.552294 | G7: ='Export Summary'!G19 -> 150.5595587 | H7: ='Export Summary'!H19 -> 145.0478325 | I7: ='Export Summary'!I19 -> 143.5497486 | J7: ='Export Summary'!J19 -> 133.9256021 | K7: ='Export Summary'!K19 -> 117.3063069 | L7: ='Export Summary'!L19 -> 93.3913346 | M7: ='Export Summary'!M19 -> 87.46734835 | N7: ='Export Summary'!N19 -> 84.71793578
B8: LV Bus | C8: ='Control and Output Summary'!$C$14 -> Energex | D8: =NPV('Control and Output Summary'!$C$6,$E8:$N8) -> 1034.839106 | E8: ='Export Summary'!E20 -> 124.5185715 | F8: ='Export Summary'!F20 -> 157.552294 | G8: ='Export Summary'!G20 -> 150.5595587 | H8: ='Export Summary'!H20 -> 145.0478325 | I8: ='Export Summary'!I20 -> 143.5497486 | J8: ='Export Summary'!J20 -> 133.9256021 | K8: ='Export Summary'!K20 -> 117.3063069 | L8: ='Export Summary'!L20 -> 93.3913346 | M8: ='Export Summary'!M20 -> 87.46734835 | N8: ='Export Summary'!N20 -> 84.71793578
B9: HV Line | C9: ='Control and Output Summary'!$C$14 -> Energex | D9: =NPV('Control and Output Summary'!$C$6,$E9:$N9) -> 54.4652161 | E9: ='Export Summary'!E21 -> 6.553609025 | F9: ='Export Summary'!F21 -> 8.292226 | G9: ='Export Summary'!G21 -> 7.9241873 | H9: ='Export Summary'!H21 -> 7.63409645 | I9: ='Export Summary'!I21 -> 7.555249925 | J9: ='Export Summary'!J21 -> 7.0487159 | K9: ='Export Summary'!K21 -> 6.17401615 | L9: ='Export Summary'!L21 -> 4.9153334 | M9: ='Export Summary'!M21 -> 4.60354465 | N9: ='Export Summary'!N21 -> 4.458838725
B10: HV Bus | C10: ='Control and Output Summary'!$C$14 -> Energex | D10: =NPV('Control and Output Summary'!$C$6,$E10:$N10) -> 54.4652161 | E10: ='Export Summary'!E22 -> 6.553609025 | F10: ='Export Summary'!F22 -> 8.292226 | G10: ='Export Summary'!G22 -> 7.9241873 | H10: ='Export Summary'!H22 -> 7.63409645 | I10: ='Export Summary'!I22 -> 7.555249925 | J10: ='Export Summary'!J22 -> 7.0487159 | K10: ='Export Summary'!K22 -> 6.17401615 | L10: ='Export Summary'!L22 -> 4.9153334 | M10: ='Export Summary'!M22 -> 4.60354465 | N10: ='Export Summary'!N22 -> 4.458838725
B11: ST 33/66 kv | C11: ='Control and Output Summary'!$C$14 -> Energex | D11: =NPV('Control and Output Summary'!$C$6,$E11:$N11) -> 0 | E11: ='Export Summary'!E23 -> 0 | F11: ='Export Summary'!F23 -> 0 | G11: ='Export Summary'!G23 -> 0 | H11: ='Export Summary'!H23 -> 0 | I11: ='Export Summary'!I23 -> 0 | J11: ='Export Summary'!J23 -> 0 | K11: ='Export Summary'!K23 -> 0 | L11: ='Export Summary'!L23 -> 0 | M11: ='Export Summary'!M23 -> 0 | N11: ='Export Summary'!N23 -> 0
B12: ST 110/132 kv | C12: ='Control and Output Summary'!$C$14 -> Energex | D12: =NPV('Control and Output Summary'!$C$6,$E12:$N12) -> 0 | E12: ='Export Summary'!E24 -> 0 | F12: ='Export Summary'!F24 -> 0 | G12: ='Export Summary'!G24 -> 0 | H12: ='Export Summary'!H24 -> 0 | I12: ='Export Summary'!I24 -> 0 | J12: ='Export Summary'!J24 -> 0 | K12: ='Export Summary'!K24 -> 0 | L12: ='Export Summary'!L24 -> 0 | M12: ='Export Summary'!M24 -> 0 | N12: ='Export Summary'!N24 -> 0
B15: Incremental Costs ($m)
B18: Voltage Level | C18: Pricing Zone | D18: NPV | E18: =E$6 -> 2024 | F18: 2025 | G18: 2026 | H18: 2027 | I18: 2028 | J18: 2029 | K18: 2030 | L18: 2031 | M18: 2032 | N18: 2033
B19: LV Line | C19: ='Control and Output Summary'!$C$14 -> Energex | D19: =NPV('Control and Output Summary'!$C$6,$E19:$N19) -> 12.87271604 | E19: ='Capex Summary'!E212 -> 0.4296824349 | F19: ='Capex Summary'!F212 -> 0.6220236524 | G19: ='Capex Summary'!G212 -> 0.8143648698 | H19: ='Capex Summary'!H212 -> 1.323161044 | I19: ='Capex Summary'!I212 -> 1.534616 | J19: ='Capex Summary'!J212 -> 1.84381345 | K19: ='Capex Summary'!K212 -> 2.156196522 | L19: ='Capex Summary'!L212 -> 2.426522725 | M19: ='Capex Summary'!M212 -> 2.58567832 | N19: ='Capex Summary'!N212 -> 2.780519537
B20: LV Bus | C20: ='Control and Output Summary'!$C$14 -> Energex | D20: =NPV('Control and Output Summary'!$C$6,$E20:$N20) -> 12.87271604 | E20: ='Capex Summary'!E213 -> 0.4296824349 | F20: ='Capex Summary'!F213 -> 0.6220236524 | G20: ='Capex Summary'!G213 -> 0.8143648698 | H20: ='Capex Summary'!H213 -> 1.323161044 | I20: ='Capex Summary'!I213 -> 1.534616 | J20: ='Capex Summary'!J213 -> 1.84381345 | K20: ='Capex Summary'!K213 -> 2.156196522 | L20: ='Capex Summary'!L213 -> 2.426522725 | M20: ='Capex Summary'!M213 -> 2.58567832 | N20: ='Capex Summary'!N213 -> 2.780519537
B21: HV Line | C21: ='Control and Output Summary'!$C$14 -> Energex | D21: =NPV('Control and Output Summary'!$C$6,$E21:$N21) -> 0 | E21: ='Capex Summary'!E214 -> 0 | F21: ='Capex Summary'!F214 -> 0 | G21: ='Capex Summary'!G214 -> 0 | H21: ='Capex Summary'!H214 -> 0 | I21: ='Capex Summary'!I214 -> 0 | J21: ='Capex Summary'!J214 -> 0 | K21: ='Capex Summary'!K214 -> 0 | L21: ='Capex Summary'!L214 -> 0 | M21: ='Capex Summary'!M214 -> 0 | N21: ='Capex Summary'!N214 -> 0
B22: HV Bus | C22: ='Control and Output Summary'!$C$14 -> Energex | D22: =NPV('Control and Output Summary'!$C$6,$E22:$N22) -> 3.816823699 | E22: ='Capex Summary'!E215 -> 0 | F22: ='Capex Summary'!F215 -> 0 | G22: ='Capex Summary'!G215 -> 0.1401208629 | H22: ='Capex Summary'!H215 -> 0.2567390928 | I22: ='Capex Summary'!I215 -> 0.4042319463 | J22: ='Capex Summary'!J215 -> 0.5509301397 | K22: ='Capex Summary'!K215 -> 0.7019618301 | L22: ='Capex Summary'!L215 -> 0.8514610043 | M22: ='Capex Summary'!M215 -> 1.001059729 | N22: ='Capex Summary'!N215 -> 1.150658454
B23: ST 33/66 kv | C23: ='Control and Output Summary'!$C$14 -> Energex | D23: =NPV('Control and Output Summary'!$C$6,$E23:$N23) -> 0 | E23: ='Capex Summary'!E216 -> 0 | F23: ='Capex Summary'!F216 -> 0 | G23: ='Capex Summary'!G216 -> 0 | H23: ='Capex Summary'!H216 -> 0 | I23: ='Capex Summary'!I216 -> 0 | J23: ='Capex Summary'!J216 -> 0 | K23: ='Capex Summary'!K216 -> 0 | L23: ='Capex Summary'!L216 -> 0 | M23: ='Capex Summary'!M216 -> 0 | N23: ='Capex Summary'!N216 -> 0
B24: ST 110/132 kv | C24: ='Control and Output Summary'!$C$14 -> Energex | D24: =NPV('Control and Output Summary'!$C$6,$E24:$N24) -> 0 | E24: ='Capex Summary'!E217 -> 0 | F24: ='Capex Summary'!F217 -> 0 | G24: ='Capex Summary'!G217 -> 0 | H24: ='Capex Summary'!H217 -> 0 | I24: ='Capex Summary'!I217 -> 0 | J24: ='Capex Summary'!J217 -> 0 | K24: ='Capex Summary'!K217 -> 0 | L24: ='Capex Summary'!L217 -> 0 | M24: ='Capex Summary'!M217 -> 0 | N24: ='Capex Summary'!N217 -> 0
B27: AIC To Each Part of The Network
B29: Cost Break Down ($m)
B31: Demand at each Voltage Level | C31: LV Line | D31: LV Bus | E31: HV Line | F31: HV Bus | G31: ST 33/66 kV | H31: ST 110/132 kV | I31: Total Network Cost ($m)
B32: LV Line | C32: =INDEX($D$7:$D$12, MATCH(1, ($B32 = $B$7:$B$12)*('Control and Output Summary'!$C$14 = $C$7:$C$12),0 )) /SUMPRODUCT(SUMIFS($D$7:$D$12,$C$7:$C$12,'Control and Output Summary'!$C$14,$B$7:$B$12,$C$31:C$31)) *SUM( IF( C$31 = $B32:$B$37, 1, 0)) * INDEX($D$19:$D$24, MATCH(1, (C$31 = $B$19:$B$24 )*('Control and Output Summary'!$C$14 = $C$19:$C$24),0)) -> 12.87271604 | D32: =INDEX($D$7:$D$12, MATCH(1, ($B32 = $B$7:$B$12)*('Control and Output Summary'!$C$14 = $C$7:$C$12),0 )) /SUMPRODUCT(SUMIFS($D$7:$D$12,$C$7:$C$12,'Control and Output Summary'!$C$14,$B$7:$B$12,$C$31:D$31)) *SUM( IF( D$31 = $B32:$B$37, 1, 0)) * INDEX($D$19:$D$24, MATCH(1, (D$31 = $B$19:$B$24 )*('Control and Output Summary'!$C$14 = $C$19:$C$24),0)) -> 6.436358018 | E32: =INDEX($D$7:$D$12, MATCH(1, ($B32 = $B$7:$B$12)*('Control and Output Summary'!$C$14 = $C$7:$C$12),0 )) /SUMPRODUCT(SUMIFS($D$7:$D$12,$C$7:$C$12,'Control and Output Summary'!$C$14,$B$7:$B$12,$C$31:E$31)) *SUM( IF( E$31 = $B32:$B$37, 1, 0)) * INDEX($D$19:$D$24, MATCH(1, (E$31 = $B$19:$B$24 )*('Control and Output Summary'!$C$14 = $C$19:$C$24),0)) -> 0 | F32: =INDEX($D$7:$D$12, MATCH(1, ($B32 = $B$7:$B$12)*('Control and Output Summary'!$C$14 = $C$7:$C$12),0 )) /SUMPRODUCT(SUMIFS($D$7:$D$12,$C$7:$C$12,'Control and Output Summary'!$C$14,$B$7:$B$12,$C$31:F$31)) *SUM( IF( F$31 = $B32:$B$37, 1, 0)) * INDEX($D$19:$D$24, MATCH(1, (F$31 = $B$19:$B$24 )*('Control and Output Summary'!$C$14 = $C$19:$C$24),0)) -> 1.812991257 | G32: =INDEX($D$7:$D$12, MATCH(1, ($B32 = $B$7:$B$12)*('Control and Output Summary'!$C$14 = $C$7:$C$12),0 )) /SUMPRODUCT(SUMIFS($D$7:$D$12,$C$7:$C$12,'Control and Output Summary'!$C$14,$B$7:$B$12,$C$31:G$31)) *SUM( IF( G$31 = $B32:$B$37, 1, 0)) * INDEX($D$19:$D$24, MATCH(1, (G$31 = $B$19:$B$24 )*('Control and Output Summary'!$C$14 = $C$19:$C$24),0)) -> 0 | H32: =INDEX($D$7:$D$12, MATCH(1, ($B32 = $B$7:$B$12)*('Control and Output Summary'!$C$14 = $C$7:$C$12),0 )) /SUMPRODUCT(SUMIFS($D$7:$D$12,$C$7:$C$12,'Control and Output Summary'!$C$14,$B$7:$B$12,$C$31:H$31)) *SUM( IF( H$31 = $B32:$B$37, 1, 0)) * INDEX($D$19:$D$24, MATCH(1, (H$31 = $B$19:$B$24 )*('Control and Output Summary'!$C$14 = $C$19:$C$24),0)) -> 0 | I32: =SUM($C32:$H32) -> 21.12206531
B33: LV Bus | C33: =INDEX($D$7:$D$12, MATCH(1, ($B33 = $B$7:$B$12)*('Control and Output Summary'!$C$14 = $C$7:$C$12),0 )) /SUMPRODUCT(SUMIFS($D$7:$D$12,$C$7:$C$12,'Control and Output Summary'!$C$14,$B$7:$B$12,$C$31:C$31)) *SUM( IF( C$31 = $B33:$B$37, 1, 0)) * INDEX($D$19:$D$24, MATCH(1, (C$31 = $B$19:$B$24 )*('Control and Output Summary'!$C$14 = $C$19:$C$24),0)) -> 0 | D33: =INDEX($D$7:$D$12, MATCH(1, ($B33 = $B$7:$B$12)*('Control and Output Summary'!$C$14 = $C$7:$C$12),0 )) /SUMPRODUCT(SUMIFS($D$7:$D$12,$C$7:$C$12,'Control and Output Summary'!$C$14,$B$7:$B$12,$C$31:D$31)) *SUM( IF( D$31 = $B33:$B$37, 1, 0)) * INDEX($D$19:$D$24, MATCH(1, (D$31 = $B$19:$B$24 )*('Control and Output Summary'!$C$14 = $C$19:$C$24),0)) -> 6.436358018 | E33: =INDEX($D$7:$D$12, MATCH(1, ($B33 = $B$7:$B$12)*('Control and Output Summary'!$C$14 = $C$7:$C$12),0 )) /SUMPRODUCT(SUMIFS($D$7:$D$12,$C$7:$C$12,'Control and Output Summary'!$C$14,$B$7:$B$12,$C$31:E$31)) *SUM( IF( E$31 = $B33:$B$37, 1, 0)) * INDEX($D$19:$D$24, MATCH(1, (E$31 = $B$19:$B$24 )*('Control and Output Summary'!$C$14 = $C$19:$C$24),0)) -> 0 | F33: =INDEX($D$7:$D$12, MATCH(1, ($B33 = $B$7:$B$12)*('Control and Output Summary'!$C$14 = $C$7:$C$12),0 )) /SUMPRODUCT(SUMIFS($D$7:$D$12,$C$7:$C$12,'Control and Output Summary'!$C$14,$B$7:$B$12,$C$31:F$31)) *SUM( IF( F$31 = $B33:$B$37, 1, 0)) * INDEX($D$19:$D$24, MATCH(1, (F$31 = $B$19:$B$24 )*('Control and Output Summary'!$C$14 = $C$19:$C$24),0)) -> 1.812991257 | G33: =INDEX($D$7:$D$12, MATCH(1, ($B33 = $B$7:$B$12)*('Control and Output Summary'!$C$14 = $C$7:$C$12),0 )) /SUMPRODUCT(SUMIFS($D$7:$D$12,$C$7:$C$12,'Control and Output Summary'!$C$14,$B$7:$B$12,$C$31:G$31)) *SUM( IF( G$31 = $B33:$B$37, 1, 0)) * INDEX($D$19:$D$24, MATCH(1, (G$31 = $B$19:$B$24 )*('Control and Output Summary'!$C$14 = $C$19:$C$24),0)) -> 0 | H33: =INDEX($D$7:$D$12, MATCH(1, ($B33 = $B$7:$B$12)*('Control and Output Summary'!$C$14 = $C$7:$C$12),0 )) /SUMPRODUCT(SUMIFS($D$7:$D$12,$C$7:$C$12,'Control and Output Summary'!$C$14,$B$7:$B$12,$C$31:H$31)) *SUM( IF( H$31 = $B33:$B$37, 1, 0)) * INDEX($D$19:$D$24, MATCH(1, (H$31 = $B$19:$B$24 )*('Control and Output Summary'!$C$14 = $C$19:$C$24),0)) -> 0 | I33: 8.249349275
B34: HV Line | C34: =INDEX($D$7:$D$12, MATCH(1, ($B34 = $B$7:$B$12)*('Control and Output Summary'!$C$14 = $C$7:$C$12),0 )) /SUMPRODUCT(SUMIFS($D$7:$D$12,$C$7:$C$12,'Control and Output Summary'!$C$14,$B$7:$B$12,$C$31:C$31)) *SUM( IF( C$31 = $B34:$B$37, 1, 0)) * INDEX($D$19:$D$24, MATCH(1, (C$31 = $B$19:$B$24 )*('Control and Output Summary'!$C$14 = $C$19:$C$24),0)) -> 0 | D34: =INDEX($D$7:$D$12, MATCH(1, ($B34 = $B$7:$B$12)*('Control and Output Summary'!$C$14 = $C$7:$C$12),0 )) /SUMPRODUCT(SUMIFS($D$7:$D$12,$C$7:$C$12,'Control and Output Summary'!$C$14,$B$7:$B$12,$C$31:D$31)) *SUM( IF( D$31 = $B34:$B$37, 1, 0)) * INDEX($D$19:$D$24, MATCH(1, (D$31 = $B$19:$B$24 )*('Control and Output Summary'!$C$14 = $C$19:$C$24),0)) -> 0 | E34: =INDEX($D$7:$D$12, MATCH(1, ($B34 = $B$7:$B$12)*('Control and Output Summary'!$C$14 = $C$7:$C$12),0 )) /SUMPRODUCT(SUMIFS($D$7:$D$12,$C$7:$C$12,'Control and Output Summary'!$C$14,$B$7:$B$12,$C$31:E$31)) *SUM( IF( E$31 = $B34:$B$37, 1, 0)) * INDEX($D$19:$D$24, MATCH(1, (E$31 = $B$19:$B$24 )*('Control and Output Summary'!$C$14 = $C$19:$C$24),0)) -> 0 | F34: =INDEX($D$7:$D$12, MATCH(1, ($B34 = $B$7:$B$12)*('Control and Output Summary'!$C$14 = $C$7:$C$12),0 )) /SUMPRODUCT(SUMIFS($D$7:$D$12,$C$7:$C$12,'Control and Output Summary'!$C$14,$B$7:$B$12,$C$31:F$31)) *SUM( IF( F$31 = $B34:$B$37, 1, 0)) * INDEX($D$19:$D$24, MATCH(1, (F$31 = $B$19:$B$24 )*('Control and Output Summary'!$C$14 = $C$19:$C$24),0)) -> 0.09542059248 | G34: =INDEX($D$7:$D$12, MATCH(1, ($B34 = $B$7:$B$12)*('Control and Output Summary'!$C$14 = $C$7:$C$12),0 )) /SUMPRODUCT(SUMIFS($D$7:$D$12,$C$7:$C$12,'Control and Output Summary'!$C$14,$B$7:$B$12,$C$31:G$31)) *SUM( IF( G$31 = $B34:$B$37, 1, 0)) * INDEX($D$19:$D$24, MATCH(1, (G$31 = $B$19:$B$24 )*('Control and Output Summary'!$C$14 = $C$19:$C$24),0)) -> 0 | H34: =INDEX($D$7:$D$12, MATCH(1, ($B34 = $B$7:$B$12)*('Control and Output Summary'!$C$14 = $C$7:$C$12),0 )) /SUMPRODUCT(SUMIFS($D$7:$D$12,$C$7:$C$12,'Control and Output Summary'!$C$14,$B$7:$B$12,$C$31:H$31)) *SUM( IF( H$31 = $B34:$B$37, 1, 0)) * INDEX($D$19:$D$24, MATCH(1, (H$31 = $B$19:$B$24 )*('Control and Output Summary'!$C$14 = $C$19:$C$24),0)) -> 0 | I34: 0.09542059248
B35: HV Bus | C35: =INDEX($D$7:$D$12, MATCH(1, ($B35 = $B$7:$B$12)*('Control and Output Summary'!$C$14 = $C$7:$C$12),0 )) /SUMPRODUCT(SUMIFS($D$7:$D$12,$C$7:$C$12,'Control and Output Summary'!$C$14,$B$7:$B$12,$C$31:C$31)) *SUM( IF( C$31 = $B35:$B$37, 1, 0)) * INDEX($D$19:$D$24, MATCH(1, (C$31 = $B$19:$B$24 )*('Control and Output Summary'!$C$14 = $C$19:$C$24),0)) -> 0 | D35: =INDEX($D$7:$D$12, MATCH(1, ($B35 = $B$7:$B$12)*('Control and Output Summary'!$C$14 = $C$7:$C$12),0 )) /SUMPRODUCT(SUMIFS($D$7:$D$12,$C$7:$C$12,'Control and Output Summary'!$C$14,$B$7:$B$12,$C$31:D$31)) *SUM( IF( D$31 = $B35:$B$37, 1, 0)) * INDEX($D$19:$D$24, MATCH(1, (D$31 = $B$19:$B$24 )*('Control and Output Summary'!$C$14 = $C$19:$C$24),0)) -> 0 | E35: =INDEX($D$7:$D$12, MATCH(1, ($B35 = $B$7:$B$12)*('Control and Output Summary'!$C$14 = $C$7:$C$12),0 )) /SUMPRODUCT(SUMIFS($D$7:$D$12,$C$7:$C$12,'Control and Output Summary'!$C$14,$B$7:$B$12,$C$31:E$31)) *SUM( IF( E$31 = $B35:$B$37, 1, 0)) * INDEX($D$19:$D$24, MATCH(1, (E$31 = $B$19:$B$24 )*('Control and Output Summary'!$C$14 = $C$19:$C$24),0)) -> 0 | F35: =INDEX($D$7:$D$12, MATCH(1, ($B35 = $B$7:$B$12)*('Control and Output Summary'!$C$14 = $C$7:$C$12),0 )) /SUMPRODUCT(SUMIFS($D$7:$D$12,$C$7:$C$12,'Control and Output Summary'!$C$14,$B$7:$B$12,$C$31:F$31)) *SUM( IF( F$31 = $B35:$B$37, 1, 0)) * INDEX($D$19:$D$24, MATCH(1, (F$31 = $B$19:$B$24 )*('Control and Output Summary'!$C$14 = $C$19:$C$24),0)) -> 0.09542059248 | G35: =INDEX($D$7:$D$12, MATCH(1, ($B35 = $B$7:$B$12)*('Control and Output Summary'!$C$14 = $C$7:$C$12),0 )) /SUMPRODUCT(SUMIFS($D$7:$D$12,$C$7:$C$12,'Control and Output Summary'!$C$14,$B$7:$B$12,$C$31:G$31)) *SUM( IF( G$31 = $B35:$B$37, 1, 0)) * INDEX($D$19:$D$24, MATCH(1, (G$31 = $B$19:$B$24 )*('Control and Output Summary'!$C$14 = $C$19:$C$24),0)) -> 0 | H35: =INDEX($D$7:$D$12, MATCH(1, ($B35 = $B$7:$B$12)*('Control and Output Summary'!$C$14 = $C$7:$C$12),0 )) /SUMPRODUCT(SUMIFS($D$7:$D$12,$C$7:$C$12,'Control and Output Summary'!$C$14,$B$7:$B$12,$C$31:H$31)) *SUM( IF( H$31 = $B35:$B$37, 1, 0)) * INDEX($D$19:$D$24, MATCH(1, (H$31 = $B$19:$B$24 )*('Control and Output Summary'!$C$14 = $C$19:$C$24),0)) -> 0 | I35: 0.09542059248
B36: ST 33/66 kv | C36: =INDEX($D$7:$D$12, MATCH(1, ($B36 = $B$7:$B$12)*('Control and Output Summary'!$C$14 = $C$7:$C$12),0 )) /SUMPRODUCT(SUMIFS($D$7:$D$12,$C$7:$C$12,'Control and Output Summary'!$C$14,$B$7:$B$12,$C$31:C$31)) *SUM( IF( C$31 = $B36:$B$37, 1, 0)) * INDEX($D$19:$D$24, MATCH(1, (C$31 = $B$19:$B$24 )*('Control and Output Summary'!$C$14 = $C$19:$C$24),0)) -> 0 | D36: =INDEX($D$7:$D$12, MATCH(1, ($B36 = $B$7:$B$12)*('Control and Output Summary'!$C$14 = $C$7:$C$12),0 )) /SUMPRODUCT(SUMIFS($D$7:$D$12,$C$7:$C$12,'Control and Output Summary'!$C$14,$B$7:$B$12,$C$31:D$31)) *SUM( IF( D$31 = $B36:$B$37, 1, 0)) * INDEX($D$19:$D$24, MATCH(1, (D$31 = $B$19:$B$24 )*('Control and Output Summary'!$C$14 = $C$19:$C$24),0)) -> 0 | E36: =INDEX($D$7:$D$12, MATCH(1, ($B36 = $B$7:$B$12)*('Control and Output Summary'!$C$14 = $C$7:$C$12),0 )) /SUMPRODUCT(SUMIFS($D$7:$D$12,$C$7:$C$12,'Control and Output Summary'!$C$14,$B$7:$B$12,$C$31:E$31)) *SUM( IF( E$31 = $B36:$B$37, 1, 0)) * INDEX($D$19:$D$24, MATCH(1, (E$31 = $B$19:$B$24 )*('Control and Output Summary'!$C$14 = $C$19:$C$24),0)) -> 0 | F36: =INDEX($D$7:$D$12, MATCH(1, ($B36 = $B$7:$B$12)*('Control and Output Summary'!$C$14 = $C$7:$C$12),0 )) /SUMPRODUCT(SUMIFS($D$7:$D$12,$C$7:$C$12,'Control and Output Summary'!$C$14,$B$7:$B$12,$C$31:F$31)) *SUM( IF( F$31 = $B36:$B$37, 1, 0)) * INDEX($D$19:$D$24, MATCH(1, (F$31 = $B$19:$B$24 )*('Control and Output Summary'!$C$14 = $C$19:$C$24),0)) -> 0 | G36: =INDEX($D$7:$D$12, MATCH(1, ($B36 = $B$7:$B$12)*('Control and Output Summary'!$C$14 = $C$7:$C$12),0 )) /SUMPRODUCT(SUMIFS($D$7:$D$12,$C$7:$C$12,'Control and Output Summary'!$C$14,$B$7:$B$12,$C$31:G$31)) *SUM( IF( G$31 = $B36:$B$37, 1, 0)) * INDEX($D$19:$D$24, MATCH(1, (G$31 = $B$19:$B$24 )*('Control and Output Summary'!$C$14 = $C$19:$C$24),0)) -> 0 | H36: =INDEX($D$7:$D$12, MATCH(1, ($B36 = $B$7:$B$12)*('Control and Output Summary'!$C$14 = $C$7:$C$12),0 )) /SUMPRODUCT(SUMIFS($D$7:$D$12,$C$7:$C$12,'Control and Output Summary'!$C$14,$B$7:$B$12,$C$31:H$31)) *SUM( IF( H$31 = $B36:$B$37, 1, 0)) * INDEX($D$19:$D$24, MATCH(1, (H$31 = $B$19:$B$24 )*('Control and Output Summary'!$C$14 = $C$19:$C$24),0)) -> 0 | I36: 0
B37: ST 110/132 kv | C37: =INDEX($D$7:$D$12, MATCH(1, ($B37 = $B$7:$B$12)*('Control and Output Summary'!$C$14 = $C$7:$C$12),0 )) /SUMPRODUCT(SUMIFS($D$7:$D$12,$C$7:$C$12,'Control and Output Summary'!$C$14,$B$7:$B$12,$C$31:C$31)) *SUM( IF( C$31 = $B37:$B$37, 1, 0)) * INDEX($D$19:$D$24, MATCH(1, (C$31 = $B$19:$B$24 )*('Control and Output Summary'!$C$14 = $C$19:$C$24),0)) -> 0 | D37: =INDEX($D$7:$D$12, MATCH(1, ($B37 = $B$7:$B$12)*('Control and Output Summary'!$C$14 = $C$7:$C$12),0 )) /SUMPRODUCT(SUMIFS($D$7:$D$12,$C$7:$C$12,'Control and Output Summary'!$C$14,$B$7:$B$12,$C$31:D$31)) *SUM( IF( D$31 = $B37:$B$37, 1, 0)) * INDEX($D$19:$D$24, MATCH(1, (D$31 = $B$19:$B$24 )*('Control and Output Summary'!$C$14 = $C$19:$C$24),0)) -> 0 | E37: =INDEX($D$7:$D$12, MATCH(1, ($B37 = $B$7:$B$12)*('Control and Output Summary'!$C$14 = $C$7:$C$12),0 )) /SUMPRODUCT(SUMIFS($D$7:$D$12,$C$7:$C$12,'Control and Output Summary'!$C$14,$B$7:$B$12,$C$31:E$31)) *SUM( IF( E$31 = $B37:$B$37, 1, 0)) * INDEX($D$19:$D$24, MATCH(1, (E$31 = $B$19:$B$24 )*('Control and Output Summary'!$C$14 = $C$19:$C$24),0)) -> 0 | F37: =INDEX($D$7:$D$12, MATCH(1, ($B37 = $B$7:$B$12)*('Control and Output Summary'!$C$14 = $C$7:$C$12),0 )) /SUMPRODUCT(SUMIFS($D$7:$D$12,$C$7:$C$12,'Control and Output Summary'!$C$14,$B$7:$B$12,$C$31:F$31)) *SUM( IF( F$31 = $B37:$B$37, 1, 0)) * INDEX($D$19:$D$24, MATCH(1, (F$31 = $B$19:$B$24 )*('Control and Output Summary'!$C$14 = $C$19:$C$24),0)) -> 0 | G37: =INDEX($D$7:$D$12, MATCH(1, ($B37 = $B$7:$B$12)*('Control and Output Summary'!$C$14 = $C$7:$C$12),0 )) /SUMPRODUCT(SUMIFS($D$7:$D$12,$C$7:$C$12,'Control and Output Summary'!$C$14,$B$7:$B$12,$C$31:G$31)) *SUM( IF( G$31 = $B37:$B$37, 1, 0)) * INDEX($D$19:$D$24, MATCH(1, (G$31 = $B$19:$B$24 )*('Control and Output Summary'!$C$14 = $C$19:$C$24),0)) -> 0 | H37: =INDEX($D$7:$D$12, MATCH(1, ($B37 = $B$7:$B$12)*('Control and Output Summary'!$C$14 = $C$7:$C$12),0 )) /SUMPRODUCT(SUMIFS($D$7:$D$12,$C$7:$C$12,'Control and Output Summary'!$C$14,$B$7:$B$12,$C$31:H$31)) *SUM( IF( H$31 = $B37:$B$37, 1, 0)) * INDEX($D$19:$D$24, MATCH(1, (H$31 = $B$19:$B$24 )*('Control and Output Summary'!$C$14 = $C$19:$C$24),0)) -> 0 | I37: 0
B39: LRMC Component Break Down ($/kW)
B41: Demand at each Voltage Level | C41: LV Line | D41: LV Bus | E41: HV Line | F41: HV Bus | G41: ST 33/66 kV | H41: ST 110/132 kV | I41: Total LRMC | J41: $/kVA p.a.
B42: LV Line | C42: =IFERROR(C32* 1000/ INDEX($D$7:$D$12, MATCH(1, ($B42 = $B$7:$B$12)*('Control and Output Summary'!$C$14 = $C$7:$C$12),0 )),0) -> 12.43934053 | D42: =IFERROR(D32* 1000/ INDEX($D$7:$D$12, MATCH(1, ($B42 = $B$7:$B$12)*('Control and Output Summary'!$C$14 = $C$7:$C$12),0 )),0) -> 6.219670267 | E42: =IFERROR(E32* 1000/ INDEX($D$7:$D$12, MATCH(1, ($B42 = $B$7:$B$12)*('Control and Output Summary'!$C$14 = $C$7:$C$12),0 )),0) -> 0 | F42: =IFERROR(F32* 1000/ INDEX($D$7:$D$12, MATCH(1, ($B42 = $B$7:$B$12)*('Control and Output Summary'!$C$14 = $C$7:$C$12),0 )),0) -> 1.751954721 | G42: =IFERROR(G32* 1000/ INDEX($D$7:$D$12, MATCH(1, ($B42 = $B$7:$B$12)*('Control and Output Summary'!$C$14 = $C$7:$C$12),0 )),0) -> 0 | H42: =IFERROR(H32* 1000/ INDEX($D$7:$D$12, MATCH(1, ($B42 = $B$7:$B$12)*('Control and Output Summary'!$C$14 = $C$7:$C$12),0 )),0) -> 0 | I42: =SUM($C42:$H42) -> 20.41096552 | J42: =$I42 * IF('Control and Output Summary'!$C$14<>"Ergon",INDEX('Asset Specification'!$F$8:$F$43, MATCH(1, ($B42 = 'Asset Specification'!$B$8:$B$43)*('Control and Output Summary'!$C$14 ='Asset Specification'!$C$8:$C$43 ) *("Export" = 'Asset Specification'!$D$8:$D$43 ),0 )),INDEX(#REF!, MATCH(1, ($B42 =#REF!) *("Export" =#REF! ),0 ))) -> 18.36986897
B43: LV Bus | C43: =IFERROR(C33* 1000/ INDEX($D$7:$D$12, MATCH(1, ($B43 = $B$7:$B$12)*('Control and Output Summary'!$C$14 = $C$7:$C$12),0 )),0) -> 0 | D43: =IFERROR(D33* 1000/ INDEX($D$7:$D$12, MATCH(1, ($B43 = $B$7:$B$12)*('Control and Output Summary'!$C$14 = $C$7:$C$12),0 )),0) -> 6.219670267 | E43: =IFERROR(E33* 1000/ INDEX($D$7:$D$12, MATCH(1, ($B43 = $B$7:$B$12)*('Control and Output Summary'!$C$14 = $C$7:$C$12),0 )),0) -> 0 | F43: =IFERROR(F33* 1000/ INDEX($D$7:$D$12, MATCH(1, ($B43 = $B$7:$B$12)*('Control and Output Summary'!$C$14 = $C$7:$C$12),0 )),0) -> 1.751954721 | G43: =IFERROR(G33* 1000/ INDEX($D$7:$D$12, MATCH(1, ($B43 = $B$7:$B$12)*('Control and Output Summary'!$C$14 = $C$7:$C$12),0 )),0) -> 0 | H43: =IFERROR(H33* 1000/ INDEX($D$7:$D$12, MATCH(1, ($B43 = $B$7:$B$12)*('Control and Output Summary'!$C$14 = $C$7:$C$12),0 )),0) -> 0 | I43: =SUM($C43:$H43) -> 7.971624988 | J43: =$I43 * IF('Control and Output Summary'!$C$14<>"Ergon",INDEX('Asset Specification'!$F$8:$F$43, MATCH(1, ($B43 = 'Asset Specification'!$B$8:$B$43)*('Control and Output Summary'!$C$14 ='Asset Specification'!$C$8:$C$43 ) *("Export" = 'Asset Specification'!$D$8:$D$43 ),0 )),INDEX(#REF!, MATCH(1, ($B43 =#REF!) *("Export" =#REF! ),0 ))) -> 7.174462489
B44: HV Line | C44: =IFERROR(C34* 1000/ INDEX($D$7:$D$12, MATCH(1, ($B44 = $B$7:$B$12)*('Control and Output Summary'!$C$14 = $C$7:$C$12),0 )),0) -> 0 | D44: =IFERROR(D34* 1000/ INDEX($D$7:$D$12, MATCH(1, ($B44 = $B$7:$B$12)*('Control and Output Summary'!$C$14 = $C$7:$C$12),0 )),0) -> 0 | E44: =IFERROR(E34* 1000/ INDEX($D$7:$D$12, MATCH(1, ($B44 = $B$7:$B$12)*('Control and Output Summary'!$C$14 = $C$7:$C$12),0 )),0) -> 0 | F44: =IFERROR(F34* 1000/ INDEX($D$7:$D$12, MATCH(1, ($B44 = $B$7:$B$12)*('Control and Output Summary'!$C$14 = $C$7:$C$12),0 )),0) -> 1.751954721 | G44: =IFERROR(G34* 1000/ INDEX($D$7:$D$12, MATCH(1, ($B44 = $B$7:$B$12)*('Control and Output Summary'!$C$14 = $C$7:$C$12),0 )),0) -> 0 | H44: =IFERROR(H34* 1000/ INDEX($D$7:$D$12, MATCH(1, ($B44 = $B$7:$B$12)*('Control and Output Summary'!$C$14 = $C$7:$C$12),0 )),0) -> 0 | I44: 1.751954721 | J44: =$I44 * IF('Control and Output Summary'!$C$14<>"Ergon",INDEX('Asset Specification'!$F$8:$F$43, MATCH(1, ($B44 = 'Asset Specification'!$B$8:$B$43)*('Control and Output Summary'!$C$14 ='Asset Specification'!$C$8:$C$43 ) *("Export" = 'Asset Specification'!$D$8:$D$43 ),0 )),INDEX(#REF!, MATCH(1, ($B44 =#REF!) *("Export" =#REF! ),0 ))) -> 1.576759249
B45: HV Bus | C45: =IFERROR(C35* 1000/ INDEX($D$7:$D$12, MATCH(1, ($B45 = $B$7:$B$12)*('Control and Output Summary'!$C$14 = $C$7:$C$12),0 )),0) -> 0 | D45: =IFERROR(D35* 1000/ INDEX($D$7:$D$12, MATCH(1, ($B45 = $B$7:$B$12)*('Control and Output Summary'!$C$14 = $C$7:$C$12),0 )),0) -> 0 | E45: =IFERROR(E35* 1000/ INDEX($D$7:$D$12, MATCH(1, ($B45 = $B$7:$B$12)*('Control and Output Summary'!$C$14 = $C$7:$C$12),0 )),0) -> 0 | F45: =IFERROR(F35* 1000/ INDEX($D$7:$D$12, MATCH(1, ($B45 = $B$7:$B$12)*('Control and Output Summary'!$C$14 = $C$7:$C$12),0 )),0) -> 1.751954721 | G45: =IFERROR(G35* 1000/ INDEX($D$7:$D$12, MATCH(1, ($B45 = $B$7:$B$12)*('Control and Output Summary'!$C$14 = $C$7:$C$12),0 )),0) -> 0 | H45: =IFERROR(H35* 1000/ INDEX($D$7:$D$12, MATCH(1, ($B45 = $B$7:$B$12)*('Control and Output Summary'!$C$14 = $C$7:$C$12),0 )),0) -> 0 | I45: 1.751954721 | J45: =$I45 * IF('Control and Output Summary'!$C$14<>"Ergon",INDEX('Asset Specification'!$F$8:$F$43, MATCH(1, ($B45 = 'Asset Specification'!$B$8:$B$43)*('Control and Output Summary'!$C$14 ='Asset Specification'!$C$8:$C$43 ) *("Export" = 'Asset Specification'!$D$8:$D$43 ),0 )),INDEX(#REF!, MATCH(1, ($B45 =#REF!) *("Export" =#REF! ),0 ))) -> 1.576759249
B46: ST 33/66 kv | C46: =IFERROR(C36* 1000/ INDEX($D$7:$D$12, MATCH(1, ($B46 = $B$7:$B$12)*('Control and Output Summary'!$C$14 = $C$7:$C$12),0 )),0) -> 0 | D46: =IFERROR(D36* 1000/ INDEX($D$7:$D$12, MATCH(1, ($B46 = $B$7:$B$12)*('Control and Output Summary'!$C$14 = $C$7:$C$12),0 )),0) -> 0 | E46: =IFERROR(E36* 1000/ INDEX($D$7:$D$12, MATCH(1, ($B46 = $B$7:$B$12)*('Control and Output Summary'!$C$14 = $C$7:$C$12),0 )),0) -> 0 | F46: =IFERROR(F36* 1000/ INDEX($D$7:$D$12, MATCH(1, ($B46 = $B$7:$B$12)*('Control and Output Summary'!$C$14 = $C$7:$C$12),0 )),0) -> 0 | G46: =IFERROR(G36* 1000/ INDEX($D$7:$D$12, MATCH(1, ($B46 = $B$7:$B$12)*('Control and Output Summary'!$C$14 = $C$7:$C$12),0 )),0) -> 0 | H46: =IFERROR(H36* 1000/ INDEX($D$7:$D$12, MATCH(1, ($B46 = $B$7:$B$12)*('Control and Output Summary'!$C$14 = $C$7:$C$12),0 )),0) -> 0 | I46: 0 | J46: =$I46 * IF('Control and Output Summary'!$C$14<>"Ergon",INDEX('Asset Specification'!$F$8:$F$43, MATCH(1, ($B46 = 'Asset Specification'!$B$8:$B$43)*('Control and Output Summary'!$C$14 ='Asset Specification'!$C$8:$C$43 ) *("Export" = 'Asset Specification'!$D$8:$D$43 ),0 )),INDEX(#REF!, MATCH(1, ($B46 =#REF!) *("Export" =#REF! ),0 ))) -> 0
B47: ST 110/132 kv | C47: =IFERROR(C37* 1000/ INDEX($D$7:$D$12, MATCH(1, ($B47 = $B$7:$B$12)*('Control and Output Summary'!$C$14 = $C$7:$C$12),0 )),0) -> 0 | D47: =IFERROR(D37* 1000/ INDEX($D$7:$D$12, MATCH(1, ($B47 = $B$7:$B$12)*('Control and Output Summary'!$C$14 = $C$7:$C$12),0 )),0) -> 0 | E47: =IFERROR(E37* 1000/ INDEX($D$7:$D$12, MATCH(1, ($B47 = $B$7:$B$12)*('Control and Output Summary'!$C$14 = $C$7:$C$12),0 )),0) -> 0 | F47: =IFERROR(F37* 1000/ INDEX($D$7:$D$12, MATCH(1, ($B47 = $B$7:$B$12)*('Control and Output Summary'!$C$14 = $C$7:$C$12),0 )),0) -> 0 | G47: =IFERROR(G37* 1000/ INDEX($D$7:$D$12, MATCH(1, ($B47 = $B$7:$B$12)*('Control and Output Summary'!$C$14 = $C$7:$C$12),0 )),0) -> 0 | H47: =IFERROR(H37* 1000/ INDEX($D$7:$D$12, MATCH(1, ($B47 = $B$7:$B$12)*('Control and Output Summary'!$C$14 = $C$7:$C$12),0 )),0) -> 0 | I47: 0 | J47: =$I47 * IF('Control and Output Summary'!$C$14<>"Ergon",INDEX('Asset Specification'!$F$8:$F$43, MATCH(1, ($B47 = 'Asset Specification'!$B$8:$B$43)*('Control and Output Summary'!$C$14 ='Asset Specification'!$C$8:$C$43 ) *("Export" = 'Asset Specification'!$D$8:$D$43 ),0 )),INDEX(#REF!, MATCH(1, ($B47 =#REF!) *("Export" =#REF! ),0 ))) -> 0

Sheet Capex Summary
B1: Import Expenditure Summary
B3: Growing
B5: Augmentation
B7: Voltage Level | C7: Pricing Zone | D7: ='Import Expenditure Forecast'!F$7 -> 2023 | E7: ='Import Expenditure Forecast'!G$7 -> 2024 | F7: ='Import Expenditure Forecast'!H$7 -> 2025 | G7: ='Import Expenditure Forecast'!I$7 -> 2026 | H7: ='Import Expenditure Forecast'!J$7 -> 2027 | I7: ='Import Expenditure Forecast'!K$7 -> 2028 | J7: ='Import Expenditure Forecast'!L$7 -> 2029 | K7: ='Import Expenditure Forecast'!M$7 -> 2030 | L7: ='Import Expenditure Forecast'!N$7 -> 2031 | M7: ='Import Expenditure Forecast'!O$7 -> 2032 | N7: ='Import Expenditure Forecast'!P$7 -> 2033
B8: LV Line | C8: ='Control and Output Summary'!$C$14 -> Energex | D8: =IF('Control and Output Summary'!$C$14<>"Ergon",SUMIFS(INDEX('Import Expenditure Forecast'!$F$8:$P$79,,MATCH(D$7,'Import Expenditure Forecast'!$F$7:$P$7,0)),'Import Expenditure Forecast'!$C$8:$C$79,$B8,'Import Expenditure Forecast'!$E$8:$E$79,$C8,'Import Expenditure Forecast'!$B$8:$B$79,$B$3,'Import Expenditure Forecast'!$D$8:$D$79,$B$5),SUMIFS(INDEX(#REF!,,MATCH(D$7,#REF!,0)),#REF!,$B8,#REF!,$B$3,#REF!,$B$5)) -> 0.27305831 | E8: =IF('Control and Output Summary'!$C$14<>"Ergon",SUMIFS(INDEX('Import Expenditure Forecast'!$F$8:$P$79,,MATCH(E$7,'Import Expenditure Forecast'!$F$7:$P$7,0)),'Import Expenditure Forecast'!$C$8:$C$79,$B8,'Import Expenditure Forecast'!$E$8:$E$79,$C8,'Import Expenditure Forecast'!$B$8:$B$79,$B$3,'Import Expenditure Forecast'!$D$8:$D$79,$B$5),SUMIFS(INDEX(#REF!,,MATCH(E$7,#REF!,0)),#REF!,$B8,#REF!,$B$3,#REF!,$B$5)) -> 0.10012464 | F8: =IF('Control and Output Summary'!$C$14<>"Ergon",SUMIFS(INDEX('Import Expenditure Forecast'!$F$8:$P$79,,MATCH(F$7,'Import Expenditure Forecast'!$F$7:$P$7,0)),'Import Expenditure Forecast'!$C$8:$C$79,$B8,'Import Expenditure Forecast'!$E$8:$E$79,$C8,'Import Expenditure Forecast'!$B$8:$B$79,$B$3,'Import Expenditure Forecast'!$D$8:$D$79,$B$5),SUMIFS(INDEX(#REF!,,MATCH(F$7,#REF!,0)),#REF!,$B8,#REF!,$B$3,#REF!,$B$5)) -> 0 | G8: =IF('Control and Output Summary'!$C$14<>"Ergon",SUMIFS(INDEX('Import Expenditure Forecast'!$F$8:$P$79,,MATCH(G$7,'Import Expenditure Forecast'!$F$7:$P$7,0)),'Import Expenditure Forecast'!$C$8:$C$79,$B8,'Import Expenditure Forecast'!$E$8:$E$79,$C8,'Import Expenditure Forecast'!$B$8:$B$79,$B$3,'Import Expenditure Forecast'!$D$8:$D$79,$B$5),SUMIFS(INDEX(#REF!,,MATCH(G$7,#REF!,0)),#REF!,$B8,#REF!,$B$3,#REF!,$B$5)) -> 0 | H8: =IF('Control and Output Summary'!$C$14<>"Ergon",SUMIFS(INDEX('Import Expenditure Forecast'!$F$8:$P$79,,MATCH(H$7,'Import Expenditure Forecast'!$F$7:$P$7,0)),'Import Expenditure Forecast'!$C$8:$C$79,$B8,'Import Expenditure Forecast'!$E$8:$E$79,$C8,'Import Expenditure Forecast'!$B$8:$B$79,$B$3,'Import Expenditure Forecast'!$D$8:$D$79,$B$5),SUMIFS(INDEX(#REF!,,MATCH(H$7,#REF!,0)),#REF!,$B8,#REF!,$B$3,#REF!,$B$5)) -> 0 | I8: =IF('Control and Output Summary'!$C$14<>"Ergon",SUMIFS(INDEX('Import Expenditure Forecast'!$F$8:$P$79,,MATCH(I$7,'Import Expenditure Forecast'!$F$7:$P$7,0)),'Import Expenditure Forecast'!$C$8:$C$79,$B8,'Import Expenditure Forecast'!$E$8:$E$79,$C8,'Import Expenditure Forecast'!$B$8:$B$79,$B$3,'Import Expenditure Forecast'!$D$8:$D$79,$B$5),SUMIFS(INDEX(#REF!,,MATCH(I$7,#REF!,0)),#REF!,$B8,#REF!,$B$3,#REF!,$B$5)) -> 0 | J8: =IF('Control and Output Summary'!$C$14<>"Ergon",SUMIFS(INDEX('Import Expenditure Forecast'!$F$8:$P$79,,MATCH(J$7,'Import Expenditure Forecast'!$F$7:$P$7,0)),'Import Expenditure Forecast'!$C$8:$C$79,$B8,'Import Expenditure Forecast'!$E$8:$E$79,$C8,'Import Expenditure Forecast'!$B$8:$B$79,$B$3,'Import Expenditure Forecast'!$D$8:$D$79,$B$5),SUMIFS(INDEX(#REF!,,MATCH(J$7,#REF!,0)),#REF!,$B8,#REF!,$B$3,#REF!,$B$5)) -> 0 | K8: =IF('Control and Output Summary'!$C$14<>"Ergon",SUMIFS(INDEX('Import Expenditure Forecast'!$F$8:$P$79,,MATCH(K$7,'Import Expenditure Forecast'!$F$7:$P$7,0)),'Import Expenditure Forecast'!$C$8:$C$79,$B8,'Import Expenditure Forecast'!$E$8:$E$79,$C8,'Import Expenditure Forecast'!$B$8:$B$79,$B$3,'Import Expenditure Forecast'!$D$8:$D$79,$B$5),SUMIFS(INDEX(#REF!,,MATCH(K$7,#REF!,0)),#REF!,$B8,#REF!,$B$3,#REF!,$B$5)) -> 0 | L8: =IF('Control and Output Summary'!$C$14<>"Ergon",SUMIFS(INDEX('Import Expenditure Forecast'!$F$8:$P$79,,MATCH(L$7,'Import Expenditure Forecast'!$F$7:$P$7,0)),'Import Expenditure Forecast'!$C$8:$C$79,$B8,'Import Expenditure Forecast'!$E$8:$E$79,$C8,'Import Expenditure Forecast'!$B$8:$B$79,$B$3,'Import Expenditure Forecast'!$D$8:$D$79,$B$5),SUMIFS(INDEX(#REF!,,MATCH(L$7,#REF!,0)),#REF!,$B8,#REF!,$B$3,#REF!,$B$5)) -> 0 | M8: =IF('Control and Output Summary'!$C$14<>"Ergon",SUMIFS(INDEX('Import Expenditure Forecast'!$F$8:$P$79,,MATCH(M$7,'Import Expenditure Forecast'!$F$7:$P$7,0)),'Import Expenditure Forecast'!$C$8:$C$79,$B8,'Import Expenditure Forecast'!$E$8:$E$79,$C8,'Import Expenditure Forecast'!$B$8:$B$79,$B$3,'Import Expenditure Forecast'!$D$8:$D$79,$B$5),SUMIFS(INDEX(#REF!,,MATCH(M$7,#REF!,0)),#REF!,$B8,#REF!,$B$3,#REF!,$B$5)) -> 0 | N8: =IF('Control and Output Summary'!$C$14<>"Ergon",SUMIFS(INDEX('Import Expenditure Forecast'!$F$8:$P$79,,MATCH(N$7,'Import Expenditure Forecast'!$F$7:$P$7,0)),'Import Expenditure Forecast'!$C$8:$C$79,$B8,'Import Expenditure Forecast'!$E$8:$E$79,$C8,'Import Expenditure Forecast'!$B$8:$B$79,$B$3,'Import Expenditure Forecast'!$D$8:$D$79,$B$5),SUMIFS(INDEX(#REF!,,MATCH(N$7,#REF!,0)),#REF!,$B8,#REF!,$B$3,#REF!,$B$5)) -> 0
B9: LV Bus | C9: ='Control and Output Summary'!$C$14 -> Energex | D9: =IF('Control and Output Summary'!$C$14<>"Ergon",SUMIFS(INDEX('Import Expenditure Forecast'!$F$8:$P$79,,MATCH(D$7,'Import Expenditure Forecast'!$F$7:$P$7,0)),'Import Expenditure Forecast'!$C$8:$C$79,$B9,'Import Expenditure Forecast'!$E$8:$E$79,$C9,'Import Expenditure Forecast'!$B$8:$B$79,$B$3,'Import Expenditure Forecast'!$D$8:$D$79,$B$5),SUMIFS(INDEX(#REF!,,MATCH(D$7,#REF!,0)),#REF!,$B9,#REF!,$B$3,#REF!,$B$5)) -> 0.8766693 | E9: =IF('Control and Output Summary'!$C$14<>"Ergon",SUMIFS(INDEX('Import Expenditure Forecast'!$F$8:$P$79,,MATCH(E$7,'Import Expenditure Forecast'!$F$7:$P$7,0)),'Import Expenditure Forecast'!$C$8:$C$79,$B9,'Import Expenditure Forecast'!$E$8:$E$79,$C9,'Import Expenditure Forecast'!$B$8:$B$79,$B$3,'Import Expenditure Forecast'!$D$8:$D$79,$B$5),SUMIFS(INDEX(#REF!,,MATCH(E$7,#REF!,0)),#REF!,$B9,#REF!,$B$3,#REF!,$B$5)) -> 0.87649116 | F9: =IF('Control and Output Summary'!$C$14<>"Ergon",SUMIFS(INDEX('Import Expenditure Forecast'!$F$8:$P$79,,MATCH(F$7,'Import Expenditure Forecast'!$F$7:$P$7,0)),'Import Expenditure Forecast'!$C$8:$C$79,$B9,'Import Expenditure Forecast'!$E$8:$E$79,$C9,'Import Expenditure Forecast'!$B$8:$B$79,$B$3,'Import Expenditure Forecast'!$D$8:$D$79,$B$5),SUMIFS(INDEX(#REF!,,MATCH(F$7,#REF!,0)),#REF!,$B9,#REF!,$B$3,#REF!,$B$5)) -> 0.87649116 | G9: =IF('Control and Output Summary'!$C$14<>"Ergon",SUMIFS(INDEX('Import Expenditure Forecast'!$F$8:$P$79,,MATCH(G$7,'Import Expenditure Forecast'!$F$7:$P$7,0)),'Import Expenditure Forecast'!$C$8:$C$79,$B9,'Import Expenditure Forecast'!$E$8:$E$79,$C9,'Import Expenditure Forecast'!$B$8:$B$79,$B$3,'Import Expenditure Forecast'!$D$8:$D$79,$B$5),SUMIFS(INDEX(#REF!,,MATCH(G$7,#REF!,0)),#REF!,$B9,#REF!,$B$3,#REF!,$B$5)) -> 0.9279919419 | H9: =IF('Control and Output Summary'!$C$14<>"Ergon",SUMIFS(INDEX('Import Expenditure Forecast'!$F$8:$P$79,,MATCH(H$7,'Import Expenditure Forecast'!$F$7:$P$7,0)),'Import Expenditure Forecast'!$C$8:$C$79,$B9,'Import Expenditure Forecast'!$E$8:$E$79,$C9,'Import Expenditure Forecast'!$B$8:$B$79,$B$3,'Import Expenditure Forecast'!$D$8:$D$79,$B$5),SUMIFS(INDEX(#REF!,,MATCH(H$7,#REF!,0)),#REF!,$B9,#REF!,$B$3,#REF!,$B$5)) -> 0.9282447365 | I9: =IF('Control and Output Summary'!$C$14<>"Ergon",SUMIFS(INDEX('Import Expenditure Forecast'!$F$8:$P$79,,MATCH(I$7,'Import Expenditure Forecast'!$F$7:$P$7,0)),'Import Expenditure Forecast'!$C$8:$C$79,$B9,'Import Expenditure Forecast'!$E$8:$E$79,$C9,'Import Expenditure Forecast'!$B$8:$B$79,$B$3,'Import Expenditure Forecast'!$D$8:$D$79,$B$5),SUMIFS(INDEX(#REF!,,MATCH(I$7,#REF!,0)),#REF!,$B9,#REF!,$B$3,#REF!,$B$5)) -> 0.9290492663 | J9: =IF('Control and Output Summary'!$C$14<>"Ergon",SUMIFS(INDEX('Import Expenditure Forecast'!$F$8:$P$79,,MATCH(J$7,'Import Expenditure Forecast'!$F$7:$P$7,0)),'Import Expenditure Forecast'!$C$8:$C$79,$B9,'Import Expenditure Forecast'!$E$8:$E$79,$C9,'Import Expenditure Forecast'!$B$8:$B$79,$B$3,'Import Expenditure Forecast'!$D$8:$D$79,$B$5),SUMIFS(INDEX(#REF!,,MATCH(J$7,#REF!,0)),#REF!,$B9,#REF!,$B$3,#REF!,$B$5)) -> 0.9292072507 | K9: =IF('Control and Output Summary'!$C$14<>"Ergon",SUMIFS(INDEX('Import Expenditure Forecast'!$F$8:$P$79,,MATCH(K$7,'Import Expenditure Forecast'!$F$7:$P$7,0)),'Import Expenditure Forecast'!$C$8:$C$79,$B9,'Import Expenditure Forecast'!$E$8:$E$79,$C9,'Import Expenditure Forecast'!$B$8:$B$79,$B$3,'Import Expenditure Forecast'!$D$8:$D$79,$B$5),SUMIFS(INDEX(#REF!,,MATCH(K$7,#REF!,0)),#REF!,$B9,#REF!,$B$3,#REF!,$B$5)) -> 0.6534725976 | L9: =IF('Control and Output Summary'!$C$14<>"Ergon",SUMIFS(INDEX('Import Expenditure Forecast'!$F$8:$P$79,,MATCH(L$7,'Import Expenditure Forecast'!$F$7:$P$7,0)),'Import Expenditure Forecast'!$C$8:$C$79,$B9,'Import Expenditure Forecast'!$E$8:$E$79,$C9,'Import Expenditure Forecast'!$B$8:$B$79,$B$3,'Import Expenditure Forecast'!$D$8:$D$79,$B$5),SUMIFS(INDEX(#REF!,,MATCH(L$7,#REF!,0)),#REF!,$B9,#REF!,$B$3,#REF!,$B$5)) -> 0.8599934628 | M9: =IF('Control and Output Summary'!$C$14<>"Ergon",SUMIFS(INDEX('Import Expenditure Forecast'!$F$8:$P$79,,MATCH(M$7,'Import Expenditure Forecast'!$F$7:$P$7,0)),'Import Expenditure Forecast'!$C$8:$C$79,$B9,'Import Expenditure Forecast'!$E$8:$E$79,$C9,'Import Expenditure Forecast'!$B$8:$B$79,$B$3,'Import Expenditure Forecast'!$D$8:$D$79,$B$5),SUMIFS(INDEX(#REF!,,MATCH(M$7,#REF!,0)),#REF!,$B9,#REF!,$B$3,#REF!,$B$5)) -> 0.8599934628 | N9: =IF('Control and Output Summary'!$C$14<>"Ergon",SUMIFS(INDEX('Import Expenditure Forecast'!$F$8:$P$79,,MATCH(N$7,'Import Expenditure Forecast'!$F$7:$P$7,0)),'Import Expenditure Forecast'!$C$8:$C$79,$B9,'Import Expenditure Forecast'!$E$8:$E$79,$C9,'Import Expenditure Forecast'!$B$8:$B$79,$B$3,'Import Expenditure Forecast'!$D$8:$D$79,$B$5),SUMIFS(INDEX(#REF!,,MATCH(N$7,#REF!,0)),#REF!,$B9,#REF!,$B$3,#REF!,$B$5)) -> 0.8599934628
B10: HV Line | C10: ='Control and Output Summary'!$C$14 -> Energex | D10: =IF('Control and Output Summary'!$C$14<>"Ergon",SUMIFS(INDEX('Import Expenditure Forecast'!$F$8:$P$79,,MATCH(D$7,'Import Expenditure Forecast'!$F$7:$P$7,0)),'Import Expenditure Forecast'!$C$8:$C$79,$B10,'Import Expenditure Forecast'!$E$8:$E$79,$C10,'Import Expenditure Forecast'!$B$8:$B$79,$B$3,'Import Expenditure Forecast'!$D$8:$D$79,$B$5),SUMIFS(INDEX(#REF!,,MATCH(D$7,#REF!,0)),#REF!,$B10,#REF!,$B$3,#REF!,$B$5)) -> 4.58851746 | E10: =IF('Control and Output Summary'!$C$14<>"Ergon",SUMIFS(INDEX('Import Expenditure Forecast'!$F$8:$P$79,,MATCH(E$7,'Import Expenditure Forecast'!$F$7:$P$7,0)),'Import Expenditure Forecast'!$C$8:$C$79,$B10,'Import Expenditure Forecast'!$E$8:$E$79,$C10,'Import Expenditure Forecast'!$B$8:$B$79,$B$3,'Import Expenditure Forecast'!$D$8:$D$79,$B$5),SUMIFS(INDEX(#REF!,,MATCH(E$7,#REF!,0)),#REF!,$B10,#REF!,$B$3,#REF!,$B$5)) -> 9.32687092 | F10: =IF('Control and Output Summary'!$C$14<>"Ergon",SUMIFS(INDEX('Import Expenditure Forecast'!$F$8:$P$79,,MATCH(F$7,'Import Expenditure Forecast'!$F$7:$P$7,0)),'Import Expenditure Forecast'!$C$8:$C$79,$B10,'Import Expenditure Forecast'!$E$8:$E$79,$C10,'Import Expenditure Forecast'!$B$8:$B$79,$B$3,'Import Expenditure Forecast'!$D$8:$D$79,$B$5),SUMIFS(INDEX(#REF!,,MATCH(F$7,#REF!,0)),#REF!,$B10,#REF!,$B$3,#REF!,$B$5)) -> 9.51909973 | G10: =IF('Control and Output Summary'!$C$14<>"Ergon",SUMIFS(INDEX('Import Expenditure Forecast'!$F$8:$P$79,,MATCH(G$7,'Import Expenditure Forecast'!$F$7:$P$7,0)),'Import Expenditure Forecast'!$C$8:$C$79,$B10,'Import Expenditure Forecast'!$E$8:$E$79,$C10,'Import Expenditure Forecast'!$B$8:$B$79,$B$3,'Import Expenditure Forecast'!$D$8:$D$79,$B$5),SUMIFS(INDEX(#REF!,,MATCH(G$7,#REF!,0)),#REF!,$B10,#REF!,$B$3,#REF!,$B$5)) -> 12.48950561 | H10: =IF('Control and Output Summary'!$C$14<>"Ergon",SUMIFS(INDEX('Import Expenditure Forecast'!$F$8:$P$79,,MATCH(H$7,'Import Expenditure Forecast'!$F$7:$P$7,0)),'Import Expenditure Forecast'!$C$8:$C$79,$B10,'Import Expenditure Forecast'!$E$8:$E$79,$C10,'Import Expenditure Forecast'!$B$8:$B$79,$B$3,'Import Expenditure Forecast'!$D$8:$D$79,$B$5),SUMIFS(INDEX(#REF!,,MATCH(H$7,#REF!,0)),#REF!,$B10,#REF!,$B$3,#REF!,$B$5)) -> 8.035885994 | I10: =IF('Control and Output Summary'!$C$14<>"Ergon",SUMIFS(INDEX('Import Expenditure Forecast'!$F$8:$P$79,,MATCH(I$7,'Import Expenditure Forecast'!$F$7:$P$7,0)),'Import Expenditure Forecast'!$C$8:$C$79,$B10,'Import Expenditure Forecast'!$E$8:$E$79,$C10,'Import Expenditure Forecast'!$B$8:$B$79,$B$3,'Import Expenditure Forecast'!$D$8:$D$79,$B$5),SUMIFS(INDEX(#REF!,,MATCH(I$7,#REF!,0)),#REF!,$B10,#REF!,$B$3,#REF!,$B$5)) -> 8.584163887 | J10: =IF('Control and Output Summary'!$C$14<>"Ergon",SUMIFS(INDEX('Import Expenditure Forecast'!$F$8:$P$79,,MATCH(J$7,'Import Expenditure Forecast'!$F$7:$P$7,0)),'Import Expenditure Forecast'!$C$8:$C$79,$B10,'Import Expenditure Forecast'!$E$8:$E$79,$C10,'Import Expenditure Forecast'!$B$8:$B$79,$B$3,'Import Expenditure Forecast'!$D$8:$D$79,$B$5),SUMIFS(INDEX(#REF!,,MATCH(J$7,#REF!,0)),#REF!,$B10,#REF!,$B$3,#REF!,$B$5)) -> 9.800179695 | K10: =IF('Control and Output Summary'!$C$14<>"Ergon",SUMIFS(INDEX('Import Expenditure Forecast'!$F$8:$P$79,,MATCH(K$7,'Import Expenditure Forecast'!$F$7:$P$7,0)),'Import Expenditure Forecast'!$C$8:$C$79,$B10,'Import Expenditure Forecast'!$E$8:$E$79,$C10,'Import Expenditure Forecast'!$B$8:$B$79,$B$3,'Import Expenditure Forecast'!$D$8:$D$79,$B$5),SUMIFS(INDEX(#REF!,,MATCH(K$7,#REF!,0)),#REF!,$B10,#REF!,$B$3,#REF!,$B$5)) -> 9.74297198 | L10: =IF('Control and Output Summary'!$C$14<>"Ergon",SUMIFS(INDEX('Import Expenditure Forecast'!$F$8:$P$79,,MATCH(L$7,'Import Expenditure Forecast'!$F$7:$P$7,0)),'Import Expenditure Forecast'!$C$8:$C$79,$B10,'Import Expenditure Forecast'!$E$8:$E$79,$C10,'Import Expenditure Forecast'!$B$8:$B$79,$B$3,'Import Expenditure Forecast'!$D$8:$D$79,$B$5),SUMIFS(INDEX(#REF!,,MATCH(L$7,#REF!,0)),#REF!,$B10,#REF!,$B$3,#REF!,$B$5)) -> 9.040800389 | M10: =IF('Control and Output Summary'!$C$14<>"Ergon",SUMIFS(INDEX('Import Expenditure Forecast'!$F$8:$P$79,,MATCH(M$7,'Import Expenditure Forecast'!$F$7:$P$7,0)),'Import Expenditure Forecast'!$C$8:$C$79,$B10,'Import Expenditure Forecast'!$E$8:$E$79,$C10,'Import Expenditure Forecast'!$B$8:$B$79,$B$3,'Import Expenditure Forecast'!$D$8:$D$79,$B$5),SUMIFS(INDEX(#REF!,,MATCH(M$7,#REF!,0)),#REF!,$B10,#REF!,$B$3,#REF!,$B$5)) -> 9.040800389 | N10: =IF('Control and Output Summary'!$C$14<>"Ergon",SUMIFS(INDEX('Import Expenditure Forecast'!$F$8:$P$79,,MATCH(N$7,'Import Expenditure Forecast'!$F$7:$P$7,0)),'Import Expenditure Forecast'!$C$8:$C$79,$B10,'Import Expenditure Forecast'!$E$8:$E$79,$C10,'Import Expenditure Forecast'!$B$8:$B$79,$B$3,'Import Expenditure Forecast'!$D$8:$D$79,$B$5),SUMIFS(INDEX(#REF!,,MATCH(N$7,#REF!,0)),#REF!,$B10,#REF!,$B$3,#REF!,$B$5)) -> 9.040800389
B11: HV Bus | C11: ='Control and Output Summary'!$C$14 -> Energex | D11: =IF('Control and Output Summary'!$C$14<>"Ergon",SUMIFS(INDEX('Import Expenditure Forecast'!$F$8:$P$79,,MATCH(D$7,'Import Expenditure Forecast'!$F$7:$P$7,0)),'Import Expenditure Forecast'!$C$8:$C$79,$B11,'Import Expenditure Forecast'!$E$8:$E$79,$C11,'Import Expenditure Forecast'!$B$8:$B$79,$B$3,'Import Expenditure Forecast'!$D$8:$D$79,$B$5),SUMIFS(INDEX(#REF!,,MATCH(D$7,#REF!,0)),#REF!,$B11,#REF!,$B$3,#REF!,$B$5)) -> 1.61929798 | E11: =IF('Control and Output Summary'!$C$14<>"Ergon",SUMIFS(INDEX('Import Expenditure Forecast'!$F$8:$P$79,,MATCH(E$7,'Import Expenditure Forecast'!$F$7:$P$7,0)),'Import Expenditure Forecast'!$C$8:$C$79,$B11,'Import Expenditure Forecast'!$E$8:$E$79,$C11,'Import Expenditure Forecast'!$B$8:$B$79,$B$3,'Import Expenditure Forecast'!$D$8:$D$79,$B$5),SUMIFS(INDEX(#REF!,,MATCH(E$7,#REF!,0)),#REF!,$B11,#REF!,$B$3,#REF!,$B$5)) -> 0.56913217 | F11: =IF('Control and Output Summary'!$C$14<>"Ergon",SUMIFS(INDEX('Import Expenditure Forecast'!$F$8:$P$79,,MATCH(F$7,'Import Expenditure Forecast'!$F$7:$P$7,0)),'Import Expenditure Forecast'!$C$8:$C$79,$B11,'Import Expenditure Forecast'!$E$8:$E$79,$C11,'Import Expenditure Forecast'!$B$8:$B$79,$B$3,'Import Expenditure Forecast'!$D$8:$D$79,$B$5),SUMIFS(INDEX(#REF!,,MATCH(F$7,#REF!,0)),#REF!,$B11,#REF!,$B$3,#REF!,$B$5)) -> 4.36312868 | G11: =IF('Control and Output Summary'!$C$14<>"Ergon",SUMIFS(INDEX('Import Expenditure Forecast'!$F$8:$P$79,,MATCH(G$7,'Import Expenditure Forecast'!$F$7:$P$7,0)),'Import Expenditure Forecast'!$C$8:$C$79,$B11,'Import Expenditure Forecast'!$E$8:$E$79,$C11,'Import Expenditure Forecast'!$B$8:$B$79,$B$3,'Import Expenditure Forecast'!$D$8:$D$79,$B$5),SUMIFS(INDEX(#REF!,,MATCH(G$7,#REF!,0)),#REF!,$B11,#REF!,$B$3,#REF!,$B$5)) -> 7.980241276 | H11: =IF('Control and Output Summary'!$C$14<>"Ergon",SUMIFS(INDEX('Import Expenditure Forecast'!$F$8:$P$79,,MATCH(H$7,'Import Expenditure Forecast'!$F$7:$P$7,0)),'Import Expenditure Forecast'!$C$8:$C$79,$B11,'Import Expenditure Forecast'!$E$8:$E$79,$C11,'Import Expenditure Forecast'!$B$8:$B$79,$B$3,'Import Expenditure Forecast'!$D$8:$D$79,$B$5),SUMIFS(INDEX(#REF!,,MATCH(H$7,#REF!,0)),#REF!,$B11,#REF!,$B$3,#REF!,$B$5)) -> 7.075942662 | I11: =IF('Control and Output Summary'!$C$14<>"Ergon",SUMIFS(INDEX('Import Expenditure Forecast'!$F$8:$P$79,,MATCH(I$7,'Import Expenditure Forecast'!$F$7:$P$7,0)),'Import Expenditure Forecast'!$C$8:$C$79,$B11,'Import Expenditure Forecast'!$E$8:$E$79,$C11,'Import Expenditure Forecast'!$B$8:$B$79,$B$3,'Import Expenditure Forecast'!$D$8:$D$79,$B$5),SUMIFS(INDEX(#REF!,,MATCH(I$7,#REF!,0)),#REF!,$B11,#REF!,$B$3,#REF!,$B$5)) -> 9.686422047 | J11: =IF('Control and Output Summary'!$C$14<>"Ergon",SUMIFS(INDEX('Import Expenditure Forecast'!$F$8:$P$79,,MATCH(J$7,'Import Expenditure Forecast'!$F$7:$P$7,0)),'Import Expenditure Forecast'!$C$8:$C$79,$B11,'Import Expenditure Forecast'!$E$8:$E$79,$C11,'Import Expenditure Forecast'!$B$8:$B$79,$B$3,'Import Expenditure Forecast'!$D$8:$D$79,$B$5),SUMIFS(INDEX(#REF!,,MATCH(J$7,#REF!,0)),#REF!,$B11,#REF!,$B$3,#REF!,$B$5)) -> 6.689744013 | K11: =IF('Control and Output Summary'!$C$14<>"Ergon",SUMIFS(INDEX('Import Expenditure Forecast'!$F$8:$P$79,,MATCH(K$7,'Import Expenditure Forecast'!$F$7:$P$7,0)),'Import Expenditure Forecast'!$C$8:$C$79,$B11,'Import Expenditure Forecast'!$E$8:$E$79,$C11,'Import Expenditure Forecast'!$B$8:$B$79,$B$3,'Import Expenditure Forecast'!$D$8:$D$79,$B$5),SUMIFS(INDEX(#REF!,,MATCH(K$7,#REF!,0)),#REF!,$B11,#REF!,$B$3,#REF!,$B$5)) -> 16.89816519 | L11: =IF('Control and Output Summary'!$C$14<>"Ergon",SUMIFS(INDEX('Import Expenditure Forecast'!$F$8:$P$79,,MATCH(L$7,'Import Expenditure Forecast'!$F$7:$P$7,0)),'Import Expenditure Forecast'!$C$8:$C$79,$B11,'Import Expenditure Forecast'!$E$8:$E$79,$C11,'Import Expenditure Forecast'!$B$8:$B$79,$B$3,'Import Expenditure Forecast'!$D$8:$D$79,$B$5),SUMIFS(INDEX(#REF!,,MATCH(L$7,#REF!,0)),#REF!,$B11,#REF!,$B$3,#REF!,$B$5)) -> 10.08756848 | M11: =IF('Control and Output Summary'!$C$14<>"Ergon",SUMIFS(INDEX('Import Expenditure Forecast'!$F$8:$P$79,,MATCH(M$7,'Import Expenditure Forecast'!$F$7:$P$7,0)),'Import Expenditure Forecast'!$C$8:$C$79,$B11,'Import Expenditure Forecast'!$E$8:$E$79,$C11,'Import Expenditure Forecast'!$B$8:$B$79,$B$3,'Import Expenditure Forecast'!$D$8:$D$79,$B$5),SUMIFS(INDEX(#REF!,,MATCH(M$7,#REF!,0)),#REF!,$B11,#REF!,$B$3,#REF!,$B$5)) -> 10.08756848 | N11: =IF('Control and Output Summary'!$C$14<>"Ergon",SUMIFS(INDEX('Import Expenditure Forecast'!$F$8:$P$79,,MATCH(N$7,'Import Expenditure Forecast'!$F$7:$P$7,0)),'Import Expenditure Forecast'!$C$8:$C$79,$B11,'Import Expenditure Forecast'!$E$8:$E$79,$C11,'Import Expenditure Forecast'!$B$8:$B$79,$B$3,'Import Expenditure Forecast'!$D$8:$D$79,$B$5),SUMIFS(INDEX(#REF!,,MATCH(N$7,#REF!,0)),#REF!,$B11,#REF!,$B$3,#REF!,$B$5)) -> 10.08756848
B12: ST 33/66 kv | C12: ='Control and Output Summary'!$C$14 -> Energex | D12: =IF('Control and Output Summary'!$C$14<>"Ergon",SUMIFS(INDEX('Import Expenditure Forecast'!$F$8:$P$79,,MATCH(D$7,'Import Expenditure Forecast'!$F$7:$P$7,0)),'Import Expenditure Forecast'!$C$8:$C$79,$B12,'Import Expenditure Forecast'!$E$8:$E$79,$C12,'Import Expenditure Forecast'!$B$8:$B$79,$B$3,'Import Expenditure Forecast'!$D$8:$D$79,$B$5),SUMIFS(INDEX(#REF!,,MATCH(D$7,#REF!,0)),#REF!,$B12,#REF!,$B$3,#REF!,$B$5)) -> 0 | E12: =IF('Control and Output Summary'!$C$14<>"Ergon",SUMIFS(INDEX('Import Expenditure Forecast'!$F$8:$P$79,,MATCH(E$7,'Import Expenditure Forecast'!$F$7:$P$7,0)),'Import Expenditure Forecast'!$C$8:$C$79,$B12,'Import Expenditure Forecast'!$E$8:$E$79,$C12,'Import Expenditure Forecast'!$B$8:$B$79,$B$3,'Import Expenditure Forecast'!$D$8:$D$79,$B$5),SUMIFS(INDEX(#REF!,,MATCH(E$7,#REF!,0)),#REF!,$B12,#REF!,$B$3,#REF!,$B$5)) -> 0 | F12: =IF('Control and Output Summary'!$C$14<>"Ergon",SUMIFS(INDEX('Import Expenditure Forecast'!$F$8:$P$79,,MATCH(F$7,'Import Expenditure Forecast'!$F$7:$P$7,0)),'Import Expenditure Forecast'!$C$8:$C$79,$B12,'Import Expenditure Forecast'!$E$8:$E$79,$C12,'Import Expenditure Forecast'!$B$8:$B$79,$B$3,'Import Expenditure Forecast'!$D$8:$D$79,$B$5),SUMIFS(INDEX(#REF!,,MATCH(F$7,#REF!,0)),#REF!,$B12,#REF!,$B$3,#REF!,$B$5)) -> 0 | G12: =IF('Control and Output Summary'!$C$14<>"Ergon",SUMIFS(INDEX('Import Expenditure Forecast'!$F$8:$P$79,,MATCH(G$7,'Import Expenditure Forecast'!$F$7:$P$7,0)),'Import Expenditure Forecast'!$C$8:$C$79,$B12,'Import Expenditure Forecast'!$E$8:$E$79,$C12,'Import Expenditure Forecast'!$B$8:$B$79,$B$3,'Import Expenditure Forecast'!$D$8:$D$79,$B$5),SUMIFS(INDEX(#REF!,,MATCH(G$7,#REF!,0)),#REF!,$B12,#REF!,$B$3,#REF!,$B$5)) -> 0.2085841442 | H12: =IF('Control and Output Summary'!$C$14<>"Ergon",SUMIFS(INDEX('Import Expenditure Forecast'!$F$8:$P$79,,MATCH(H$7,'Import Expenditure Forecast'!$F$7:$P$7,0)),'Import Expenditure Forecast'!$C$8:$C$79,$B12,'Import Expenditure Forecast'!$E$8:$E$79,$C12,'Import Expenditure Forecast'!$B$8:$B$79,$B$3,'Import Expenditure Forecast'!$D$8:$D$79,$B$5),SUMIFS(INDEX(#REF!,,MATCH(H$7,#REF!,0)),#REF!,$B12,#REF!,$B$3,#REF!,$B$5)) -> 0.4190434823 | I12: =IF('Control and Output Summary'!$C$14<>"Ergon",SUMIFS(INDEX('Import Expenditure Forecast'!$F$8:$P$79,,MATCH(I$7,'Import Expenditure Forecast'!$F$7:$P$7,0)),'Import Expenditure Forecast'!$C$8:$C$79,$B12,'Import Expenditure Forecast'!$E$8:$E$79,$C12,'Import Expenditure Forecast'!$B$8:$B$79,$B$3,'Import Expenditure Forecast'!$D$8:$D$79,$B$5),SUMIFS(INDEX(#REF!,,MATCH(I$7,#REF!,0)),#REF!,$B12,#REF!,$B$3,#REF!,$B$5)) -> 1.063999383 | J12: =IF('Control and Output Summary'!$C$14<>"Ergon",SUMIFS(INDEX('Import Expenditure Forecast'!$F$8:$P$79,,MATCH(J$7,'Import Expenditure Forecast'!$F$7:$P$7,0)),'Import Expenditure Forecast'!$C$8:$C$79,$B12,'Import Expenditure Forecast'!$E$8:$E$79,$C12,'Import Expenditure Forecast'!$B$8:$B$79,$B$3,'Import Expenditure Forecast'!$D$8:$D$79,$B$5),SUMIFS(INDEX(#REF!,,MATCH(J$7,#REF!,0)),#REF!,$B12,#REF!,$B$3,#REF!,$B$5)) -> 1.165289808 | K12: =IF('Control and Output Summary'!$C$14<>"Ergon",SUMIFS(INDEX('Import Expenditure Forecast'!$F$8:$P$79,,MATCH(K$7,'Import Expenditure Forecast'!$F$7:$P$7,0)),'Import Expenditure Forecast'!$C$8:$C$79,$B12,'Import Expenditure Forecast'!$E$8:$E$79,$C12,'Import Expenditure Forecast'!$B$8:$B$79,$B$3,'Import Expenditure Forecast'!$D$8:$D$79,$B$5),SUMIFS(INDEX(#REF!,,MATCH(K$7,#REF!,0)),#REF!,$B12,#REF!,$B$3,#REF!,$B$5)) -> 1.818167569 | L12: =IF('Control and Output Summary'!$C$14<>"Ergon",SUMIFS(INDEX('Import Expenditure Forecast'!$F$8:$P$79,,MATCH(L$7,'Import Expenditure Forecast'!$F$7:$P$7,0)),'Import Expenditure Forecast'!$C$8:$C$79,$B12,'Import Expenditure Forecast'!$E$8:$E$79,$C12,'Import Expenditure Forecast'!$B$8:$B$79,$B$3,'Import Expenditure Forecast'!$D$8:$D$79,$B$5),SUMIFS(INDEX(#REF!,,MATCH(L$7,#REF!,0)),#REF!,$B12,#REF!,$B$3,#REF!,$B$5)) -> 1.349152254 | M12: =IF('Control and Output Summary'!$C$14<>"Ergon",SUMIFS(INDEX('Import Expenditure Forecast'!$F$8:$P$79,,MATCH(M$7,'Import Expenditure Forecast'!$F$7:$P$7,0)),'Import Expenditure Forecast'!$C$8:$C$79,$B12,'Import Expenditure Forecast'!$E$8:$E$79,$C12,'Import Expenditure Forecast'!$B$8:$B$79,$B$3,'Import Expenditure Forecast'!$D$8:$D$79,$B$5),SUMIFS(INDEX(#REF!,,MATCH(M$7,#REF!,0)),#REF!,$B12,#REF!,$B$3,#REF!,$B$5)) -> 1.349152254 | N12: =IF('Control and Output Summary'!$C$14<>"Ergon",SUMIFS(INDEX('Import Expenditure Forecast'!$F$8:$P$79,,MATCH(N$7,'Import Expenditure Forecast'!$F$7:$P$7,0)),'Import Expenditure Forecast'!$C$8:$C$79,$B12,'Import Expenditure Forecast'!$E$8:$E$79,$C12,'Import Expenditure Forecast'!$B$8:$B$79,$B$3,'Import Expenditure Forecast'!$D$8:$D$79,$B$5),SUMIFS(INDEX(#REF!,,MATCH(N$7,#REF!,0)),#REF!,$B12,#REF!,$B$3,#REF!,$B$5)) -> 1.349152254
B13: ST 110/132 kv | C13: ='Control and Output Summary'!$C$14 -> Energex | D13: =IF('Control and Output Summary'!$C$14<>"Ergon",SUMIFS(INDEX('Import Expenditure Forecast'!$F$8:$P$79,,MATCH(D$7,'Import Expenditure Forecast'!$F$7:$P$7,0)),'Import Expenditure Forecast'!$C$8:$C$79,$B13,'Import Expenditure Forecast'!$E$8:$E$79,$C13,'Import Expenditure Forecast'!$B$8:$B$79,$B$3,'Import Expenditure Forecast'!$D$8:$D$79,$B$5),SUMIFS(INDEX(#REF!,,MATCH(D$7,#REF!,0)),#REF!,$B13,#REF!,$B$3,#REF!,$B$5)) -> 5.42836872 | E13: =IF('Control and Output Summary'!$C$14<>"Ergon",SUMIFS(INDEX('Import Expenditure Forecast'!$F$8:$P$79,,MATCH(E$7,'Import Expenditure Forecast'!$F$7:$P$7,0)),'Import Expenditure Forecast'!$C$8:$C$79,$B13,'Import Expenditure Forecast'!$E$8:$E$79,$C13,'Import Expenditure Forecast'!$B$8:$B$79,$B$3,'Import Expenditure Forecast'!$D$8:$D$79,$B$5),SUMIFS(INDEX(#REF!,,MATCH(E$7,#REF!,0)),#REF!,$B13,#REF!,$B$3,#REF!,$B$5)) -> 1.5593398 | F13: =IF('Control and Output Summary'!$C$14<>"Ergon",SUMIFS(INDEX('Import Expenditure Forecast'!$F$8:$P$79,,MATCH(F$7,'Import Expenditure Forecast'!$F$7:$P$7,0)),'Import Expenditure Forecast'!$C$8:$C$79,$B13,'Import Expenditure Forecast'!$E$8:$E$79,$C13,'Import Expenditure Forecast'!$B$8:$B$79,$B$3,'Import Expenditure Forecast'!$D$8:$D$79,$B$5),SUMIFS(INDEX(#REF!,,MATCH(F$7,#REF!,0)),#REF!,$B13,#REF!,$B$3,#REF!,$B$5)) -> 6.26272855 | G13: =IF('Control and Output Summary'!$C$14<>"Ergon",SUMIFS(INDEX('Import Expenditure Forecast'!$F$8:$P$79,,MATCH(G$7,'Import Expenditure Forecast'!$F$7:$P$7,0)),'Import Expenditure Forecast'!$C$8:$C$79,$B13,'Import Expenditure Forecast'!$E$8:$E$79,$C13,'Import Expenditure Forecast'!$B$8:$B$79,$B$3,'Import Expenditure Forecast'!$D$8:$D$79,$B$5),SUMIFS(INDEX(#REF!,,MATCH(G$7,#REF!,0)),#REF!,$B13,#REF!,$B$3,#REF!,$B$5)) -> 0 | H13: =IF('Control and Output Summary'!$C$14<>"Ergon",SUMIFS(INDEX('Import Expenditure Forecast'!$F$8:$P$79,,MATCH(H$7,'Import Expenditure Forecast'!$F$7:$P$7,0)),'Import Expenditure Forecast'!$C$8:$C$79,$B13,'Import Expenditure Forecast'!$E$8:$E$79,$C13,'Import Expenditure Forecast'!$B$8:$B$79,$B$3,'Import Expenditure Forecast'!$D$8:$D$79,$B$5),SUMIFS(INDEX(#REF!,,MATCH(H$7,#REF!,0)),#REF!,$B13,#REF!,$B$3,#REF!,$B$5)) -> 0 | I13: =IF('Control and Output Summary'!$C$14<>"Ergon",SUMIFS(INDEX('Import Expenditure Forecast'!$F$8:$P$79,,MATCH(I$7,'Import Expenditure Forecast'!$F$7:$P$7,0)),'Import Expenditure Forecast'!$C$8:$C$79,$B13,'Import Expenditure Forecast'!$E$8:$E$79,$C13,'Import Expenditure Forecast'!$B$8:$B$79,$B$3,'Import Expenditure Forecast'!$D$8:$D$79,$B$5),SUMIFS(INDEX(#REF!,,MATCH(I$7,#REF!,0)),#REF!,$B13,#REF!,$B$3,#REF!,$B$5)) -> 0.00324084 | J13: =IF('Control and Output Summary'!$C$14<>"Ergon",SUMIFS(INDEX('Import Expenditure Forecast'!$F$8:$P$79,,MATCH(J$7,'Import Expenditure Forecast'!$F$7:$P$7,0)),'Import Expenditure Forecast'!$C$8:$C$79,$B13,'Import Expenditure Forecast'!$E$8:$E$79,$C13,'Import Expenditure Forecast'!$B$8:$B$79,$B$3,'Import Expenditure Forecast'!$D$8:$D$79,$B$5),SUMIFS(INDEX(#REF!,,MATCH(J$7,#REF!,0)),#REF!,$B13,#REF!,$B$3,#REF!,$B$5)) -> 0.12294686 | K13: =IF('Control and Output Summary'!$C$14<>"Ergon",SUMIFS(INDEX('Import Expenditure Forecast'!$F$8:$P$79,,MATCH(K$7,'Import Expenditure Forecast'!$F$7:$P$7,0)),'Import Expenditure Forecast'!$C$8:$C$79,$B13,'Import Expenditure Forecast'!$E$8:$E$79,$C13,'Import Expenditure Forecast'!$B$8:$B$79,$B$3,'Import Expenditure Forecast'!$D$8:$D$79,$B$5),SUMIFS(INDEX(#REF!,,MATCH(K$7,#REF!,0)),#REF!,$B13,#REF!,$B$3,#REF!,$B$5)) -> 0.08894471 | L13: =IF('Control and Output Summary'!$C$14<>"Ergon",SUMIFS(INDEX('Import Expenditure Forecast'!$F$8:$P$79,,MATCH(L$7,'Import Expenditure Forecast'!$F$7:$P$7,0)),'Import Expenditure Forecast'!$C$8:$C$79,$B13,'Import Expenditure Forecast'!$E$8:$E$79,$C13,'Import Expenditure Forecast'!$B$8:$B$79,$B$3,'Import Expenditure Forecast'!$D$8:$D$79,$B$5),SUMIFS(INDEX(#REF!,,MATCH(L$7,#REF!,0)),#REF!,$B13,#REF!,$B$3,#REF!,$B$5)) -> 0.07171080333 | M13: =IF('Control and Output Summary'!$C$14<>"Ergon",SUMIFS(INDEX('Import Expenditure Forecast'!$F$8:$P$79,,MATCH(M$7,'Import Expenditure Forecast'!$F$7:$P$7,0)),'Import Expenditure Forecast'!$C$8:$C$79,$B13,'Import Expenditure Forecast'!$E$8:$E$79,$C13,'Import Expenditure Forecast'!$B$8:$B$79,$B$3,'Import Expenditure Forecast'!$D$8:$D$79,$B$5),SUMIFS(INDEX(#REF!,,MATCH(M$7,#REF!,0)),#REF!,$B13,#REF!,$B$3,#REF!,$B$5)) -> 0.07171080333 | N13: =IF('Control and Output Summary'!$C$14<>"Ergon",SUMIFS(INDEX('Import Expenditure Forecast'!$F$8:$P$79,,MATCH(N$7,'Import Expenditure Forecast'!$F$7:$P$7,0)),'Import Expenditure Forecast'!$C$8:$C$79,$B13,'Import Expenditure Forecast'!$E$8:$E$79,$C13,'Import Expenditure Forecast'!$B$8:$B$79,$B$3,'Import Expenditure Forecast'!$D$8:$D$79,$B$5),SUMIFS(INDEX(#REF!,,MATCH(N$7,#REF!,0)),#REF!,$B13,#REF!,$B$3,#REF!,$B$5)) -> 0.07171080333
B16: Replacement
B18: Voltage Level | C18: Pricing Zone | D18: =D$7 -> 2023 | E18: =E$7 -> 2024 | F18: 2025 | G18: 2026 | H18: 2027 | I18: 2028 | J18: 2029 | K18: 2030 | L18: 2031 | M18: 2032 | N18: 2033
B19: LV Line | C19: ='Control and Output Summary'!$C$14 -> Energex | D19: =IF('Control and Output Summary'!$C$14<>"Ergon",SUMIFS(INDEX('Import Expenditure Forecast'!$F$8:$P$79,,MATCH(D$18,'Import Expenditure Forecast'!$F$7:$P$7,0)),'Import Expenditure Forecast'!$C$8:$C$79,$B19,'Import Expenditure Forecast'!$E$8:$E$79,$C19,'Import Expenditure Forecast'!$B$8:$B$79,$B$3,'Import Expenditure Forecast'!$D$8:$D$79,$B$16),SUMIFS(INDEX(#REF!,,MATCH(D$18,#REF!,0)),#REF!,$B19,#REF!,$B$3,#REF!,$B$16)) -> 0 | E19: =IF('Control and Output Summary'!$C$14<>"Ergon",SUMIFS(INDEX('Import Expenditure Forecast'!$F$8:$P$79,,MATCH(E$18,'Import Expenditure Forecast'!$F$7:$P$7,0)),'Import Expenditure Forecast'!$C$8:$C$79,$B19,'Import Expenditure Forecast'!$E$8:$E$79,$C19,'Import Expenditure Forecast'!$B$8:$B$79,$B$3,'Import Expenditure Forecast'!$D$8:$D$79,$B$16),SUMIFS(INDEX(#REF!,,MATCH(E$18,#REF!,0)),#REF!,$B19,#REF!,$B$3,#REF!,$B$16)) -> 0 | F19: =IF('Control and Output Summary'!$C$14<>"Ergon",SUMIFS(INDEX('Import Expenditure Forecast'!$F$8:$P$79,,MATCH(F$18,'Import Expenditure Forecast'!$F$7:$P$7,0)),'Import Expenditure Forecast'!$C$8:$C$79,$B19,'Import Expenditure Forecast'!$E$8:$E$79,$C19,'Import Expenditure Forecast'!$B$8:$B$79,$B$3,'Import Expenditure Forecast'!$D$8:$D$79,$B$16),SUMIFS(INDEX(#REF!,,MATCH(F$18,#REF!,0)),#REF!,$B19,#REF!,$B$3,#REF!,$B$16)) -> 0 | G19: =IF('Control and Output Summary'!$C$14<>"Ergon",SUMIFS(INDEX('Import Expenditure Forecast'!$F$8:$P$79,,MATCH(G$18,'Import Expenditure Forecast'!$F$7:$P$7,0)),'Import Expenditure Forecast'!$C$8:$C$79,$B19,'Import Expenditure Forecast'!$E$8:$E$79,$C19,'Import Expenditure Forecast'!$B$8:$B$79,$B$3,'Import Expenditure Forecast'!$D$8:$D$79,$B$16),SUMIFS(INDEX(#REF!,,MATCH(G$18,#REF!,0)),#REF!,$B19,#REF!,$B$3,#REF!,$B$16)) -> 0 | H19: =IF('Control and Output Summary'!$C$14<>"Ergon",SUMIFS(INDEX('Import Expenditure Forecast'!$F$8:$P$79,,MATCH(H$18,'Import Expenditure Forecast'!$F$7:$P$7,0)),'Import Expenditure Forecast'!$C$8:$C$79,$B19,'Import Expenditure Forecast'!$E$8:$E$79,$C19,'Import Expenditure Forecast'!$B$8:$B$79,$B$3,'Import Expenditure Forecast'!$D$8:$D$79,$B$16),SUMIFS(INDEX(#REF!,,MATCH(H$18,#REF!,0)),#REF!,$B19,#REF!,$B$3,#REF!,$B$16)) -> 0 | I19: =IF('Control and Output Summary'!$C$14<>"Ergon",SUMIFS(INDEX('Import Expenditure Forecast'!$F$8:$P$79,,MATCH(I$18,'Import Expenditure Forecast'!$F$7:$P$7,0)),'Import Expenditure Forecast'!$C$8:$C$79,$B19,'Import Expenditure Forecast'!$E$8:$E$79,$C19,'Import Expenditure Forecast'!$B$8:$B$79,$B$3,'Import Expenditure Forecast'!$D$8:$D$79,$B$16),SUMIFS(INDEX(#REF!,,MATCH(I$18,#REF!,0)),#REF!,$B19,#REF!,$B$3,#REF!,$B$16)) -> 0 | J19: =IF('Control and Output Summary'!$C$14<>"Ergon",SUMIFS(INDEX('Import Expenditure Forecast'!$F$8:$P$79,,MATCH(J$18,'Import Expenditure Forecast'!$F$7:$P$7,0)),'Import Expenditure Forecast'!$C$8:$C$79,$B19,'Import Expenditure Forecast'!$E$8:$E$79,$C19,'Import Expenditure Forecast'!$B$8:$B$79,$B$3,'Import Expenditure Forecast'!$D$8:$D$79,$B$16),SUMIFS(INDEX(#REF!,,MATCH(J$18,#REF!,0)),#REF!,$B19,#REF!,$B$3,#REF!,$B$16)) -> 0 | K19: =IF('Control and Output Summary'!$C$14<>"Ergon",SUMIFS(INDEX('Import Expenditure Forecast'!$F$8:$P$79,,MATCH(K$18,'Import Expenditure Forecast'!$F$7:$P$7,0)),'Import Expenditure Forecast'!$C$8:$C$79,$B19,'Import Expenditure Forecast'!$E$8:$E$79,$C19,'Import Expenditure Forecast'!$B$8:$B$79,$B$3,'Import Expenditure Forecast'!$D$8:$D$79,$B$16),SUMIFS(INDEX(#REF!,,MATCH(K$18,#REF!,0)),#REF!,$B19,#REF!,$B$3,#REF!,$B$16)) -> 0 | L19: =IF('Control and Output Summary'!$C$14<>"Ergon",SUMIFS(INDEX('Import Expenditure Forecast'!$F$8:$P$79,,MATCH(L$18,'Import Expenditure Forecast'!$F$7:$P$7,0)),'Import Expenditure Forecast'!$C$8:$C$79,$B19,'Import Expenditure Forecast'!$E$8:$E$79,$C19,'Import Expenditure Forecast'!$B$8:$B$79,$B$3,'Import Expenditure Forecast'!$D$8:$D$79,$B$16),SUMIFS(INDEX(#REF!,,MATCH(L$18,#REF!,0)),#REF!,$B19,#REF!,$B$3,#REF!,$B$16)) -> 0 | M19: =IF('Control and Output Summary'!$C$14<>"Ergon",SUMIFS(INDEX('Import Expenditure Forecast'!$F$8:$P$79,,MATCH(M$18,'Import Expenditure Forecast'!$F$7:$P$7,0)),'Import Expenditure Forecast'!$C$8:$C$79,$B19,'Import Expenditure Forecast'!$E$8:$E$79,$C19,'Import Expenditure Forecast'!$B$8:$B$79,$B$3,'Import Expenditure Forecast'!$D$8:$D$79,$B$16),SUMIFS(INDEX(#REF!,,MATCH(M$18,#REF!,0)),#REF!,$B19,#REF!,$B$3,#REF!,$B$16)) -> 0 | N19: =IF('Control and Output Summary'!$C$14<>"Ergon",SUMIFS(INDEX('Import Expenditure Forecast'!$F$8:$P$79,,MATCH(N$18,'Import Expenditure Forecast'!$F$7:$P$7,0)),'Import Expenditure Forecast'!$C$8:$C$79,$B19,'Import Expenditure Forecast'!$E$8:$E$79,$C19,'Import Expenditure Forecast'!$B$8:$B$79,$B$3,'Import Expenditure Forecast'!$D$8:$D$79,$B$16),SUMIFS(INDEX(#REF!,,MATCH(N$18,#REF!,0)),#REF!,$B19,#REF!,$B$3,#REF!,$B$16)) -> 0
B20: LV Bus | C20: ='Control and Output Summary'!$C$14 -> Energex | D20: =IF('Control and Output Summary'!$C$14<>"Ergon",SUMIFS(INDEX('Import Expenditure Forecast'!$F$8:$P$79,,MATCH(D$18,'Import Expenditure Forecast'!$F$7:$P$7,0)),'Import Expenditure Forecast'!$C$8:$C$79,$B20,'Import Expenditure Forecast'!$E$8:$E$79,$C20,'Import Expenditure Forecast'!$B$8:$B$79,$B$3,'Import Expenditure Forecast'!$D$8:$D$79,$B$16),SUMIFS(INDEX(#REF!,,MATCH(D$18,#REF!,0)),#REF!,$B20,#REF!,$B$3,#REF!,$B$16)) -> 0 | E20: =IF('Control and Output Summary'!$C$14<>"Ergon",SUMIFS(INDEX('Import Expenditure Forecast'!$F$8:$P$79,,MATCH(E$18,'Import Expenditure Forecast'!$F$7:$P$7,0)),'Import Expenditure Forecast'!$C$8:$C$79,$B20,'Import Expenditure Forecast'!$E$8:$E$79,$C20,'Import Expenditure Forecast'!$B$8:$B$79,$B$3,'Import Expenditure Forecast'!$D$8:$D$79,$B$16),SUMIFS(INDEX(#REF!,,MATCH(E$18,#REF!,0)),#REF!,$B20,#REF!,$B$3,#REF!,$B$16)) -> 0 | F20: =IF('Control and Output Summary'!$C$14<>"Ergon",SUMIFS(INDEX('Import Expenditure Forecast'!$F$8:$P$79,,MATCH(F$18,'Import Expenditure Forecast'!$F$7:$P$7,0)),'Import Expenditure Forecast'!$C$8:$C$79,$B20,'Import Expenditure Forecast'!$E$8:$E$79,$C20,'Import Expenditure Forecast'!$B$8:$B$79,$B$3,'Import Expenditure Forecast'!$D$8:$D$79,$B$16),SUMIFS(INDEX(#REF!,,MATCH(F$18,#REF!,0)),#REF!,$B20,#REF!,$B$3,#REF!,$B$16)) -> 0 | G20: =IF('Control and Output Summary'!$C$14<>"Ergon",SUMIFS(INDEX('Import Expenditure Forecast'!$F$8:$P$79,,MATCH(G$18,'Import Expenditure Forecast'!$F$7:$P$7,0)),'Import Expenditure Forecast'!$C$8:$C$79,$B20,'Import Expenditure Forecast'!$E$8:$E$79,$C20,'Import Expenditure Forecast'!$B$8:$B$79,$B$3,'Import Expenditure Forecast'!$D$8:$D$79,$B$16),SUMIFS(INDEX(#REF!,,MATCH(G$18,#REF!,0)),#REF!,$B20,#REF!,$B$3,#REF!,$B$16)) -> 0 | H20: =IF('Control and Output Summary'!$C$14<>"Ergon",SUMIFS(INDEX('Import Expenditure Forecast'!$F$8:$P$79,,MATCH(H$18,'Import Expenditure Forecast'!$F$7:$P$7,0)),'Import Expenditure Forecast'!$C$8:$C$79,$B20,'Import Expenditure Forecast'!$E$8:$E$79,$C20,'Import Expenditure Forecast'!$B$8:$B$79,$B$3,'Import Expenditure Forecast'!$D$8:$D$79,$B$16),SUMIFS(INDEX(#REF!,,MATCH(H$18,#REF!,0)),#REF!,$B20,#REF!,$B$3,#REF!,$B$16)) -> 0 | I20: =IF('Control and Output Summary'!$C$14<>"Ergon",SUMIFS(INDEX('Import Expenditure Forecast'!$F$8:$P$79,,MATCH(I$18,'Import Expenditure Forecast'!$F$7:$P$7,0)),'Import Expenditure Forecast'!$C$8:$C$79,$B20,'Import Expenditure Forecast'!$E$8:$E$79,$C20,'Import Expenditure Forecast'!$B$8:$B$79,$B$3,'Import Expenditure Forecast'!$D$8:$D$79,$B$16),SUMIFS(INDEX(#REF!,,MATCH(I$18,#REF!,0)),#REF!,$B20,#REF!,$B$3,#REF!,$B$16)) -> 0 | J20: =IF('Control and Output Summary'!$C$14<>"Ergon",SUMIFS(INDEX('Import Expenditure Forecast'!$F$8:$P$79,,MATCH(J$18,'Import Expenditure Forecast'!$F$7:$P$7,0)),'Import Expenditure Forecast'!$C$8:$C$79,$B20,'Import Expenditure Forecast'!$E$8:$E$79,$C20,'Import Expenditure Forecast'!$B$8:$B$79,$B$3,'Import Expenditure Forecast'!$D$8:$D$79,$B$16),SUMIFS(INDEX(#REF!,,MATCH(J$18,#REF!,0)),#REF!,$B20,#REF!,$B$3,#REF!,$B$16)) -> 0 | K20: =IF('Control and Output Summary'!$C$14<>"Ergon",SUMIFS(INDEX('Import Expenditure Forecast'!$F$8:$P$79,,MATCH(K$18,'Import Expenditure Forecast'!$F$7:$P$7,0)),'Import Expenditure Forecast'!$C$8:$C$79,$B20,'Import Expenditure Forecast'!$E$8:$E$79,$C20,'Import Expenditure Forecast'!$B$8:$B$79,$B$3,'Import Expenditure Forecast'!$D$8:$D$79,$B$16),SUMIFS(INDEX(#REF!,,MATCH(K$18,#REF!,0)),#REF!,$B20,#REF!,$B$3,#REF!,$B$16)) -> 0 | L20: =IF('Control and Output Summary'!$C$14<>"Ergon",SUMIFS(INDEX('Import Expenditure Forecast'!$F$8:$P$79,,MATCH(L$18,'Import Expenditure Forecast'!$F$7:$P$7,0)),'Import Expenditure Forecast'!$C$8:$C$79,$B20,'Import Expenditure Forecast'!$E$8:$E$79,$C20,'Import Expenditure Forecast'!$B$8:$B$79,$B$3,'Import Expenditure Forecast'!$D$8:$D$79,$B$16),SUMIFS(INDEX(#REF!,,MATCH(L$18,#REF!,0)),#REF!,$B20,#REF!,$B$3,#REF!,$B$16)) -> 0 | M20: =IF('Control and Output Summary'!$C$14<>"Ergon",SUMIFS(INDEX('Import Expenditure Forecast'!$F$8:$P$79,,MATCH(M$18,'Import Expenditure Forecast'!$F$7:$P$7,0)),'Import Expenditure Forecast'!$C$8:$C$79,$B20,'Import Expenditure Forecast'!$E$8:$E$79,$C20,'Import Expenditure Forecast'!$B$8:$B$79,$B$3,'Import Expenditure Forecast'!$D$8:$D$79,$B$16),SUMIFS(INDEX(#REF!,,MATCH(M$18,#REF!,0)),#REF!,$B20,#REF!,$B$3,#REF!,$B$16)) -> 0 | N20: =IF('Control and Output Summary'!$C$14<>"Ergon",SUMIFS(INDEX('Import Expenditure Forecast'!$F$8:$P$79,,MATCH(N$18,'Import Expenditure Forecast'!$F$7:$P$7,0)),'Import Expenditure Forecast'!$C$8:$C$79,$B20,'Import Expenditure Forecast'!$E$8:$E$79,$C20,'Import Expenditure Forecast'!$B$8:$B$79,$B$3,'Import Expenditure Forecast'!$D$8:$D$79,$B$16),SUMIFS(INDEX(#REF!,,MATCH(N$18,#REF!,0)),#REF!,$B20,#REF!,$B$3,#REF!,$B$16)) -> 0
B21: HV Line | C21: ='Control and Output Summary'!$C$14 -> Energex | D21: =IF('Control and Output Summary'!$C$14<>"Ergon",SUMIFS(INDEX('Import Expenditure Forecast'!$F$8:$P$79,,MATCH(D$18,'Import Expenditure Forecast'!$F$7:$P$7,0)),'Import Expenditure Forecast'!$C$8:$C$79,$B21,'Import Expenditure Forecast'!$E$8:$E$79,$C21,'Import Expenditure Forecast'!$B$8:$B$79,$B$3,'Import Expenditure Forecast'!$D$8:$D$79,$B$16),SUMIFS(INDEX(#REF!,,MATCH(D$18,#REF!,0)),#REF!,$B21,#REF!,$B$3,#REF!,$B$16)) -> 0 | E21: =IF('Control and Output Summary'!$C$14<>"Ergon",SUMIFS(INDEX('Import Expenditure Forecast'!$F$8:$P$79,,MATCH(E$18,'Import Expenditure Forecast'!$F$7:$P$7,0)),'Import Expenditure Forecast'!$C$8:$C$79,$B21,'Import Expenditure Forecast'!$E$8:$E$79,$C21,'Import Expenditure Forecast'!$B$8:$B$79,$B$3,'Import Expenditure Forecast'!$D$8:$D$79,$B$16),SUMIFS(INDEX(#REF!,,MATCH(E$18,#REF!,0)),#REF!,$B21,#REF!,$B$3,#REF!,$B$16)) -> 0 | F21: =IF('Control and Output Summary'!$C$14<>"Ergon",SUMIFS(INDEX('Import Expenditure Forecast'!$F$8:$P$79,,MATCH(F$18,'Import Expenditure Forecast'!$F$7:$P$7,0)),'Import Expenditure Forecast'!$C$8:$C$79,$B21,'Import Expenditure Forecast'!$E$8:$E$79,$C21,'Import Expenditure Forecast'!$B$8:$B$79,$B$3,'Import Expenditure Forecast'!$D$8:$D$79,$B$16),SUMIFS(INDEX(#REF!,,MATCH(F$18,#REF!,0)),#REF!,$B21,#REF!,$B$3,#REF!,$B$16)) -> 0 | G21: =IF('Control and Output Summary'!$C$14<>"Ergon",SUMIFS(INDEX('Import Expenditure Forecast'!$F$8:$P$79,,MATCH(G$18,'Import Expenditure Forecast'!$F$7:$P$7,0)),'Import Expenditure Forecast'!$C$8:$C$79,$B21,'Import Expenditure Forecast'!$E$8:$E$79,$C21,'Import Expenditure Forecast'!$B$8:$B$79,$B$3,'Import Expenditure Forecast'!$D$8:$D$79,$B$16),SUMIFS(INDEX(#REF!,,MATCH(G$18,#REF!,0)),#REF!,$B21,#REF!,$B$3,#REF!,$B$16)) -> 0 | H21: =IF('Control and Output Summary'!$C$14<>"Ergon",SUMIFS(INDEX('Import Expenditure Forecast'!$F$8:$P$79,,MATCH(H$18,'Import Expenditure Forecast'!$F$7:$P$7,0)),'Import Expenditure Forecast'!$C$8:$C$79,$B21,'Import Expenditure Forecast'!$E$8:$E$79,$C21,'Import Expenditure Forecast'!$B$8:$B$79,$B$3,'Import Expenditure Forecast'!$D$8:$D$79,$B$16),SUMIFS(INDEX(#REF!,,MATCH(H$18,#REF!,0)),#REF!,$B21,#REF!,$B$3,#REF!,$B$16)) -> 0 | I21: =IF('Control and Output Summary'!$C$14<>"Ergon",SUMIFS(INDEX('Import Expenditure Forecast'!$F$8:$P$79,,MATCH(I$18,'Import Expenditure Forecast'!$F$7:$P$7,0)),'Import Expenditure Forecast'!$C$8:$C$79,$B21,'Import Expenditure Forecast'!$E$8:$E$79,$C21,'Import Expenditure Forecast'!$B$8:$B$79,$B$3,'Import Expenditure Forecast'!$D$8:$D$79,$B$16),SUMIFS(INDEX(#REF!,,MATCH(I$18,#REF!,0)),#REF!,$B21,#REF!,$B$3,#REF!,$B$16)) -> 0 | J21: =IF('Control and Output Summary'!$C$14<>"Ergon",SUMIFS(INDEX('Import Expenditure Forecast'!$F$8:$P$79,,MATCH(J$18,'Import Expenditure Forecast'!$F$7:$P$7,0)),'Import Expenditure Forecast'!$C$8:$C$79,$B21,'Import Expenditure Forecast'!$E$8:$E$79,$C21,'Import Expenditure Forecast'!$B$8:$B$79,$B$3,'Import Expenditure Forecast'!$D$8:$D$79,$B$16),SUMIFS(INDEX(#REF!,,MATCH(J$18,#REF!,0)),#REF!,$B21,#REF!,$B$3,#REF!,$B$16)) -> 0 | K21: =IF('Control and Output Summary'!$C$14<>"Ergon",SUMIFS(INDEX('Import Expenditure Forecast'!$F$8:$P$79,,MATCH(K$18,'Import Expenditure Forecast'!$F$7:$P$7,0)),'Import Expenditure Forecast'!$C$8:$C$79,$B21,'Import Expenditure Forecast'!$E$8:$E$79,$C21,'Import Expenditure Forecast'!$B$8:$B$79,$B$3,'Import Expenditure Forecast'!$D$8:$D$79,$B$16),SUMIFS(INDEX(#REF!,,MATCH(K$18,#REF!,0)),#REF!,$B21,#REF!,$B$3,#REF!,$B$16)) -> 0 | L21: =IF('Control and Output Summary'!$C$14<>"Ergon",SUMIFS(INDEX('Import Expenditure Forecast'!$F$8:$P$79,,MATCH(L$18,'Import Expenditure Forecast'!$F$7:$P$7,0)),'Import Expenditure Forecast'!$C$8:$C$79,$B21,'Import Expenditure Forecast'!$E$8:$E$79,$C21,'Import Expenditure Forecast'!$B$8:$B$79,$B$3,'Import Expenditure Forecast'!$D$8:$D$79,$B$16),SUMIFS(INDEX(#REF!,,MATCH(L$18,#REF!,0)),#REF!,$B21,#REF!,$B$3,#REF!,$B$16)) -> 0 | M21: =IF('Control and Output Summary'!$C$14<>"Ergon",SUMIFS(INDEX('Import Expenditure Forecast'!$F$8:$P$79,,MATCH(M$18,'Import Expenditure Forecast'!$F$7:$P$7,0)),'Import Expenditure Forecast'!$C$8:$C$79,$B21,'Import Expenditure Forecast'!$E$8:$E$79,$C21,'Import Expenditure Forecast'!$B$8:$B$79,$B$3,'Import Expenditure Forecast'!$D$8:$D$79,$B$16),SUMIFS(INDEX(#REF!,,MATCH(M$18,#REF!,0)),#REF!,$B21,#REF!,$B$3,#REF!,$B$16)) -> 0 | N21: =IF('Control and Output Summary'!$C$14<>"Ergon",SUMIFS(INDEX('Import Expenditure Forecast'!$F$8:$P$79,,MATCH(N$18,'Import Expenditure Forecast'!$F$7:$P$7,0)),'Import Expenditure Forecast'!$C$8:$C$79,$B21,'Import Expenditure Forecast'!$E$8:$E$79,$C21,'Import Expenditure Forecast'!$B$8:$B$79,$B$3,'Import Expenditure Forecast'!$D$8:$D$79,$B$16),SUMIFS(INDEX(#REF!,,MATCH(N$18,#REF!,0)),#REF!,$B21,#REF!,$B$3,#REF!,$B$16)) -> 0
B22: HV Bus | C22: ='Control and Output Summary'!$C$14 -> Energex | D22: =IF('Control and Output Summary'!$C$14<>"Ergon",SUMIFS(INDEX('Import Expenditure Forecast'!$F$8:$P$79,,MATCH(D$18,'Import Expenditure Forecast'!$F$7:$P$7,0)),'Import Expenditure Forecast'!$C$8:$C$79,$B22,'Import Expenditure Forecast'!$E$8:$E$79,$C22,'Import Expenditure Forecast'!$B$8:$B$79,$B$3,'Import Expenditure Forecast'!$D$8:$D$79,$B$16),SUMIFS(INDEX(#REF!,,MATCH(D$18,#REF!,0)),#REF!,$B22,#REF!,$B$3,#REF!,$B$16)) -> 20.39328443 | E22: =IF('Control and Output Summary'!$C$14<>"Ergon",SUMIFS(INDEX('Import Expenditure Forecast'!$F$8:$P$79,,MATCH(E$18,'Import Expenditure Forecast'!$F$7:$P$7,0)),'Import Expenditure Forecast'!$C$8:$C$79,$B22,'Import Expenditure Forecast'!$E$8:$E$79,$C22,'Import Expenditure Forecast'!$B$8:$B$79,$B$3,'Import Expenditure Forecast'!$D$8:$D$79,$B$16),SUMIFS(INDEX(#REF!,,MATCH(E$18,#REF!,0)),#REF!,$B22,#REF!,$B$3,#REF!,$B$16)) -> 17.06538729 | F22: =IF('Control and Output Summary'!$C$14<>"Ergon",SUMIFS(INDEX('Import Expenditure Forecast'!$F$8:$P$79,,MATCH(F$18,'Import Expenditure Forecast'!$F$7:$P$7,0)),'Import Expenditure Forecast'!$C$8:$C$79,$B22,'Import Expenditure Forecast'!$E$8:$E$79,$C22,'Import Expenditure Forecast'!$B$8:$B$79,$B$3,'Import Expenditure Forecast'!$D$8:$D$79,$B$16),SUMIFS(INDEX(#REF!,,MATCH(F$18,#REF!,0)),#REF!,$B22,#REF!,$B$3,#REF!,$B$16)) -> 16.78146849 | G22: =IF('Control and Output Summary'!$C$14<>"Ergon",SUMIFS(INDEX('Import Expenditure Forecast'!$F$8:$P$79,,MATCH(G$18,'Import Expenditure Forecast'!$F$7:$P$7,0)),'Import Expenditure Forecast'!$C$8:$C$79,$B22,'Import Expenditure Forecast'!$E$8:$E$79,$C22,'Import Expenditure Forecast'!$B$8:$B$79,$B$3,'Import Expenditure Forecast'!$D$8:$D$79,$B$16),SUMIFS(INDEX(#REF!,,MATCH(G$18,#REF!,0)),#REF!,$B22,#REF!,$B$3,#REF!,$B$16)) -> 25.00603741 | H22: =IF('Control and Output Summary'!$C$14<>"Ergon",SUMIFS(INDEX('Import Expenditure Forecast'!$F$8:$P$79,,MATCH(H$18,'Import Expenditure Forecast'!$F$7:$P$7,0)),'Import Expenditure Forecast'!$C$8:$C$79,$B22,'Import Expenditure Forecast'!$E$8:$E$79,$C22,'Import Expenditure Forecast'!$B$8:$B$79,$B$3,'Import Expenditure Forecast'!$D$8:$D$79,$B$16),SUMIFS(INDEX(#REF!,,MATCH(H$18,#REF!,0)),#REF!,$B22,#REF!,$B$3,#REF!,$B$16)) -> 32.00345397 | I22: =IF('Control and Output Summary'!$C$14<>"Ergon",SUMIFS(INDEX('Import Expenditure Forecast'!$F$8:$P$79,,MATCH(I$18,'Import Expenditure Forecast'!$F$7:$P$7,0)),'Import Expenditure Forecast'!$C$8:$C$79,$B22,'Import Expenditure Forecast'!$E$8:$E$79,$C22,'Import Expenditure Forecast'!$B$8:$B$79,$B$3,'Import Expenditure Forecast'!$D$8:$D$79,$B$16),SUMIFS(INDEX(#REF!,,MATCH(I$18,#REF!,0)),#REF!,$B22,#REF!,$B$3,#REF!,$B$16)) -> 20.87688594 | J22: =IF('Control and Output Summary'!$C$14<>"Ergon",SUMIFS(INDEX('Import Expenditure Forecast'!$F$8:$P$79,,MATCH(J$18,'Import Expenditure Forecast'!$F$7:$P$7,0)),'Import Expenditure Forecast'!$C$8:$C$79,$B22,'Import Expenditure Forecast'!$E$8:$E$79,$C22,'Import Expenditure Forecast'!$B$8:$B$79,$B$3,'Import Expenditure Forecast'!$D$8:$D$79,$B$16),SUMIFS(INDEX(#REF!,,MATCH(J$18,#REF!,0)),#REF!,$B22,#REF!,$B$3,#REF!,$B$16)) -> 30.94399615 | K22: =IF('Control and Output Summary'!$C$14<>"Ergon",SUMIFS(INDEX('Import Expenditure Forecast'!$F$8:$P$79,,MATCH(K$18,'Import Expenditure Forecast'!$F$7:$P$7,0)),'Import Expenditure Forecast'!$C$8:$C$79,$B22,'Import Expenditure Forecast'!$E$8:$E$79,$C22,'Import Expenditure Forecast'!$B$8:$B$79,$B$3,'Import Expenditure Forecast'!$D$8:$D$79,$B$16),SUMIFS(INDEX(#REF!,,MATCH(K$18,#REF!,0)),#REF!,$B22,#REF!,$B$3,#REF!,$B$16)) -> 19.78553827 | L22: =IF('Control and Output Summary'!$C$14<>"Ergon",SUMIFS(INDEX('Import Expenditure Forecast'!$F$8:$P$79,,MATCH(L$18,'Import Expenditure Forecast'!$F$7:$P$7,0)),'Import Expenditure Forecast'!$C$8:$C$79,$B22,'Import Expenditure Forecast'!$E$8:$E$79,$C22,'Import Expenditure Forecast'!$B$8:$B$79,$B$3,'Import Expenditure Forecast'!$D$8:$D$79,$B$16),SUMIFS(INDEX(#REF!,,MATCH(L$18,#REF!,0)),#REF!,$B22,#REF!,$B$3,#REF!,$B$16)) -> 23.86880679 | M22: =IF('Control and Output Summary'!$C$14<>"Ergon",SUMIFS(INDEX('Import Expenditure Forecast'!$F$8:$P$79,,MATCH(M$18,'Import Expenditure Forecast'!$F$7:$P$7,0)),'Import Expenditure Forecast'!$C$8:$C$79,$B22,'Import Expenditure Forecast'!$E$8:$E$79,$C22,'Import Expenditure Forecast'!$B$8:$B$79,$B$3,'Import Expenditure Forecast'!$D$8:$D$79,$B$16),SUMIFS(INDEX(#REF!,,MATCH(M$18,#REF!,0)),#REF!,$B22,#REF!,$B$3,#REF!,$B$16)) -> 23.86880679 | N22: =IF('Control and Output Summary'!$C$14<>"Ergon",SUMIFS(INDEX('Import Expenditure Forecast'!$F$8:$P$79,,MATCH(N$18,'Import Expenditure Forecast'!$F$7:$P$7,0)),'Import Expenditure Forecast'!$C$8:$C$79,$B22,'Import Expenditure Forecast'!$E$8:$E$79,$C22,'Import Expenditure Forecast'!$B$8:$B$79,$B$3,'Import Expenditure Forecast'!$D$8:$D$79,$B$16),SUMIFS(INDEX(#REF!,,MATCH(N$18,#REF!,0)),#REF!,$B22,#REF!,$B$3,#REF!,$B$16)) -> 23.86880679
B23: ST 33/66 kv | C23: ='Control and Output Summary'!$C$14 -> Energex | D23: =IF('Control and Output Summary'!$C$14<>"Ergon",SUMIFS(INDEX('Import Expenditure Forecast'!$F$8:$P$79,,MATCH(D$18,'Import Expenditure Forecast'!$F$7:$P$7,0)),'Import Expenditure Forecast'!$C$8:$C$79,$B23,'Import Expenditure Forecast'!$E$8:$E$79,$C23,'Import Expenditure Forecast'!$B$8:$B$79,$B$3,'Import Expenditure Forecast'!$D$8:$D$79,$B$16),SUMIFS(INDEX(#REF!,,MATCH(D$18,#REF!,0)),#REF!,$B23,#REF!,$B$3,#REF!,$B$16)) -> 0 | E23: =IF('Control and Output Summary'!$C$14<>"Ergon",SUMIFS(INDEX('Import Expenditure Forecast'!$F$8:$P$79,,MATCH(E$18,'Import Expenditure Forecast'!$F$7:$P$7,0)),'Import Expenditure Forecast'!$C$8:$C$79,$B23,'Import Expenditure Forecast'!$E$8:$E$79,$C23,'Import Expenditure Forecast'!$B$8:$B$79,$B$3,'Import Expenditure Forecast'!$D$8:$D$79,$B$16),SUMIFS(INDEX(#REF!,,MATCH(E$18,#REF!,0)),#REF!,$B23,#REF!,$B$3,#REF!,$B$16)) -> 0 | F23: =IF('Control and Output Summary'!$C$14<>"Ergon",SUMIFS(INDEX('Import Expenditure Forecast'!$F$8:$P$79,,MATCH(F$18,'Import Expenditure Forecast'!$F$7:$P$7,0)),'Import Expenditure Forecast'!$C$8:$C$79,$B23,'Import Expenditure Forecast'!$E$8:$E$79,$C23,'Import Expenditure Forecast'!$B$8:$B$79,$B$3,'Import Expenditure Forecast'!$D$8:$D$79,$B$16),SUMIFS(INDEX(#REF!,,MATCH(F$18,#REF!,0)),#REF!,$B23,#REF!,$B$3,#REF!,$B$16)) -> 0 | G23: =IF('Control and Output Summary'!$C$14<>"Ergon",SUMIFS(INDEX('Import Expenditure Forecast'!$F$8:$P$79,,MATCH(G$18,'Import Expenditure Forecast'!$F$7:$P$7,0)),'Import Expenditure Forecast'!$C$8:$C$79,$B23,'Import Expenditure Forecast'!$E$8:$E$79,$C23,'Import Expenditure Forecast'!$B$8:$B$79,$B$3,'Import Expenditure Forecast'!$D$8:$D$79,$B$16),SUMIFS(INDEX(#REF!,,MATCH(G$18,#REF!,0)),#REF!,$B23,#REF!,$B$3,#REF!,$B$16)) -> 0 | H23: =IF('Control and Output Summary'!$C$14<>"Ergon",SUMIFS(INDEX('Import Expenditure Forecast'!$F$8:$P$79,,MATCH(H$18,'Import Expenditure Forecast'!$F$7:$P$7,0)),'Import Expenditure Forecast'!$C$8:$C$79,$B23,'Import Expenditure Forecast'!$E$8:$E$79,$C23,'Import Expenditure Forecast'!$B$8:$B$79,$B$3,'Import Expenditure Forecast'!$D$8:$D$79,$B$16),SUMIFS(INDEX(#REF!,,MATCH(H$18,#REF!,0)),#REF!,$B23,#REF!,$B$3,#REF!,$B$16)) -> 0 | I23: =IF('Control and Output Summary'!$C$14<>"Ergon",SUMIFS(INDEX('Import Expenditure Forecast'!$F$8:$P$79,,MATCH(I$18,'Import Expenditure Forecast'!$F$7:$P$7,0)),'Import Expenditure Forecast'!$C$8:$C$79,$B23,'Import Expenditure Forecast'!$E$8:$E$79,$C23,'Import Expenditure Forecast'!$B$8:$B$79,$B$3,'Import Expenditure Forecast'!$D$8:$D$79,$B$16),SUMIFS(INDEX(#REF!,,MATCH(I$18,#REF!,0)),#REF!,$B23,#REF!,$B$3,#REF!,$B$16)) -> 0 | J23: =IF('Control and Output Summary'!$C$14<>"Ergon",SUMIFS(INDEX('Import Expenditure Forecast'!$F$8:$P$79,,MATCH(J$18,'Import Expenditure Forecast'!$F$7:$P$7,0)),'Import Expenditure Forecast'!$C$8:$C$79,$B23,'Import Expenditure Forecast'!$E$8:$E$79,$C23,'Import Expenditure Forecast'!$B$8:$B$79,$B$3,'Import Expenditure Forecast'!$D$8:$D$79,$B$16),SUMIFS(INDEX(#REF!,,MATCH(J$18,#REF!,0)),#REF!,$B23,#REF!,$B$3,#REF!,$B$16)) -> 0 | K23: =IF('Control and Output Summary'!$C$14<>"Ergon",SUMIFS(INDEX('Import Expenditure Forecast'!$F$8:$P$79,,MATCH(K$18,'Import Expenditure Forecast'!$F$7:$P$7,0)),'Import Expenditure Forecast'!$C$8:$C$79,$B23,'Import Expenditure Forecast'!$E$8:$E$79,$C23,'Import Expenditure Forecast'!$B$8:$B$79,$B$3,'Import Expenditure Forecast'!$D$8:$D$79,$B$16),SUMIFS(INDEX(#REF!,,MATCH(K$18,#REF!,0)),#REF!,$B23,#REF!,$B$3,#REF!,$B$16)) -> 0 | L23: =IF('Control and Output Summary'!$C$14<>"Ergon",SUMIFS(INDEX('Import Expenditure Forecast'!$F$8:$P$79,,MATCH(L$18,'Import Expenditure Forecast'!$F$7:$P$7,0)),'Import Expenditure Forecast'!$C$8:$C$79,$B23,'Import Expenditure Forecast'!$E$8:$E$79,$C23,'Import Expenditure Forecast'!$B$8:$B$79,$B$3,'Import Expenditure Forecast'!$D$8:$D$79,$B$16),SUMIFS(INDEX(#REF!,,MATCH(L$18,#REF!,0)),#REF!,$B23,#REF!,$B$3,#REF!,$B$16)) -> 0 | M23: =IF('Control and Output Summary'!$C$14<>"Ergon",SUMIFS(INDEX('Import Expenditure Forecast'!$F$8:$P$79,,MATCH(M$18,'Import Expenditure Forecast'!$F$7:$P$7,0)),'Import Expenditure Forecast'!$C$8:$C$79,$B23,'Import Expenditure Forecast'!$E$8:$E$79,$C23,'Import Expenditure Forecast'!$B$8:$B$79,$B$3,'Import Expenditure Forecast'!$D$8:$D$79,$B$16),SUMIFS(INDEX(#REF!,,MATCH(M$18,#REF!,0)),#REF!,$B23,#REF!,$B$3,#REF!,$B$16)) -> 0 | N23: =IF('Control and Output Summary'!$C$14<>"Ergon",SUMIFS(INDEX('Import Expenditure Forecast'!$F$8:$P$79,,MATCH(N$18,'Import Expenditure Forecast'!$F$7:$P$7,0)),'Import Expenditure Forecast'!$C$8:$C$79,$B23,'Import Expenditure Forecast'!$E$8:$E$79,$C23,'Import Expenditure Forecast'!$B$8:$B$79,$B$3,'Import Expenditure Forecast'!$D$8:$D$79,$B$16),SUMIFS(INDEX(#REF!,,MATCH(N$18,#REF!,0)),#REF!,$B23,#REF!,$B$3,#REF!,$B$16)) -> 0
B24: ST 110/132 kv | C24: ='Control and Output Summary'!$C$14 -> Energex | D24: =IF('Control and Output Summary'!$C$14<>"Ergon",SUMIFS(INDEX('Import Expenditure Forecast'!$F$8:$P$79,,MATCH(D$18,'Import Expenditure Forecast'!$F$7:$P$7,0)),'Import Expenditure Forecast'!$C$8:$C$79,$B24,'Import Expenditure Forecast'!$E$8:$E$79,$C24,'Import Expenditure Forecast'!$B$8:$B$79,$B$3,'Import Expenditure Forecast'!$D$8:$D$79,$B$16),SUMIFS(INDEX(#REF!,,MATCH(D$18,#REF!,0)),#REF!,$B24,#REF!,$B$3,#REF!,$B$16)) -> 0 | E24: =IF('Control and Output Summary'!$C$14<>"Ergon",SUMIFS(INDEX('Import Expenditure Forecast'!$F$8:$P$79,,MATCH(E$18,'Import Expenditure Forecast'!$F$7:$P$7,0)),'Import Expenditure Forecast'!$C$8:$C$79,$B24,'Import Expenditure Forecast'!$E$8:$E$79,$C24,'Import Expenditure Forecast'!$B$8:$B$79,$B$3,'Import Expenditure Forecast'!$D$8:$D$79,$B$16),SUMIFS(INDEX(#REF!,,MATCH(E$18,#REF!,0)),#REF!,$B24,#REF!,$B$3,#REF!,$B$16)) -> 0 | F24: =IF('Control and Output Summary'!$C$14<>"Ergon",SUMIFS(INDEX('Import Expenditure Forecast'!$F$8:$P$79,,MATCH(F$18,'Import Expenditure Forecast'!$F$7:$P$7,0)),'Import Expenditure Forecast'!$C$8:$C$79,$B24,'Import Expenditure Forecast'!$E$8:$E$79,$C24,'Import Expenditure Forecast'!$B$8:$B$79,$B$3,'Import Expenditure Forecast'!$D$8:$D$79,$B$16),SUMIFS(INDEX(#REF!,,MATCH(F$18,#REF!,0)),#REF!,$B24,#REF!,$B$3,#REF!,$B$16)) -> 0 | G24: =IF('Control and Output Summary'!$C$14<>"Ergon",SUMIFS(INDEX('Import Expenditure Forecast'!$F$8:$P$79,,MATCH(G$18,'Import Expenditure Forecast'!$F$7:$P$7,0)),'Import Expenditure Forecast'!$C$8:$C$79,$B24,'Import Expenditure Forecast'!$E$8:$E$79,$C24,'Import Expenditure Forecast'!$B$8:$B$79,$B$3,'Import Expenditure Forecast'!$D$8:$D$79,$B$16),SUMIFS(INDEX(#REF!,,MATCH(G$18,#REF!,0)),#REF!,$B24,#REF!,$B$3,#REF!,$B$16)) -> 0 | H24: =IF('Control and Output Summary'!$C$14<>"Ergon",SUMIFS(INDEX('Import Expenditure Forecast'!$F$8:$P$79,,MATCH(H$18,'Import Expenditure Forecast'!$F$7:$P$7,0)),'Import Expenditure Forecast'!$C$8:$C$79,$B24,'Import Expenditure Forecast'!$E$8:$E$79,$C24,'Import Expenditure Forecast'!$B$8:$B$79,$B$3,'Import Expenditure Forecast'!$D$8:$D$79,$B$16),SUMIFS(INDEX(#REF!,,MATCH(H$18,#REF!,0)),#REF!,$B24,#REF!,$B$3,#REF!,$B$16)) -> 0 | I24: =IF('Control and Output Summary'!$C$14<>"Ergon",SUMIFS(INDEX('Import Expenditure Forecast'!$F$8:$P$79,,MATCH(I$18,'Import Expenditure Forecast'!$F$7:$P$7,0)),'Import Expenditure Forecast'!$C$8:$C$79,$B24,'Import Expenditure Forecast'!$E$8:$E$79,$C24,'Import Expenditure Forecast'!$B$8:$B$79,$B$3,'Import Expenditure Forecast'!$D$8:$D$79,$B$16),SUMIFS(INDEX(#REF!,,MATCH(I$18,#REF!,0)),#REF!,$B24,#REF!,$B$3,#REF!,$B$16)) -> 0 | J24: =IF('Control and Output Summary'!$C$14<>"Ergon",SUMIFS(INDEX('Import Expenditure Forecast'!$F$8:$P$79,,MATCH(J$18,'Import Expenditure Forecast'!$F$7:$P$7,0)),'Import Expenditure Forecast'!$C$8:$C$79,$B24,'Import Expenditure Forecast'!$E$8:$E$79,$C24,'Import Expenditure Forecast'!$B$8:$B$79,$B$3,'Import Expenditure Forecast'!$D$8:$D$79,$B$16),SUMIFS(INDEX(#REF!,,MATCH(J$18,#REF!,0)),#REF!,$B24,#REF!,$B$3,#REF!,$B$16)) -> 0 | K24: =IF('Control and Output Summary'!$C$14<>"Ergon",SUMIFS(INDEX('Import Expenditure Forecast'!$F$8:$P$79,,MATCH(K$18,'Import Expenditure Forecast'!$F$7:$P$7,0)),'Import Expenditure Forecast'!$C$8:$C$79,$B24,'Import Expenditure Forecast'!$E$8:$E$79,$C24,'Import Expenditure Forecast'!$B$8:$B$79,$B$3,'Import Expenditure Forecast'!$D$8:$D$79,$B$16),SUMIFS(INDEX(#REF!,,MATCH(K$18,#REF!,0)),#REF!,$B24,#REF!,$B$3,#REF!,$B$16)) -> 0 | L24: =IF('Control and Output Summary'!$C$14<>"Ergon",SUMIFS(INDEX('Import Expenditure Forecast'!$F$8:$P$79,,MATCH(L$18,'Import Expenditure Forecast'!$F$7:$P$7,0)),'Import Expenditure Forecast'!$C$8:$C$79,$B24,'Import Expenditure Forecast'!$E$8:$E$79,$C24,'Import Expenditure Forecast'!$B$8:$B$79,$B$3,'Import Expenditure Forecast'!$D$8:$D$79,$B$16),SUMIFS(INDEX(#REF!,,MATCH(L$18,#REF!,0)),#REF!,$B24,#REF!,$B$3,#REF!,$B$16)) -> 0 | M24: =IF('Control and Output Summary'!$C$14<>"Ergon",SUMIFS(INDEX('Import Expenditure Forecast'!$F$8:$P$79,,MATCH(M$18,'Import Expenditure Forecast'!$F$7:$P$7,0)),'Import Expenditure Forecast'!$C$8:$C$79,$B24,'Import Expenditure Forecast'!$E$8:$E$79,$C24,'Import Expenditure Forecast'!$B$8:$B$79,$B$3,'Import Expenditure Forecast'!$D$8:$D$79,$B$16),SUMIFS(INDEX(#REF!,,MATCH(M$18,#REF!,0)),#REF!,$B24,#REF!,$B$3,#REF!,$B$16)) -> 0 | N24: =IF('Control and Output Summary'!$C$14<>"Ergon",SUMIFS(INDEX('Import Expenditure Forecast'!$F$8:$P$79,,MATCH(N$18,'Import Expenditure Forecast'!$F$7:$P$7,0)),'Import Expenditure Forecast'!$C$8:$C$79,$B24,'Import Expenditure Forecast'!$E$8:$E$79,$C24,'Import Expenditure Forecast'!$B$8:$B$79,$B$3,'Import Expenditure Forecast'!$D$8:$D$79,$B$16),SUMIFS(INDEX(#REF!,,MATCH(N$18,#REF!,0)),#REF!,$B24,#REF!,$B$3,#REF!,$B$16)) -> 0
B27: Connections
B29: Voltage Level | C29: Pricing Zone | D29: =D$18 -> 2023 | E29: 2024 | F29: 2025 | G29: 2026 | H29: 2027 | I29: 2028 | J29: 2029 | K29: 2030 | L29: 2031 | M29: 2032 | N29: 2033
B30: LV Line | C30: ='Control and Output Summary'!$C$14 -> Energex | D30: =IF('Control and Output Summary'!$C$14<>"Ergon",SUMIFS(INDEX('Import Expenditure Forecast'!$F$8:$P$79,,MATCH(D$29,'Import Expenditure Forecast'!$F$7:$P$7,0)),'Import Expenditure Forecast'!$C$8:$C$79,$B30,'Import Expenditure Forecast'!$E$8:$E$79,$C30,'Import Expenditure Forecast'!$B$8:$B$79,$B$3,'Import Expenditure Forecast'!$D$8:$D$79,$B$27),SUMIFS(INDEX(#REF!,,MATCH(D$29,#REF!,0)),#REF!,$B30,#REF!,$B$3,#REF!,$B$27)) -> 35.75983384 | E30: =IF('Control and Output Summary'!$C$14<>"Ergon",SUMIFS(INDEX('Import Expenditure Forecast'!$F$8:$P$79,,MATCH(E$29,'Import Expenditure Forecast'!$F$7:$P$7,0)),'Import Expenditure Forecast'!$C$8:$C$79,$B30,'Import Expenditure Forecast'!$E$8:$E$79,$C30,'Import Expenditure Forecast'!$B$8:$B$79,$B$3,'Import Expenditure Forecast'!$D$8:$D$79,$B$27),SUMIFS(INDEX(#REF!,,MATCH(E$29,#REF!,0)),#REF!,$B30,#REF!,$B$3,#REF!,$B$27)) -> 39.59948623 | F30: =IF('Control and Output Summary'!$C$14<>"Ergon",SUMIFS(INDEX('Import Expenditure Forecast'!$F$8:$P$79,,MATCH(F$29,'Import Expenditure Forecast'!$F$7:$P$7,0)),'Import Expenditure Forecast'!$C$8:$C$79,$B30,'Import Expenditure Forecast'!$E$8:$E$79,$C30,'Import Expenditure Forecast'!$B$8:$B$79,$B$3,'Import Expenditure Forecast'!$D$8:$D$79,$B$27),SUMIFS(INDEX(#REF!,,MATCH(F$29,#REF!,0)),#REF!,$B30,#REF!,$B$3,#REF!,$B$27)) -> 38.38155897 | G30: =IF('Control and Output Summary'!$C$14<>"Ergon",SUMIFS(INDEX('Import Expenditure Forecast'!$F$8:$P$79,,MATCH(G$29,'Import Expenditure Forecast'!$F$7:$P$7,0)),'Import Expenditure Forecast'!$C$8:$C$79,$B30,'Import Expenditure Forecast'!$E$8:$E$79,$C30,'Import Expenditure Forecast'!$B$8:$B$79,$B$3,'Import Expenditure Forecast'!$D$8:$D$79,$B$27),SUMIFS(INDEX(#REF!,,MATCH(G$29,#REF!,0)),#REF!,$B30,#REF!,$B$3,#REF!,$B$27)) -> 39.88982016 | H30: =IF('Control and Output Summary'!$C$14<>"Ergon",SUMIFS(INDEX('Import Expenditure Forecast'!$F$8:$P$79,,MATCH(H$29,'Import Expenditure Forecast'!$F$7:$P$7,0)),'Import Expenditure Forecast'!$C$8:$C$79,$B30,'Import Expenditure Forecast'!$E$8:$E$79,$C30,'Import Expenditure Forecast'!$B$8:$B$79,$B$3,'Import Expenditure Forecast'!$D$8:$D$79,$B$27),SUMIFS(INDEX(#REF!,,MATCH(H$29,#REF!,0)),#REF!,$B30,#REF!,$B$3,#REF!,$B$27)) -> 41.25209318 | I30: =IF('Control and Output Summary'!$C$14<>"Ergon",SUMIFS(INDEX('Import Expenditure Forecast'!$F$8:$P$79,,MATCH(I$29,'Import Expenditure Forecast'!$F$7:$P$7,0)),'Import Expenditure Forecast'!$C$8:$C$79,$B30,'Import Expenditure Forecast'!$E$8:$E$79,$C30,'Import Expenditure Forecast'!$B$8:$B$79,$B$3,'Import Expenditure Forecast'!$D$8:$D$79,$B$27),SUMIFS(INDEX(#REF!,,MATCH(I$29,#REF!,0)),#REF!,$B30,#REF!,$B$3,#REF!,$B$27)) -> 42.70003515 | J30: =IF('Control and Output Summary'!$C$14<>"Ergon",SUMIFS(INDEX('Import Expenditure Forecast'!$F$8:$P$79,,MATCH(J$29,'Import Expenditure Forecast'!$F$7:$P$7,0)),'Import Expenditure Forecast'!$C$8:$C$79,$B30,'Import Expenditure Forecast'!$E$8:$E$79,$C30,'Import Expenditure Forecast'!$B$8:$B$79,$B$3,'Import Expenditure Forecast'!$D$8:$D$79,$B$27),SUMIFS(INDEX(#REF!,,MATCH(J$29,#REF!,0)),#REF!,$B30,#REF!,$B$3,#REF!,$B$27)) -> 44.20986812 | K30: =IF('Control and Output Summary'!$C$14<>"Ergon",SUMIFS(INDEX('Import Expenditure Forecast'!$F$8:$P$79,,MATCH(K$29,'Import Expenditure Forecast'!$F$7:$P$7,0)),'Import Expenditure Forecast'!$C$8:$C$79,$B30,'Import Expenditure Forecast'!$E$8:$E$79,$C30,'Import Expenditure Forecast'!$B$8:$B$79,$B$3,'Import Expenditure Forecast'!$D$8:$D$79,$B$27),SUMIFS(INDEX(#REF!,,MATCH(K$29,#REF!,0)),#REF!,$B30,#REF!,$B$3,#REF!,$B$27)) -> 44.20986812 | L30: =IF('Control and Output Summary'!$C$14<>"Ergon",SUMIFS(INDEX('Import Expenditure Forecast'!$F$8:$P$79,,MATCH(L$29,'Import Expenditure Forecast'!$F$7:$P$7,0)),'Import Expenditure Forecast'!$C$8:$C$79,$B30,'Import Expenditure Forecast'!$E$8:$E$79,$C30,'Import Expenditure Forecast'!$B$8:$B$79,$B$3,'Import Expenditure Forecast'!$D$8:$D$79,$B$27),SUMIFS(INDEX(#REF!,,MATCH(L$29,#REF!,0)),#REF!,$B30,#REF!,$B$3,#REF!,$B$27)) -> 44.20986812 | M30: =IF('Control and Output Summary'!$C$14<>"Ergon",SUMIFS(INDEX('Import Expenditure Forecast'!$F$8:$P$79,,MATCH(M$29,'Import Expenditure Forecast'!$F$7:$P$7,0)),'Import Expenditure Forecast'!$C$8:$C$79,$B30,'Import Expenditure Forecast'!$E$8:$E$79,$C30,'Import Expenditure Forecast'!$B$8:$B$79,$B$3,'Import Expenditure Forecast'!$D$8:$D$79,$B$27),SUMIFS(INDEX(#REF!,,MATCH(M$29,#REF!,0)),#REF!,$B30,#REF!,$B$3,#REF!,$B$27)) -> 44.20986812 | N30: =IF('Control and Output Summary'!$C$14<>"Ergon",SUMIFS(INDEX('Import Expenditure Forecast'!$F$8:$P$79,,MATCH(N$29,'Import Expenditure Forecast'!$F$7:$P$7,0)),'Import Expenditure Forecast'!$C$8:$C$79,$B30,'Import Expenditure Forecast'!$E$8:$E$79,$C30,'Import Expenditure Forecast'!$B$8:$B$79,$B$3,'Import Expenditure Forecast'!$D$8:$D$79,$B$27),SUMIFS(INDEX(#REF!,,MATCH(N$29,#REF!,0)),#REF!,$B30,#REF!,$B$3,#REF!,$B$27)) -> 44.20986812
B31: LV Bus | C31: ='Control and Output Summary'!$C$14 -> Energex | D31: =IF('Control and Output Summary'!$C$14<>"Ergon",SUMIFS(INDEX('Import Expenditure Forecast'!$F$8:$P$79,,MATCH(D$29,'Import Expenditure Forecast'!$F$7:$P$7,0)),'Import Expenditure Forecast'!$C$8:$C$79,$B31,'Import Expenditure Forecast'!$E$8:$E$79,$C31,'Import Expenditure Forecast'!$B$8:$B$79,$B$3,'Import Expenditure Forecast'!$D$8:$D$79,$B$27),SUMIFS(INDEX(#REF!,,MATCH(D$29,#REF!,0)),#REF!,$B31,#REF!,$B$3,#REF!,$B$27)) -> 0 | E31: =IF('Control and Output Summary'!$C$14<>"Ergon",SUMIFS(INDEX('Import Expenditure Forecast'!$F$8:$P$79,,MATCH(E$29,'Import Expenditure Forecast'!$F$7:$P$7,0)),'Import Expenditure Forecast'!$C$8:$C$79,$B31,'Import Expenditure Forecast'!$E$8:$E$79,$C31,'Import Expenditure Forecast'!$B$8:$B$79,$B$3,'Import Expenditure Forecast'!$D$8:$D$79,$B$27),SUMIFS(INDEX(#REF!,,MATCH(E$29,#REF!,0)),#REF!,$B31,#REF!,$B$3,#REF!,$B$27)) -> 0 | F31: =IF('Control and Output Summary'!$C$14<>"Ergon",SUMIFS(INDEX('Import Expenditure Forecast'!$F$8:$P$79,,MATCH(F$29,'Import Expenditure Forecast'!$F$7:$P$7,0)),'Import Expenditure Forecast'!$C$8:$C$79,$B31,'Import Expenditure Forecast'!$E$8:$E$79,$C31,'Import Expenditure Forecast'!$B$8:$B$79,$B$3,'Import Expenditure Forecast'!$D$8:$D$79,$B$27),SUMIFS(INDEX(#REF!,,MATCH(F$29,#REF!,0)),#REF!,$B31,#REF!,$B$3,#REF!,$B$27)) -> 0 | G31: =IF('Control and Output Summary'!$C$14<>"Ergon",SUMIFS(INDEX('Import Expenditure Forecast'!$F$8:$P$79,,MATCH(G$29,'Import Expenditure Forecast'!$F$7:$P$7,0)),'Import Expenditure Forecast'!$C$8:$C$79,$B31,'Import Expenditure Forecast'!$E$8:$E$79,$C31,'Import Expenditure Forecast'!$B$8:$B$79,$B$3,'Import Expenditure Forecast'!$D$8:$D$79,$B$27),SUMIFS(INDEX(#REF!,,MATCH(G$29,#REF!,0)),#REF!,$B31,#REF!,$B$3,#REF!,$B$27)) -> 0 | H31: =IF('Control and Output Summary'!$C$14<>"Ergon",SUMIFS(INDEX('Import Expenditure Forecast'!$F$8:$P$79,,MATCH(H$29,'Import Expenditure Forecast'!$F$7:$P$7,0)),'Import Expenditure Forecast'!$C$8:$C$79,$B31,'Import Expenditure Forecast'!$E$8:$E$79,$C31,'Import Expenditure Forecast'!$B$8:$B$79,$B$3,'Import Expenditure Forecast'!$D$8:$D$79,$B$27),SUMIFS(INDEX(#REF!,,MATCH(H$29,#REF!,0)),#REF!,$B31,#REF!,$B$3,#REF!,$B$27)) -> 0 | I31: =IF('Control and Output Summary'!$C$14<>"Ergon",SUMIFS(INDEX('Import Expenditure Forecast'!$F$8:$P$79,,MATCH(I$29,'Import Expenditure Forecast'!$F$7:$P$7,0)),'Import Expenditure Forecast'!$C$8:$C$79,$B31,'Import Expenditure Forecast'!$E$8:$E$79,$C31,'Import Expenditure Forecast'!$B$8:$B$79,$B$3,'Import Expenditure Forecast'!$D$8:$D$79,$B$27),SUMIFS(INDEX(#REF!,,MATCH(I$29,#REF!,0)),#REF!,$B31,#REF!,$B$3,#REF!,$B$27)) -> 0 | J31: =IF('Control and Output Summary'!$C$14<>"Ergon",SUMIFS(INDEX('Import Expenditure Forecast'!$F$8:$P$79,,MATCH(J$29,'Import Expenditure Forecast'!$F$7:$P$7,0)),'Import Expenditure Forecast'!$C$8:$C$79,$B31,'Import Expenditure Forecast'!$E$8:$E$79,$C31,'Import Expenditure Forecast'!$B$8:$B$79,$B$3,'Import Expenditure Forecast'!$D$8:$D$79,$B$27),SUMIFS(INDEX(#REF!,,MATCH(J$29,#REF!,0)),#REF!,$B31,#REF!,$B$3,#REF!,$B$27)) -> 0 | K31: =IF('Control and Output Summary'!$C$14<>"Ergon",SUMIFS(INDEX('Import Expenditure Forecast'!$F$8:$P$79,,MATCH(K$29,'Import Expenditure Forecast'!$F$7:$P$7,0)),'Import Expenditure Forecast'!$C$8:$C$79,$B31,'Import Expenditure Forecast'!$E$8:$E$79,$C31,'Import Expenditure Forecast'!$B$8:$B$79,$B$3,'Import Expenditure Forecast'!$D$8:$D$79,$B$27),SUMIFS(INDEX(#REF!,,MATCH(K$29,#REF!,0)),#REF!,$B31,#REF!,$B$3,#REF!,$B$27)) -> 0 | L31: =IF('Control and Output Summary'!$C$14<>"Ergon",SUMIFS(INDEX('Import Expenditure Forecast'!$F$8:$P$79,,MATCH(L$29,'Import Expenditure Forecast'!$F$7:$P$7,0)),'Import Expenditure Forecast'!$C$8:$C$79,$B31,'Import Expenditure Forecast'!$E$8:$E$79,$C31,'Import Expenditure Forecast'!$B$8:$B$79,$B$3,'Import Expenditure Forecast'!$D$8:$D$79,$B$27),SUMIFS(INDEX(#REF!,,MATCH(L$29,#REF!,0)),#REF!,$B31,#REF!,$B$3,#REF!,$B$27)) -> 0 | M31: =IF('Control and Output Summary'!$C$14<>"Ergon",SUMIFS(INDEX('Import Expenditure Forecast'!$F$8:$P$79,,MATCH(M$29,'Import Expenditure Forecast'!$F$7:$P$7,0)),'Import Expenditure Forecast'!$C$8:$C$79,$B31,'Import Expenditure Forecast'!$E$8:$E$79,$C31,'Import Expenditure Forecast'!$B$8:$B$79,$B$3,'Import Expenditure Forecast'!$D$8:$D$79,$B$27),SUMIFS(INDEX(#REF!,,MATCH(M$29,#REF!,0)),#REF!,$B31,#REF!,$B$3,#REF!,$B$27)) -> 0 | N31: =IF('Control and Output Summary'!$C$14<>"Ergon",SUMIFS(INDEX('Import Expenditure Forecast'!$F$8:$P$79,,MATCH(N$29,'Import Expenditure Forecast'!$F$7:$P$7,0)),'Import Expenditure Forecast'!$C$8:$C$79,$B31,'Import Expenditure Forecast'!$E$8:$E$79,$C31,'Import Expenditure Forecast'!$B$8:$B$79,$B$3,'Import Expenditure Forecast'!$D$8:$D$79,$B$27),SUMIFS(INDEX(#REF!,,MATCH(N$29,#REF!,0)),#REF!,$B31,#REF!,$B$3,#REF!,$B$27)) -> 0
B32: HV Line | C32: ='Control and Output Summary'!$C$14 -> Energex | D32: =IF('Control and Output Summary'!$C$14<>"Ergon",SUMIFS(INDEX('Import Expenditure Forecast'!$F$8:$P$79,,MATCH(D$29,'Import Expenditure Forecast'!$F$7:$P$7,0)),'Import Expenditure Forecast'!$C$8:$C$79,$B32,'Import Expenditure Forecast'!$E$8:$E$79,$C32,'Import Expenditure Forecast'!$B$8:$B$79,$B$3,'Import Expenditure Forecast'!$D$8:$D$79,$B$27),SUMIFS(INDEX(#REF!,,MATCH(D$29,#REF!,0)),#REF!,$B32,#REF!,$B$3,#REF!,$B$27)) -> 21.14311352 | E32: =IF('Control and Output Summary'!$C$14<>"Ergon",SUMIFS(INDEX('Import Expenditure Forecast'!$F$8:$P$79,,MATCH(E$29,'Import Expenditure Forecast'!$F$7:$P$7,0)),'Import Expenditure Forecast'!$C$8:$C$79,$B32,'Import Expenditure Forecast'!$E$8:$E$79,$C32,'Import Expenditure Forecast'!$B$8:$B$79,$B$3,'Import Expenditure Forecast'!$D$8:$D$79,$B$27),SUMIFS(INDEX(#REF!,,MATCH(E$29,#REF!,0)),#REF!,$B32,#REF!,$B$3,#REF!,$B$27)) -> 23.78691629 | F32: =IF('Control and Output Summary'!$C$14<>"Ergon",SUMIFS(INDEX('Import Expenditure Forecast'!$F$8:$P$79,,MATCH(F$29,'Import Expenditure Forecast'!$F$7:$P$7,0)),'Import Expenditure Forecast'!$C$8:$C$79,$B32,'Import Expenditure Forecast'!$E$8:$E$79,$C32,'Import Expenditure Forecast'!$B$8:$B$79,$B$3,'Import Expenditure Forecast'!$D$8:$D$79,$B$27),SUMIFS(INDEX(#REF!,,MATCH(F$29,#REF!,0)),#REF!,$B32,#REF!,$B$3,#REF!,$B$27)) -> 22.69321669 | G32: =IF('Control and Output Summary'!$C$14<>"Ergon",SUMIFS(INDEX('Import Expenditure Forecast'!$F$8:$P$79,,MATCH(G$29,'Import Expenditure Forecast'!$F$7:$P$7,0)),'Import Expenditure Forecast'!$C$8:$C$79,$B32,'Import Expenditure Forecast'!$E$8:$E$79,$C32,'Import Expenditure Forecast'!$B$8:$B$79,$B$3,'Import Expenditure Forecast'!$D$8:$D$79,$B$27),SUMIFS(INDEX(#REF!,,MATCH(G$29,#REF!,0)),#REF!,$B32,#REF!,$B$3,#REF!,$B$27)) -> 23.58498083 | H32: =IF('Control and Output Summary'!$C$14<>"Ergon",SUMIFS(INDEX('Import Expenditure Forecast'!$F$8:$P$79,,MATCH(H$29,'Import Expenditure Forecast'!$F$7:$P$7,0)),'Import Expenditure Forecast'!$C$8:$C$79,$B32,'Import Expenditure Forecast'!$E$8:$E$79,$C32,'Import Expenditure Forecast'!$B$8:$B$79,$B$3,'Import Expenditure Forecast'!$D$8:$D$79,$B$27),SUMIFS(INDEX(#REF!,,MATCH(H$29,#REF!,0)),#REF!,$B32,#REF!,$B$3,#REF!,$B$27)) -> 24.39042901 | I32: =IF('Control and Output Summary'!$C$14<>"Ergon",SUMIFS(INDEX('Import Expenditure Forecast'!$F$8:$P$79,,MATCH(I$29,'Import Expenditure Forecast'!$F$7:$P$7,0)),'Import Expenditure Forecast'!$C$8:$C$79,$B32,'Import Expenditure Forecast'!$E$8:$E$79,$C32,'Import Expenditure Forecast'!$B$8:$B$79,$B$3,'Import Expenditure Forecast'!$D$8:$D$79,$B$27),SUMIFS(INDEX(#REF!,,MATCH(I$29,#REF!,0)),#REF!,$B32,#REF!,$B$3,#REF!,$B$27)) -> 25.24652923 | J32: =IF('Control and Output Summary'!$C$14<>"Ergon",SUMIFS(INDEX('Import Expenditure Forecast'!$F$8:$P$79,,MATCH(J$29,'Import Expenditure Forecast'!$F$7:$P$7,0)),'Import Expenditure Forecast'!$C$8:$C$79,$B32,'Import Expenditure Forecast'!$E$8:$E$79,$C32,'Import Expenditure Forecast'!$B$8:$B$79,$B$3,'Import Expenditure Forecast'!$D$8:$D$79,$B$27),SUMIFS(INDEX(#REF!,,MATCH(J$29,#REF!,0)),#REF!,$B32,#REF!,$B$3,#REF!,$B$27)) -> 26.13922269 | K32: =IF('Control and Output Summary'!$C$14<>"Ergon",SUMIFS(INDEX('Import Expenditure Forecast'!$F$8:$P$79,,MATCH(K$29,'Import Expenditure Forecast'!$F$7:$P$7,0)),'Import Expenditure Forecast'!$C$8:$C$79,$B32,'Import Expenditure Forecast'!$E$8:$E$79,$C32,'Import Expenditure Forecast'!$B$8:$B$79,$B$3,'Import Expenditure Forecast'!$D$8:$D$79,$B$27),SUMIFS(INDEX(#REF!,,MATCH(K$29,#REF!,0)),#REF!,$B32,#REF!,$B$3,#REF!,$B$27)) -> 26.13922269 | L32: =IF('Control and Output Summary'!$C$14<>"Ergon",SUMIFS(INDEX('Import Expenditure Forecast'!$F$8:$P$79,,MATCH(L$29,'Import Expenditure Forecast'!$F$7:$P$7,0)),'Import Expenditure Forecast'!$C$8:$C$79,$B32,'Import Expenditure Forecast'!$E$8:$E$79,$C32,'Import Expenditure Forecast'!$B$8:$B$79,$B$3,'Import Expenditure Forecast'!$D$8:$D$79,$B$27),SUMIFS(INDEX(#REF!,,MATCH(L$29,#REF!,0)),#REF!,$B32,#REF!,$B$3,#REF!,$B$27)) -> 26.13922269 | M32: =IF('Control and Output Summary'!$C$14<>"Ergon",SUMIFS(INDEX('Import Expenditure Forecast'!$F$8:$P$79,,MATCH(M$29,'Import Expenditure Forecast'!$F$7:$P$7,0)),'Import Expenditure Forecast'!$C$8:$C$79,$B32,'Import Expenditure Forecast'!$E$8:$E$79,$C32,'Import Expenditure Forecast'!$B$8:$B$79,$B$3,'Import Expenditure Forecast'!$D$8:$D$79,$B$27),SUMIFS(INDEX(#REF!,,MATCH(M$29,#REF!,0)),#REF!,$B32,#REF!,$B$3,#REF!,$B$27)) -> 26.13922269 | N32: =IF('Control and Output Summary'!$C$14<>"Ergon",SUMIFS(INDEX('Import Expenditure Forecast'!$F$8:$P$79,,MATCH(N$29,'Import Expenditure Forecast'!$F$7:$P$7,0)),'Import Expenditure Forecast'!$C$8:$C$79,$B32,'Import Expenditure Forecast'!$E$8:$E$79,$C32,'Import Expenditure Forecast'!$B$8:$B$79,$B$3,'Import Expenditure Forecast'!$D$8:$D$79,$B$27),SUMIFS(INDEX(#REF!,,MATCH(N$29,#REF!,0)),#REF!,$B32,#REF!,$B$3,#REF!,$B$27)) -> 26.13922269
B33: HV Bus | C33: ='Control and Output Summary'!$C$14 -> Energex | D33: =IF('Control and Output Summary'!$C$14<>"Ergon",SUMIFS(INDEX('Import Expenditure Forecast'!$F$8:$P$79,,MATCH(D$29,'Import Expenditure Forecast'!$F$7:$P$7,0)),'Import Expenditure Forecast'!$C$8:$C$79,$B33,'Import Expenditure Forecast'!$E$8:$E$79,$C33,'Import Expenditure Forecast'!$B$8:$B$79,$B$3,'Import Expenditure Forecast'!$D$8:$D$79,$B$27),SUMIFS(INDEX(#REF!,,MATCH(D$29,#REF!,0)),#REF!,$B33,#REF!,$B$3,#REF!,$B$27)) -> 0 | E33: =IF('Control and Output Summary'!$C$14<>"Ergon",SUMIFS(INDEX('Import Expenditure Forecast'!$F$8:$P$79,,MATCH(E$29,'Import Expenditure Forecast'!$F$7:$P$7,0)),'Import Expenditure Forecast'!$C$8:$C$79,$B33,'Import Expenditure Forecast'!$E$8:$E$79,$C33,'Import Expenditure Forecast'!$B$8:$B$79,$B$3,'Import Expenditure Forecast'!$D$8:$D$79,$B$27),SUMIFS(INDEX(#REF!,,MATCH(E$29,#REF!,0)),#REF!,$B33,#REF!,$B$3,#REF!,$B$27)) -> 0 | F33: =IF('Control and Output Summary'!$C$14<>"Ergon",SUMIFS(INDEX('Import Expenditure Forecast'!$F$8:$P$79,,MATCH(F$29,'Import Expenditure Forecast'!$F$7:$P$7,0)),'Import Expenditure Forecast'!$C$8:$C$79,$B33,'Import Expenditure Forecast'!$E$8:$E$79,$C33,'Import Expenditure Forecast'!$B$8:$B$79,$B$3,'Import Expenditure Forecast'!$D$8:$D$79,$B$27),SUMIFS(INDEX(#REF!,,MATCH(F$29,#REF!,0)),#REF!,$B33,#REF!,$B$3,#REF!,$B$27)) -> 0 | G33: =IF('Control and Output Summary'!$C$14<>"Ergon",SUMIFS(INDEX('Import Expenditure Forecast'!$F$8:$P$79,,MATCH(G$29,'Import Expenditure Forecast'!$F$7:$P$7,0)),'Import Expenditure Forecast'!$C$8:$C$79,$B33,'Import Expenditure Forecast'!$E$8:$E$79,$C33,'Import Expenditure Forecast'!$B$8:$B$79,$B$3,'Import Expenditure Forecast'!$D$8:$D$79,$B$27),SUMIFS(INDEX(#REF!,,MATCH(G$29,#REF!,0)),#REF!,$B33,#REF!,$B$3,#REF!,$B$27)) -> 0 | H33: =IF('Control and Output Summary'!$C$14<>"Ergon",SUMIFS(INDEX('Import Expenditure Forecast'!$F$8:$P$79,,MATCH(H$29,'Import Expenditure Forecast'!$F$7:$P$7,0)),'Import Expenditure Forecast'!$C$8:$C$79,$B33,'Import Expenditure Forecast'!$E$8:$E$79,$C33,'Import Expenditure Forecast'!$B$8:$B$79,$B$3,'Import Expenditure Forecast'!$D$8:$D$79,$B$27),SUMIFS(INDEX(#REF!,,MATCH(H$29,#REF!,0)),#REF!,$B33,#REF!,$B$3,#REF!,$B$27)) -> 0 | I33: =IF('Control and Output Summary'!$C$14<>"Ergon",SUMIFS(INDEX('Import Expenditure Forecast'!$F$8:$P$79,,MATCH(I$29,'Import Expenditure Forecast'!$F$7:$P$7,0)),'Import Expenditure Forecast'!$C$8:$C$79,$B33,'Import Expenditure Forecast'!$E$8:$E$79,$C33,'Import Expenditure Forecast'!$B$8:$B$79,$B$3,'Import Expenditure Forecast'!$D$8:$D$79,$B$27),SUMIFS(INDEX(#REF!,,MATCH(I$29,#REF!,0)),#REF!,$B33,#REF!,$B$3,#REF!,$B$27)) -> 0 | J33: =IF('Control and Output Summary'!$C$14<>"Ergon",SUMIFS(INDEX('Import Expenditure Forecast'!$F$8:$P$79,,MATCH(J$29,'Import Expenditure Forecast'!$F$7:$P$7,0)),'Import Expenditure Forecast'!$C$8:$C$79,$B33,'Import Expenditure Forecast'!$E$8:$E$79,$C33,'Import Expenditure Forecast'!$B$8:$B$79,$B$3,'Import Expenditure Forecast'!$D$8:$D$79,$B$27),SUMIFS(INDEX(#REF!,,MATCH(J$29,#REF!,0)),#REF!,$B33,#REF!,$B$3,#REF!,$B$27)) -> 0 | K33: =IF('Control and Output Summary'!$C$14<>"Ergon",SUMIFS(INDEX('Import Expenditure Forecast'!$F$8:$P$79,,MATCH(K$29,'Import Expenditure Forecast'!$F$7:$P$7,0)),'Import Expenditure Forecast'!$C$8:$C$79,$B33,'Import Expenditure Forecast'!$E$8:$E$79,$C33,'Import Expenditure Forecast'!$B$8:$B$79,$B$3,'Import Expenditure Forecast'!$D$8:$D$79,$B$27),SUMIFS(INDEX(#REF!,,MATCH(K$29,#REF!,0)),#REF!,$B33,#REF!,$B$3,#REF!,$B$27)) -> 0 | L33: =IF('Control and Output Summary'!$C$14<>"Ergon",SUMIFS(INDEX('Import Expenditure Forecast'!$F$8:$P$79,,MATCH(L$29,'Import Expenditure Forecast'!$F$7:$P$7,0)),'Import Expenditure Forecast'!$C$8:$C$79,$B33,'Import Expenditure Forecast'!$E$8:$E$79,$C33,'Import Expenditure Forecast'!$B$8:$B$79,$B$3,'Import Expenditure Forecast'!$D$8:$D$79,$B$27),SUMIFS(INDEX(#REF!,,MATCH(L$29,#REF!,0)),#REF!,$B33,#REF!,$B$3,#REF!,$B$27)) -> 0 | M33: =IF('Control and Output Summary'!$C$14<>"Ergon",SUMIFS(INDEX('Import Expenditure Forecast'!$F$8:$P$79,,MATCH(M$29,'Import Expenditure Forecast'!$F$7:$P$7,0)),'Import Expenditure Forecast'!$C$8:$C$79,$B33,'Import Expenditure Forecast'!$E$8:$E$79,$C33,'Import Expenditure Forecast'!$B$8:$B$79,$B$3,'Import Expenditure Forecast'!$D$8:$D$79,$B$27),SUMIFS(INDEX(#REF!,,MATCH(M$29,#REF!,0)),#REF!,$B33,#REF!,$B$3,#REF!,$B$27)) -> 0 | N33: =IF('Control and Output Summary'!$C$14<>"Ergon",SUMIFS(INDEX('Import Expenditure Forecast'!$F$8:$P$79,,MATCH(N$29,'Import Expenditure Forecast'!$F$7:$P$7,0)),'Import Expenditure Forecast'!$C$8:$C$79,$B33,'Import Expenditure Forecast'!$E$8:$E$79,$C33,'Import Expenditure Forecast'!$B$8:$B$79,$B$3,'Import Expenditure Forecast'!$D$8:$D$79,$B$27),SUMIFS(INDEX(#REF!,,MATCH(N$29,#REF!,0)),#REF!,$B33,#REF!,$B$3,#REF!,$B$27)) -> 0
B34: ST 33/66 kv | C34: ='Control and Output Summary'!$C$14 -> Energex | D34: =IF('Control and Output Summary'!$C$14<>"Ergon",SUMIFS(INDEX('Import Expenditure Forecast'!$F$8:$P$79,,MATCH(D$29,'Import Expenditure Forecast'!$F$7:$P$7,0)),'Import Expenditure Forecast'!$C$8:$C$79,$B34,'Import Expenditure Forecast'!$E$8:$E$79,$C34,'Import Expenditure Forecast'!$B$8:$B$79,$B$3,'Import Expenditure Forecast'!$D$8:$D$79,$B$27),SUMIFS(INDEX(#REF!,,MATCH(D$29,#REF!,0)),#REF!,$B34,#REF!,$B$3,#REF!,$B$27)) -> 0 | E34: =IF('Control and Output Summary'!$C$14<>"Ergon",SUMIFS(INDEX('Import Expenditure Forecast'!$F$8:$P$79,,MATCH(E$29,'Import Expenditure Forecast'!$F$7:$P$7,0)),'Import Expenditure Forecast'!$C$8:$C$79,$B34,'Import Expenditure Forecast'!$E$8:$E$79,$C34,'Import Expenditure Forecast'!$B$8:$B$79,$B$3,'Import Expenditure Forecast'!$D$8:$D$79,$B$27),SUMIFS(INDEX(#REF!,,MATCH(E$29,#REF!,0)),#REF!,$B34,#REF!,$B$3,#REF!,$B$27)) -> 0 | F34: =IF('Control and Output Summary'!$C$14<>"Ergon",SUMIFS(INDEX('Import Expenditure Forecast'!$F$8:$P$79,,MATCH(F$29,'Import Expenditure Forecast'!$F$7:$P$7,0)),'Import Expenditure Forecast'!$C$8:$C$79,$B34,'Import Expenditure Forecast'!$E$8:$E$79,$C34,'Import Expenditure Forecast'!$B$8:$B$79,$B$3,'Import Expenditure Forecast'!$D$8:$D$79,$B$27),SUMIFS(INDEX(#REF!,,MATCH(F$29,#REF!,0)),#REF!,$B34,#REF!,$B$3,#REF!,$B$27)) -> 0 | G34: =IF('Control and Output Summary'!$C$14<>"Ergon",SUMIFS(INDEX('Import Expenditure Forecast'!$F$8:$P$79,,MATCH(G$29,'Import Expenditure Forecast'!$F$7:$P$7,0)),'Import Expenditure Forecast'!$C$8:$C$79,$B34,'Import Expenditure Forecast'!$E$8:$E$79,$C34,'Import Expenditure Forecast'!$B$8:$B$79,$B$3,'Import Expenditure Forecast'!$D$8:$D$79,$B$27),SUMIFS(INDEX(#REF!,,MATCH(G$29,#REF!,0)),#REF!,$B34,#REF!,$B$3,#REF!,$B$27)) -> 0 | H34: =IF('Control and Output Summary'!$C$14<>"Ergon",SUMIFS(INDEX('Import Expenditure Forecast'!$F$8:$P$79,,MATCH(H$29,'Import Expenditure Forecast'!$F$7:$P$7,0)),'Import Expenditure Forecast'!$C$8:$C$79,$B34,'Import Expenditure Forecast'!$E$8:$E$79,$C34,'Import Expenditure Forecast'!$B$8:$B$79,$B$3,'Import Expenditure Forecast'!$D$8:$D$79,$B$27),SUMIFS(INDEX(#REF!,,MATCH(H$29,#REF!,0)),#REF!,$B34,#REF!,$B$3,#REF!,$B$27)) -> 0 | I34: =IF('Control and Output Summary'!$C$14<>"Ergon",SUMIFS(INDEX('Import Expenditure Forecast'!$F$8:$P$79,,MATCH(I$29,'Import Expenditure Forecast'!$F$7:$P$7,0)),'Import Expenditure Forecast'!$C$8:$C$79,$B34,'Import Expenditure Forecast'!$E$8:$E$79,$C34,'Import Expenditure Forecast'!$B$8:$B$79,$B$3,'Import Expenditure Forecast'!$D$8:$D$79,$B$27),SUMIFS(INDEX(#REF!,,MATCH(I$29,#REF!,0)),#REF!,$B34,#REF!,$B$3,#REF!,$B$27)) -> 0 | J34: =IF('Control and Output Summary'!$C$14<>"Ergon",SUMIFS(INDEX('Import Expenditure Forecast'!$F$8:$P$79,,MATCH(J$29,'Import Expenditure Forecast'!$F$7:$P$7,0)),'Import Expenditure Forecast'!$C$8:$C$79,$B34,'Import Expenditure Forecast'!$E$8:$E$79,$C34,'Import Expenditure Forecast'!$B$8:$B$79,$B$3,'Import Expenditure Forecast'!$D$8:$D$79,$B$27),SUMIFS(INDEX(#REF!,,MATCH(J$29,#REF!,0)),#REF!,$B34,#REF!,$B$3,#REF!,$B$27)) -> 0 | K34: =IF('Control and Output Summary'!$C$14<>"Ergon",SUMIFS(INDEX('Import Expenditure Forecast'!$F$8:$P$79,,MATCH(K$29,'Import Expenditure Forecast'!$F$7:$P$7,0)),'Import Expenditure Forecast'!$C$8:$C$79,$B34,'Import Expenditure Forecast'!$E$8:$E$79,$C34,'Import Expenditure Forecast'!$B$8:$B$79,$B$3,'Import Expenditure Forecast'!$D$8:$D$79,$B$27),SUMIFS(INDEX(#REF!,,MATCH(K$29,#REF!,0)),#REF!,$B34,#REF!,$B$3,#REF!,$B$27)) -> 0 | L34: =IF('Control and Output Summary'!$C$14<>"Ergon",SUMIFS(INDEX('Import Expenditure Forecast'!$F$8:$P$79,,MATCH(L$29,'Import Expenditure Forecast'!$F$7:$P$7,0)),'Import Expenditure Forecast'!$C$8:$C$79,$B34,'Import Expenditure Forecast'!$E$8:$E$79,$C34,'Import Expenditure Forecast'!$B$8:$B$79,$B$3,'Import Expenditure Forecast'!$D$8:$D$79,$B$27),SUMIFS(INDEX(#REF!,,MATCH(L$29,#REF!,0)),#REF!,$B34,#REF!,$B$3,#REF!,$B$27)) -> 0 | M34: =IF('Control and Output Summary'!$C$14<>"Ergon",SUMIFS(INDEX('Import Expenditure Forecast'!$F$8:$P$79,,MATCH(M$29,'Import Expenditure Forecast'!$F$7:$P$7,0)),'Import Expenditure Forecast'!$C$8:$C$79,$B34,'Import Expenditure Forecast'!$E$8:$E$79,$C34,'Import Expenditure Forecast'!$B$8:$B$79,$B$3,'Import Expenditure Forecast'!$D$8:$D$79,$B$27),SUMIFS(INDEX(#REF!,,MATCH(M$29,#REF!,0)),#REF!,$B34,#REF!,$B$3,#REF!,$B$27)) -> 0 | N34: =IF('Control and Output Summary'!$C$14<>"Ergon",SUMIFS(INDEX('Import Expenditure Forecast'!$F$8:$P$79,,MATCH(N$29,'Import Expenditure Forecast'!$F$7:$P$7,0)),'Import Expenditure Forecast'!$C$8:$C$79,$B34,'Import Expenditure Forecast'!$E$8:$E$79,$C34,'Import Expenditure Forecast'!$B$8:$B$79,$B$3,'Import Expenditure Forecast'!$D$8:$D$79,$B$27),SUMIFS(INDEX(#REF!,,MATCH(N$29,#REF!,0)),#REF!,$B34,#REF!,$B$3,#REF!,$B$27)) -> 0
B35: ST 110/132 kv | C35: ='Control and Output Summary'!$C$14 -> Energex | D35: =IF('Control and Output Summary'!$C$14<>"Ergon",SUMIFS(INDEX('Import Expenditure Forecast'!$F$8:$P$79,,MATCH(D$29,'Import Expenditure Forecast'!$F$7:$P$7,0)),'Import Expenditure Forecast'!$C$8:$C$79,$B35,'Import Expenditure Forecast'!$E$8:$E$79,$C35,'Import Expenditure Forecast'!$B$8:$B$79,$B$3,'Import Expenditure Forecast'!$D$8:$D$79,$B$27),SUMIFS(INDEX(#REF!,,MATCH(D$29,#REF!,0)),#REF!,$B35,#REF!,$B$3,#REF!,$B$27)) -> 0 | E35: =IF('Control and Output Summary'!$C$14<>"Ergon",SUMIFS(INDEX('Import Expenditure Forecast'!$F$8:$P$79,,MATCH(E$29,'Import Expenditure Forecast'!$F$7:$P$7,0)),'Import Expenditure Forecast'!$C$8:$C$79,$B35,'Import Expenditure Forecast'!$E$8:$E$79,$C35,'Import Expenditure Forecast'!$B$8:$B$79,$B$3,'Import Expenditure Forecast'!$D$8:$D$79,$B$27),SUMIFS(INDEX(#REF!,,MATCH(E$29,#REF!,0)),#REF!,$B35,#REF!,$B$3,#REF!,$B$27)) -> 0 | F35: =IF('Control and Output Summary'!$C$14<>"Ergon",SUMIFS(INDEX('Import Expenditure Forecast'!$F$8:$P$79,,MATCH(F$29,'Import Expenditure Forecast'!$F$7:$P$7,0)),'Import Expenditure Forecast'!$C$8:$C$79,$B35,'Import Expenditure Forecast'!$E$8:$E$79,$C35,'Import Expenditure Forecast'!$B$8:$B$79,$B$3,'Import Expenditure Forecast'!$D$8:$D$79,$B$27),SUMIFS(INDEX(#REF!,,MATCH(F$29,#REF!,0)),#REF!,$B35,#REF!,$B$3,#REF!,$B$27)) -> 0 | G35: =IF('Control and Output Summary'!$C$14<>"Ergon",SUMIFS(INDEX('Import Expenditure Forecast'!$F$8:$P$79,,MATCH(G$29,'Import Expenditure Forecast'!$F$7:$P$7,0)),'Import Expenditure Forecast'!$C$8:$C$79,$B35,'Import Expenditure Forecast'!$E$8:$E$79,$C35,'Import Expenditure Forecast'!$B$8:$B$79,$B$3,'Import Expenditure Forecast'!$D$8:$D$79,$B$27),SUMIFS(INDEX(#REF!,,MATCH(G$29,#REF!,0)),#REF!,$B35,#REF!,$B$3,#REF!,$B$27)) -> 0 | H35: =IF('Control and Output Summary'!$C$14<>"Ergon",SUMIFS(INDEX('Import Expenditure Forecast'!$F$8:$P$79,,MATCH(H$29,'Import Expenditure Forecast'!$F$7:$P$7,0)),'Import Expenditure Forecast'!$C$8:$C$79,$B35,'Import Expenditure Forecast'!$E$8:$E$79,$C35,'Import Expenditure Forecast'!$B$8:$B$79,$B$3,'Import Expenditure Forecast'!$D$8:$D$79,$B$27),SUMIFS(INDEX(#REF!,,MATCH(H$29,#REF!,0)),#REF!,$B35,#REF!,$B$3,#REF!,$B$27)) -> 0 | I35: =IF('Control and Output Summary'!$C$14<>"Ergon",SUMIFS(INDEX('Import Expenditure Forecast'!$F$8:$P$79,,MATCH(I$29,'Import Expenditure Forecast'!$F$7:$P$7,0)),'Import Expenditure Forecast'!$C$8:$C$79,$B35,'Import Expenditure Forecast'!$E$8:$E$79,$C35,'Import Expenditure Forecast'!$B$8:$B$79,$B$3,'Import Expenditure Forecast'!$D$8:$D$79,$B$27),SUMIFS(INDEX(#REF!,,MATCH(I$29,#REF!,0)),#REF!,$B35,#REF!,$B$3,#REF!,$B$27)) -> 0 | J35: =IF('Control and Output Summary'!$C$14<>"Ergon",SUMIFS(INDEX('Import Expenditure Forecast'!$F$8:$P$79,,MATCH(J$29,'Import Expenditure Forecast'!$F$7:$P$7,0)),'Import Expenditure Forecast'!$C$8:$C$79,$B35,'Import Expenditure Forecast'!$E$8:$E$79,$C35,'Import Expenditure Forecast'!$B$8:$B$79,$B$3,'Import Expenditure Forecast'!$D$8:$D$79,$B$27),SUMIFS(INDEX(#REF!,,MATCH(J$29,#REF!,0)),#REF!,$B35,#REF!,$B$3,#REF!,$B$27)) -> 0 | K35: =IF('Control and Output Summary'!$C$14<>"Ergon",SUMIFS(INDEX('Import Expenditure Forecast'!$F$8:$P$79,,MATCH(K$29,'Import Expenditure Forecast'!$F$7:$P$7,0)),'Import Expenditure Forecast'!$C$8:$C$79,$B35,'Import Expenditure Forecast'!$E$8:$E$79,$C35,'Import Expenditure Forecast'!$B$8:$B$79,$B$3,'Import Expenditure Forecast'!$D$8:$D$79,$B$27),SUMIFS(INDEX(#REF!,,MATCH(K$29,#REF!,0)),#REF!,$B35,#REF!,$B$3,#REF!,$B$27)) -> 0 | L35: =IF('Control and Output Summary'!$C$14<>"Ergon",SUMIFS(INDEX('Import Expenditure Forecast'!$F$8:$P$79,,MATCH(L$29,'Import Expenditure Forecast'!$F$7:$P$7,0)),'Import Expenditure Forecast'!$C$8:$C$79,$B35,'Import Expenditure Forecast'!$E$8:$E$79,$C35,'Import Expenditure Forecast'!$B$8:$B$79,$B$3,'Import Expenditure Forecast'!$D$8:$D$79,$B$27),SUMIFS(INDEX(#REF!,,MATCH(L$29,#REF!,0)),#REF!,$B35,#REF!,$B$3,#REF!,$B$27)) -> 0 | M35: =IF('Control and Output Summary'!$C$14<>"Ergon",SUMIFS(INDEX('Import Expenditure Forecast'!$F$8:$P$79,,MATCH(M$29,'Import Expenditure Forecast'!$F$7:$P$7,0)),'Import Expenditure Forecast'!$C$8:$C$79,$B35,'Import Expenditure Forecast'!$E$8:$E$79,$C35,'Import Expenditure Forecast'!$B$8:$B$79,$B$3,'Import Expenditure Forecast'!$D$8:$D$79,$B$27),SUMIFS(INDEX(#REF!,,MATCH(M$29,#REF!,0)),#REF!,$B35,#REF!,$B$3,#REF!,$B$27)) -> 0 | N35: =IF('Control and Output Summary'!$C$14<>"Ergon",SUMIFS(INDEX('Import Expenditure Forecast'!$F$8:$P$79,,MATCH(N$29,'Import Expenditure Forecast'!$F$7:$P$7,0)),'Import Expenditure Forecast'!$C$8:$C$79,$B35,'Import Expenditure Forecast'!$E$8:$E$79,$C35,'Import Expenditure Forecast'!$B$8:$B$79,$B$3,'Import Expenditure Forecast'!$D$8:$D$79,$B$27),SUMIFS(INDEX(#REF!,,MATCH(N$29,#REF!,0)),#REF!,$B35,#REF!,$B$3,#REF!,$B$27)) -> 0
B38: Total Capex ($m)
B40: Voltage Level | C40: Pricing Zone | D40: =D$18 -> 2023 | E40: 2024 | F40: 2025 | G40: 2026 | H40: 2027 | I40: 2028 | J40: 2029 | K40: 2030 | L40: 2031 | M40: 2032 | N40: 2033
B41: LV Line | C41: ='Control and Output Summary'!$C$14 -> Energex | D41: =D8 + 'Control and Output Summary'!$C$9 * D19 + 'Control and Output Summary'!$C$10 * D30 -> 2.061050002 | E41: =E8 + 'Control and Output Summary'!$C$9 * E19 + 'Control and Output Summary'!$C$10 * E30 -> 2.080098951 | F41: =F8 + 'Control and Output Summary'!$C$9 * F19 + 'Control and Output Summary'!$C$10 * F30 -> 1.919077949 | G41: =G8 + 'Control and Output Summary'!$C$9 * G19 + 'Control and Output Summary'!$C$10 * G30 -> 1.994491008 | H41: =H8 + 'Control and Output Summary'!$C$9 * H19 + 'Control and Output Summary'!$C$10 * H30 -> 2.062604659 | I41: =I8 + 'Control and Output Summary'!$C$9 * I19 + 'Control and Output Summary'!$C$10 * I30 -> 2.135001758 | J41: =J8 + 'Control and Output Summary'!$C$9 * J19 + 'Control and Output Summary'!$C$10 * J30 -> 2.210493406 | K41: =K8 + 'Control and Output Summary'!$C$9 * K19 + 'Control and Output Summary'!$C$10 * K30 -> 2.210493406 | L41: =L8 + 'Control and Output Summary'!$C$9 * L19 + 'Control and Output Summary'!$C$10 * L30 -> 2.210493406 | M41: =M8 + 'Control and Output Summary'!$C$9 * M19 + 'Control and Output Summary'!$C$10 * M30 -> 2.210493406 | N41: =N8 + 'Control and Output Summary'!$C$9 * N19 + 'Control and Output Summary'!$C$10 * N30 -> 2.210493406
B42: LV Bus | C42: ='Control and Output Summary'!$C$14 -> Energex | D42: =D9 + 'Control and Output Summary'!$C$9 * D20 + 'Control and Output Summary'!$C$10 * D31 -> 0.8766693 | E42: =E9 + 'Control and Output Summary'!$C$9 * E20 + 'Control and Output Summary'!$C$10 * E31 -> 0.87649116 | F42: =F9 + 'Control and Output Summary'!$C$9 * F20 + 'Control and Output Summary'!$C$10 * F31 -> 0.87649116 | G42: =G9 + 'Control and Output Summary'!$C$9 * G20 + 'Control and Output Summary'!$C$10 * G31 -> 0.9279919419 | H42: =H9 + 'Control and Output Summary'!$C$9 * H20 + 'Control and Output Summary'!$C$10 * H31 -> 0.9282447365 | I42: =I9 + 'Control and Output Summary'!$C$9 * I20 + 'Control and Output Summary'!$C$10 * I31 -> 0.9290492663 | J42: =J9 + 'Control and Output Summary'!$C$9 * J20 + 'Control and Output Summary'!$C$10 * J31 -> 0.9292072507 | K42: =K9 + 'Control and Output Summary'!$C$9 * K20 + 'Control and Output Summary'!$C$10 * K31 -> 0.6534725976 | L42: =L9 + 'Control and Output Summary'!$C$9 * L20 + 'Control and Output Summary'!$C$10 * L31 -> 0.8599934628 | M42: =M9 + 'Control and Output Summary'!$C$9 * M20 + 'Control and Output Summary'!$C$10 * M31 -> 0.8599934628 | N42: =N9 + 'Control and Output Summary'!$C$9 * N20 + 'Control and Output Summary'!$C$10 * N31 -> 0.8599934628
B43: HV Line | C43: ='Control and Output Summary'!$C$14 -> Energex | D43: =D10 + 'Control and Output Summary'!$C$9 * D21 + 'Control and Output Summary'!$C$10 * D32 -> 5.645673136 | E43: =E10 + 'Control and Output Summary'!$C$9 * E21 + 'Control and Output Summary'!$C$10 * E32 -> 10.51621673 | F43: =F10 + 'Control and Output Summary'!$C$9 * F21 + 'Control and Output Summary'!$C$10 * F32 -> 10.65376056 | G43: =G10 + 'Control and Output Summary'!$C$9 * G21 + 'Control and Output Summary'!$C$10 * G32 -> 13.66875465 | H43: =H10 + 'Control and Output Summary'!$C$9 * H21 + 'Control and Output Summary'!$C$10 * H32 -> 9.255407444 | I43: =I10 + 'Control and Output Summary'!$C$9 * I21 + 'Control and Output Summary'!$C$10 * I32 -> 9.846490349 | J43: =J10 + 'Control and Output Summary'!$C$9 * J21 + 'Control and Output Summary'!$C$10 * J32 -> 11.10714083 | K43: =K10 + 'Control and Output Summary'!$C$9 * K21 + 'Control and Output Summary'!$C$10 * K32 -> 11.04993311 | L43: =L10 + 'Control and Output Summary'!$C$9 * L21 + 'Control and Output Summary'!$C$10 * L32 -> 10.34776152 | M43: =M10 + 'Control and Output Summary'!$C$9 * M21 + 'Control and Output Summary'!$C$10 * M32 -> 10.34776152 | N43: =N10 + 'Control and Output Summary'!$C$9 * N21 + 'Control and Output Summary'!$C$10 * N32 -> 10.34776152
B44: HV Bus | C44: ='Control and Output Summary'!$C$14 -> Energex | D44: =D11 + 'Control and Output Summary'!$C$9 * D22 + 'Control and Output Summary'!$C$10 * D33 -> 1.61929798 | E44: =E11 + 'Control and Output Summary'!$C$9 * E22 + 'Control and Output Summary'!$C$10 * E33 -> 0.56913217 | F44: =F11 + 'Control and Output Summary'!$C$9 * F22 + 'Control and Output Summary'!$C$10 * F33 -> 4.36312868 | G44: =G11 + 'Control and Output Summary'!$C$9 * G22 + 'Control and Output Summary'!$C$10 * G33 -> 7.980241276 | H44: =H11 + 'Control and Output Summary'!$C$9 * H22 + 'Control and Output Summary'!$C$10 * H33 -> 7.075942662 | I44: =I11 + 'Control and Output Summary'!$C$9 * I22 + 'Control and Output Summary'!$C$10 * I33 -> 9.686422047 | J44: =J11 + 'Control and Output Summary'!$C$9 * J22 + 'Control and Output Summary'!$C$10 * J33 -> 6.689744013 | K44: =K11 + 'Control and Output Summary'!$C$9 * K22 + 'Control and Output Summary'!$C$10 * K33 -> 16.89816519 | L44: =L11 + 'Control and Output Summary'!$C$9 * L22 + 'Control and Output Summary'!$C$10 * L33 -> 10.08756848 | M44: =M11 + 'Control and Output Summary'!$C$9 * M22 + 'Control and Output Summary'!$C$10 * M33 -> 10.08756848 | N44: =N11 + 'Control and Output Summary'!$C$9 * N22 + 'Control and Output Summary'!$C$10 * N33 -> 10.08756848
B45: ST 33/66 kv | C45: ='Control and Output Summary'!$C$14 -> Energex | D45: =D12 + 'Control and Output Summary'!$C$9 * D23 + 'Control and Output Summary'!$C$10 * D34 -> 0 | E45: =E12 + 'Control and Output Summary'!$C$9 * E23 + 'Control and Output Summary'!$C$10 * E34 -> 0 | F45: =F12 + 'Control and Output Summary'!$C$9 * F23 + 'Control and Output Summary'!$C$10 * F34 -> 0 | G45: =G12 + 'Control and Output Summary'!$C$9 * G23 + 'Control and Output Summary'!$C$10 * G34 -> 0.2085841442 | H45: =H12 + 'Control and Output Summary'!$C$9 * H23 + 'Control and Output Summary'!$C$10 * H34 -> 0.4190434823 | I45: =I12 + 'Control and Output Summary'!$C$9 * I23 + 'Control and Output Summary'!$C$10 * I34 -> 1.063999383 | J45: =J12 + 'Control and Output Summary'!$C$9 * J23 + 'Control and Output Summary'!$C$10 * J34 -> 1.165289808 | K45: =K12 + 'Control and Output Summary'!$C$9 * K23 + 'Control and Output Summary'!$C$10 * K34 -> 1.818167569 | L45: =L12 + 'Control and Output Summary'!$C$9 * L23 + 'Control and Output Summary'!$C$10 * L34 -> 1.349152254 | M45: =M12 + 'Control and Output Summary'!$C$9 * M23 + 'Control and Output Summary'!$C$10 * M34 -> 1.349152254 | N45: =N12 + 'Control and Output Summary'!$C$9 * N23 + 'Control and Output Summary'!$C$10 * N34 -> 1.349152254
B46: ST 110/132 kv | C46: ='Control and Output Summary'!$C$14 -> Energex | D46: =D13 + 'Control and Output Summary'!$C$9 * D24 + 'Control and Output Summary'!$C$10 * D35 -> 5.42836872 | E46: =E13 + 'Control and Output Summary'!$C$9 * E24 + 'Control and Output Summary'!$C$10 * E35 -> 1.5593398 | F46: =F13 + 'Control and Output Summary'!$C$9 * F24 + 'Control and Output Summary'!$C$10 * F35 -> 6.26272855 | G46: =G13 + 'Control and Output Summary'!$C$9 * G24 + 'Control and Output Summary'!$C$10 * G35 -> 0 | H46: =H13 + 'Control and Output Summary'!$C$9 * H24 + 'Control and Output Summary'!$C$10 * H35 -> 0 | I46: =I13 + 'Control and Output Summary'!$C$9 * I24 + 'Control and Output Summary'!$C$10 * I35 -> 0.00324084 | J46: =J13 + 'Control and Output Summary'!$C$9 * J24 + 'Control and Output Summary'!$C$10 * J35 -> 0.12294686 | K46: =K13 + 'Control and Output Summary'!$C$9 * K24 + 'Control and Output Summary'!$C$10 * K35 -> 0.08894471 | L46: =L13 + 'Control and Output Summary'!$C$9 * L24 + 'Control and Output Summary'!$C$10 * L35 -> 0.07171080333 | M46: =M13 + 'Control and Output Summary'!$C$9 * M24 + 'Control and Output Summary'!$C$10 * M35 -> 0.07171080333 | N46: =N13 + 'Control and Output Summary'!$C$9 * N24 + 'Control and Output Summary'!$C$10 * N35 -> 0.07171080333
B49: Annualised Capex ($m)
B51: Voltage Level | C51: Pricing Zone | D51: =D$29 -> 2023 | E51: 2024 | F51: 2025 | G51: 2026 | H51: 2027 | I51: 2028 | J51: 2029 | K51: 2030 | L51: 2031 | M51: 2032 | N51: 2033
B52: LV Line | C52: ='Control and Output Summary'!$C$14 -> Energex | D52: =IF('Control and Output Summary'!$C$14<>"Ergon",-PMT('Control and Output Summary'!$C$6,INDEX('Asset Specification'!$G$8:$G$43,MATCH(1,($B52 = 'Asset Specification'!$B$8:$B$43)*($C52 ='Asset Specification'!$C$8:$C$43) * ("Import" ='Asset Specification'!$D$8:$D$43 ),0)),D41),-PMT('Control and Output Summary'!$C$6,INDEX(#REF!,MATCH(1,($B52 =#REF!)* ("Import" =#REF! ),0)),D41)) -> 0.08809441481 | E52: =IF('Control and Output Summary'!$C$14<>"Ergon",-PMT('Control and Output Summary'!$C$6,INDEX('Asset Specification'!$G$8:$G$43,MATCH(1,($B52 = 'Asset Specification'!$B$8:$B$43)*($C52 ='Asset Specification'!$C$8:$C$43) * ("Import" ='Asset Specification'!$D$8:$D$43 ),0)),E41),-PMT('Control and Output Summary'!$C$6,INDEX(#REF!,MATCH(1,($B52 =#REF!)* ("Import" =#REF! ),0)),E41)) -> 0.08890861439 | F52: =IF('Control and Output Summary'!$C$14<>"Ergon",-PMT('Control and Output Summary'!$C$6,INDEX('Asset Specification'!$G$8:$G$43,MATCH(1,($B52 = 'Asset Specification'!$B$8:$B$43)*($C52 ='Asset Specification'!$C$8:$C$43) * ("Import" ='Asset Specification'!$D$8:$D$43 ),0)),F41),-PMT('Control and Output Summary'!$C$6,INDEX(#REF!,MATCH(1,($B52 =#REF!)* ("Import" =#REF! ),0)),F41)) -> 0.08202617534 | G52: =IF('Control and Output Summary'!$C$14<>"Ergon",-PMT('Control and Output Summary'!$C$6,INDEX('Asset Specification'!$G$8:$G$43,MATCH(1,($B52 = 'Asset Specification'!$B$8:$B$43)*($C52 ='Asset Specification'!$C$8:$C$43) * ("Import" ='Asset Specification'!$D$8:$D$43 ),0)),G41),-PMT('Control and Output Summary'!$C$6,INDEX(#REF!,MATCH(1,($B52 =#REF!)* ("Import" =#REF! ),0)),G41)) -> 0.08524951748 | H52: =IF('Control and Output Summary'!$C$14<>"Ergon",-PMT('Control and Output Summary'!$C$6,INDEX('Asset Specification'!$G$8:$G$43,MATCH(1,($B52 = 'Asset Specification'!$B$8:$B$43)*($C52 ='Asset Specification'!$C$8:$C$43) * ("Import" ='Asset Specification'!$D$8:$D$43 ),0)),H41),-PMT('Control and Output Summary'!$C$6,INDEX(#REF!,MATCH(1,($B52 =#REF!)* ("Import" =#REF! ),0)),H41)) -> 0.08816086471 | I52: =IF('Control and Output Summary'!$C$14<>"Ergon",-PMT('Control and Output Summary'!$C$6,INDEX('Asset Specification'!$G$8:$G$43,MATCH(1,($B52 = 'Asset Specification'!$B$8:$B$43)*($C52 ='Asset Specification'!$C$8:$C$43) * ("Import" ='Asset Specification'!$D$8:$D$43 ),0)),I41),-PMT('Control and Output Summary'!$C$6,INDEX(#REF!,MATCH(1,($B52 =#REF!)* ("Import" =#REF! ),0)),I41)) -> 0.09125529718 | J52: =IF('Control and Output Summary'!$C$14<>"Ergon",-PMT('Control and Output Summary'!$C$6,INDEX('Asset Specification'!$G$8:$G$43,MATCH(1,($B52 = 'Asset Specification'!$B$8:$B$43)*($C52 ='Asset Specification'!$C$8:$C$43) * ("Import" ='Asset Specification'!$D$8:$D$43 ),0)),J41),-PMT('Control and Output Summary'!$C$6,INDEX(#REF!,MATCH(1,($B52 =#REF!)* ("Import" =#REF! ),0)),J41)) -> 0.09448199841 | K52: =IF('Control and Output Summary'!$C$14<>"Ergon",-PMT('Control and Output Summary'!$C$6,INDEX('Asset Specification'!$G$8:$G$43,MATCH(1,($B52 = 'Asset Specification'!$B$8:$B$43)*($C52 ='Asset Specification'!$C$8:$C$43) * ("Import" ='Asset Specification'!$D$8:$D$43 ),0)),K41),-PMT('Control and Output Summary'!$C$6,INDEX(#REF!,MATCH(1,($B52 =#REF!)* ("Import" =#REF! ),0)),K41)) -> 0.09448199841 | L52: =IF('Control and Output Summary'!$C$14<>"Ergon",-PMT('Control and Output Summary'!$C$6,INDEX('Asset Specification'!$G$8:$G$43,MATCH(1,($B52 = 'Asset Specification'!$B$8:$B$43)*($C52 ='Asset Specification'!$C$8:$C$43) * ("Import" ='Asset Specification'!$D$8:$D$43 ),0)),L41),-PMT('Control and Output Summary'!$C$6,INDEX(#REF!,MATCH(1,($B52 =#REF!)* ("Import" =#REF! ),0)),L41)) -> 0.09448199841 | M52: =IF('Control and Output Summary'!$C$14<>"Ergon",-PMT('Control and Output Summary'!$C$6,INDEX('Asset Specification'!$G$8:$G$43,MATCH(1,($B52 = 'Asset Specification'!$B$8:$B$43)*($C52 ='Asset Specification'!$C$8:$C$43) * ("Import" ='Asset Specification'!$D$8:$D$43 ),0)),M41),-PMT('Control and Output Summary'!$C$6,INDEX(#REF!,MATCH(1,($B52 =#REF!)* ("Import" =#REF! ),0)),M41)) -> 0.09448199841 | N52: =IF('Control and Output Summary'!$C$14<>"Ergon",-PMT('Control and Output Summary'!$C$6,INDEX('Asset Specification'!$G$8:$G$43,MATCH(1,($B52 = 'Asset Specification'!$B$8:$B$43)*($C52 ='Asset Specification'!$C$8:$C$43) * ("Import" ='Asset Specification'!$D$8:$D$43 ),0)),N41),-PMT('Control and Output Summary'!$C$6,INDEX(#REF!,MATCH(1,($B52 =#REF!)* ("Import" =#REF! ),0)),N41)) -> 0.09448199841
B53: LV Bus | C53: ='Control and Output Summary'!$C$14 -> Energex | D53: =IF('Control and Output Summary'!$C$14<>"Ergon",-PMT('Control and Output Summary'!$C$6,INDEX('Asset Specification'!$G$8:$G$43,MATCH(1,($B53 = 'Asset Specification'!$B$8:$B$43)*($C53 ='Asset Specification'!$C$8:$C$43) * ("Import" ='Asset Specification'!$D$8:$D$43 ),0)),D42),-PMT('Control and Output Summary'!$C$6,INDEX(#REF!,MATCH(1,($B53 =#REF!)* ("Import" =#REF! ),0)),D42)) -> 0.03747103121 | E53: =IF('Control and Output Summary'!$C$14<>"Ergon",-PMT('Control and Output Summary'!$C$6,INDEX('Asset Specification'!$G$8:$G$43,MATCH(1,($B53 = 'Asset Specification'!$B$8:$B$43)*($C53 ='Asset Specification'!$C$8:$C$43) * ("Import" ='Asset Specification'!$D$8:$D$43 ),0)),E42),-PMT('Control and Output Summary'!$C$6,INDEX(#REF!,MATCH(1,($B53 =#REF!)* ("Import" =#REF! ),0)),E42)) -> 0.03746341707 | F53: =IF('Control and Output Summary'!$C$14<>"Ergon",-PMT('Control and Output Summary'!$C$6,INDEX('Asset Specification'!$G$8:$G$43,MATCH(1,($B53 = 'Asset Specification'!$B$8:$B$43)*($C53 ='Asset Specification'!$C$8:$C$43) * ("Import" ='Asset Specification'!$D$8:$D$43 ),0)),F42),-PMT('Control and Output Summary'!$C$6,INDEX(#REF!,MATCH(1,($B53 =#REF!)* ("Import" =#REF! ),0)),F42)) -> 0.03746341707 | G53: =IF('Control and Output Summary'!$C$14<>"Ergon",-PMT('Control and Output Summary'!$C$6,INDEX('Asset Specification'!$G$8:$G$43,MATCH(1,($B53 = 'Asset Specification'!$B$8:$B$43)*($C53 ='Asset Specification'!$C$8:$C$43) * ("Import" ='Asset Specification'!$D$8:$D$43 ),0)),G42),-PMT('Control and Output Summary'!$C$6,INDEX(#REF!,MATCH(1,($B53 =#REF!)* ("Import" =#REF! ),0)),G42)) -> 0.03966468886 | H53: =IF('Control and Output Summary'!$C$14<>"Ergon",-PMT('Control and Output Summary'!$C$6,INDEX('Asset Specification'!$G$8:$G$43,MATCH(1,($B53 = 'Asset Specification'!$B$8:$B$43)*($C53 ='Asset Specification'!$C$8:$C$43) * ("Import" ='Asset Specification'!$D$8:$D$43 ),0)),H42),-PMT('Control and Output Summary'!$C$6,INDEX(#REF!,MATCH(1,($B53 =#REF!)* ("Import" =#REF! ),0)),H42)) -> 0.03967549393 | I53: =IF('Control and Output Summary'!$C$14<>"Ergon",-PMT('Control and Output Summary'!$C$6,INDEX('Asset Specification'!$G$8:$G$43,MATCH(1,($B53 = 'Asset Specification'!$B$8:$B$43)*($C53 ='Asset Specification'!$C$8:$C$43) * ("Import" ='Asset Specification'!$D$8:$D$43 ),0)),I42),-PMT('Control and Output Summary'!$C$6,INDEX(#REF!,MATCH(1,($B53 =#REF!)* ("Import" =#REF! ),0)),I42)) -> 0.03970988155 | J53: =IF('Control and Output Summary'!$C$14<>"Ergon",-PMT('Control and Output Summary'!$C$6,INDEX('Asset Specification'!$G$8:$G$43,MATCH(1,($B53 = 'Asset Specification'!$B$8:$B$43)*($C53 ='Asset Specification'!$C$8:$C$43) * ("Import" ='Asset Specification'!$D$8:$D$43 ),0)),J42),-PMT('Control and Output Summary'!$C$6,INDEX(#REF!,MATCH(1,($B53 =#REF!)* ("Import" =#REF! ),0)),J42)) -> 0.03971663419 | K53: =IF('Control and Output Summary'!$C$14<>"Ergon",-PMT('Control and Output Summary'!$C$6,INDEX('Asset Specification'!$G$8:$G$43,MATCH(1,($B53 = 'Asset Specification'!$B$8:$B$43)*($C53 ='Asset Specification'!$C$8:$C$43) * ("Import" ='Asset Specification'!$D$8:$D$43 ),0)),K42),-PMT('Control and Output Summary'!$C$6,INDEX(#REF!,MATCH(1,($B53 =#REF!)* ("Import" =#REF! ),0)),K42)) -> 0.02793104778 | L53: =IF('Control and Output Summary'!$C$14<>"Ergon",-PMT('Control and Output Summary'!$C$6,INDEX('Asset Specification'!$G$8:$G$43,MATCH(1,($B53 = 'Asset Specification'!$B$8:$B$43)*($C53 ='Asset Specification'!$C$8:$C$43) * ("Import" ='Asset Specification'!$D$8:$D$43 ),0)),L42),-PMT('Control and Output Summary'!$C$6,INDEX(#REF!,MATCH(1,($B53 =#REF!)* ("Import" =#REF! ),0)),L42)) -> 0.03675826436 | M53: =IF('Control and Output Summary'!$C$14<>"Ergon",-PMT('Control and Output Summary'!$C$6,INDEX('Asset Specification'!$G$8:$G$43,MATCH(1,($B53 = 'Asset Specification'!$B$8:$B$43)*($C53 ='Asset Specification'!$C$8:$C$43) * ("Import" ='Asset Specification'!$D$8:$D$43 ),0)),M42),-PMT('Control and Output Summary'!$C$6,INDEX(#REF!,MATCH(1,($B53 =#REF!)* ("Import" =#REF! ),0)),M42)) -> 0.03675826436 | N53: =IF('Control and Output Summary'!$C$14<>"Ergon",-PMT('Control and Output Summary'!$C$6,INDEX('Asset Specification'!$G$8:$G$43,MATCH(1,($B53 = 'Asset Specification'!$B$8:$B$43)*($C53 ='Asset Specification'!$C$8:$C$43) * ("Import" ='Asset Specification'!$D$8:$D$43 ),0)),N42),-PMT('Control and Output Summary'!$C$6,INDEX(#REF!,MATCH(1,($B53 =#REF!)* ("Import" =#REF! ),0)),N42)) -> 0.03675826436
B54: HV Line | C54: ='Control and Output Summary'!$C$14 -> Energex | D54: =IF('Control and Output Summary'!$C$14<>"Ergon",-PMT('Control and Output Summary'!$C$6,INDEX('Asset Specification'!$G$8:$G$43,MATCH(1,($B54 = 'Asset Specification'!$B$8:$B$43)*($C54 ='Asset Specification'!$C$8:$C$43) * ("Import" ='Asset Specification'!$D$8:$D$43 ),0)),D43),-PMT('Control and Output Summary'!$C$6,INDEX(#REF!,MATCH(1,($B54 =#REF!)* ("Import" =#REF! ),0)),D43)) -> 0.2413101432 | E54: =IF('Control and Output Summary'!$C$14<>"Ergon",-PMT('Control and Output Summary'!$C$6,INDEX('Asset Specification'!$G$8:$G$43,MATCH(1,($B54 = 'Asset Specification'!$B$8:$B$43)*($C54 ='Asset Specification'!$C$8:$C$43) * ("Import" ='Asset Specification'!$D$8:$D$43 ),0)),E43),-PMT('Control and Output Summary'!$C$6,INDEX(#REF!,MATCH(1,($B54 =#REF!)* ("Import" =#REF! ),0)),E43)) -> 0.4494893177 | F54: =IF('Control and Output Summary'!$C$14<>"Ergon",-PMT('Control and Output Summary'!$C$6,INDEX('Asset Specification'!$G$8:$G$43,MATCH(1,($B54 = 'Asset Specification'!$B$8:$B$43)*($C54 ='Asset Specification'!$C$8:$C$43) * ("Import" ='Asset Specification'!$D$8:$D$43 ),0)),F43),-PMT('Control and Output Summary'!$C$6,INDEX(#REF!,MATCH(1,($B54 =#REF!)* ("Import" =#REF! ),0)),F43)) -> 0.4553682839 | G54: =IF('Control and Output Summary'!$C$14<>"Ergon",-PMT('Control and Output Summary'!$C$6,INDEX('Asset Specification'!$G$8:$G$43,MATCH(1,($B54 = 'Asset Specification'!$B$8:$B$43)*($C54 ='Asset Specification'!$C$8:$C$43) * ("Import" ='Asset Specification'!$D$8:$D$43 ),0)),G43),-PMT('Control and Output Summary'!$C$6,INDEX(#REF!,MATCH(1,($B54 =#REF!)* ("Import" =#REF! ),0)),G43)) -> 0.5842366467 | H54: =IF('Control and Output Summary'!$C$14<>"Ergon",-PMT('Control and Output Summary'!$C$6,INDEX('Asset Specification'!$G$8:$G$43,MATCH(1,($B54 = 'Asset Specification'!$B$8:$B$43)*($C54 ='Asset Specification'!$C$8:$C$43) * ("Import" ='Asset Specification'!$D$8:$D$43 ),0)),H43),-PMT('Control and Output Summary'!$C$6,INDEX(#REF!,MATCH(1,($B54 =#REF!)* ("Import" =#REF! ),0)),H43)) -> 0.3955991857 | I54: =IF('Control and Output Summary'!$C$14<>"Ergon",-PMT('Control and Output Summary'!$C$6,INDEX('Asset Specification'!$G$8:$G$43,MATCH(1,($B54 = 'Asset Specification'!$B$8:$B$43)*($C54 ='Asset Specification'!$C$8:$C$43) * ("Import" ='Asset Specification'!$D$8:$D$43 ),0)),I43),-PMT('Control and Output Summary'!$C$6,INDEX(#REF!,MATCH(1,($B54 =#REF!)* ("Import" =#REF! ),0)),I43)) -> 0.4208635425 | J54: =IF('Control and Output Summary'!$C$14<>"Ergon",-PMT('Control and Output Summary'!$C$6,INDEX('Asset Specification'!$G$8:$G$43,MATCH(1,($B54 = 'Asset Specification'!$B$8:$B$43)*($C54 ='Asset Specification'!$C$8:$C$43) * ("Import" ='Asset Specification'!$D$8:$D$43 ),0)),J43),-PMT('Control and Output Summary'!$C$6,INDEX(#REF!,MATCH(1,($B54 =#REF!)* ("Import" =#REF! ),0)),J43)) -> 0.4747468866 | K54: =IF('Control and Output Summary'!$C$14<>"Ergon",-PMT('Control and Output Summary'!$C$6,INDEX('Asset Specification'!$G$8:$G$43,MATCH(1,($B54 = 'Asset Specification'!$B$8:$B$43)*($C54 ='Asset Specification'!$C$8:$C$43) * ("Import" ='Asset Specification'!$D$8:$D$43 ),0)),K43),-PMT('Control and Output Summary'!$C$6,INDEX(#REF!,MATCH(1,($B54 =#REF!)* ("Import" =#REF! ),0)),K43)) -> 0.4723016862 | L54: =IF('Control and Output Summary'!$C$14<>"Ergon",-PMT('Control and Output Summary'!$C$6,INDEX('Asset Specification'!$G$8:$G$43,MATCH(1,($B54 = 'Asset Specification'!$B$8:$B$43)*($C54 ='Asset Specification'!$C$8:$C$43) * ("Import" ='Asset Specification'!$D$8:$D$43 ),0)),L43),-PMT('Control and Output Summary'!$C$6,INDEX(#REF!,MATCH(1,($B54 =#REF!)* ("Import" =#REF! ),0)),L43)) -> 0.4422891221 | M54: =IF('Control and Output Summary'!$C$14<>"Ergon",-PMT('Control and Output Summary'!$C$6,INDEX('Asset Specification'!$G$8:$G$43,MATCH(1,($B54 = 'Asset Specification'!$B$8:$B$43)*($C54 ='Asset Specification'!$C$8:$C$43) * ("Import" ='Asset Specification'!$D$8:$D$43 ),0)),M43),-PMT('Control and Output Summary'!$C$6,INDEX(#REF!,MATCH(1,($B54 =#REF!)* ("Import" =#REF! ),0)),M43)) -> 0.4422891221 | N54: =IF('Control and Output Summary'!$C$14<>"Ergon",-PMT('Control and Output Summary'!$C$6,INDEX('Asset Specification'!$G$8:$G$43,MATCH(1,($B54 = 'Asset Specification'!$B$8:$B$43)*($C54 ='Asset Specification'!$C$8:$C$43) * ("Import" ='Asset Specification'!$D$8:$D$43 ),0)),N43),-PMT('Control and Output Summary'!$C$6,INDEX(#REF!,MATCH(1,($B54 =#REF!)* ("Import" =#REF! ),0)),N43)) -> 0.4422891221
B55: HV Bus | C55: ='Control and Output Summary'!$C$14 -> Energex | D55: =IF('Control and Output Summary'!$C$14<>"Ergon",-PMT('Control and Output Summary'!$C$6,INDEX('Asset Specification'!$G$8:$G$43,MATCH(1,($B55 = 'Asset Specification'!$B$8:$B$43)*($C55 ='Asset Specification'!$C$8:$C$43) * ("Import" ='Asset Specification'!$D$8:$D$43 ),0)),D44),-PMT('Control and Output Summary'!$C$6,INDEX(#REF!,MATCH(1,($B55 =#REF!)* ("Import" =#REF! ),0)),D44)) -> 0.0692128322 | E55: =IF('Control and Output Summary'!$C$14<>"Ergon",-PMT('Control and Output Summary'!$C$6,INDEX('Asset Specification'!$G$8:$G$43,MATCH(1,($B55 = 'Asset Specification'!$B$8:$B$43)*($C55 ='Asset Specification'!$C$8:$C$43) * ("Import" ='Asset Specification'!$D$8:$D$43 ),0)),E44),-PMT('Control and Output Summary'!$C$6,INDEX(#REF!,MATCH(1,($B55 =#REF!)* ("Import" =#REF! ),0)),E44)) -> 0.02432612766 | F55: =IF('Control and Output Summary'!$C$14<>"Ergon",-PMT('Control and Output Summary'!$C$6,INDEX('Asset Specification'!$G$8:$G$43,MATCH(1,($B55 = 'Asset Specification'!$B$8:$B$43)*($C55 ='Asset Specification'!$C$8:$C$43) * ("Import" ='Asset Specification'!$D$8:$D$43 ),0)),F44),-PMT('Control and Output Summary'!$C$6,INDEX(#REF!,MATCH(1,($B55 =#REF!)* ("Import" =#REF! ),0)),F44)) -> 0.186490996 | G55: =IF('Control and Output Summary'!$C$14<>"Ergon",-PMT('Control and Output Summary'!$C$6,INDEX('Asset Specification'!$G$8:$G$43,MATCH(1,($B55 = 'Asset Specification'!$B$8:$B$43)*($C55 ='Asset Specification'!$C$8:$C$43) * ("Import" ='Asset Specification'!$D$8:$D$43 ),0)),G44),-PMT('Control and Output Summary'!$C$6,INDEX(#REF!,MATCH(1,($B55 =#REF!)* ("Import" =#REF! ),0)),G44)) -> 0.341095405 | H55: =IF('Control and Output Summary'!$C$14<>"Ergon",-PMT('Control and Output Summary'!$C$6,INDEX('Asset Specification'!$G$8:$G$43,MATCH(1,($B55 = 'Asset Specification'!$B$8:$B$43)*($C55 ='Asset Specification'!$C$8:$C$43) * ("Import" ='Asset Specification'!$D$8:$D$43 ),0)),H44),-PMT('Control and Output Summary'!$C$6,INDEX(#REF!,MATCH(1,($B55 =#REF!)* ("Import" =#REF! ),0)),H44)) -> 0.3024434281 | I55: =IF('Control and Output Summary'!$C$14<>"Ergon",-PMT('Control and Output Summary'!$C$6,INDEX('Asset Specification'!$G$8:$G$43,MATCH(1,($B55 = 'Asset Specification'!$B$8:$B$43)*($C55 ='Asset Specification'!$C$8:$C$43) * ("Import" ='Asset Specification'!$D$8:$D$43 ),0)),I44),-PMT('Control and Output Summary'!$C$6,INDEX(#REF!,MATCH(1,($B55 =#REF!)* ("Import" =#REF! ),0)),I44)) -> 0.4140218243 | J55: =IF('Control and Output Summary'!$C$14<>"Ergon",-PMT('Control and Output Summary'!$C$6,INDEX('Asset Specification'!$G$8:$G$43,MATCH(1,($B55 = 'Asset Specification'!$B$8:$B$43)*($C55 ='Asset Specification'!$C$8:$C$43) * ("Import" ='Asset Specification'!$D$8:$D$43 ),0)),J44),-PMT('Control and Output Summary'!$C$6,INDEX(#REF!,MATCH(1,($B55 =#REF!)* ("Import" =#REF! ),0)),J44)) -> 0.2859363351 | K55: =IF('Control and Output Summary'!$C$14<>"Ergon",-PMT('Control and Output Summary'!$C$6,INDEX('Asset Specification'!$G$8:$G$43,MATCH(1,($B55 = 'Asset Specification'!$B$8:$B$43)*($C55 ='Asset Specification'!$C$8:$C$43) * ("Import" ='Asset Specification'!$D$8:$D$43 ),0)),K44),-PMT('Control and Output Summary'!$C$6,INDEX(#REF!,MATCH(1,($B55 =#REF!)* ("Import" =#REF! ),0)),K44)) -> 0.7222697036 | L55: =IF('Control and Output Summary'!$C$14<>"Ergon",-PMT('Control and Output Summary'!$C$6,INDEX('Asset Specification'!$G$8:$G$43,MATCH(1,($B55 = 'Asset Specification'!$B$8:$B$43)*($C55 ='Asset Specification'!$C$8:$C$43) * ("Import" ='Asset Specification'!$D$8:$D$43 ),0)),L44),-PMT('Control and Output Summary'!$C$6,INDEX(#REF!,MATCH(1,($B55 =#REF!)* ("Import" =#REF! ),0)),L44)) -> 0.4311678228 | M55: =IF('Control and Output Summary'!$C$14<>"Ergon",-PMT('Control and Output Summary'!$C$6,INDEX('Asset Specification'!$G$8:$G$43,MATCH(1,($B55 = 'Asset Specification'!$B$8:$B$43)*($C55 ='Asset Specification'!$C$8:$C$43) * ("Import" ='Asset Specification'!$D$8:$D$43 ),0)),M44),-PMT('Control and Output Summary'!$C$6,INDEX(#REF!,MATCH(1,($B55 =#REF!)* ("Import" =#REF! ),0)),M44)) -> 0.4311678228 | N55: =IF('Control and Output Summary'!$C$14<>"Ergon",-PMT('Control and Output Summary'!$C$6,INDEX('Asset Specification'!$G$8:$G$43,MATCH(1,($B55 = 'Asset Specification'!$B$8:$B$43)*($C55 ='Asset Specification'!$C$8:$C$43) * ("Import" ='Asset Specification'!$D$8:$D$43 ),0)),N44),-PMT('Control and Output Summary'!$C$6,INDEX(#REF!,MATCH(1,($B55 =#REF!)* ("Import" =#REF! ),0)),N44)) -> 0.4311678228
B56: ST 33/66 kv | C56: ='Control and Output Summary'!$C$14 -> Energex | D56: =IF('Control and Output Summary'!$C$14<>"Ergon",-PMT('Control and Output Summary'!$C$6,INDEX('Asset Specification'!$G$8:$G$43,MATCH(1,($B56 = 'Asset Specification'!$B$8:$B$43)*($C56 ='Asset Specification'!$C$8:$C$43) * ("Import" ='Asset Specification'!$D$8:$D$43 ),0)),D45),-PMT('Control and Output Summary'!$C$6,INDEX(#REF!,MATCH(1,($B56 =#REF!)* ("Import" =#REF! ),0)),D45)) -> 0 | E56: =IF('Control and Output Summary'!$C$14<>"Ergon",-PMT('Control and Output Summary'!$C$6,INDEX('Asset Specification'!$G$8:$G$43,MATCH(1,($B56 = 'Asset Specification'!$B$8:$B$43)*($C56 ='Asset Specification'!$C$8:$C$43) * ("Import" ='Asset Specification'!$D$8:$D$43 ),0)),E45),-PMT('Control and Output Summary'!$C$6,INDEX(#REF!,MATCH(1,($B56 =#REF!)* ("Import" =#REF! ),0)),E45)) -> 0 | F56: =IF('Control and Output Summary'!$C$14<>"Ergon",-PMT('Control and Output Summary'!$C$6,INDEX('Asset Specification'!$G$8:$G$43,MATCH(1,($B56 = 'Asset Specification'!$B$8:$B$43)*($C56 ='Asset Specification'!$C$8:$C$43) * ("Import" ='Asset Specification'!$D$8:$D$43 ),0)),F45),-PMT('Control and Output Summary'!$C$6,INDEX(#REF!,MATCH(1,($B56 =#REF!)* ("Import" =#REF! ),0)),F45)) -> 0 | G56: =IF('Control and Output Summary'!$C$14<>"Ergon",-PMT('Control and Output Summary'!$C$6,INDEX('Asset Specification'!$G$8:$G$43,MATCH(1,($B56 = 'Asset Specification'!$B$8:$B$43)*($C56 ='Asset Specification'!$C$8:$C$43) * ("Import" ='Asset Specification'!$D$8:$D$43 ),0)),G45),-PMT('Control and Output Summary'!$C$6,INDEX(#REF!,MATCH(1,($B56 =#REF!)* ("Import" =#REF! ),0)),G45)) -> 0.008915406275 | H56: =IF('Control and Output Summary'!$C$14<>"Ergon",-PMT('Control and Output Summary'!$C$6,INDEX('Asset Specification'!$G$8:$G$43,MATCH(1,($B56 = 'Asset Specification'!$B$8:$B$43)*($C56 ='Asset Specification'!$C$8:$C$43) * ("Import" ='Asset Specification'!$D$8:$D$43 ),0)),H45),-PMT('Control and Output Summary'!$C$6,INDEX(#REF!,MATCH(1,($B56 =#REF!)* ("Import" =#REF! ),0)),H45)) -> 0.01791096301 | I56: =IF('Control and Output Summary'!$C$14<>"Ergon",-PMT('Control and Output Summary'!$C$6,INDEX('Asset Specification'!$G$8:$G$43,MATCH(1,($B56 = 'Asset Specification'!$B$8:$B$43)*($C56 ='Asset Specification'!$C$8:$C$43) * ("Import" ='Asset Specification'!$D$8:$D$43 ),0)),I45),-PMT('Control and Output Summary'!$C$6,INDEX(#REF!,MATCH(1,($B56 =#REF!)* ("Import" =#REF! ),0)),I45)) -> 0.04547798595 | J56: =IF('Control and Output Summary'!$C$14<>"Ergon",-PMT('Control and Output Summary'!$C$6,INDEX('Asset Specification'!$G$8:$G$43,MATCH(1,($B56 = 'Asset Specification'!$B$8:$B$43)*($C56 ='Asset Specification'!$C$8:$C$43) * ("Import" ='Asset Specification'!$D$8:$D$43 ),0)),J45),-PMT('Control and Output Summary'!$C$6,INDEX(#REF!,MATCH(1,($B56 =#REF!)* ("Import" =#REF! ),0)),J45)) -> 0.04980739117 | K56: =IF('Control and Output Summary'!$C$14<>"Ergon",-PMT('Control and Output Summary'!$C$6,INDEX('Asset Specification'!$G$8:$G$43,MATCH(1,($B56 = 'Asset Specification'!$B$8:$B$43)*($C56 ='Asset Specification'!$C$8:$C$43) * ("Import" ='Asset Specification'!$D$8:$D$43 ),0)),K45),-PMT('Control and Output Summary'!$C$6,INDEX(#REF!,MATCH(1,($B56 =#REF!)* ("Import" =#REF! ),0)),K45)) -> 0.07771301419 | L56: =IF('Control and Output Summary'!$C$14<>"Ergon",-PMT('Control and Output Summary'!$C$6,INDEX('Asset Specification'!$G$8:$G$43,MATCH(1,($B56 = 'Asset Specification'!$B$8:$B$43)*($C56 ='Asset Specification'!$C$8:$C$43) * ("Import" ='Asset Specification'!$D$8:$D$43 ),0)),L45),-PMT('Control and Output Summary'!$C$6,INDEX(#REF!,MATCH(1,($B56 =#REF!)* ("Import" =#REF! ),0)),L45)) -> 0.05766613044 | M56: =IF('Control and Output Summary'!$C$14<>"Ergon",-PMT('Control and Output Summary'!$C$6,INDEX('Asset Specification'!$G$8:$G$43,MATCH(1,($B56 = 'Asset Specification'!$B$8:$B$43)*($C56 ='Asset Specification'!$C$8:$C$43) * ("Import" ='Asset Specification'!$D$8:$D$43 ),0)),M45),-PMT('Control and Output Summary'!$C$6,INDEX(#REF!,MATCH(1,($B56 =#REF!)* ("Import" =#REF! ),0)),M45)) -> 0.05766613044 | N56: =IF('Control and Output Summary'!$C$14<>"Ergon",-PMT('Control and Output Summary'!$C$6,INDEX('Asset Specification'!$G$8:$G$43,MATCH(1,($B56 = 'Asset Specification'!$B$8:$B$43)*($C56 ='Asset Specification'!$C$8:$C$43) * ("Import" ='Asset Specification'!$D$8:$D$43 ),0)),N45),-PMT('Control and Output Summary'!$C$6,INDEX(#REF!,MATCH(1,($B56 =#REF!)* ("Import" =#REF! ),0)),N45)) -> 0.05766613044
B57: ST 110/132 kv | C57: ='Control and Output Summary'!$C$14 -> Energex | D57: =IF('Control and Output Summary'!$C$14<>"Ergon",-PMT('Control and Output Summary'!$C$6,INDEX('Asset Specification'!$G$8:$G$43,MATCH(1,($B57 = 'Asset Specification'!$B$8:$B$43)*($C57 ='Asset Specification'!$C$8:$C$43) * ("Import" ='Asset Specification'!$D$8:$D$43 ),0)),D46),-PMT('Control and Output Summary'!$C$6,INDEX(#REF!,MATCH(1,($B57 =#REF!)* ("Import" =#REF! ),0)),D46)) -> 0.2320220108 | E57: =IF('Control and Output Summary'!$C$14<>"Ergon",-PMT('Control and Output Summary'!$C$6,INDEX('Asset Specification'!$G$8:$G$43,MATCH(1,($B57 = 'Asset Specification'!$B$8:$B$43)*($C57 ='Asset Specification'!$C$8:$C$43) * ("Import" ='Asset Specification'!$D$8:$D$43 ),0)),E46),-PMT('Control and Output Summary'!$C$6,INDEX(#REF!,MATCH(1,($B57 =#REF!)* ("Import" =#REF! ),0)),E46)) -> 0.06665007012 | F57: =IF('Control and Output Summary'!$C$14<>"Ergon",-PMT('Control and Output Summary'!$C$6,INDEX('Asset Specification'!$G$8:$G$43,MATCH(1,($B57 = 'Asset Specification'!$B$8:$B$43)*($C57 ='Asset Specification'!$C$8:$C$43) * ("Import" ='Asset Specification'!$D$8:$D$43 ),0)),F46),-PMT('Control and Output Summary'!$C$6,INDEX(#REF!,MATCH(1,($B57 =#REF!)* ("Import" =#REF! ),0)),F46)) -> 0.2676846298 | G57: =IF('Control and Output Summary'!$C$14<>"Ergon",-PMT('Control and Output Summary'!$C$6,INDEX('Asset Specification'!$G$8:$G$43,MATCH(1,($B57 = 'Asset Specification'!$B$8:$B$43)*($C57 ='Asset Specification'!$C$8:$C$43) * ("Import" ='Asset Specification'!$D$8:$D$43 ),0)),G46),-PMT('Control and Output Summary'!$C$6,INDEX(#REF!,MATCH(1,($B57 =#REF!)* ("Import" =#REF! ),0)),G46)) -> 0 | H57: =IF('Control and Output Summary'!$C$14<>"Ergon",-PMT('Control and Output Summary'!$C$6,INDEX('Asset Specification'!$G$8:$G$43,MATCH(1,($B57 = 'Asset Specification'!$B$8:$B$43)*($C57 ='Asset Specification'!$C$8:$C$43) * ("Import" ='Asset Specification'!$D$8:$D$43 ),0)),H46),-PMT('Control and Output Summary'!$C$6,INDEX(#REF!,MATCH(1,($B57 =#REF!)* ("Import" =#REF! ),0)),H46)) -> 0 | I57: =IF('Control and Output Summary'!$C$14<>"Ergon",-PMT('Control and Output Summary'!$C$6,INDEX('Asset Specification'!$G$8:$G$43,MATCH(1,($B57 = 'Asset Specification'!$B$8:$B$43)*($C57 ='Asset Specification'!$C$8:$C$43) * ("Import" ='Asset Specification'!$D$8:$D$43 ),0)),I46),-PMT('Control and Output Summary'!$C$6,INDEX(#REF!,MATCH(1,($B57 =#REF!)* ("Import" =#REF! ),0)),I46)) -> 0.0001385215803 | J57: =IF('Control and Output Summary'!$C$14<>"Ergon",-PMT('Control and Output Summary'!$C$6,INDEX('Asset Specification'!$G$8:$G$43,MATCH(1,($B57 = 'Asset Specification'!$B$8:$B$43)*($C57 ='Asset Specification'!$C$8:$C$43) * ("Import" ='Asset Specification'!$D$8:$D$43 ),0)),J46),-PMT('Control and Output Summary'!$C$6,INDEX(#REF!,MATCH(1,($B57 =#REF!)* ("Import" =#REF! ),0)),J46)) -> 0.005255055274 | K57: =IF('Control and Output Summary'!$C$14<>"Ergon",-PMT('Control and Output Summary'!$C$6,INDEX('Asset Specification'!$G$8:$G$43,MATCH(1,($B57 = 'Asset Specification'!$B$8:$B$43)*($C57 ='Asset Specification'!$C$8:$C$43) * ("Import" ='Asset Specification'!$D$8:$D$43 ),0)),K46),-PMT('Control and Output Summary'!$C$6,INDEX(#REF!,MATCH(1,($B57 =#REF!)* ("Import" =#REF! ),0)),K46)) -> 0.003801718624 | L57: =IF('Control and Output Summary'!$C$14<>"Ergon",-PMT('Control and Output Summary'!$C$6,INDEX('Asset Specification'!$G$8:$G$43,MATCH(1,($B57 = 'Asset Specification'!$B$8:$B$43)*($C57 ='Asset Specification'!$C$8:$C$43) * ("Import" ='Asset Specification'!$D$8:$D$43 ),0)),L46),-PMT('Control and Output Summary'!$C$6,INDEX(#REF!,MATCH(1,($B57 =#REF!)* ("Import" =#REF! ),0)),L46)) -> 0.003065098493 | M57: =IF('Control and Output Summary'!$C$14<>"Ergon",-PMT('Control and Output Summary'!$C$6,INDEX('Asset Specification'!$G$8:$G$43,MATCH(1,($B57 = 'Asset Specification'!$B$8:$B$43)*($C57 ='Asset Specification'!$C$8:$C$43) * ("Import" ='Asset Specification'!$D$8:$D$43 ),0)),M46),-PMT('Control and Output Summary'!$C$6,INDEX(#REF!,MATCH(1,($B57 =#REF!)* ("Import" =#REF! ),0)),M46)) -> 0.003065098493 | N57: =IF('Control and Output Summary'!$C$14<>"Ergon",-PMT('Control and Output Summary'!$C$6,INDEX('Asset Specification'!$G$8:$G$43,MATCH(1,($B57 = 'Asset Specification'!$B$8:$B$43)*($C57 ='Asset Specification'!$C$8:$C$43) * ("Import" ='Asset Specification'!$D$8:$D$43 ),0)),N46),-PMT('Control and Output Summary'!$C$6,INDEX(#REF!,MATCH(1,($B57 =#REF!)* ("Import" =#REF! ),0)),N46)) -> 0.003065098493
B60: Cumulative Annualised Capex ($m)
B62: Voltage Level | C62: Pricing Zone | D62: =D$51 -> 2023 | E62: 2024 | F62: 2025 | G62: 2026 | H62: 2027 | I62: 2028 | J62: 2029 | K62: 2030 | L62: 2031 | M62: 2032 | N62: 2033
B63: LV Line | C63: ='Control and Output Summary'!$C$14 -> Energex | D63: =SUM($D52:D52) -> 0.08809441481 | E63: =SUM($D52:E52) -> 0.1770030292 | F63: =SUM($D52:F52) -> 0.2590292045 | G63: =SUM($D52:G52) -> 0.344278722 | H63: =SUM($D52:H52) -> 0.4324395867 | I63: =SUM($D52:I52) -> 0.5236948839 | J63: =SUM($D52:J52) -> 0.6181768823 | K63: =SUM($D52:K52) -> 0.7126588807 | L63: =SUM($D52:L52) -> 0.8071408792 | M63: =SUM($D52:M52) -> 0.9016228776 | N63: =SUM($D52:N52) -> 0.996104876
B64: LV Bus | C64: ='Control and Output Summary'!$C$14 -> Energex | D64: =SUM($D53:D53) -> 0.03747103121 | E64: =SUM($D53:E53) -> 0.07493444828 | F64: =SUM($D53:F53) -> 0.1123978653 | G64: =SUM($D53:G53) -> 0.1520625542 | H64: =SUM($D53:H53) -> 0.1917380481 | I64: =SUM($D53:I53) -> 0.2314479297 | J64: =SUM($D53:J53) -> 0.2711645639 | K64: =SUM($D53:K53) -> 0.2990956117 | L64: =SUM($D53:L53) -> 0.335853876 | M64: =SUM($D53:M53) -> 0.3726121404 | N64: =SUM($D53:N53) -> 0.4093704047
B65: HV Line | C65: ='Control and Output Summary'!$C$14 -> Energex | D65: =SUM($D54:D54) -> 0.2413101432 | E65: =SUM($D54:E54) -> 0.6907994609 | F65: =SUM($D54:F54) -> 1.146167745 | G65: =SUM($D54:G54) -> 1.730404391 | H65: =SUM($D54:H54) -> 2.126003577 | I65: =SUM($D54:I54) -> 2.54686712 | J65: =SUM($D54:J54) -> 3.021614006 | K65: =SUM($D54:K54) -> 3.493915692 | L65: =SUM($D54:L54) -> 3.936204815 | M65: =SUM($D54:M54) -> 4.378493937 | N65: =SUM($D54:N54) -> 4.820783059
B66: HV Bus | C66: ='Control and Output Summary'!$C$14 -> Energex | D66: =SUM($D55:D55) -> 0.0692128322 | E66: =SUM($D55:E55) -> 0.09353895986 | F66: =SUM($D55:F55) -> 0.2800299559 | G66: =SUM($D55:G55) -> 0.6211253609 | H66: =SUM($D55:H55) -> 0.923568789 | I66: =SUM($D55:I55) -> 1.337590613 | J66: =SUM($D55:J55) -> 1.623526948 | K66: =SUM($D55:K55) -> 2.345796652 | L66: =SUM($D55:L55) -> 2.776964475 | M66: =SUM($D55:M55) -> 3.208132298 | N66: =SUM($D55:N55) -> 3.63930012
B67: ST 33/66 kv | C67: ='Control and Output Summary'!$C$14 -> Energex | D67: =SUM($D56:D56) -> 0 | E67: =SUM($D56:E56) -> 0 | F67: =SUM($D56:F56) -> 0 | G67: =SUM($D56:G56) -> 0.008915406275 | H67: =SUM($D56:H56) -> 0.02682636929 | I67: =SUM($D56:I56) -> 0.07230435524 | J67: =SUM($D56:J56) -> 0.1221117464 | K67: =SUM($D56:K56) -> 0.1998247606 | L67: =SUM($D56:L56) -> 0.257490891 | M67: =SUM($D56:M56) -> 0.3151570215 | N67: =SUM($D56:N56) -> 0.3728231519
B68: ST 110/132 kv | C68: ='Control and Output Summary'!$C$14 -> Energex | D68: =SUM($D57:D57) -> 0.2320220108 | E68: =SUM($D57:E57) -> 0.2986720809 | F68: =SUM($D57:F57) -> 0.5663567106 | G68: =SUM($D57:G57) -> 0.5663567106 | H68: =SUM($D57:H57) -> 0.5663567106 | I68: =SUM($D57:I57) -> 0.5664952322 | J68: =SUM($D57:J57) -> 0.5717502875 | K68: =SUM($D57:K57) -> 0.5755520061 | L68: =SUM($D57:L57) -> 0.5786171046 | M68: =SUM($D57:M57) -> 0.5816822031 | N68: =SUM($D57:N57) -> 0.5847473016
B71: Opex ($m)
B73: Voltage Level | C73: Pricing Zone | D73: =D$62 -> 2023 | E73: 2024 | F73: 2025 | G73: 2026 | H73: 2027 | I73: 2028 | J73: 2029 | K73: 2030 | L73: 2031 | M73: 2032 | N73: 2033
B74: LV Line | C74: ='Control and Output Summary'!$C$14 -> Energex | D74: ='Control and Output Summary'!$C$8 * (D41) -> 0.01978608002 | E74: ='Control and Output Summary'!$C$8 * (E41) -> 0.01996894993 | F74: ='Control and Output Summary'!$C$8 * (F41) -> 0.01842314831 | G74: ='Control and Output Summary'!$C$8 * (G41) -> 0.01914711368 | H74: ='Control and Output Summary'!$C$8 * (H41) -> 0.01980100472 | I74: ='Control and Output Summary'!$C$8 * (I41) -> 0.02049601687 | J74: ='Control and Output Summary'!$C$8 * (J41) -> 0.0212207367 | K74: ='Control and Output Summary'!$C$8 * (K41) -> 0.0212207367 | L74: ='Control and Output Summary'!$C$8 * (L41) -> 0.0212207367 | M74: ='Control and Output Summary'!$C$8 * (M41) -> 0.0212207367 | N74: ='Control and Output Summary'!$C$8 * (N41) -> 0.0212207367
B75: LV Bus | C75: ='Control and Output Summary'!$C$14 -> Energex | D75: ='Control and Output Summary'!$C$8 * (D42) -> 0.00841602528 | E75: ='Control and Output Summary'!$C$8 * (E42) -> 0.008414315136 | F75: ='Control and Output Summary'!$C$8 * (F42) -> 0.008414315136 | G75: ='Control and Output Summary'!$C$8 * (G42) -> 0.008908722642 | H75: ='Control and Output Summary'!$C$8 * (H42) -> 0.00891114947 | I75: ='Control and Output Summary'!$C$8 * (I42) -> 0.008918872956 | J75: ='Control and Output Summary'!$C$8 * (J42) -> 0.008920389607 | K75: ='Control and Output Summary'!$C$8 * (K42) -> 0.006273336937 | L75: ='Control and Output Summary'!$C$8 * (L42) -> 0.008255937242 | M75: ='Control and Output Summary'!$C$8 * (M42) -> 0.008255937242 | N75: ='Control and Output Summary'!$C$8 * (N42) -> 0.008255937242
B76: HV Line | C76: ='Control and Output Summary'!$C$14 -> Energex | D76: ='Control and Output Summary'!$C$8 * (D43) -> 0.0541984621 | E76: ='Control and Output Summary'!$C$8 * (E43) -> 0.1009556807 | F76: ='Control and Output Summary'!$C$8 * (F43) -> 0.1022761014 | G76: ='Control and Output Summary'!$C$8 * (G43) -> 0.1312200446 | H76: ='Control and Output Summary'!$C$8 * (H43) -> 0.08885191147 | I76: ='Control and Output Summary'!$C$8 * (I43) -> 0.09452630735 | J76: ='Control and Output Summary'!$C$8 * (J43) -> 0.106628552 | K76: ='Control and Output Summary'!$C$8 * (K43) -> 0.1060793579 | L76: ='Control and Output Summary'!$C$8 * (L43) -> 0.09933851062 | M76: ='Control and Output Summary'!$C$8 * (M43) -> 0.09933851062 | N76: ='Control and Output Summary'!$C$8 * (N43) -> 0.09933851062
B77: HV Bus | C77: ='Control and Output Summary'!$C$14 -> Energex | D77: ='Control and Output Summary'!$C$8 * (D44) -> 0.01554526061 | E77: ='Control and Output Summary'!$C$8 * (E44) -> 0.005463668832 | F77: ='Control and Output Summary'!$C$8 * (F44) -> 0.04188603533 | G77: ='Control and Output Summary'!$C$8 * (G44) -> 0.07661031625 | H77: ='Control and Output Summary'!$C$8 * (H44) -> 0.06792904956 | I77: ='Control and Output Summary'!$C$8 * (I44) -> 0.09298965165 | J77: ='Control and Output Summary'!$C$8 * (J44) -> 0.06422154253 | K77: ='Control and Output Summary'!$C$8 * (K44) -> 0.1622223859 | L77: ='Control and Output Summary'!$C$8 * (L44) -> 0.0968406574 | M77: ='Control and Output Summary'!$C$8 * (M44) -> 0.0968406574 | N77: ='Control and Output Summary'!$C$8 * (N44) -> 0.0968406574
B78: ST 33/66 kv | C78: ='Control and Output Summary'!$C$14 -> Energex | D78: ='Control and Output Summary'!$C$8 * (D45) -> 0 | E78: ='Control and Output Summary'!$C$8 * (E45) -> 0 | F78: ='Control and Output Summary'!$C$8 * (F45) -> 0 | G78: ='Control and Output Summary'!$C$8 * (G45) -> 0.002002407784 | H78: ='Control and Output Summary'!$C$8 * (H45) -> 0.00402281743 | I78: ='Control and Output Summary'!$C$8 * (I45) -> 0.01021439408 | J78: ='Control and Output Summary'!$C$8 * (J45) -> 0.01118678215 | K78: ='Control and Output Summary'!$C$8 * (K45) -> 0.01745440867 | L78: ='Control and Output Summary'!$C$8 * (L45) -> 0.01295186163 | M78: ='Control and Output Summary'!$C$8 * (M45) -> 0.01295186163 | N78: ='Control and Output Summary'!$C$8 * (N45) -> 0.01295186163
B79: ST 110/132 kv | C79: ='Control and Output Summary'!$C$14 -> Energex | D79: ='Control and Output Summary'!$C$8 * (D46) -> 0.05211233971 | E79: ='Control and Output Summary'!$C$8 * (E46) -> 0.01496966208 | F79: ='Control and Output Summary'!$C$8 * (F46) -> 0.06012219408 | G79: ='Control and Output Summary'!$C$8 * (G46) -> 0 | H79: ='Control and Output Summary'!$C$8 * (H46) -> 0 | I79: ='Control and Output Summary'!$C$8 * (I46) -> 3.1112064e-05 | J79: ='Control and Output Summary'!$C$8 * (J46) -> 0.001180289856 | K79: ='Control and Output Summary'!$C$8 * (K46) -> 0.000853869216 | L79: ='Control and Output Summary'!$C$8 * (L46) -> 0.000688423712 | M79: ='Control and Output Summary'!$C$8 * (M46) -> 0.000688423712 | N79: ='Control and Output Summary'!$C$8 * (N46) -> 0.000688423712
B82: Total Annual Cost ($m)
B84: Voltage Level | C84: Pricing Zone | D84: =D$73 -> 2023 | E84: 2024 | F84: 2025 | G84: 2026 | H84: 2027 | I84: 2028 | J84: 2029 | K84: 2030 | L84: 2031 | M84: 2032 | N84: 2033
B85: LV Line | C85: ='Control and Output Summary'!$C$14 -> Energex | D85: =D63 + D74 -> 0.1078804948 | E85: 0.1969719791 | F85: 0.2774523528 | G85: 0.3634258357 | H85: 0.4522405915 | I85: 0.5441909008 | J85: 0.639397619 | K85: 0.7338796174 | L85: 0.8283616159 | M85: 0.9228436143 | N85: 1.017325613
B86: LV Bus | C86: ='Control and Output Summary'!$C$14 -> Energex | D86: =D64 + D75 -> 0.04588705649 | E86: 0.08334876342 | F86: 0.1208121805 | G86: 0.1609712769 | H86: 0.2006491976 | I86: 0.2403668026 | J86: 0.2800849535 | K86: 0.3053689486 | L86: 0.3441098133 | M86: 0.3808680776 | N86: 0.417626342
B87: HV Line | C87: ='Control and Output Summary'!$C$14 -> Energex | D87: =D65 + D76 -> 0.2955086053 | E87: 0.7917551415 | F87: 1.248443846 | G87: 1.861624436 | H87: 2.214855489 | I87: 2.641393427 | J87: 3.128242558 | K87: 3.59999505 | L87: 4.035543325 | M87: 4.477832447 | N87: 4.920121569
B88: HV Bus | C88: ='Control and Output Summary'!$C$14 -> Energex | D88: =D66 + D77 -> 0.08475809281 | E88: 0.09900262869 | F88: 0.3219159912 | G88: 0.6977356772 | H88: 0.9914978386 | I88: 1.430580265 | J88: 1.687748491 | K88: 2.508019038 | L88: 2.873805132 | M88: 3.304972955 | N88: 3.736140778
B89: ST 33/66 kv | C89: ='Control and Output Summary'!$C$14 -> Energex | D89: =D67 + D78 -> 0 | E89: 0 | F89: 0 | G89: 0.01091781406 | H89: 0.03084918672 | I89: 0.08251874932 | J89: 0.1332985286 | K89: 0.2172791693 | L89: 0.2704427527 | M89: 0.3281088831 | N89: 0.3857750136
B90: ST 110/132 kv | C90: ='Control and Output Summary'!$C$14 -> Energex | D90: =D68 + D79 -> 0.2841343505 | E90: 0.313641743 | F90: 0.6264789047 | G90: 0.5663567106 | H90: 0.5663567106 | I90: 0.5665263443 | J90: 0.5729305773 | K90: 0.5764058753 | L90: 0.5793055283 | M90: 0.5823706268 | N90: 0.5854357253
B93: Declining
B96: Replacement
B98: Voltage Level | C98: Pricing Zone | D98: =D$18 -> 2023 | E98: 2024 | F98: 2025 | G98: 2026 | H98: 2027 | I98: 2028 | J98: 2029 | K98: 2030 | L98: 2031 | M98: 2032 | N98: 2033
B99: LV Line | C99: ='Control and Output Summary'!$C$14 -> Energex | D99: =IF('Control and Output Summary'!$C$14<>"Ergon",SUMIFS(INDEX('Import Expenditure Forecast'!$F$8:$P$79,,MATCH(D$98,'Import Expenditure Forecast'!$F$7:$P$7,0)),'Import Expenditure Forecast'!$C$8:$C$79,$B99,'Import Expenditure Forecast'!$E$8:$E$79,$C99,'Import Expenditure Forecast'!$B$8:$B$79,$B$93,'Import Expenditure Forecast'!$D$8:$D$79,$B$96),SUMIFS(INDEX(#REF!,,MATCH(D$98,#REF!,0)),#REF!,$B99,#REF!,$B$93,#REF!,$B$96)) -> 0 | E99: =IF('Control and Output Summary'!$C$14<>"Ergon",SUMIFS(INDEX('Import Expenditure Forecast'!$F$8:$P$79,,MATCH(E$98,'Import Expenditure Forecast'!$F$7:$P$7,0)),'Import Expenditure Forecast'!$C$8:$C$79,$B99,'Import Expenditure Forecast'!$E$8:$E$79,$C99,'Import Expenditure Forecast'!$B$8:$B$79,$B$93,'Import Expenditure Forecast'!$D$8:$D$79,$B$96),SUMIFS(INDEX(#REF!,,MATCH(E$98,#REF!,0)),#REF!,$B99,#REF!,$B$93,#REF!,$B$96)) -> 0 | F99: =IF('Control and Output Summary'!$C$14<>"Ergon",SUMIFS(INDEX('Import Expenditure Forecast'!$F$8:$P$79,,MATCH(F$98,'Import Expenditure Forecast'!$F$7:$P$7,0)),'Import Expenditure Forecast'!$C$8:$C$79,$B99,'Import Expenditure Forecast'!$E$8:$E$79,$C99,'Import Expenditure Forecast'!$B$8:$B$79,$B$93,'Import Expenditure Forecast'!$D$8:$D$79,$B$96),SUMIFS(INDEX(#REF!,,MATCH(F$98,#REF!,0)),#REF!,$B99,#REF!,$B$93,#REF!,$B$96)) -> 0 | G99: =IF('Control and Output Summary'!$C$14<>"Ergon",SUMIFS(INDEX('Import Expenditure Forecast'!$F$8:$P$79,,MATCH(G$98,'Import Expenditure Forecast'!$F$7:$P$7,0)),'Import Expenditure Forecast'!$C$8:$C$79,$B99,'Import Expenditure Forecast'!$E$8:$E$79,$C99,'Import Expenditure Forecast'!$B$8:$B$79,$B$93,'Import Expenditure Forecast'!$D$8:$D$79,$B$96),SUMIFS(INDEX(#REF!,,MATCH(G$98,#REF!,0)),#REF!,$B99,#REF!,$B$93,#REF!,$B$96)) -> 0 | H99: =IF('Control and Output Summary'!$C$14<>"Ergon",SUMIFS(INDEX('Import Expenditure Forecast'!$F$8:$P$79,,MATCH(H$98,'Import Expenditure Forecast'!$F$7:$P$7,0)),'Import Expenditure Forecast'!$C$8:$C$79,$B99,'Import Expenditure Forecast'!$E$8:$E$79,$C99,'Import Expenditure Forecast'!$B$8:$B$79,$B$93,'Import Expenditure Forecast'!$D$8:$D$79,$B$96),SUMIFS(INDEX(#REF!,,MATCH(H$98,#REF!,0)),#REF!,$B99,#REF!,$B$93,#REF!,$B$96)) -> 0 | I99: =IF('Control and Output Summary'!$C$14<>"Ergon",SUMIFS(INDEX('Import Expenditure Forecast'!$F$8:$P$79,,MATCH(I$98,'Import Expenditure Forecast'!$F$7:$P$7,0)),'Import Expenditure Forecast'!$C$8:$C$79,$B99,'Import Expenditure Forecast'!$E$8:$E$79,$C99,'Import Expenditure Forecast'!$B$8:$B$79,$B$93,'Import Expenditure Forecast'!$D$8:$D$79,$B$96),SUMIFS(INDEX(#REF!,,MATCH(I$98,#REF!,0)),#REF!,$B99,#REF!,$B$93,#REF!,$B$96)) -> 0 | J99: =IF('Control and Output Summary'!$C$14<>"Ergon",SUMIFS(INDEX('Import Expenditure Forecast'!$F$8:$P$79,,MATCH(J$98,'Import Expenditure Forecast'!$F$7:$P$7,0)),'Import Expenditure Forecast'!$C$8:$C$79,$B99,'Import Expenditure Forecast'!$E$8:$E$79,$C99,'Import Expenditure Forecast'!$B$8:$B$79,$B$93,'Import Expenditure Forecast'!$D$8:$D$79,$B$96),SUMIFS(INDEX(#REF!,,MATCH(J$98,#REF!,0)),#REF!,$B99,#REF!,$B$93,#REF!,$B$96)) -> 0 | K99: =IF('Control and Output Summary'!$C$14<>"Ergon",SUMIFS(INDEX('Import Expenditure Forecast'!$F$8:$P$79,,MATCH(K$98,'Import Expenditure Forecast'!$F$7:$P$7,0)),'Import Expenditure Forecast'!$C$8:$C$79,$B99,'Import Expenditure Forecast'!$E$8:$E$79,$C99,'Import Expenditure Forecast'!$B$8:$B$79,$B$93,'Import Expenditure Forecast'!$D$8:$D$79,$B$96),SUMIFS(INDEX(#REF!,,MATCH(K$98,#REF!,0)),#REF!,$B99,#REF!,$B$93,#REF!,$B$96)) -> 0 | L99: =IF('Control and Output Summary'!$C$14<>"Ergon",SUMIFS(INDEX('Import Expenditure Forecast'!$F$8:$P$79,,MATCH(L$98,'Import Expenditure Forecast'!$F$7:$P$7,0)),'Import Expenditure Forecast'!$C$8:$C$79,$B99,'Import Expenditure Forecast'!$E$8:$E$79,$C99,'Import Expenditure Forecast'!$B$8:$B$79,$B$93,'Import Expenditure Forecast'!$D$8:$D$79,$B$96),SUMIFS(INDEX(#REF!,,MATCH(L$98,#REF!,0)),#REF!,$B99,#REF!,$B$93,#REF!,$B$96)) -> 0 | M99: =IF('Control and Output Summary'!$C$14<>"Ergon",SUMIFS(INDEX('Import Expenditure Forecast'!$F$8:$P$79,,MATCH(M$98,'Import Expenditure Forecast'!$F$7:$P$7,0)),'Import Expenditure Forecast'!$C$8:$C$79,$B99,'Import Expenditure Forecast'!$E$8:$E$79,$C99,'Import Expenditure Forecast'!$B$8:$B$79,$B$93,'Import Expenditure Forecast'!$D$8:$D$79,$B$96),SUMIFS(INDEX(#REF!,,MATCH(M$98,#REF!,0)),#REF!,$B99,#REF!,$B$93,#REF!,$B$96)) -> 0 | N99: =IF('Control and Output Summary'!$C$14<>"Ergon",SUMIFS(INDEX('Import Expenditure Forecast'!$F$8:$P$79,,MATCH(N$98,'Import Expenditure Forecast'!$F$7:$P$7,0)),'Import Expenditure Forecast'!$C$8:$C$79,$B99,'Import Expenditure Forecast'!$E$8:$E$79,$C99,'Import Expenditure Forecast'!$B$8:$B$79,$B$93,'Import Expenditure Forecast'!$D$8:$D$79,$B$96),SUMIFS(INDEX(#REF!,,MATCH(N$98,#REF!,0)),#REF!,$B99,#REF!,$B$93,#REF!,$B$96)) -> 0
B100: LV Bus | C100: ='Control and Output Summary'!$C$14 -> Energex | D100: =IF('Control and Output Summary'!$C$14<>"Ergon",SUMIFS(INDEX('Import Expenditure Forecast'!$F$8:$P$79,,MATCH(D$98,'Import Expenditure Forecast'!$F$7:$P$7,0)),'Import Expenditure Forecast'!$C$8:$C$79,$B100,'Import Expenditure Forecast'!$E$8:$E$79,$C100,'Import Expenditure Forecast'!$B$8:$B$79,$B$93,'Import Expenditure Forecast'!$D$8:$D$79,$B$96),SUMIFS(INDEX(#REF!,,MATCH(D$98,#REF!,0)),#REF!,$B100,#REF!,$B$93,#REF!,$B$96)) -> 0 | E100: =IF('Control and Output Summary'!$C$14<>"Ergon",SUMIFS(INDEX('Import Expenditure Forecast'!$F$8:$P$79,,MATCH(E$98,'Import Expenditure Forecast'!$F$7:$P$7,0)),'Import Expenditure Forecast'!$C$8:$C$79,$B100,'Import Expenditure Forecast'!$E$8:$E$79,$C100,'Import Expenditure Forecast'!$B$8:$B$79,$B$93,'Import Expenditure Forecast'!$D$8:$D$79,$B$96),SUMIFS(INDEX(#REF!,,MATCH(E$98,#REF!,0)),#REF!,$B100,#REF!,$B$93,#REF!,$B$96)) -> 0 | F100: =IF('Control and Output Summary'!$C$14<>"Ergon",SUMIFS(INDEX('Import Expenditure Forecast'!$F$8:$P$79,,MATCH(F$98,'Import Expenditure Forecast'!$F$7:$P$7,0)),'Import Expenditure Forecast'!$C$8:$C$79,$B100,'Import Expenditure Forecast'!$E$8:$E$79,$C100,'Import Expenditure Forecast'!$B$8:$B$79,$B$93,'Import Expenditure Forecast'!$D$8:$D$79,$B$96),SUMIFS(INDEX(#REF!,,MATCH(F$98,#REF!,0)),#REF!,$B100,#REF!,$B$93,#REF!,$B$96)) -> 0 | G100: =IF('Control and Output Summary'!$C$14<>"Ergon",SUMIFS(INDEX('Import Expenditure Forecast'!$F$8:$P$79,,MATCH(G$98,'Import Expenditure Forecast'!$F$7:$P$7,0)),'Import Expenditure Forecast'!$C$8:$C$79,$B100,'Import Expenditure Forecast'!$E$8:$E$79,$C100,'Import Expenditure Forecast'!$B$8:$B$79,$B$93,'Import Expenditure Forecast'!$D$8:$D$79,$B$96),SUMIFS(INDEX(#REF!,,MATCH(G$98,#REF!,0)),#REF!,$B100,#REF!,$B$93,#REF!,$B$96)) -> 0 | H100: =IF('Control and Output Summary'!$C$14<>"Ergon",SUMIFS(INDEX('Import Expenditure Forecast'!$F$8:$P$79,,MATCH(H$98,'Import Expenditure Forecast'!$F$7:$P$7,0)),'Import Expenditure Forecast'!$C$8:$C$79,$B100,'Import Expenditure Forecast'!$E$8:$E$79,$C100,'Import Expenditure Forecast'!$B$8:$B$79,$B$93,'Import Expenditure Forecast'!$D$8:$D$79,$B$96),SUMIFS(INDEX(#REF!,,MATCH(H$98,#REF!,0)),#REF!,$B100,#REF!,$B$93,#REF!,$B$96)) -> 0 | I100: =IF('Control and Output Summary'!$C$14<>"Ergon",SUMIFS(INDEX('Import Expenditure Forecast'!$F$8:$P$79,,MATCH(I$98,'Import Expenditure Forecast'!$F$7:$P$7,0)),'Import Expenditure Forecast'!$C$8:$C$79,$B100,'Import Expenditure Forecast'!$E$8:$E$79,$C100,'Import Expenditure Forecast'!$B$8:$B$79,$B$93,'Import Expenditure Forecast'!$D$8:$D$79,$B$96),SUMIFS(INDEX(#REF!,,MATCH(I$98,#REF!,0)),#REF!,$B100,#REF!,$B$93,#REF!,$B$96)) -> 0 | J100: =IF('Control and Output Summary'!$C$14<>"Ergon",SUMIFS(INDEX('Import Expenditure Forecast'!$F$8:$P$79,,MATCH(J$98,'Import Expenditure Forecast'!$F$7:$P$7,0)),'Import Expenditure Forecast'!$C$8:$C$79,$B100,'Import Expenditure Forecast'!$E$8:$E$79,$C100,'Import Expenditure Forecast'!$B$8:$B$79,$B$93,'Import Expenditure Forecast'!$D$8:$D$79,$B$96),SUMIFS(INDEX(#REF!,,MATCH(J$98,#REF!,0)),#REF!,$B100,#REF!,$B$93,#REF!,$B$96)) -> 0 | K100: =IF('Control and Output Summary'!$C$14<>"Ergon",SUMIFS(INDEX('Import Expenditure Forecast'!$F$8:$P$79,,MATCH(K$98,'Import Expenditure Forecast'!$F$7:$P$7,0)),'Import Expenditure Forecast'!$C$8:$C$79,$B100,'Import Expenditure Forecast'!$E$8:$E$79,$C100,'Import Expenditure Forecast'!$B$8:$B$79,$B$93,'Import Expenditure Forecast'!$D$8:$D$79,$B$96),SUMIFS(INDEX(#REF!,,MATCH(K$98,#REF!,0)),#REF!,$B100,#REF!,$B$93,#REF!,$B$96)) -> 0 | L100: =IF('Control and Output Summary'!$C$14<>"Ergon",SUMIFS(INDEX('Import Expenditure Forecast'!$F$8:$P$79,,MATCH(L$98,'Import Expenditure Forecast'!$F$7:$P$7,0)),'Import Expenditure Forecast'!$C$8:$C$79,$B100,'Import Expenditure Forecast'!$E$8:$E$79,$C100,'Import Expenditure Forecast'!$B$8:$B$79,$B$93,'Import Expenditure Forecast'!$D$8:$D$79,$B$96),SUMIFS(INDEX(#REF!,,MATCH(L$98,#REF!,0)),#REF!,$B100,#REF!,$B$93,#REF!,$B$96)) -> 0 | M100: =IF('Control and Output Summary'!$C$14<>"Ergon",SUMIFS(INDEX('Import Expenditure Forecast'!$F$8:$P$79,,MATCH(M$98,'Import Expenditure Forecast'!$F$7:$P$7,0)),'Import Expenditure Forecast'!$C$8:$C$79,$B100,'Import Expenditure Forecast'!$E$8:$E$79,$C100,'Import Expenditure Forecast'!$B$8:$B$79,$B$93,'Import Expenditure Forecast'!$D$8:$D$79,$B$96),SUMIFS(INDEX(#REF!,,MATCH(M$98,#REF!,0)),#REF!,$B100,#REF!,$B$93,#REF!,$B$96)) -> 0 | N100: =IF('Control and Output Summary'!$C$14<>"Ergon",SUMIFS(INDEX('Import Expenditure Forecast'!$F$8:$P$79,,MATCH(N$98,'Import Expenditure Forecast'!$F$7:$P$7,0)),'Import Expenditure Forecast'!$C$8:$C$79,$B100,'Import Expenditure Forecast'!$E$8:$E$79,$C100,'Import Expenditure Forecast'!$B$8:$B$79,$B$93,'Import Expenditure Forecast'!$D$8:$D$79,$B$96),SUMIFS(INDEX(#REF!,,MATCH(N$98,#REF!,0)),#REF!,$B100,#REF!,$B$93,#REF!,$B$96)) -> 0
B101: HV Line | C101: ='Control and Output Summary'!$C$14 -> Energex | D101: =IF('Control and Output Summary'!$C$14<>"Ergon",SUMIFS(INDEX('Import Expenditure Forecast'!$F$8:$P$79,,MATCH(D$98,'Import Expenditure Forecast'!$F$7:$P$7,0)),'Import Expenditure Forecast'!$C$8:$C$79,$B101,'Import Expenditure Forecast'!$E$8:$E$79,$C101,'Import Expenditure Forecast'!$B$8:$B$79,$B$93,'Import Expenditure Forecast'!$D$8:$D$79,$B$96),SUMIFS(INDEX(#REF!,,MATCH(D$98,#REF!,0)),#REF!,$B101,#REF!,$B$93,#REF!,$B$96)) -> 0 | E101: =IF('Control and Output Summary'!$C$14<>"Ergon",SUMIFS(INDEX('Import Expenditure Forecast'!$F$8:$P$79,,MATCH(E$98,'Import Expenditure Forecast'!$F$7:$P$7,0)),'Import Expenditure Forecast'!$C$8:$C$79,$B101,'Import Expenditure Forecast'!$E$8:$E$79,$C101,'Import Expenditure Forecast'!$B$8:$B$79,$B$93,'Import Expenditure Forecast'!$D$8:$D$79,$B$96),SUMIFS(INDEX(#REF!,,MATCH(E$98,#REF!,0)),#REF!,$B101,#REF!,$B$93,#REF!,$B$96)) -> 0 | F101: =IF('Control and Output Summary'!$C$14<>"Ergon",SUMIFS(INDEX('Import Expenditure Forecast'!$F$8:$P$79,,MATCH(F$98,'Import Expenditure Forecast'!$F$7:$P$7,0)),'Import Expenditure Forecast'!$C$8:$C$79,$B101,'Import Expenditure Forecast'!$E$8:$E$79,$C101,'Import Expenditure Forecast'!$B$8:$B$79,$B$93,'Import Expenditure Forecast'!$D$8:$D$79,$B$96),SUMIFS(INDEX(#REF!,,MATCH(F$98,#REF!,0)),#REF!,$B101,#REF!,$B$93,#REF!,$B$96)) -> 0 | G101: =IF('Control and Output Summary'!$C$14<>"Ergon",SUMIFS(INDEX('Import Expenditure Forecast'!$F$8:$P$79,,MATCH(G$98,'Import Expenditure Forecast'!$F$7:$P$7,0)),'Import Expenditure Forecast'!$C$8:$C$79,$B101,'Import Expenditure Forecast'!$E$8:$E$79,$C101,'Import Expenditure Forecast'!$B$8:$B$79,$B$93,'Import Expenditure Forecast'!$D$8:$D$79,$B$96),SUMIFS(INDEX(#REF!,,MATCH(G$98,#REF!,0)),#REF!,$B101,#REF!,$B$93,#REF!,$B$96)) -> 0 | H101: =IF('Control and Output Summary'!$C$14<>"Ergon",SUMIFS(INDEX('Import Expenditure Forecast'!$F$8:$P$79,,MATCH(H$98,'Import Expenditure Forecast'!$F$7:$P$7,0)),'Import Expenditure Forecast'!$C$8:$C$79,$B101,'Import Expenditure Forecast'!$E$8:$E$79,$C101,'Import Expenditure Forecast'!$B$8:$B$79,$B$93,'Import Expenditure Forecast'!$D$8:$D$79,$B$96),SUMIFS(INDEX(#REF!,,MATCH(H$98,#REF!,0)),#REF!,$B101,#REF!,$B$93,#REF!,$B$96)) -> 0 | I101: =IF('Control and Output Summary'!$C$14<>"Ergon",SUMIFS(INDEX('Import Expenditure Forecast'!$F$8:$P$79,,MATCH(I$98,'Import Expenditure Forecast'!$F$7:$P$7,0)),'Import Expenditure Forecast'!$C$8:$C$79,$B101,'Import Expenditure Forecast'!$E$8:$E$79,$C101,'Import Expenditure Forecast'!$B$8:$B$79,$B$93,'Import Expenditure Forecast'!$D$8:$D$79,$B$96),SUMIFS(INDEX(#REF!,,MATCH(I$98,#REF!,0)),#REF!,$B101,#REF!,$B$93,#REF!,$B$96)) -> 0 | J101: =IF('Control and Output Summary'!$C$14<>"Ergon",SUMIFS(INDEX('Import Expenditure Forecast'!$F$8:$P$79,,MATCH(J$98,'Import Expenditure Forecast'!$F$7:$P$7,0)),'Import Expenditure Forecast'!$C$8:$C$79,$B101,'Import Expenditure Forecast'!$E$8:$E$79,$C101,'Import Expenditure Forecast'!$B$8:$B$79,$B$93,'Import Expenditure Forecast'!$D$8:$D$79,$B$96),SUMIFS(INDEX(#REF!,,MATCH(J$98,#REF!,0)),#REF!,$B101,#REF!,$B$93,#REF!,$B$96)) -> 0 | K101: =IF('Control and Output Summary'!$C$14<>"Ergon",SUMIFS(INDEX('Import Expenditure Forecast'!$F$8:$P$79,,MATCH(K$98,'Import Expenditure Forecast'!$F$7:$P$7,0)),'Import Expenditure Forecast'!$C$8:$C$79,$B101,'Import Expenditure Forecast'!$E$8:$E$79,$C101,'Import Expenditure Forecast'!$B$8:$B$79,$B$93,'Import Expenditure Forecast'!$D$8:$D$79,$B$96),SUMIFS(INDEX(#REF!,,MATCH(K$98,#REF!,0)),#REF!,$B101,#REF!,$B$93,#REF!,$B$96)) -> 0 | L101: =IF('Control and Output Summary'!$C$14<>"Ergon",SUMIFS(INDEX('Import Expenditure Forecast'!$F$8:$P$79,,MATCH(L$98,'Import Expenditure Forecast'!$F$7:$P$7,0)),'Import Expenditure Forecast'!$C$8:$C$79,$B101,'Import Expenditure Forecast'!$E$8:$E$79,$C101,'Import Expenditure Forecast'!$B$8:$B$79,$B$93,'Import Expenditure Forecast'!$D$8:$D$79,$B$96),SUMIFS(INDEX(#REF!,,MATCH(L$98,#REF!,0)),#REF!,$B101,#REF!,$B$93,#REF!,$B$96)) -> 0 | M101: =IF('Control and Output Summary'!$C$14<>"Ergon",SUMIFS(INDEX('Import Expenditure Forecast'!$F$8:$P$79,,MATCH(M$98,'Import Expenditure Forecast'!$F$7:$P$7,0)),'Import Expenditure Forecast'!$C$8:$C$79,$B101,'Import Expenditure Forecast'!$E$8:$E$79,$C101,'Import Expenditure Forecast'!$B$8:$B$79,$B$93,'Import Expenditure Forecast'!$D$8:$D$79,$B$96),SUMIFS(INDEX(#REF!,,MATCH(M$98,#REF!,0)),#REF!,$B101,#REF!,$B$93,#REF!,$B$96)) -> 0 | N101: =IF('Control and Output Summary'!$C$14<>"Ergon",SUMIFS(INDEX('Import Expenditure Forecast'!$F$8:$P$79,,MATCH(N$98,'Import Expenditure Forecast'!$F$7:$P$7,0)),'Import Expenditure Forecast'!$C$8:$C$79,$B101,'Import Expenditure Forecast'!$E$8:$E$79,$C101,'Import Expenditure Forecast'!$B$8:$B$79,$B$93,'Import Expenditure Forecast'!$D$8:$D$79,$B$96),SUMIFS(INDEX(#REF!,,MATCH(N$98,#REF!,0)),#REF!,$B101,#REF!,$B$93,#REF!,$B$96)) -> 0
B102: HV Bus | C102: ='Control and Output Summary'!$C$14 -> Energex | D102: =IF('Control and Output Summary'!$C$14<>"Ergon",SUMIFS(INDEX('Import Expenditure Forecast'!$F$8:$P$79,,MATCH(D$98,'Import Expenditure Forecast'!$F$7:$P$7,0)),'Import Expenditure Forecast'!$C$8:$C$79,$B102,'Import Expenditure Forecast'!$E$8:$E$79,$C102,'Import Expenditure Forecast'!$B$8:$B$79,$B$93,'Import Expenditure Forecast'!$D$8:$D$79,$B$96),SUMIFS(INDEX(#REF!,,MATCH(D$98,#REF!,0)),#REF!,$B102,#REF!,$B$93,#REF!,$B$96)) -> 0.00803546 | E102: =IF('Control and Output Summary'!$C$14<>"Ergon",SUMIFS(INDEX('Import Expenditure Forecast'!$F$8:$P$79,,MATCH(E$98,'Import Expenditure Forecast'!$F$7:$P$7,0)),'Import Expenditure Forecast'!$C$8:$C$79,$B102,'Import Expenditure Forecast'!$E$8:$E$79,$C102,'Import Expenditure Forecast'!$B$8:$B$79,$B$93,'Import Expenditure Forecast'!$D$8:$D$79,$B$96),SUMIFS(INDEX(#REF!,,MATCH(E$98,#REF!,0)),#REF!,$B102,#REF!,$B$93,#REF!,$B$96)) -> 0 | F102: =IF('Control and Output Summary'!$C$14<>"Ergon",SUMIFS(INDEX('Import Expenditure Forecast'!$F$8:$P$79,,MATCH(F$98,'Import Expenditure Forecast'!$F$7:$P$7,0)),'Import Expenditure Forecast'!$C$8:$C$79,$B102,'Import Expenditure Forecast'!$E$8:$E$79,$C102,'Import Expenditure Forecast'!$B$8:$B$79,$B$93,'Import Expenditure Forecast'!$D$8:$D$79,$B$96),SUMIFS(INDEX(#REF!,,MATCH(F$98,#REF!,0)),#REF!,$B102,#REF!,$B$93,#REF!,$B$96)) -> 0.31794605 | G102: =IF('Control and Output Summary'!$C$14<>"Ergon",SUMIFS(INDEX('Import Expenditure Forecast'!$F$8:$P$79,,MATCH(G$98,'Import Expenditure Forecast'!$F$7:$P$7,0)),'Import Expenditure Forecast'!$C$8:$C$79,$B102,'Import Expenditure Forecast'!$E$8:$E$79,$C102,'Import Expenditure Forecast'!$B$8:$B$79,$B$93,'Import Expenditure Forecast'!$D$8:$D$79,$B$96),SUMIFS(INDEX(#REF!,,MATCH(G$98,#REF!,0)),#REF!,$B102,#REF!,$B$93,#REF!,$B$96)) -> 0.29299123 | H102: =IF('Control and Output Summary'!$C$14<>"Ergon",SUMIFS(INDEX('Import Expenditure Forecast'!$F$8:$P$79,,MATCH(H$98,'Import Expenditure Forecast'!$F$7:$P$7,0)),'Import Expenditure Forecast'!$C$8:$C$79,$B102,'Import Expenditure Forecast'!$E$8:$E$79,$C102,'Import Expenditure Forecast'!$B$8:$B$79,$B$93,'Import Expenditure Forecast'!$D$8:$D$79,$B$96),SUMIFS(INDEX(#REF!,,MATCH(H$98,#REF!,0)),#REF!,$B102,#REF!,$B$93,#REF!,$B$96)) -> 1.61537551 | I102: =IF('Control and Output Summary'!$C$14<>"Ergon",SUMIFS(INDEX('Import Expenditure Forecast'!$F$8:$P$79,,MATCH(I$98,'Import Expenditure Forecast'!$F$7:$P$7,0)),'Import Expenditure Forecast'!$C$8:$C$79,$B102,'Import Expenditure Forecast'!$E$8:$E$79,$C102,'Import Expenditure Forecast'!$B$8:$B$79,$B$93,'Import Expenditure Forecast'!$D$8:$D$79,$B$96),SUMIFS(INDEX(#REF!,,MATCH(I$98,#REF!,0)),#REF!,$B102,#REF!,$B$93,#REF!,$B$96)) -> 1.19090723 | J102: =IF('Control and Output Summary'!$C$14<>"Ergon",SUMIFS(INDEX('Import Expenditure Forecast'!$F$8:$P$79,,MATCH(J$98,'Import Expenditure Forecast'!$F$7:$P$7,0)),'Import Expenditure Forecast'!$C$8:$C$79,$B102,'Import Expenditure Forecast'!$E$8:$E$79,$C102,'Import Expenditure Forecast'!$B$8:$B$79,$B$93,'Import Expenditure Forecast'!$D$8:$D$79,$B$96),SUMIFS(INDEX(#REF!,,MATCH(J$98,#REF!,0)),#REF!,$B102,#REF!,$B$93,#REF!,$B$96)) -> 0.28883288 | K102: =IF('Control and Output Summary'!$C$14<>"Ergon",SUMIFS(INDEX('Import Expenditure Forecast'!$F$8:$P$79,,MATCH(K$98,'Import Expenditure Forecast'!$F$7:$P$7,0)),'Import Expenditure Forecast'!$C$8:$C$79,$B102,'Import Expenditure Forecast'!$E$8:$E$79,$C102,'Import Expenditure Forecast'!$B$8:$B$79,$B$93,'Import Expenditure Forecast'!$D$8:$D$79,$B$96),SUMIFS(INDEX(#REF!,,MATCH(K$98,#REF!,0)),#REF!,$B102,#REF!,$B$93,#REF!,$B$96)) -> 1.29660786 | L102: =IF('Control and Output Summary'!$C$14<>"Ergon",SUMIFS(INDEX('Import Expenditure Forecast'!$F$8:$P$79,,MATCH(L$98,'Import Expenditure Forecast'!$F$7:$P$7,0)),'Import Expenditure Forecast'!$C$8:$C$79,$B102,'Import Expenditure Forecast'!$E$8:$E$79,$C102,'Import Expenditure Forecast'!$B$8:$B$79,$B$93,'Import Expenditure Forecast'!$D$8:$D$79,$B$96),SUMIFS(INDEX(#REF!,,MATCH(L$98,#REF!,0)),#REF!,$B102,#REF!,$B$93,#REF!,$B$96)) -> 0.9254493233 | M102: =IF('Control and Output Summary'!$C$14<>"Ergon",SUMIFS(INDEX('Import Expenditure Forecast'!$F$8:$P$79,,MATCH(M$98,'Import Expenditure Forecast'!$F$7:$P$7,0)),'Import Expenditure Forecast'!$C$8:$C$79,$B102,'Import Expenditure Forecast'!$E$8:$E$79,$C102,'Import Expenditure Forecast'!$B$8:$B$79,$B$93,'Import Expenditure Forecast'!$D$8:$D$79,$B$96),SUMIFS(INDEX(#REF!,,MATCH(M$98,#REF!,0)),#REF!,$B102,#REF!,$B$93,#REF!,$B$96)) -> 0.9254493233 | N102: =IF('Control and Output Summary'!$C$14<>"Ergon",SUMIFS(INDEX('Import Expenditure Forecast'!$F$8:$P$79,,MATCH(N$98,'Import Expenditure Forecast'!$F$7:$P$7,0)),'Import Expenditure Forecast'!$C$8:$C$79,$B102,'Import Expenditure Forecast'!$E$8:$E$79,$C102,'Import Expenditure Forecast'!$B$8:$B$79,$B$93,'Import Expenditure Forecast'!$D$8:$D$79,$B$96),SUMIFS(INDEX(#REF!,,MATCH(N$98,#REF!,0)),#REF!,$B102,#REF!,$B$93,#REF!,$B$96)) -> 0.9254493233
B103: ST 33/66 kv | C103: ='Control and Output Summary'!$C$14 -> Energex | D103: =IF('Control and Output Summary'!$C$14<>"Ergon",SUMIFS(INDEX('Import Expenditure Forecast'!$F$8:$P$79,,MATCH(D$98,'Import Expenditure Forecast'!$F$7:$P$7,0)),'Import Expenditure Forecast'!$C$8:$C$79,$B103,'Import Expenditure Forecast'!$E$8:$E$79,$C103,'Import Expenditure Forecast'!$B$8:$B$79,$B$93,'Import Expenditure Forecast'!$D$8:$D$79,$B$96),SUMIFS(INDEX(#REF!,,MATCH(D$98,#REF!,0)),#REF!,$B103,#REF!,$B$93,#REF!,$B$96)) -> 0 | E103: =IF('Control and Output Summary'!$C$14<>"Ergon",SUMIFS(INDEX('Import Expenditure Forecast'!$F$8:$P$79,,MATCH(E$98,'Import Expenditure Forecast'!$F$7:$P$7,0)),'Import Expenditure Forecast'!$C$8:$C$79,$B103,'Import Expenditure Forecast'!$E$8:$E$79,$C103,'Import Expenditure Forecast'!$B$8:$B$79,$B$93,'Import Expenditure Forecast'!$D$8:$D$79,$B$96),SUMIFS(INDEX(#REF!,,MATCH(E$98,#REF!,0)),#REF!,$B103,#REF!,$B$93,#REF!,$B$96)) -> 0 | F103: =IF('Control and Output Summary'!$C$14<>"Ergon",SUMIFS(INDEX('Import Expenditure Forecast'!$F$8:$P$79,,MATCH(F$98,'Import Expenditure Forecast'!$F$7:$P$7,0)),'Import Expenditure Forecast'!$C$8:$C$79,$B103,'Import Expenditure Forecast'!$E$8:$E$79,$C103,'Import Expenditure Forecast'!$B$8:$B$79,$B$93,'Import Expenditure Forecast'!$D$8:$D$79,$B$96),SUMIFS(INDEX(#REF!,,MATCH(F$98,#REF!,0)),#REF!,$B103,#REF!,$B$93,#REF!,$B$96)) -> 0 | G103: =IF('Control and Output Summary'!$C$14<>"Ergon",SUMIFS(INDEX('Import Expenditure Forecast'!$F$8:$P$79,,MATCH(G$98,'Import Expenditure Forecast'!$F$7:$P$7,0)),'Import Expenditure Forecast'!$C$8:$C$79,$B103,'Import Expenditure Forecast'!$E$8:$E$79,$C103,'Import Expenditure Forecast'!$B$8:$B$79,$B$93,'Import Expenditure Forecast'!$D$8:$D$79,$B$96),SUMIFS(INDEX(#REF!,,MATCH(G$98,#REF!,0)),#REF!,$B103,#REF!,$B$93,#REF!,$B$96)) -> 0 | H103: =IF('Control and Output Summary'!$C$14<>"Ergon",SUMIFS(INDEX('Import Expenditure Forecast'!$F$8:$P$79,,MATCH(H$98,'Import Expenditure Forecast'!$F$7:$P$7,0)),'Import Expenditure Forecast'!$C$8:$C$79,$B103,'Import Expenditure Forecast'!$E$8:$E$79,$C103,'Import Expenditure Forecast'!$B$8:$B$79,$B$93,'Import Expenditure Forecast'!$D$8:$D$79,$B$96),SUMIFS(INDEX(#REF!,,MATCH(H$98,#REF!,0)),#REF!,$B103,#REF!,$B$93,#REF!,$B$96)) -> 0 | I103: =IF('Control and Output Summary'!$C$14<>"Ergon",SUMIFS(INDEX('Import Expenditure Forecast'!$F$8:$P$79,,MATCH(I$98,'Import Expenditure Forecast'!$F$7:$P$7,0)),'Import Expenditure Forecast'!$C$8:$C$79,$B103,'Import Expenditure Forecast'!$E$8:$E$79,$C103,'Import Expenditure Forecast'!$B$8:$B$79,$B$93,'Import Expenditure Forecast'!$D$8:$D$79,$B$96),SUMIFS(INDEX(#REF!,,MATCH(I$98,#REF!,0)),#REF!,$B103,#REF!,$B$93,#REF!,$B$96)) -> 0 | J103: =IF('Control and Output Summary'!$C$14<>"Ergon",SUMIFS(INDEX('Import Expenditure Forecast'!$F$8:$P$79,,MATCH(J$98,'Import Expenditure Forecast'!$F$7:$P$7,0)),'Import Expenditure Forecast'!$C$8:$C$79,$B103,'Import Expenditure Forecast'!$E$8:$E$79,$C103,'Import Expenditure Forecast'!$B$8:$B$79,$B$93,'Import Expenditure Forecast'!$D$8:$D$79,$B$96),SUMIFS(INDEX(#REF!,,MATCH(J$98,#REF!,0)),#REF!,$B103,#REF!,$B$93,#REF!,$B$96)) -> 0 | K103: =IF('Control and Output Summary'!$C$14<>"Ergon",SUMIFS(INDEX('Import Expenditure Forecast'!$F$8:$P$79,,MATCH(K$98,'Import Expenditure Forecast'!$F$7:$P$7,0)),'Import Expenditure Forecast'!$C$8:$C$79,$B103,'Import Expenditure Forecast'!$E$8:$E$79,$C103,'Import Expenditure Forecast'!$B$8:$B$79,$B$93,'Import Expenditure Forecast'!$D$8:$D$79,$B$96),SUMIFS(INDEX(#REF!,,MATCH(K$98,#REF!,0)),#REF!,$B103,#REF!,$B$93,#REF!,$B$96)) -> 0 | L103: =IF('Control and Output Summary'!$C$14<>"Ergon",SUMIFS(INDEX('Import Expenditure Forecast'!$F$8:$P$79,,MATCH(L$98,'Import Expenditure Forecast'!$F$7:$P$7,0)),'Import Expenditure Forecast'!$C$8:$C$79,$B103,'Import Expenditure Forecast'!$E$8:$E$79,$C103,'Import Expenditure Forecast'!$B$8:$B$79,$B$93,'Import Expenditure Forecast'!$D$8:$D$79,$B$96),SUMIFS(INDEX(#REF!,,MATCH(L$98,#REF!,0)),#REF!,$B103,#REF!,$B$93,#REF!,$B$96)) -> 0 | M103: =IF('Control and Output Summary'!$C$14<>"Ergon",SUMIFS(INDEX('Import Expenditure Forecast'!$F$8:$P$79,,MATCH(M$98,'Import Expenditure Forecast'!$F$7:$P$7,0)),'Import Expenditure Forecast'!$C$8:$C$79,$B103,'Import Expenditure Forecast'!$E$8:$E$79,$C103,'Import Expenditure Forecast'!$B$8:$B$79,$B$93,'Import Expenditure Forecast'!$D$8:$D$79,$B$96),SUMIFS(INDEX(#REF!,,MATCH(M$98,#REF!,0)),#REF!,$B103,#REF!,$B$93,#REF!,$B$96)) -> 0 | N103: =IF('Control and Output Summary'!$C$14<>"Ergon",SUMIFS(INDEX('Import Expenditure Forecast'!$F$8:$P$79,,MATCH(N$98,'Import Expenditure Forecast'!$F$7:$P$7,0)),'Import Expenditure Forecast'!$C$8:$C$79,$B103,'Import Expenditure Forecast'!$E$8:$E$79,$C103,'Import Expenditure Forecast'!$B$8:$B$79,$B$93,'Import Expenditure Forecast'!$D$8:$D$79,$B$96),SUMIFS(INDEX(#REF!,,MATCH(N$98,#REF!,0)),#REF!,$B103,#REF!,$B$93,#REF!,$B$96)) -> 0
B104: ST 110/132 kv | C104: ='Control and Output Summary'!$C$14 -> Energex | D104: =IF('Control and Output Summary'!$C$14<>"Ergon",SUMIFS(INDEX('Import Expenditure Forecast'!$F$8:$P$79,,MATCH(D$98,'Import Expenditure Forecast'!$F$7:$P$7,0)),'Import Expenditure Forecast'!$C$8:$C$79,$B104,'Import Expenditure Forecast'!$E$8:$E$79,$C104,'Import Expenditure Forecast'!$B$8:$B$79,$B$93,'Import Expenditure Forecast'!$D$8:$D$79,$B$96),SUMIFS(INDEX(#REF!,,MATCH(D$98,#REF!,0)),#REF!,$B104,#REF!,$B$93,#REF!,$B$96)) -> 0 | E104: =IF('Control and Output Summary'!$C$14<>"Ergon",SUMIFS(INDEX('Import Expenditure Forecast'!$F$8:$P$79,,MATCH(E$98,'Import Expenditure Forecast'!$F$7:$P$7,0)),'Import Expenditure Forecast'!$C$8:$C$79,$B104,'Import Expenditure Forecast'!$E$8:$E$79,$C104,'Import Expenditure Forecast'!$B$8:$B$79,$B$93,'Import Expenditure Forecast'!$D$8:$D$79,$B$96),SUMIFS(INDEX(#REF!,,MATCH(E$98,#REF!,0)),#REF!,$B104,#REF!,$B$93,#REF!,$B$96)) -> 0 | F104: =IF('Control and Output Summary'!$C$14<>"Ergon",SUMIFS(INDEX('Import Expenditure Forecast'!$F$8:$P$79,,MATCH(F$98,'Import Expenditure Forecast'!$F$7:$P$7,0)),'Import Expenditure Forecast'!$C$8:$C$79,$B104,'Import Expenditure Forecast'!$E$8:$E$79,$C104,'Import Expenditure Forecast'!$B$8:$B$79,$B$93,'Import Expenditure Forecast'!$D$8:$D$79,$B$96),SUMIFS(INDEX(#REF!,,MATCH(F$98,#REF!,0)),#REF!,$B104,#REF!,$B$93,#REF!,$B$96)) -> 0 | G104: =IF('Control and Output Summary'!$C$14<>"Ergon",SUMIFS(INDEX('Import Expenditure Forecast'!$F$8:$P$79,,MATCH(G$98,'Import Expenditure Forecast'!$F$7:$P$7,0)),'Import Expenditure Forecast'!$C$8:$C$79,$B104,'Import Expenditure Forecast'!$E$8:$E$79,$C104,'Import Expenditure Forecast'!$B$8:$B$79,$B$93,'Import Expenditure Forecast'!$D$8:$D$79,$B$96),SUMIFS(INDEX(#REF!,,MATCH(G$98,#REF!,0)),#REF!,$B104,#REF!,$B$93,#REF!,$B$96)) -> 0 | H104: =IF('Control and Output Summary'!$C$14<>"Ergon",SUMIFS(INDEX('Import Expenditure Forecast'!$F$8:$P$79,,MATCH(H$98,'Import Expenditure Forecast'!$F$7:$P$7,0)),'Import Expenditure Forecast'!$C$8:$C$79,$B104,'Import Expenditure Forecast'!$E$8:$E$79,$C104,'Import Expenditure Forecast'!$B$8:$B$79,$B$93,'Import Expenditure Forecast'!$D$8:$D$79,$B$96),SUMIFS(INDEX(#REF!,,MATCH(H$98,#REF!,0)),#REF!,$B104,#REF!,$B$93,#REF!,$B$96)) -> 0 | I104: =IF('Control and Output Summary'!$C$14<>"Ergon",SUMIFS(INDEX('Import Expenditure Forecast'!$F$8:$P$79,,MATCH(I$98,'Import Expenditure Forecast'!$F$7:$P$7,0)),'Import Expenditure Forecast'!$C$8:$C$79,$B104,'Import Expenditure Forecast'!$E$8:$E$79,$C104,'Import Expenditure Forecast'!$B$8:$B$79,$B$93,'Import Expenditure Forecast'!$D$8:$D$79,$B$96),SUMIFS(INDEX(#REF!,,MATCH(I$98,#REF!,0)),#REF!,$B104,#REF!,$B$93,#REF!,$B$96)) -> 0 | J104: =IF('Control and Output Summary'!$C$14<>"Ergon",SUMIFS(INDEX('Import Expenditure Forecast'!$F$8:$P$79,,MATCH(J$98,'Import Expenditure Forecast'!$F$7:$P$7,0)),'Import Expenditure Forecast'!$C$8:$C$79,$B104,'Import Expenditure Forecast'!$E$8:$E$79,$C104,'Import Expenditure Forecast'!$B$8:$B$79,$B$93,'Import Expenditure Forecast'!$D$8:$D$79,$B$96),SUMIFS(INDEX(#REF!,,MATCH(J$98,#REF!,0)),#REF!,$B104,#REF!,$B$93,#REF!,$B$96)) -> 0 | K104: =IF('Control and Output Summary'!$C$14<>"Ergon",SUMIFS(INDEX('Import Expenditure Forecast'!$F$8:$P$79,,MATCH(K$98,'Import Expenditure Forecast'!$F$7:$P$7,0)),'Import Expenditure Forecast'!$C$8:$C$79,$B104,'Import Expenditure Forecast'!$E$8:$E$79,$C104,'Import Expenditure Forecast'!$B$8:$B$79,$B$93,'Import Expenditure Forecast'!$D$8:$D$79,$B$96),SUMIFS(INDEX(#REF!,,MATCH(K$98,#REF!,0)),#REF!,$B104,#REF!,$B$93,#REF!,$B$96)) -> 0 | L104: =IF('Control and Output Summary'!$C$14<>"Ergon",SUMIFS(INDEX('Import Expenditure Forecast'!$F$8:$P$79,,MATCH(L$98,'Import Expenditure Forecast'!$F$7:$P$7,0)),'Import Expenditure Forecast'!$C$8:$C$79,$B104,'Import Expenditure Forecast'!$E$8:$E$79,$C104,'Import Expenditure Forecast'!$B$8:$B$79,$B$93,'Import Expenditure Forecast'!$D$8:$D$79,$B$96),SUMIFS(INDEX(#REF!,,MATCH(L$98,#REF!,0)),#REF!,$B104,#REF!,$B$93,#REF!,$B$96)) -> 0 | M104: =IF('Control and Output Summary'!$C$14<>"Ergon",SUMIFS(INDEX('Import Expenditure Forecast'!$F$8:$P$79,,MATCH(M$98,'Import Expenditure Forecast'!$F$7:$P$7,0)),'Import Expenditure Forecast'!$C$8:$C$79,$B104,'Import Expenditure Forecast'!$E$8:$E$79,$C104,'Import Expenditure Forecast'!$B$8:$B$79,$B$93,'Import Expenditure Forecast'!$D$8:$D$79,$B$96),SUMIFS(INDEX(#REF!,,MATCH(M$98,#REF!,0)),#REF!,$B104,#REF!,$B$93,#REF!,$B$96)) -> 0 | N104: =IF('Control and Output Summary'!$C$14<>"Ergon",SUMIFS(INDEX('Import Expenditure Forecast'!$F$8:$P$79,,MATCH(N$98,'Import Expenditure Forecast'!$F$7:$P$7,0)),'Import Expenditure Forecast'!$C$8:$C$79,$B104,'Import Expenditure Forecast'!$E$8:$E$79,$C104,'Import Expenditure Forecast'!$B$8:$B$79,$B$93,'Import Expenditure Forecast'!$D$8:$D$79,$B$96),SUMIFS(INDEX(#REF!,,MATCH(N$98,#REF!,0)),#REF!,$B104,#REF!,$B$93,#REF!,$B$96)) -> 0
B107: Total Capex ($m)
B109: Voltage Level | C109: Pricing Zone | D109: =D$18 -> 2023 | E109: 2024 | F109: 2025 | G109: 2026 | H109: 2027 | I109: 2028 | J109: 2029 | K109: 2030 | L109: 2031 | M109: 2032 | N109: 2033
B110: LV Line | C110: ='Control and Output Summary'!$C$14 -> Energex | D110: =D99 -> 0 | E110: 0 | F110: 0 | G110: 0 | H110: 0 | I110: 0 | J110: 0 | K110: 0 | L110: 0 | M110: 0 | N110: 0
B111: LV Bus | C111: ='Control and Output Summary'!$C$14 -> Energex | D111: =D100 -> 0 | E111: 0 | F111: 0 | G111: 0 | H111: 0 | I111: 0 | J111: 0 | K111: 0 | L111: 0 | M111: 0 | N111: 0
B112: HV Line | C112: ='Control and Output Summary'!$C$14 -> Energex | D112: =D101 -> 0 | E112: 0 | F112: 0 | G112: 0 | H112: 0 | I112: 0 | J112: 0 | K112: 0 | L112: 0 | M112: 0 | N112: 0
B113: HV Bus | C113: ='Control and Output Summary'!$C$14 -> Energex | D113: =D102 -> 0.00803546 | E113: 0 | F113: 0.31794605 | G113: 0.29299123 | H113: 1.61537551 | I113: 1.19090723 | J113: 0.28883288 | K113: 1.29660786 | L113: 0.9254493233 | M113: 0.9254493233 | N113: 0.9254493233
B114: ST 33/66 kv | C114: ='Control and Output Summary'!$C$14 -> Energex | D114: =D103 -> 0 | E114: 0 | F114: 0 | G114: 0 | H114: 0 | I114: 0 | J114: 0 | K114: 0 | L114: 0 | M114: 0 | N114: 0
B115: ST 110/132 kv | C115: ='Control and Output Summary'!$C$14 -> Energex | D115: =D104 -> 0 | E115: 0 | F115: 0 | G115: 0 | H115: 0 | I115: 0 | J115: 0 | K115: 0 | L115: 0 | M115: 0 | N115: 0
B118: Annualised Capex ($m)
B120: Voltage Level | C120: Pricing Zone | D120: =D$29 -> 2023 | E120: 2024 | F120: 2025 | G120: 2026 | H120: 2027 | I120: 2028 | J120: 2029 | K120: 2030 | L120: 2031 | M120: 2032 | N120: 2033
B121: LV Line | C121: ='Control and Output Summary'!$C$14 -> Energex | D121: =IF('Control and Output Summary'!$C$14<>"Ergon",-PMT('Control and Output Summary'!$C$6,INDEX('Asset Specification'!$G$8:$G$43,MATCH(1,($B121= 'Asset Specification'!$B$8:$B$43)*($C121 ='Asset Specification'!$C$8:$C$43) * ("Import" = 'Asset Specification'!$D$8:$D$43),0)),D110),-PMT('Control and Output Summary'!$C$6,INDEX(#REF!,MATCH(1,($B121 =#REF!) * ("Import" =#REF!),0)),D110)) -> 0 | E121: =IF('Control and Output Summary'!$C$14<>"Ergon",-PMT('Control and Output Summary'!$C$6,INDEX('Asset Specification'!$G$8:$G$43,MATCH(1,($B121= 'Asset Specification'!$B$8:$B$43)*($C121 ='Asset Specification'!$C$8:$C$43) * ("Import" = 'Asset Specification'!$D$8:$D$43),0)),E110),-PMT('Control and Output Summary'!$C$6,INDEX(#REF!,MATCH(1,($B121 =#REF!) * ("Import" =#REF!),0)),E110)) -> 0 | F121: =IF('Control and Output Summary'!$C$14<>"Ergon",-PMT('Control and Output Summary'!$C$6,INDEX('Asset Specification'!$G$8:$G$43,MATCH(1,($B121= 'Asset Specification'!$B$8:$B$43)*($C121 ='Asset Specification'!$C$8:$C$43) * ("Import" = 'Asset Specification'!$D$8:$D$43),0)),F110),-PMT('Control and Output Summary'!$C$6,INDEX(#REF!,MATCH(1,($B121 =#REF!) * ("Import" =#REF!),0)),F110)) -> 0 | G121: =IF('Control and Output Summary'!$C$14<>"Ergon",-PMT('Control and Output Summary'!$C$6,INDEX('Asset Specification'!$G$8:$G$43,MATCH(1,($B121= 'Asset Specification'!$B$8:$B$43)*($C121 ='Asset Specification'!$C$8:$C$43) * ("Import" = 'Asset Specification'!$D$8:$D$43),0)),G110),-PMT('Control and Output Summary'!$C$6,INDEX(#REF!,MATCH(1,($B121 =#REF!) * ("Import" =#REF!),0)),G110)) -> 0 | H121: =IF('Control and Output Summary'!$C$14<>"Ergon",-PMT('Control and Output Summary'!$C$6,INDEX('Asset Specification'!$G$8:$G$43,MATCH(1,($B121= 'Asset Specification'!$B$8:$B$43)*($C121 ='Asset Specification'!$C$8:$C$43) * ("Import" = 'Asset Specification'!$D$8:$D$43),0)),H110),-PMT('Control and Output Summary'!$C$6,INDEX(#REF!,MATCH(1,($B121 =#REF!) * ("Import" =#REF!),0)),H110)) -> 0 | I121: =IF('Control and Output Summary'!$C$14<>"Ergon",-PMT('Control and Output Summary'!$C$6,INDEX('Asset Specification'!$G$8:$G$43,MATCH(1,($B121= 'Asset Specification'!$B$8:$B$43)*($C121 ='Asset Specification'!$C$8:$C$43) * ("Import" = 'Asset Specification'!$D$8:$D$43),0)),I110),-PMT('Control and Output Summary'!$C$6,INDEX(#REF!,MATCH(1,($B121 =#REF!) * ("Import" =#REF!),0)),I110)) -> 0 | J121: =IF('Control and Output Summary'!$C$14<>"Ergon",-PMT('Control and Output Summary'!$C$6,INDEX('Asset Specification'!$G$8:$G$43,MATCH(1,($B121= 'Asset Specification'!$B$8:$B$43)*($C121 ='Asset Specification'!$C$8:$C$43) * ("Import" = 'Asset Specification'!$D$8:$D$43),0)),J110),-PMT('Control and Output Summary'!$C$6,INDEX(#REF!,MATCH(1,($B121 =#REF!) * ("Import" =#REF!),0)),J110)) -> 0 | K121: =IF('Control and Output Summary'!$C$14<>"Ergon",-PMT('Control and Output Summary'!$C$6,INDEX('Asset Specification'!$G$8:$G$43,MATCH(1,($B121= 'Asset Specification'!$B$8:$B$43)*($C121 ='Asset Specification'!$C$8:$C$43) * ("Import" = 'Asset Specification'!$D$8:$D$43),0)),K110),-PMT('Control and Output Summary'!$C$6,INDEX(#REF!,MATCH(1,($B121 =#REF!) * ("Import" =#REF!),0)),K110)) -> 0 | L121: =IF('Control and Output Summary'!$C$14<>"Ergon",-PMT('Control and Output Summary'!$C$6,INDEX('Asset Specification'!$G$8:$G$43,MATCH(1,($B121= 'Asset Specification'!$B$8:$B$43)*($C121 ='Asset Specification'!$C$8:$C$43) * ("Import" = 'Asset Specification'!$D$8:$D$43),0)),L110),-PMT('Control and Output Summary'!$C$6,INDEX(#REF!,MATCH(1,($B121 =#REF!) * ("Import" =#REF!),0)),L110)) -> 0 | M121: =IF('Control and Output Summary'!$C$14<>"Ergon",-PMT('Control and Output Summary'!$C$6,INDEX('Asset Specification'!$G$8:$G$43,MATCH(1,($B121= 'Asset Specification'!$B$8:$B$43)*($C121 ='Asset Specification'!$C$8:$C$43) * ("Import" = 'Asset Specification'!$D$8:$D$43),0)),M110),-PMT('Control and Output Summary'!$C$6,INDEX(#REF!,MATCH(1,($B121 =#REF!) * ("Import" =#REF!),0)),M110)) -> 0 | N121: =IF('Control and Output Summary'!$C$14<>"Ergon",-PMT('Control and Output Summary'!$C$6,INDEX('Asset Specification'!$G$8:$G$43,MATCH(1,($B121= 'Asset Specification'!$B$8:$B$43)*($C121 ='Asset Specification'!$C$8:$C$43) * ("Import" = 'Asset Specification'!$D$8:$D$43),0)),N110),-PMT('Control and Output Summary'!$C$6,INDEX(#REF!,MATCH(1,($B121 =#REF!) * ("Import" =#REF!),0)),N110)) -> 0
B122: LV Bus | C122: ='Control and Output Summary'!$C$14 -> Energex | D122: =IF('Control and Output Summary'!$C$14<>"Ergon",-PMT('Control and Output Summary'!$C$6,INDEX('Asset Specification'!$G$8:$G$43,MATCH(1,($B122= 'Asset Specification'!$B$8:$B$43)*($C122 ='Asset Specification'!$C$8:$C$43) * ("Import" = 'Asset Specification'!$D$8:$D$43),0)),D111),-PMT('Control and Output Summary'!$C$6,INDEX(#REF!,MATCH(1,($B122 =#REF!) * ("Import" =#REF!),0)),D111)) -> 0 | E122: =IF('Control and Output Summary'!$C$14<>"Ergon",-PMT('Control and Output Summary'!$C$6,INDEX('Asset Specification'!$G$8:$G$43,MATCH(1,($B122= 'Asset Specification'!$B$8:$B$43)*($C122 ='Asset Specification'!$C$8:$C$43) * ("Import" = 'Asset Specification'!$D$8:$D$43),0)),E111),-PMT('Control and Output Summary'!$C$6,INDEX(#REF!,MATCH(1,($B122 =#REF!) * ("Import" =#REF!),0)),E111)) -> 0 | F122: =IF('Control and Output Summary'!$C$14<>"Ergon",-PMT('Control and Output Summary'!$C$6,INDEX('Asset Specification'!$G$8:$G$43,MATCH(1,($B122= 'Asset Specification'!$B$8:$B$43)*($C122 ='Asset Specification'!$C$8:$C$43) * ("Import" = 'Asset Specification'!$D$8:$D$43),0)),F111),-PMT('Control and Output Summary'!$C$6,INDEX(#REF!,MATCH(1,($B122 =#REF!) * ("Import" =#REF!),0)),F111)) -> 0 | G122: =IF('Control and Output Summary'!$C$14<>"Ergon",-PMT('Control and Output Summary'!$C$6,INDEX('Asset Specification'!$G$8:$G$43,MATCH(1,($B122= 'Asset Specification'!$B$8:$B$43)*($C122 ='Asset Specification'!$C$8:$C$43) * ("Import" = 'Asset Specification'!$D$8:$D$43),0)),G111),-PMT('Control and Output Summary'!$C$6,INDEX(#REF!,MATCH(1,($B122 =#REF!) * ("Import" =#REF!),0)),G111)) -> 0 | H122: =IF('Control and Output Summary'!$C$14<>"Ergon",-PMT('Control and Output Summary'!$C$6,INDEX('Asset Specification'!$G$8:$G$43,MATCH(1,($B122= 'Asset Specification'!$B$8:$B$43)*($C122 ='Asset Specification'!$C$8:$C$43) * ("Import" = 'Asset Specification'!$D$8:$D$43),0)),H111),-PMT('Control and Output Summary'!$C$6,INDEX(#REF!,MATCH(1,($B122 =#REF!) * ("Import" =#REF!),0)),H111)) -> 0 | I122: =IF('Control and Output Summary'!$C$14<>"Ergon",-PMT('Control and Output Summary'!$C$6,INDEX('Asset Specification'!$G$8:$G$43,MATCH(1,($B122= 'Asset Specification'!$B$8:$B$43)*($C122 ='Asset Specification'!$C$8:$C$43) * ("Import" = 'Asset Specification'!$D$8:$D$43),0)),I111),-PMT('Control and Output Summary'!$C$6,INDEX(#REF!,MATCH(1,($B122 =#REF!) * ("Import" =#REF!),0)),I111)) -> 0 | J122: =IF('Control and Output Summary'!$C$14<>"Ergon",-PMT('Control and Output Summary'!$C$6,INDEX('Asset Specification'!$G$8:$G$43,MATCH(1,($B122= 'Asset Specification'!$B$8:$B$43)*($C122 ='Asset Specification'!$C$8:$C$43) * ("Import" = 'Asset Specification'!$D$8:$D$43),0)),J111),-PMT('Control and Output Summary'!$C$6,INDEX(#REF!,MATCH(1,($B122 =#REF!) * ("Import" =#REF!),0)),J111)) -> 0 | K122: =IF('Control and Output Summary'!$C$14<>"Ergon",-PMT('Control and Output Summary'!$C$6,INDEX('Asset Specification'!$G$8:$G$43,MATCH(1,($B122= 'Asset Specification'!$B$8:$B$43)*($C122 ='Asset Specification'!$C$8:$C$43) * ("Import" = 'Asset Specification'!$D$8:$D$43),0)),K111),-PMT('Control and Output Summary'!$C$6,INDEX(#REF!,MATCH(1,($B122 =#REF!) * ("Import" =#REF!),0)),K111)) -> 0 | L122: =IF('Control and Output Summary'!$C$14<>"Ergon",-PMT('Control and Output Summary'!$C$6,INDEX('Asset Specification'!$G$8:$G$43,MATCH(1,($B122= 'Asset Specification'!$B$8:$B$43)*($C122 ='Asset Specification'!$C$8:$C$43) * ("Import" = 'Asset Specification'!$D$8:$D$43),0)),L111),-PMT('Control and Output Summary'!$C$6,INDEX(#REF!,MATCH(1,($B122 =#REF!) * ("Import" =#REF!),0)),L111)) -> 0 | M122: =IF('Control and Output Summary'!$C$14<>"Ergon",-PMT('Control and Output Summary'!$C$6,INDEX('Asset Specification'!$G$8:$G$43,MATCH(1,($B122= 'Asset Specification'!$B$8:$B$43)*($C122 ='Asset Specification'!$C$8:$C$43) * ("Import" = 'Asset Specification'!$D$8:$D$43),0)),M111),-PMT('Control and Output Summary'!$C$6,INDEX(#REF!,MATCH(1,($B122 =#REF!) * ("Import" =#REF!),0)),M111)) -> 0 | N122: =IF('Control and Output Summary'!$C$14<>"Ergon",-PMT('Control and Output Summary'!$C$6,INDEX('Asset Specification'!$G$8:$G$43,MATCH(1,($B122= 'Asset Specification'!$B$8:$B$43)*($C122 ='Asset Specification'!$C$8:$C$43) * ("Import" = 'Asset Specification'!$D$8:$D$43),0)),N111),-PMT('Control and Output Summary'!$C$6,INDEX(#REF!,MATCH(1,($B122 =#REF!) * ("Import" =#REF!),0)),N111)) -> 0
B123: HV Line | C123: ='Control and Output Summary'!$C$14 -> Energex | D123: =IF('Control and Output Summary'!$C$14<>"Ergon",-PMT('Control and Output Summary'!$C$6,INDEX('Asset Specification'!$G$8:$G$43,MATCH(1,($B123= 'Asset Specification'!$B$8:$B$43)*($C123 ='Asset Specification'!$C$8:$C$43) * ("Import" = 'Asset Specification'!$D$8:$D$43),0)),D112),-PMT('Control and Output Summary'!$C$6,INDEX(#REF!,MATCH(1,($B123 =#REF!) * ("Import" =#REF!),0)),D112)) -> 0 | E123: =IF('Control and Output Summary'!$C$14<>"Ergon",-PMT('Control and Output Summary'!$C$6,INDEX('Asset Specification'!$G$8:$G$43,MATCH(1,($B123= 'Asset Specification'!$B$8:$B$43)*($C123 ='Asset Specification'!$C$8:$C$43) * ("Import" = 'Asset Specification'!$D$8:$D$43),0)),E112),-PMT('Control and Output Summary'!$C$6,INDEX(#REF!,MATCH(1,($B123 =#REF!) * ("Import" =#REF!),0)),E112)) -> 0 | F123: =IF('Control and Output Summary'!$C$14<>"Ergon",-PMT('Control and Output Summary'!$C$6,INDEX('Asset Specification'!$G$8:$G$43,MATCH(1,($B123= 'Asset Specification'!$B$8:$B$43)*($C123 ='Asset Specification'!$C$8:$C$43) * ("Import" = 'Asset Specification'!$D$8:$D$43),0)),F112),-PMT('Control and Output Summary'!$C$6,INDEX(#REF!,MATCH(1,($B123 =#REF!) * ("Import" =#REF!),0)),F112)) -> 0 | G123: =IF('Control and Output Summary'!$C$14<>"Ergon",-PMT('Control and Output Summary'!$C$6,INDEX('Asset Specification'!$G$8:$G$43,MATCH(1,($B123= 'Asset Specification'!$B$8:$B$43)*($C123 ='Asset Specification'!$C$8:$C$43) * ("Import" = 'Asset Specification'!$D$8:$D$43),0)),G112),-PMT('Control and Output Summary'!$C$6,INDEX(#REF!,MATCH(1,($B123 =#REF!) * ("Import" =#REF!),0)),G112)) -> 0 | H123: =IF('Control and Output Summary'!$C$14<>"Ergon",-PMT('Control and Output Summary'!$C$6,INDEX('Asset Specification'!$G$8:$G$43,MATCH(1,($B123= 'Asset Specification'!$B$8:$B$43)*($C123 ='Asset Specification'!$C$8:$C$43) * ("Import" = 'Asset Specification'!$D$8:$D$43),0)),H112),-PMT('Control and Output Summary'!$C$6,INDEX(#REF!,MATCH(1,($B123 =#REF!) * ("Import" =#REF!),0)),H112)) -> 0 | I123: =IF('Control and Output Summary'!$C$14<>"Ergon",-PMT('Control and Output Summary'!$C$6,INDEX('Asset Specification'!$G$8:$G$43,MATCH(1,($B123= 'Asset Specification'!$B$8:$B$43)*($C123 ='Asset Specification'!$C$8:$C$43) * ("Import" = 'Asset Specification'!$D$8:$D$43),0)),I112),-PMT('Control and Output Summary'!$C$6,INDEX(#REF!,MATCH(1,($B123 =#REF!) * ("Import" =#REF!),0)),I112)) -> 0 | J123: =IF('Control and Output Summary'!$C$14<>"Ergon",-PMT('Control and Output Summary'!$C$6,INDEX('Asset Specification'!$G$8:$G$43,MATCH(1,($B123= 'Asset Specification'!$B$8:$B$43)*($C123 ='Asset Specification'!$C$8:$C$43) * ("Import" = 'Asset Specification'!$D$8:$D$43),0)),J112),-PMT('Control and Output Summary'!$C$6,INDEX(#REF!,MATCH(1,($B123 =#REF!) * ("Import" =#REF!),0)),J112)) -> 0 | K123: =IF('Control and Output Summary'!$C$14<>"Ergon",-PMT('Control and Output Summary'!$C$6,INDEX('Asset Specification'!$G$8:$G$43,MATCH(1,($B123= 'Asset Specification'!$B$8:$B$43)*($C123 ='Asset Specification'!$C$8:$C$43) * ("Import" = 'Asset Specification'!$D$8:$D$43),0)),K112),-PMT('Control and Output Summary'!$C$6,INDEX(#REF!,MATCH(1,($B123 =#REF!) * ("Import" =#REF!),0)),K112)) -> 0 | L123: =IF('Control and Output Summary'!$C$14<>"Ergon",-PMT('Control and Output Summary'!$C$6,INDEX('Asset Specification'!$G$8:$G$43,MATCH(1,($B123= 'Asset Specification'!$B$8:$B$43)*($C123 ='Asset Specification'!$C$8:$C$43) * ("Import" = 'Asset Specification'!$D$8:$D$43),0)),L112),-PMT('Control and Output Summary'!$C$6,INDEX(#REF!,MATCH(1,($B123 =#REF!) * ("Import" =#REF!),0)),L112)) -> 0 | M123: =IF('Control and Output Summary'!$C$14<>"Ergon",-PMT('Control and Output Summary'!$C$6,INDEX('Asset Specification'!$G$8:$G$43,MATCH(1,($B123= 'Asset Specification'!$B$8:$B$43)*($C123 ='Asset Specification'!$C$8:$C$43) * ("Import" = 'Asset Specification'!$D$8:$D$43),0)),M112),-PMT('Control and Output Summary'!$C$6,INDEX(#REF!,MATCH(1,($B123 =#REF!) * ("Import" =#REF!),0)),M112)) -> 0 | N123: =IF('Control and Output Summary'!$C$14<>"Ergon",-PMT('Control and Output Summary'!$C$6,INDEX('Asset Specification'!$G$8:$G$43,MATCH(1,($B123= 'Asset Specification'!$B$8:$B$43)*($C123 ='Asset Specification'!$C$8:$C$43) * ("Import" = 'Asset Specification'!$D$8:$D$43),0)),N112),-PMT('Control and Output Summary'!$C$6,INDEX(#REF!,MATCH(1,($B123 =#REF!) * ("Import" =#REF!),0)),N112)) -> 0
B124: HV Bus | C124: ='Control and Output Summary'!$C$14 -> Energex | D124: =IF('Control and Output Summary'!$C$14<>"Ergon",-PMT('Control and Output Summary'!$C$6,INDEX('Asset Specification'!$G$8:$G$43,MATCH(1,($B124= 'Asset Specification'!$B$8:$B$43)*($C124 ='Asset Specification'!$C$8:$C$43) * ("Import" = 'Asset Specification'!$D$8:$D$43),0)),D113),-PMT('Control and Output Summary'!$C$6,INDEX(#REF!,MATCH(1,($B124 =#REF!) * ("Import" =#REF!),0)),D113)) -> 0.0003434555909 | E124: =IF('Control and Output Summary'!$C$14<>"Ergon",-PMT('Control and Output Summary'!$C$6,INDEX('Asset Specification'!$G$8:$G$43,MATCH(1,($B124= 'Asset Specification'!$B$8:$B$43)*($C124 ='Asset Specification'!$C$8:$C$43) * ("Import" = 'Asset Specification'!$D$8:$D$43),0)),E113),-PMT('Control and Output Summary'!$C$6,INDEX(#REF!,MATCH(1,($B124 =#REF!) * ("Import" =#REF!),0)),E113)) -> 0 | F124: =IF('Control and Output Summary'!$C$14<>"Ergon",-PMT('Control and Output Summary'!$C$6,INDEX('Asset Specification'!$G$8:$G$43,MATCH(1,($B124= 'Asset Specification'!$B$8:$B$43)*($C124 ='Asset Specification'!$C$8:$C$43) * ("Import" = 'Asset Specification'!$D$8:$D$43),0)),F113),-PMT('Control and Output Summary'!$C$6,INDEX(#REF!,MATCH(1,($B124 =#REF!) * ("Import" =#REF!),0)),F113)) -> 0.01358980674 | G124: =IF('Control and Output Summary'!$C$14<>"Ergon",-PMT('Control and Output Summary'!$C$6,INDEX('Asset Specification'!$G$8:$G$43,MATCH(1,($B124= 'Asset Specification'!$B$8:$B$43)*($C124 ='Asset Specification'!$C$8:$C$43) * ("Import" = 'Asset Specification'!$D$8:$D$43),0)),G113),-PMT('Control and Output Summary'!$C$6,INDEX(#REF!,MATCH(1,($B124 =#REF!) * ("Import" =#REF!),0)),G113)) -> 0.01252317553 | H124: =IF('Control and Output Summary'!$C$14<>"Ergon",-PMT('Control and Output Summary'!$C$6,INDEX('Asset Specification'!$G$8:$G$43,MATCH(1,($B124= 'Asset Specification'!$B$8:$B$43)*($C124 ='Asset Specification'!$C$8:$C$43) * ("Import" = 'Asset Specification'!$D$8:$D$43),0)),H113),-PMT('Control and Output Summary'!$C$6,INDEX(#REF!,MATCH(1,($B124 =#REF!) * ("Import" =#REF!),0)),H113)) -> 0.06904517605 | I124: =IF('Control and Output Summary'!$C$14<>"Ergon",-PMT('Control and Output Summary'!$C$6,INDEX('Asset Specification'!$G$8:$G$43,MATCH(1,($B124= 'Asset Specification'!$B$8:$B$43)*($C124 ='Asset Specification'!$C$8:$C$43) * ("Import" = 'Asset Specification'!$D$8:$D$43),0)),I113),-PMT('Control and Output Summary'!$C$6,INDEX(#REF!,MATCH(1,($B124 =#REF!) * ("Import" =#REF!),0)),I113)) -> 0.05090234366 | J124: =IF('Control and Output Summary'!$C$14<>"Ergon",-PMT('Control and Output Summary'!$C$6,INDEX('Asset Specification'!$G$8:$G$43,MATCH(1,($B124= 'Asset Specification'!$B$8:$B$43)*($C124 ='Asset Specification'!$C$8:$C$43) * ("Import" = 'Asset Specification'!$D$8:$D$43),0)),J113),-PMT('Control and Output Summary'!$C$6,INDEX(#REF!,MATCH(1,($B124 =#REF!) * ("Import" =#REF!),0)),J113)) -> 0.01234543728 | K124: =IF('Control and Output Summary'!$C$14<>"Ergon",-PMT('Control and Output Summary'!$C$6,INDEX('Asset Specification'!$G$8:$G$43,MATCH(1,($B124= 'Asset Specification'!$B$8:$B$43)*($C124 ='Asset Specification'!$C$8:$C$43) * ("Import" = 'Asset Specification'!$D$8:$D$43),0)),K113),-PMT('Control and Output Summary'!$C$6,INDEX(#REF!,MATCH(1,($B124 =#REF!) * ("Import" =#REF!),0)),K113)) -> 0.05542025208 | L124: =IF('Control and Output Summary'!$C$14<>"Ergon",-PMT('Control and Output Summary'!$C$6,INDEX('Asset Specification'!$G$8:$G$43,MATCH(1,($B124= 'Asset Specification'!$B$8:$B$43)*($C124 ='Asset Specification'!$C$8:$C$43) * ("Import" = 'Asset Specification'!$D$8:$D$43),0)),L113),-PMT('Control and Output Summary'!$C$6,INDEX(#REF!,MATCH(1,($B124 =#REF!) * ("Import" =#REF!),0)),L113)) -> 0.03955601101 | M124: =IF('Control and Output Summary'!$C$14<>"Ergon",-PMT('Control and Output Summary'!$C$6,INDEX('Asset Specification'!$G$8:$G$43,MATCH(1,($B124= 'Asset Specification'!$B$8:$B$43)*($C124 ='Asset Specification'!$C$8:$C$43) * ("Import" = 'Asset Specification'!$D$8:$D$43),0)),M113),-PMT('Control and Output Summary'!$C$6,INDEX(#REF!,MATCH(1,($B124 =#REF!) * ("Import" =#REF!),0)),M113)) -> 0.03955601101 | N124: =IF('Control and Output Summary'!$C$14<>"Ergon",-PMT('Control and Output Summary'!$C$6,INDEX('Asset Specification'!$G$8:$G$43,MATCH(1,($B124= 'Asset Specification'!$B$8:$B$43)*($C124 ='Asset Specification'!$C$8:$C$43) * ("Import" = 'Asset Specification'!$D$8:$D$43),0)),N113),-PMT('Control and Output Summary'!$C$6,INDEX(#REF!,MATCH(1,($B124 =#REF!) * ("Import" =#REF!),0)),N113)) -> 0.03955601101
B125: ST 33/66 kv | C125: ='Control and Output Summary'!$C$14 -> Energex | D125: =IF('Control and Output Summary'!$C$14<>"Ergon",-PMT('Control and Output Summary'!$C$6,INDEX('Asset Specification'!$G$8:$G$43,MATCH(1,($B125= 'Asset Specification'!$B$8:$B$43)*($C125 ='Asset Specification'!$C$8:$C$43) * ("Import" = 'Asset Specification'!$D$8:$D$43),0)),D114),-PMT('Control and Output Summary'!$C$6,INDEX(#REF!,MATCH(1,($B125 =#REF!) * ("Import" =#REF!),0)),D114)) -> 0 | E125: =IF('Control and Output Summary'!$C$14<>"Ergon",-PMT('Control and Output Summary'!$C$6,INDEX('Asset Specification'!$G$8:$G$43,MATCH(1,($B125= 'Asset Specification'!$B$8:$B$43)*($C125 ='Asset Specification'!$C$8:$C$43) * ("Import" = 'Asset Specification'!$D$8:$D$43),0)),E114),-PMT('Control and Output Summary'!$C$6,INDEX(#REF!,MATCH(1,($B125 =#REF!) * ("Import" =#REF!),0)),E114)) -> 0 | F125: =IF('Control and Output Summary'!$C$14<>"Ergon",-PMT('Control and Output Summary'!$C$6,INDEX('Asset Specification'!$G$8:$G$43,MATCH(1,($B125= 'Asset Specification'!$B$8:$B$43)*($C125 ='Asset Specification'!$C$8:$C$43) * ("Import" = 'Asset Specification'!$D$8:$D$43),0)),F114),-PMT('Control and Output Summary'!$C$6,INDEX(#REF!,MATCH(1,($B125 =#REF!) * ("Import" =#REF!),0)),F114)) -> 0 | G125: =IF('Control and Output Summary'!$C$14<>"Ergon",-PMT('Control and Output Summary'!$C$6,INDEX('Asset Specification'!$G$8:$G$43,MATCH(1,($B125= 'Asset Specification'!$B$8:$B$43)*($C125 ='Asset Specification'!$C$8:$C$43) * ("Import" = 'Asset Specification'!$D$8:$D$43),0)),G114),-PMT('Control and Output Summary'!$C$6,INDEX(#REF!,MATCH(1,($B125 =#REF!) * ("Import" =#REF!),0)),G114)) -> 0 | H125: =IF('Control and Output Summary'!$C$14<>"Ergon",-PMT('Control and Output Summary'!$C$6,INDEX('Asset Specification'!$G$8:$G$43,MATCH(1,($B125= 'Asset Specification'!$B$8:$B$43)*($C125 ='Asset Specification'!$C$8:$C$43) * ("Import" = 'Asset Specification'!$D$8:$D$43),0)),H114),-PMT('Control and Output Summary'!$C$6,INDEX(#REF!,MATCH(1,($B125 =#REF!) * ("Import" =#REF!),0)),H114)) -> 0 | I125: =IF('Control and Output Summary'!$C$14<>"Ergon",-PMT('Control and Output Summary'!$C$6,INDEX('Asset Specification'!$G$8:$G$43,MATCH(1,($B125= 'Asset Specification'!$B$8:$B$43)*($C125 ='Asset Specification'!$C$8:$C$43) * ("Import" = 'Asset Specification'!$D$8:$D$43),0)),I114),-PMT('Control and Output Summary'!$C$6,INDEX(#REF!,MATCH(1,($B125 =#REF!) * ("Import" =#REF!),0)),I114)) -> 0 | J125: =IF('Control and Output Summary'!$C$14<>"Ergon",-PMT('Control and Output Summary'!$C$6,INDEX('Asset Specification'!$G$8:$G$43,MATCH(1,($B125= 'Asset Specification'!$B$8:$B$43)*($C125 ='Asset Specification'!$C$8:$C$43) * ("Import" = 'Asset Specification'!$D$8:$D$43),0)),J114),-PMT('Control and Output Summary'!$C$6,INDEX(#REF!,MATCH(1,($B125 =#REF!) * ("Import" =#REF!),0)),J114)) -> 0 | K125: =IF('Control and Output Summary'!$C$14<>"Ergon",-PMT('Control and Output Summary'!$C$6,INDEX('Asset Specification'!$G$8:$G$43,MATCH(1,($B125= 'Asset Specification'!$B$8:$B$43)*($C125 ='Asset Specification'!$C$8:$C$43) * ("Import" = 'Asset Specification'!$D$8:$D$43),0)),K114),-PMT('Control and Output Summary'!$C$6,INDEX(#REF!,MATCH(1,($B125 =#REF!) * ("Import" =#REF!),0)),K114)) -> 0 | L125: =IF('Control and Output Summary'!$C$14<>"Ergon",-PMT('Control and Output Summary'!$C$6,INDEX('Asset Specification'!$G$8:$G$43,MATCH(1,($B125= 'Asset Specification'!$B$8:$B$43)*($C125 ='Asset Specification'!$C$8:$C$43) * ("Import" = 'Asset Specification'!$D$8:$D$43),0)),L114),-PMT('Control and Output Summary'!$C$6,INDEX(#REF!,MATCH(1,($B125 =#REF!) * ("Import" =#REF!),0)),L114)) -> 0 | M125: =IF('Control and Output Summary'!$C$14<>"Ergon",-PMT('Control and Output Summary'!$C$6,INDEX('Asset Specification'!$G$8:$G$43,MATCH(1,($B125= 'Asset Specification'!$B$8:$B$43)*($C125 ='Asset Specification'!$C$8:$C$43) * ("Import" = 'Asset Specification'!$D$8:$D$43),0)),M114),-PMT('Control and Output Summary'!$C$6,INDEX(#REF!,MATCH(1,($B125 =#REF!) * ("Import" =#REF!),0)),M114)) -> 0 | N125: =IF('Control and Output Summary'!$C$14<>"Ergon",-PMT('Control and Output Summary'!$C$6,INDEX('Asset Specification'!$G$8:$G$43,MATCH(1,($B125= 'Asset Specification'!$B$8:$B$43)*($C125 ='Asset Specification'!$C$8:$C$43) * ("Import" = 'Asset Specification'!$D$8:$D$43),0)),N114),-PMT('Control and Output Summary'!$C$6,INDEX(#REF!,MATCH(1,($B125 =#REF!) * ("Import" =#REF!),0)),N114)) -> 0
B126: ST 110/132 kv | C126: ='Control and Output Summary'!$C$14 -> Energex | D126: =IF('Control and Output Summary'!$C$14<>"Ergon",-PMT('Control and Output Summary'!$C$6,INDEX('Asset Specification'!$G$8:$G$43,MATCH(1,($B126= 'Asset Specification'!$B$8:$B$43)*($C126 ='Asset Specification'!$C$8:$C$43) * ("Import" = 'Asset Specification'!$D$8:$D$43),0)),D115),-PMT('Control and Output Summary'!$C$6,INDEX(#REF!,MATCH(1,($B126 =#REF!) * ("Import" =#REF!),0)),D115)) -> 0 | E126: =IF('Control and Output Summary'!$C$14<>"Ergon",-PMT('Control and Output Summary'!$C$6,INDEX('Asset Specification'!$G$8:$G$43,MATCH(1,($B126= 'Asset Specification'!$B$8:$B$43)*($C126 ='Asset Specification'!$C$8:$C$43) * ("Import" = 'Asset Specification'!$D$8:$D$43),0)),E115),-PMT('Control and Output Summary'!$C$6,INDEX(#REF!,MATCH(1,($B126 =#REF!) * ("Import" =#REF!),0)),E115)) -> 0 | F126: =IF('Control and Output Summary'!$C$14<>"Ergon",-PMT('Control and Output Summary'!$C$6,INDEX('Asset Specification'!$G$8:$G$43,MATCH(1,($B126= 'Asset Specification'!$B$8:$B$43)*($C126 ='Asset Specification'!$C$8:$C$43) * ("Import" = 'Asset Specification'!$D$8:$D$43),0)),F115),-PMT('Control and Output Summary'!$C$6,INDEX(#REF!,MATCH(1,($B126 =#REF!) * ("Import" =#REF!),0)),F115)) -> 0 | G126: =IF('Control and Output Summary'!$C$14<>"Ergon",-PMT('Control and Output Summary'!$C$6,INDEX('Asset Specification'!$G$8:$G$43,MATCH(1,($B126= 'Asset Specification'!$B$8:$B$43)*($C126 ='Asset Specification'!$C$8:$C$43) * ("Import" = 'Asset Specification'!$D$8:$D$43),0)),G115),-PMT('Control and Output Summary'!$C$6,INDEX(#REF!,MATCH(1,($B126 =#REF!) * ("Import" =#REF!),0)),G115)) -> 0 | H126: =IF('Control and Output Summary'!$C$14<>"Ergon",-PMT('Control and Output Summary'!$C$6,INDEX('Asset Specification'!$G$8:$G$43,MATCH(1,($B126= 'Asset Specification'!$B$8:$B$43)*($C126 ='Asset Specification'!$C$8:$C$43) * ("Import" = 'Asset Specification'!$D$8:$D$43),0)),H115),-PMT('Control and Output Summary'!$C$6,INDEX(#REF!,MATCH(1,($B126 =#REF!) * ("Import" =#REF!),0)),H115)) -> 0 | I126: =IF('Control and Output Summary'!$C$14<>"Ergon",-PMT('Control and Output Summary'!$C$6,INDEX('Asset Specification'!$G$8:$G$43,MATCH(1,($B126= 'Asset Specification'!$B$8:$B$43)*($C126 ='Asset Specification'!$C$8:$C$43) * ("Import" = 'Asset Specification'!$D$8:$D$43),0)),I115),-PMT('Control and Output Summary'!$C$6,INDEX(#REF!,MATCH(1,($B126 =#REF!) * ("Import" =#REF!),0)),I115)) -> 0 | J126: =IF('Control and Output Summary'!$C$14<>"Ergon",-PMT('Control and Output Summary'!$C$6,INDEX('Asset Specification'!$G$8:$G$43,MATCH(1,($B126= 'Asset Specification'!$B$8:$B$43)*($C126 ='Asset Specification'!$C$8:$C$43) * ("Import" = 'Asset Specification'!$D$8:$D$43),0)),J115),-PMT('Control and Output Summary'!$C$6,INDEX(#REF!,MATCH(1,($B126 =#REF!) * ("Import" =#REF!),0)),J115)) -> 0 | K126: =IF('Control and Output Summary'!$C$14<>"Ergon",-PMT('Control and Output Summary'!$C$6,INDEX('Asset Specification'!$G$8:$G$43,MATCH(1,($B126= 'Asset Specification'!$B$8:$B$43)*($C126 ='Asset Specification'!$C$8:$C$43) * ("Import" = 'Asset Specification'!$D$8:$D$43),0)),K115),-PMT('Control and Output Summary'!$C$6,INDEX(#REF!,MATCH(1,($B126 =#REF!) * ("Import" =#REF!),0)),K115)) -> 0 | L126: =IF('Control and Output Summary'!$C$14<>"Ergon",-PMT('Control and Output Summary'!$C$6,INDEX('Asset Specification'!$G$8:$G$43,MATCH(1,($B126= 'Asset Specification'!$B$8:$B$43)*($C126 ='Asset Specification'!$C$8:$C$43) * ("Import" = 'Asset Specification'!$D$8:$D$43),0)),L115),-PMT('Control and Output Summary'!$C$6,INDEX(#REF!,MATCH(1,($B126 =#REF!) * ("Import" =#REF!),0)),L115)) -> 0 | M126: =IF('Control and Output Summary'!$C$14<>"Ergon",-PMT('Control and Output Summary'!$C$6,INDEX('Asset Specification'!$G$8:$G$43,MATCH(1,($B126= 'Asset Specification'!$B$8:$B$43)*($C126 ='Asset Specification'!$C$8:$C$43) * ("Import" = 'Asset Specification'!$D$8:$D$43),0)),M115),-PMT('Control and Output Summary'!$C$6,INDEX(#REF!,MATCH(1,($B126 =#REF!) * ("Import" =#REF!),0)),M115)) -> 0 | N126: =IF('Control and Output Summary'!$C$14<>"Ergon",-PMT('Control and Output Summary'!$C$6,INDEX('Asset Specification'!$G$8:$G$43,MATCH(1,($B126= 'Asset Specification'!$B$8:$B$43)*($C126 ='Asset Specification'!$C$8:$C$43) * ("Import" = 'Asset Specification'!$D$8:$D$43),0)),N115),-PMT('Control and Output Summary'!$C$6,INDEX(#REF!,MATCH(1,($B126 =#REF!) * ("Import" =#REF!),0)),N115)) -> 0
B129: Cumulative Annualised Capex ($m)
B131: Voltage Level | C131: Pricing Zone | D131: =D$51 -> 2023 | E131: 2024 | F131: 2025 | G131: 2026 | H131: 2027 | I131: 2028 | J131: 2029 | K131: 2030 | L131: 2031 | M131: 2032 | N131: 2033
B132: LV Line | C132: ='Control and Output Summary'!$C$14 -> Energex | D132: =SUM($D121:D121) -> 0 | E132: =SUM($D121:E121) -> 0 | F132: =SUM($D121:F121) -> 0 | G132: =SUM($D121:G121) -> 0 | H132: =SUM($D121:H121) -> 0 | I132: =SUM($D121:I121) -> 0 | J132: =SUM($D121:J121) -> 0 | K132: =SUM($D121:K121) -> 0 | L132: =SUM($D121:L121) -> 0 | M132: =SUM($D121:M121) -> 0 | N132: =SUM($D121:N121) -> 0
B133: LV Bus | C133: ='Control and Output Summary'!$C$14 -> Energex | D133: =SUM($D122:D122) -> 0 | E133: =SUM($D122:E122) -> 0 | F133: =SUM($D122:F122) -> 0 | G133: =SUM($D122:G122) -> 0 | H133: =SUM($D122:H122) -> 0 | I133: =SUM($D122:I122) -> 0 | J133: =SUM($D122:J122) -> 0 | K133: =SUM($D122:K122) -> 0 | L133: =SUM($D122:L122) -> 0 | M133: =SUM($D122:M122) -> 0 | N133: =SUM($D122:N122) -> 0
B134: HV Line | C134: ='Control and Output Summary'!$C$14 -> Energex | D134: =SUM($D123:D123) -> 0 | E134: =SUM($D123:E123) -> 0 | F134: =SUM($D123:F123) -> 0 | G134: =SUM($D123:G123) -> 0 | H134: =SUM($D123:H123) -> 0 | I134: =SUM($D123:I123) -> 0 | J134: =SUM($D123:J123) -> 0 | K134: =SUM($D123:K123) -> 0 | L134: =SUM($D123:L123) -> 0 | M134: =SUM($D123:M123) -> 0 | N134: =SUM($D123:N123) -> 0
B135: HV Bus | C135: ='Control and Output Summary'!$C$14 -> Energex | D135: =SUM($D124:D124) -> 0.0003434555909 | E135: =SUM($D124:E124) -> 0.0003434555909 | F135: =SUM($D124:F124) -> 0.01393326233 | G135: =SUM($D124:G124) -> 0.02645643786 | H135: =SUM($D124:H124) -> 0.09550161392 | I135: =SUM($D124:I124) -> 0.1464039576 | J135: =SUM($D124:J124) -> 0.1587493949 | K135: =SUM($D124:K124) -> 0.2141696469 | L135: =SUM($D124:L124) -> 0.253725658 | M135: =SUM($D124:M124) -> 0.293281669 | N135: =SUM($D124:N124) -> 0.33283768
B136: ST 33/66 kv | C136: ='Control and Output Summary'!$C$14 -> Energex | D136: =SUM($D125:D125) -> 0 | E136: =SUM($D125:E125) -> 0 | F136: =SUM($D125:F125) -> 0 | G136: =SUM($D125:G125) -> 0 | H136: =SUM($D125:H125) -> 0 | I136: =SUM($D125:I125) -> 0 | J136: =SUM($D125:J125) -> 0 | K136: =SUM($D125:K125) -> 0 | L136: =SUM($D125:L125) -> 0 | M136: =SUM($D125:M125) -> 0 | N136: =SUM($D125:N125) -> 0
B137: ST 110/132 kv | C137: ='Control and Output Summary'!$C$14 -> Energex | D137: =SUM($D126:D126) -> 0 | E137: =SUM($D126:E126) -> 0 | F137: =SUM($D126:F126) -> 0 | G137: =SUM($D126:G126) -> 0 | H137: =SUM($D126:H126) -> 0 | I137: =SUM($D126:I126) -> 0 | J137: =SUM($D126:J126) -> 0 | K137: =SUM($D126:K126) -> 0 | L137: =SUM($D126:L126) -> 0 | M137: =SUM($D126:M126) -> 0 | N137: =SUM($D126:N126) -> 0
B140: Opex ($m)
B142: Voltage Level | C142: Pricing Zone | D142: =D$62 -> 2023 | E142: 2024 | F142: 2025 | G142: 2026 | H142: 2027 | I142: 2028 | J142: 2029 | K142: 2030 | L142: 2031 | M142: 2032 | N142: 2033
B143: LV Line | C143: ='Control and Output Summary'!$C$14 -> Energex | D143: ='Control and Output Summary'!$C$8 * (D110) -> 0 | E143: ='Control and Output Summary'!$C$8 * (E110) -> 0 | F143: ='Control and Output Summary'!$C$8 * (F110) -> 0 | G143: ='Control and Output Summary'!$C$8 * (G110) -> 0 | H143: ='Control and Output Summary'!$C$8 * (H110) -> 0 | I143: ='Control and Output Summary'!$C$8 * (I110) -> 0 | J143: ='Control and Output Summary'!$C$8 * (J110) -> 0 | K143: ='Control and Output Summary'!$C$8 * (K110) -> 0 | L143: ='Control and Output Summary'!$C$8 * (L110) -> 0 | M143: ='Control and Output Summary'!$C$8 * (M110) -> 0 | N143: ='Control and Output Summary'!$C$8 * (N110) -> 0
B144: LV Bus | C144: ='Control and Output Summary'!$C$14 -> Energex | D144: ='Control and Output Summary'!$C$8 * (D111) -> 0 | E144: ='Control and Output Summary'!$C$8 * (E111) -> 0 | F144: ='Control and Output Summary'!$C$8 * (F111) -> 0 | G144: ='Control and Output Summary'!$C$8 * (G111) -> 0 | H144: ='Control and Output Summary'!$C$8 * (H111) -> 0 | I144: ='Control and Output Summary'!$C$8 * (I111) -> 0 | J144: ='Control and Output Summary'!$C$8 * (J111) -> 0 | K144: ='Control and Output Summary'!$C$8 * (K111) -> 0 | L144: ='Control and Output Summary'!$C$8 * (L111) -> 0 | M144: ='Control and Output Summary'!$C$8 * (M111) -> 0 | N144: ='Control and Output Summary'!$C$8 * (N111) -> 0
B145: HV Line | C145: ='Control and Output Summary'!$C$14 -> Energex | D145: ='Control and Output Summary'!$C$8 * (D112) -> 0 | E145: ='Control and Output Summary'!$C$8 * (E112) -> 0 | F145: ='Control and Output Summary'!$C$8 * (F112) -> 0 | G145: ='Control and Output Summary'!$C$8 * (G112) -> 0 | H145: ='Control and Output Summary'!$C$8 * (H112) -> 0 | I145: ='Control and Output Summary'!$C$8 * (I112) -> 0 | J145: ='Control and Output Summary'!$C$8 * (J112) -> 0 | K145: ='Control and Output Summary'!$C$8 * (K112) -> 0 | L145: ='Control and Output Summary'!$C$8 * (L112) -> 0 | M145: ='Control and Output Summary'!$C$8 * (M112) -> 0 | N145: ='Control and Output Summary'!$C$8 * (N112) -> 0
B146: HV Bus | C146: ='Control and Output Summary'!$C$14 -> Energex | D146: ='Control and Output Summary'!$C$8 * (D113) -> 7.7140416e-05 | E146: ='Control and Output Summary'!$C$8 * (E113) -> 0 | F146: ='Control and Output Summary'!$C$8 * (F113) -> 0.00305228208 | G146: ='Control and Output Summary'!$C$8 * (G113) -> 0.002812715808 | H146: ='Control and Output Summary'!$C$8 * (H113) -> 0.0155076049 | I146: ='Control and Output Summary'!$C$8 * (I113) -> 0.01143270941 | J146: ='Control and Output Summary'!$C$8 * (J113) -> 0.002772795648 | K146: ='Control and Output Summary'!$C$8 * (K113) -> 0.01244743546 | L146: ='Control and Output Summary'!$C$8 * (L113) -> 0.008884313504 | M146: ='Control and Output Summary'!$C$8 * (M113) -> 0.008884313504 | N146: ='Control and Output Summary'!$C$8 * (N113) -> 0.008884313504
B147: ST 33/66 kv | C147: ='Control and Output Summary'!$C$14 -> Energex | D147: ='Control and Output Summary'!$C$8 * (D114) -> 0 | E147: ='Control and Output Summary'!$C$8 * (E114) -> 0 | F147: ='Control and Output Summary'!$C$8 * (F114) -> 0 | G147: ='Control and Output Summary'!$C$8 * (G114) -> 0 | H147: ='Control and Output Summary'!$C$8 * (H114) -> 0 | I147: ='Control and Output Summary'!$C$8 * (I114) -> 0 | J147: ='Control and Output Summary'!$C$8 * (J114) -> 0 | K147: ='Control and Output Summary'!$C$8 * (K114) -> 0 | L147: ='Control and Output Summary'!$C$8 * (L114) -> 0 | M147: ='Control and Output Summary'!$C$8 * (M114) -> 0 | N147: ='Control and Output Summary'!$C$8 * (N114) -> 0
B148: ST 110/132 kv | C148: ='Control and Output Summary'!$C$14 -> Energex | D148: ='Control and Output Summary'!$C$8 * (D115) -> 0 | E148: ='Control and Output Summary'!$C$8 * (E115) -> 0 | F148: ='Control and Output Summary'!$C$8 * (F115) -> 0 | G148: ='Control and Output Summary'!$C$8 * (G115) -> 0 | H148: ='Control and Output Summary'!$C$8 * (H115) -> 0 | I148: ='Control and Output Summary'!$C$8 * (I115) -> 0 | J148: ='Control and Output Summary'!$C$8 * (J115) -> 0 | K148: ='Control and Output Summary'!$C$8 * (K115) -> 0 | L148: ='Control and Output Summary'!$C$8 * (L115) -> 0 | M148: ='Control and Output Summary'!$C$8 * (M115) -> 0 | N148: ='Control and Output Summary'!$C$8 * (N115) -> 0
B151: Total Annual Cost ($m)
B153: Voltage Level | C153: Pricing Zone | D153: =D$73 -> 2023 | E153: 2024 | F153: 2025 | G153: 2026 | H153: 2027 | I153: 2028 | J153: 2029 | K153: 2030 | L153: 2031 | M153: 2032 | N153: 2033
B154: LV Line | C154: ='Control and Output Summary'!$C$14 -> Energex | D154: =D132 + D143 -> 0 | E154: 0 | F154: 0 | G154: 0 | H154: 0 | I154: 0 | J154: 0 | K154: 0 | L154: 0 | M154: 0 | N154: 0
B155: LV Bus | C155: ='Control and Output Summary'!$C$14 -> Energex | D155: =D133 + D144 -> 0 | E155: 0 | F155: 0 | G155: 0 | H155: 0 | I155: 0 | J155: 0 | K155: 0 | L155: 0 | M155: 0 | N155: 0
B156: HV Line | C156: ='Control and Output Summary'!$C$14 -> Energex | D156: =D134 + D145 -> 0 | E156: 0 | F156: 0 | G156: 0 | H156: 0 | I156: 0 | J156: 0 | K156: 0 | L156: 0 | M156: 0 | N156: 0
B157: HV Bus | C157: ='Control and Output Summary'!$C$14 -> Energex | D157: =D135 + D146 -> 0.0004205960069 | E157: 0.0003434555909 | F157: 0.01698554441 | G157: 0.02926915367 | H157: 0.1110092188 | I157: 0.157836667 | J157: 0.1615221905 | K157: 0.2266170824 | L157: 0.2626099715 | M157: 0.3021659825 | N157: 0.3417219935
B158: ST 33/66 kv | C158: ='Control and Output Summary'!$C$14 -> Energex | D158: =D136 + D147 -> 0 | E158: 0 | F158: 0 | G158: 0 | H158: 0 | I158: 0 | J158: 0 | K158: 0 | L158: 0 | M158: 0 | N158: 0
B159: ST 110/132 kv | C159: ='Control and Output Summary'!$C$14 -> Energex | D159: =D137 + D148 -> 0 | E159: 0 | F159: 0 | G159: 0 | H159: 0 | I159: 0 | J159: 0 | K159: 0 | L159: 0 | M159: 0 | N159: 0
B162: Export
B165: Total Capex ($m)
B167: Voltage Level | C167: Pricing Zone | D167: =D$18 -> 2023 | E167: 2024 | F167: 2025 | G167: 2026 | H167: 2027 | I167: 2028 | J167: 2029 | K167: 2030 | L167: 2031 | M167: 2032 | N167: 2033
B168: LV Line | C168: ='Control and Output Summary'!$C$14 -> Energex | D168: =IF('Control and Output Summary'!$C$14<>"Ergon",INDEX('Export Expenditure Forecast'!$D$8:$N$25, MATCH(1, ($B168 = 'Export Expenditure Forecast'!$B$8:$B$25)*($C168 = 'Export Expenditure Forecast'!$C$8:$C$25),0), MATCH(D$167, 'Export Expenditure Forecast'!$D$7:$N$7)),INDEX(#REF!, MATCH($B168,#REF!, 0), MATCH(D$167,#REF!,0))) -> 4.5 | E168: =IF('Control and Output Summary'!$C$14<>"Ergon",INDEX('Export Expenditure Forecast'!$D$8:$N$25, MATCH(1, ($B168 = 'Export Expenditure Forecast'!$B$8:$B$25)*($C168 = 'Export Expenditure Forecast'!$C$8:$C$25),0), MATCH(E$167, 'Export Expenditure Forecast'!$D$7:$N$7)),INDEX(#REF!, MATCH($B168,#REF!, 0), MATCH(E$167,#REF!,0))) -> 4.5 | F168: =IF('Control and Output Summary'!$C$14<>"Ergon",INDEX('Export Expenditure Forecast'!$D$8:$N$25, MATCH(1, ($B168 = 'Export Expenditure Forecast'!$B$8:$B$25)*($C168 = 'Export Expenditure Forecast'!$C$8:$C$25),0), MATCH(F$167, 'Export Expenditure Forecast'!$D$7:$N$7)),INDEX(#REF!, MATCH($B168,#REF!, 0), MATCH(F$167,#REF!,0))) -> 4.5 | G168: =IF('Control and Output Summary'!$C$14<>"Ergon",INDEX('Export Expenditure Forecast'!$D$8:$N$25, MATCH(1, ($B168 = 'Export Expenditure Forecast'!$B$8:$B$25)*($C168 = 'Export Expenditure Forecast'!$C$8:$C$25),0), MATCH(G$167, 'Export Expenditure Forecast'!$D$7:$N$7)),INDEX(#REF!, MATCH($B168,#REF!, 0), MATCH(G$167,#REF!,0))) -> 4.5 | H168: =IF('Control and Output Summary'!$C$14<>"Ergon",INDEX('Export Expenditure Forecast'!$D$8:$N$25, MATCH(1, ($B168 = 'Export Expenditure Forecast'!$B$8:$B$25)*($C168 = 'Export Expenditure Forecast'!$C$8:$C$25),0), MATCH(H$167, 'Export Expenditure Forecast'!$D$7:$N$7)),INDEX(#REF!, MATCH($B168,#REF!, 0), MATCH(H$167,#REF!,0))) -> 10.5 | I168: =IF('Control and Output Summary'!$C$14<>"Ergon",INDEX('Export Expenditure Forecast'!$D$8:$N$25, MATCH(1, ($B168 = 'Export Expenditure Forecast'!$B$8:$B$25)*($C168 = 'Export Expenditure Forecast'!$C$8:$C$25),0), MATCH(I$167, 'Export Expenditure Forecast'!$D$7:$N$7)),INDEX(#REF!, MATCH($B168,#REF!, 0), MATCH(I$167,#REF!,0))) -> 6 | J168: =IF('Control and Output Summary'!$C$14<>"Ergon",INDEX('Export Expenditure Forecast'!$D$8:$N$25, MATCH(1, ($B168 = 'Export Expenditure Forecast'!$B$8:$B$25)*($C168 = 'Export Expenditure Forecast'!$C$8:$C$25),0), MATCH(J$167, 'Export Expenditure Forecast'!$D$7:$N$7)),INDEX(#REF!, MATCH($B168,#REF!, 0), MATCH(J$167,#REF!,0))) -> 7 | K168: =IF('Control and Output Summary'!$C$14<>"Ergon",INDEX('Export Expenditure Forecast'!$D$8:$N$25, MATCH(1, ($B168 = 'Export Expenditure Forecast'!$B$8:$B$25)*($C168 = 'Export Expenditure Forecast'!$C$8:$C$25),0), MATCH(K$167, 'Export Expenditure Forecast'!$D$7:$N$7)),INDEX(#REF!, MATCH($B168,#REF!, 0), MATCH(K$167,#REF!,0))) -> 7.25 | L168: =IF('Control and Output Summary'!$C$14<>"Ergon",INDEX('Export Expenditure Forecast'!$D$8:$N$25, MATCH(1, ($B168 = 'Export Expenditure Forecast'!$B$8:$B$25)*($C168 = 'Export Expenditure Forecast'!$C$8:$C$25),0), MATCH(L$167, 'Export Expenditure Forecast'!$D$7:$N$7)),INDEX(#REF!, MATCH($B168,#REF!, 0), MATCH(L$167,#REF!,0))) -> 6.5 | M168: =IF('Control and Output Summary'!$C$14<>"Ergon",INDEX('Export Expenditure Forecast'!$D$8:$N$25, MATCH(1, ($B168 = 'Export Expenditure Forecast'!$B$8:$B$25)*($C168 = 'Export Expenditure Forecast'!$C$8:$C$25),0), MATCH(M$167, 'Export Expenditure Forecast'!$D$7:$N$7)),INDEX(#REF!, MATCH($B168,#REF!, 0), MATCH(M$167,#REF!,0))) -> 4.25 | N168: =IF('Control and Output Summary'!$C$14<>"Ergon",INDEX('Export Expenditure Forecast'!$D$8:$N$25, MATCH(1, ($B168 = 'Export Expenditure Forecast'!$B$8:$B$25)*($C168 = 'Export Expenditure Forecast'!$C$8:$C$25),0), MATCH(N$167, 'Export Expenditure Forecast'!$D$7:$N$7)),INDEX(#REF!, MATCH($B168,#REF!, 0), MATCH(N$167,#REF!,0))) -> 4.5
B169: LV Bus | C169: ='Control and Output Summary'!$C$14 -> Energex | D169: =IF('Control and Output Summary'!$C$14<>"Ergon",INDEX('Export Expenditure Forecast'!$D$8:$N$25, MATCH(1, ($B169 = 'Export Expenditure Forecast'!$B$8:$B$25)*($C169 = 'Export Expenditure Forecast'!$C$8:$C$25),0), MATCH(D$167, 'Export Expenditure Forecast'!$D$7:$N$7)),INDEX(#REF!, MATCH($B169,#REF!, 0), MATCH(D$167,#REF!,0))) -> 4.5 | E169: =IF('Control and Output Summary'!$C$14<>"Ergon",INDEX('Export Expenditure Forecast'!$D$8:$N$25, MATCH(1, ($B169 = 'Export Expenditure Forecast'!$B$8:$B$25)*($C169 = 'Export Expenditure Forecast'!$C$8:$C$25),0), MATCH(E$167, 'Export Expenditure Forecast'!$D$7:$N$7)),INDEX(#REF!, MATCH($B169,#REF!, 0), MATCH(E$167,#REF!,0))) -> 4.5 | F169: =IF('Control and Output Summary'!$C$14<>"Ergon",INDEX('Export Expenditure Forecast'!$D$8:$N$25, MATCH(1, ($B169 = 'Export Expenditure Forecast'!$B$8:$B$25)*($C169 = 'Export Expenditure Forecast'!$C$8:$C$25),0), MATCH(F$167, 'Export Expenditure Forecast'!$D$7:$N$7)),INDEX(#REF!, MATCH($B169,#REF!, 0), MATCH(F$167,#REF!,0))) -> 4.5 | G169: =IF('Control and Output Summary'!$C$14<>"Ergon",INDEX('Export Expenditure Forecast'!$D$8:$N$25, MATCH(1, ($B169 = 'Export Expenditure Forecast'!$B$8:$B$25)*($C169 = 'Export Expenditure Forecast'!$C$8:$C$25),0), MATCH(G$167, 'Export Expenditure Forecast'!$D$7:$N$7)),INDEX(#REF!, MATCH($B169,#REF!, 0), MATCH(G$167,#REF!,0))) -> 4.5 | H169: =IF('Control and Output Summary'!$C$14<>"Ergon",INDEX('Export Expenditure Forecast'!$D$8:$N$25, MATCH(1, ($B169 = 'Export Expenditure Forecast'!$B$8:$B$25)*($C169 = 'Export Expenditure Forecast'!$C$8:$C$25),0), MATCH(H$167, 'Export Expenditure Forecast'!$D$7:$N$7)),INDEX(#REF!, MATCH($B169,#REF!, 0), MATCH(H$167,#REF!,0))) -> 10.5 | I169: =IF('Control and Output Summary'!$C$14<>"Ergon",INDEX('Export Expenditure Forecast'!$D$8:$N$25, MATCH(1, ($B169 = 'Export Expenditure Forecast'!$B$8:$B$25)*($C169 = 'Export Expenditure Forecast'!$C$8:$C$25),0), MATCH(I$167, 'Export Expenditure Forecast'!$D$7:$N$7)),INDEX(#REF!, MATCH($B169,#REF!, 0), MATCH(I$167,#REF!,0))) -> 6 | J169: =IF('Control and Output Summary'!$C$14<>"Ergon",INDEX('Export Expenditure Forecast'!$D$8:$N$25, MATCH(1, ($B169 = 'Export Expenditure Forecast'!$B$8:$B$25)*($C169 = 'Export Expenditure Forecast'!$C$8:$C$25),0), MATCH(J$167, 'Export Expenditure Forecast'!$D$7:$N$7)),INDEX(#REF!, MATCH($B169,#REF!, 0), MATCH(J$167,#REF!,0))) -> 7 | K169: =IF('Control and Output Summary'!$C$14<>"Ergon",INDEX('Export Expenditure Forecast'!$D$8:$N$25, MATCH(1, ($B169 = 'Export Expenditure Forecast'!$B$8:$B$25)*($C169 = 'Export Expenditure Forecast'!$C$8:$C$25),0), MATCH(K$167, 'Export Expenditure Forecast'!$D$7:$N$7)),INDEX(#REF!, MATCH($B169,#REF!, 0), MATCH(K$167,#REF!,0))) -> 7.25 | L169: =IF('Control and Output Summary'!$C$14<>"Ergon",INDEX('Export Expenditure Forecast'!$D$8:$N$25, MATCH(1, ($B169 = 'Export Expenditure Forecast'!$B$8:$B$25)*($C169 = 'Export Expenditure Forecast'!$C$8:$C$25),0), MATCH(L$167, 'Export Expenditure Forecast'!$D$7:$N$7)),INDEX(#REF!, MATCH($B169,#REF!, 0), MATCH(L$167,#REF!,0))) -> 6.5 | M169: =IF('Control and Output Summary'!$C$14<>"Ergon",INDEX('Export Expenditure Forecast'!$D$8:$N$25, MATCH(1, ($B169 = 'Export Expenditure Forecast'!$B$8:$B$25)*($C169 = 'Export Expenditure Forecast'!$C$8:$C$25),0), MATCH(M$167, 'Export Expenditure Forecast'!$D$7:$N$7)),INDEX(#REF!, MATCH($B169,#REF!, 0), MATCH(M$167,#REF!,0))) -> 4.25 | N169: =IF('Control and Output Summary'!$C$14<>"Ergon",INDEX('Export Expenditure Forecast'!$D$8:$N$25, MATCH(1, ($B169 = 'Export Expenditure Forecast'!$B$8:$B$25)*($C169 = 'Export Expenditure Forecast'!$C$8:$C$25),0), MATCH(N$167, 'Export Expenditure Forecast'!$D$7:$N$7)),INDEX(#REF!, MATCH($B169,#REF!, 0), MATCH(N$167,#REF!,0))) -> 4.5
B170: HV Line | C170: ='Control and Output Summary'!$C$14 -> Energex | D170: =IF('Control and Output Summary'!$C$14<>"Ergon",INDEX('Export Expenditure Forecast'!$D$8:$N$25, MATCH(1, ($B170 = 'Export Expenditure Forecast'!$B$8:$B$25)*($C170 = 'Export Expenditure Forecast'!$C$8:$C$25),0), MATCH(D$167, 'Export Expenditure Forecast'!$D$7:$N$7)),INDEX(#REF!, MATCH($B170,#REF!, 0), MATCH(D$167,#REF!,0))) -> 0 | E170: =IF('Control and Output Summary'!$C$14<>"Ergon",INDEX('Export Expenditure Forecast'!$D$8:$N$25, MATCH(1, ($B170 = 'Export Expenditure Forecast'!$B$8:$B$25)*($C170 = 'Export Expenditure Forecast'!$C$8:$C$25),0), MATCH(E$167, 'Export Expenditure Forecast'!$D$7:$N$7)),INDEX(#REF!, MATCH($B170,#REF!, 0), MATCH(E$167,#REF!,0))) -> 0 | F170: =IF('Control and Output Summary'!$C$14<>"Ergon",INDEX('Export Expenditure Forecast'!$D$8:$N$25, MATCH(1, ($B170 = 'Export Expenditure Forecast'!$B$8:$B$25)*($C170 = 'Export Expenditure Forecast'!$C$8:$C$25),0), MATCH(F$167, 'Export Expenditure Forecast'!$D$7:$N$7)),INDEX(#REF!, MATCH($B170,#REF!, 0), MATCH(F$167,#REF!,0))) -> 0 | G170: =IF('Control and Output Summary'!$C$14<>"Ergon",INDEX('Export Expenditure Forecast'!$D$8:$N$25, MATCH(1, ($B170 = 'Export Expenditure Forecast'!$B$8:$B$25)*($C170 = 'Export Expenditure Forecast'!$C$8:$C$25),0), MATCH(G$167, 'Export Expenditure Forecast'!$D$7:$N$7)),INDEX(#REF!, MATCH($B170,#REF!, 0), MATCH(G$167,#REF!,0))) -> 0 | H170: =IF('Control and Output Summary'!$C$14<>"Ergon",INDEX('Export Expenditure Forecast'!$D$8:$N$25, MATCH(1, ($B170 = 'Export Expenditure Forecast'!$B$8:$B$25)*($C170 = 'Export Expenditure Forecast'!$C$8:$C$25),0), MATCH(H$167, 'Export Expenditure Forecast'!$D$7:$N$7)),INDEX(#REF!, MATCH($B170,#REF!, 0), MATCH(H$167,#REF!,0))) -> 0 | I170: =IF('Control and Output Summary'!$C$14<>"Ergon",INDEX('Export Expenditure Forecast'!$D$8:$N$25, MATCH(1, ($B170 = 'Export Expenditure Forecast'!$B$8:$B$25)*($C170 = 'Export Expenditure Forecast'!$C$8:$C$25),0), MATCH(I$167, 'Export Expenditure Forecast'!$D$7:$N$7)),INDEX(#REF!, MATCH($B170,#REF!, 0), MATCH(I$167,#REF!,0))) -> 0 | J170: =IF('Control and Output Summary'!$C$14<>"Ergon",INDEX('Export Expenditure Forecast'!$D$8:$N$25, MATCH(1, ($B170 = 'Export Expenditure Forecast'!$B$8:$B$25)*($C170 = 'Export Expenditure Forecast'!$C$8:$C$25),0), MATCH(J$167, 'Export Expenditure Forecast'!$D$7:$N$7)),INDEX(#REF!, MATCH($B170,#REF!, 0), MATCH(J$167,#REF!,0))) -> 0 | K170: =IF('Control and Output Summary'!$C$14<>"Ergon",INDEX('Export Expenditure Forecast'!$D$8:$N$25, MATCH(1, ($B170 = 'Export Expenditure Forecast'!$B$8:$B$25)*($C170 = 'Export Expenditure Forecast'!$C$8:$C$25),0), MATCH(K$167, 'Export Expenditure Forecast'!$D$7:$N$7)),INDEX(#REF!, MATCH($B170,#REF!, 0), MATCH(K$167,#REF!,0))) -> 0 | L170: =IF('Control and Output Summary'!$C$14<>"Ergon",INDEX('Export Expenditure Forecast'!$D$8:$N$25, MATCH(1, ($B170 = 'Export Expenditure Forecast'!$B$8:$B$25)*($C170 = 'Export Expenditure Forecast'!$C$8:$C$25),0), MATCH(L$167, 'Export Expenditure Forecast'!$D$7:$N$7)),INDEX(#REF!, MATCH($B170,#REF!, 0), MATCH(L$167,#REF!,0))) -> 0 | M170: =IF('Control and Output Summary'!$C$14<>"Ergon",INDEX('Export Expenditure Forecast'!$D$8:$N$25, MATCH(1, ($B170 = 'Export Expenditure Forecast'!$B$8:$B$25)*($C170 = 'Export Expenditure Forecast'!$C$8:$C$25),0), MATCH(M$167, 'Export Expenditure Forecast'!$D$7:$N$7)),INDEX(#REF!, MATCH($B170,#REF!, 0), MATCH(M$167,#REF!,0))) -> 0 | N170: =IF('Control and Output Summary'!$C$14<>"Ergon",INDEX('Export Expenditure Forecast'!$D$8:$N$25, MATCH(1, ($B170 = 'Export Expenditure Forecast'!$B$8:$B$25)*($C170 = 'Export Expenditure Forecast'!$C$8:$C$25),0), MATCH(N$167, 'Export Expenditure Forecast'!$D$7:$N$7)),INDEX(#REF!, MATCH($B170,#REF!, 0), MATCH(N$167,#REF!,0))) -> 0
B171: HV Bus | C171: ='Control and Output Summary'!$C$14 -> Energex | D171: =IF('Control and Output Summary'!$C$14<>"Ergon",INDEX('Export Expenditure Forecast'!$D$8:$N$25, MATCH(1, ($B171 = 'Export Expenditure Forecast'!$B$8:$B$25)*($C171 = 'Export Expenditure Forecast'!$C$8:$C$25),0), MATCH(D$167, 'Export Expenditure Forecast'!$D$7:$N$7)),INDEX(#REF!, MATCH($B171,#REF!, 0), MATCH(D$167,#REF!,0))) -> 0 | E171: =IF('Control and Output Summary'!$C$14<>"Ergon",INDEX('Export Expenditure Forecast'!$D$8:$N$25, MATCH(1, ($B171 = 'Export Expenditure Forecast'!$B$8:$B$25)*($C171 = 'Export Expenditure Forecast'!$C$8:$C$25),0), MATCH(E$167, 'Export Expenditure Forecast'!$D$7:$N$7)),INDEX(#REF!, MATCH($B171,#REF!, 0), MATCH(E$167,#REF!,0))) -> 0 | F171: =IF('Control and Output Summary'!$C$14<>"Ergon",INDEX('Export Expenditure Forecast'!$D$8:$N$25, MATCH(1, ($B171 = 'Export Expenditure Forecast'!$B$8:$B$25)*($C171 = 'Export Expenditure Forecast'!$C$8:$C$25),0), MATCH(F$167, 'Export Expenditure Forecast'!$D$7:$N$7)),INDEX(#REF!, MATCH($B171,#REF!, 0), MATCH(F$167,#REF!,0))) -> 0 | G171: =IF('Control and Output Summary'!$C$14<>"Ergon",INDEX('Export Expenditure Forecast'!$D$8:$N$25, MATCH(1, ($B171 = 'Export Expenditure Forecast'!$B$8:$B$25)*($C171 = 'Export Expenditure Forecast'!$C$8:$C$25),0), MATCH(G$167, 'Export Expenditure Forecast'!$D$7:$N$7)),INDEX(#REF!, MATCH($B171,#REF!, 0), MATCH(G$167,#REF!,0))) -> 2.65669777 | H171: =IF('Control and Output Summary'!$C$14<>"Ergon",INDEX('Export Expenditure Forecast'!$D$8:$N$25, MATCH(1, ($B171 = 'Export Expenditure Forecast'!$B$8:$B$25)*($C171 = 'Export Expenditure Forecast'!$C$8:$C$25),0), MATCH(H$167, 'Export Expenditure Forecast'!$D$7:$N$7)),INDEX(#REF!, MATCH($B171,#REF!, 0), MATCH(H$167,#REF!,0))) -> 2.71479788 | I171: =IF('Control and Output Summary'!$C$14<>"Ergon",INDEX('Export Expenditure Forecast'!$D$8:$N$25, MATCH(1, ($B171 = 'Export Expenditure Forecast'!$B$8:$B$25)*($C171 = 'Export Expenditure Forecast'!$C$8:$C$25),0), MATCH(I$167, 'Export Expenditure Forecast'!$D$7:$N$7)),INDEX(#REF!, MATCH($B171,#REF!, 0), MATCH(I$167,#REF!,0))) -> 3.31119792 | J171: =IF('Control and Output Summary'!$C$14<>"Ergon",INDEX('Export Expenditure Forecast'!$D$8:$N$25, MATCH(1, ($B171 = 'Export Expenditure Forecast'!$B$8:$B$25)*($C171 = 'Export Expenditure Forecast'!$C$8:$C$25),0), MATCH(J$167, 'Export Expenditure Forecast'!$D$7:$N$7)),INDEX(#REF!, MATCH($B171,#REF!, 0), MATCH(J$167,#REF!,0))) -> 3.40920884 | K171: =IF('Control and Output Summary'!$C$14<>"Ergon",INDEX('Export Expenditure Forecast'!$D$8:$N$25, MATCH(1, ($B171 = 'Export Expenditure Forecast'!$B$8:$B$25)*($C171 = 'Export Expenditure Forecast'!$C$8:$C$25),0), MATCH(K$167, 'Export Expenditure Forecast'!$D$7:$N$7)),INDEX(#REF!, MATCH($B171,#REF!, 0), MATCH(K$167,#REF!,0))) -> 3.50995505 | L171: =IF('Control and Output Summary'!$C$14<>"Ergon",INDEX('Export Expenditure Forecast'!$D$8:$N$25, MATCH(1, ($B171 = 'Export Expenditure Forecast'!$B$8:$B$25)*($C171 = 'Export Expenditure Forecast'!$C$8:$C$25),0), MATCH(L$167, 'Export Expenditure Forecast'!$D$7:$N$7)),INDEX(#REF!, MATCH($B171,#REF!, 0), MATCH(L$167,#REF!,0))) -> 3.5 | M171: =IF('Control and Output Summary'!$C$14<>"Ergon",INDEX('Export Expenditure Forecast'!$D$8:$N$25, MATCH(1, ($B171 = 'Export Expenditure Forecast'!$B$8:$B$25)*($C171 = 'Export Expenditure Forecast'!$C$8:$C$25),0), MATCH(M$167, 'Export Expenditure Forecast'!$D$7:$N$7)),INDEX(#REF!, MATCH($B171,#REF!, 0), MATCH(M$167,#REF!,0))) -> 3.5 | N171: =IF('Control and Output Summary'!$C$14<>"Ergon",INDEX('Export Expenditure Forecast'!$D$8:$N$25, MATCH(1, ($B171 = 'Export Expenditure Forecast'!$B$8:$B$25)*($C171 = 'Export Expenditure Forecast'!$C$8:$C$25),0), MATCH(N$167, 'Export Expenditure Forecast'!$D$7:$N$7)),INDEX(#REF!, MATCH($B171,#REF!, 0), MATCH(N$167,#REF!,0))) -> 3.5
B172: ST 33/66 kv | C172: ='Control and Output Summary'!$C$14 -> Energex | D172: =IF('Control and Output Summary'!$C$14<>"Ergon",INDEX('Export Expenditure Forecast'!$D$8:$N$25, MATCH(1, ($B172 = 'Export Expenditure Forecast'!$B$8:$B$25)*($C172 = 'Export Expenditure Forecast'!$C$8:$C$25),0), MATCH(D$167, 'Export Expenditure Forecast'!$D$7:$N$7)),INDEX(#REF!, MATCH($B172,#REF!, 0), MATCH(D$167,#REF!,0))) -> 0 | E172: =IF('Control and Output Summary'!$C$14<>"Ergon",INDEX('Export Expenditure Forecast'!$D$8:$N$25, MATCH(1, ($B172 = 'Export Expenditure Forecast'!$B$8:$B$25)*($C172 = 'Export Expenditure Forecast'!$C$8:$C$25),0), MATCH(E$167, 'Export Expenditure Forecast'!$D$7:$N$7)),INDEX(#REF!, MATCH($B172,#REF!, 0), MATCH(E$167,#REF!,0))) -> 0 | F172: =IF('Control and Output Summary'!$C$14<>"Ergon",INDEX('Export Expenditure Forecast'!$D$8:$N$25, MATCH(1, ($B172 = 'Export Expenditure Forecast'!$B$8:$B$25)*($C172 = 'Export Expenditure Forecast'!$C$8:$C$25),0), MATCH(F$167, 'Export Expenditure Forecast'!$D$7:$N$7)),INDEX(#REF!, MATCH($B172,#REF!, 0), MATCH(F$167,#REF!,0))) -> 0 | G172: =IF('Control and Output Summary'!$C$14<>"Ergon",INDEX('Export Expenditure Forecast'!$D$8:$N$25, MATCH(1, ($B172 = 'Export Expenditure Forecast'!$B$8:$B$25)*($C172 = 'Export Expenditure Forecast'!$C$8:$C$25),0), MATCH(G$167, 'Export Expenditure Forecast'!$D$7:$N$7)),INDEX(#REF!, MATCH($B172,#REF!, 0), MATCH(G$167,#REF!,0))) -> 0 | H172: =IF('Control and Output Summary'!$C$14<>"Ergon",INDEX('Export Expenditure Forecast'!$D$8:$N$25, MATCH(1, ($B172 = 'Export Expenditure Forecast'!$B$8:$B$25)*($C172 = 'Export Expenditure Forecast'!$C$8:$C$25),0), MATCH(H$167, 'Export Expenditure Forecast'!$D$7:$N$7)),INDEX(#REF!, MATCH($B172,#REF!, 0), MATCH(H$167,#REF!,0))) -> 0 | I172: =IF('Control and Output Summary'!$C$14<>"Ergon",INDEX('Export Expenditure Forecast'!$D$8:$N$25, MATCH(1, ($B172 = 'Export Expenditure Forecast'!$B$8:$B$25)*($C172 = 'Export Expenditure Forecast'!$C$8:$C$25),0), MATCH(I$167, 'Export Expenditure Forecast'!$D$7:$N$7)),INDEX(#REF!, MATCH($B172,#REF!, 0), MATCH(I$167,#REF!,0))) -> 0 | J172: =IF('Control and Output Summary'!$C$14<>"Ergon",INDEX('Export Expenditure Forecast'!$D$8:$N$25, MATCH(1, ($B172 = 'Export Expenditure Forecast'!$B$8:$B$25)*($C172 = 'Export Expenditure Forecast'!$C$8:$C$25),0), MATCH(J$167, 'Export Expenditure Forecast'!$D$7:$N$7)),INDEX(#REF!, MATCH($B172,#REF!, 0), MATCH(J$167,#REF!,0))) -> 0 | K172: =IF('Control and Output Summary'!$C$14<>"Ergon",INDEX('Export Expenditure Forecast'!$D$8:$N$25, MATCH(1, ($B172 = 'Export Expenditure Forecast'!$B$8:$B$25)*($C172 = 'Export Expenditure Forecast'!$C$8:$C$25),0), MATCH(K$167, 'Export Expenditure Forecast'!$D$7:$N$7)),INDEX(#REF!, MATCH($B172,#REF!, 0), MATCH(K$167,#REF!,0))) -> 0 | L172: =IF('Control and Output Summary'!$C$14<>"Ergon",INDEX('Export Expenditure Forecast'!$D$8:$N$25, MATCH(1, ($B172 = 'Export Expenditure Forecast'!$B$8:$B$25)*($C172 = 'Export Expenditure Forecast'!$C$8:$C$25),0), MATCH(L$167, 'Export Expenditure Forecast'!$D$7:$N$7)),INDEX(#REF!, MATCH($B172,#REF!, 0), MATCH(L$167,#REF!,0))) -> 0 | M172: =IF('Control and Output Summary'!$C$14<>"Ergon",INDEX('Export Expenditure Forecast'!$D$8:$N$25, MATCH(1, ($B172 = 'Export Expenditure Forecast'!$B$8:$B$25)*($C172 = 'Export Expenditure Forecast'!$C$8:$C$25),0), MATCH(M$167, 'Export Expenditure Forecast'!$D$7:$N$7)),INDEX(#REF!, MATCH($B172,#REF!, 0), MATCH(M$167,#REF!,0))) -> 0 | N172: =IF('Control and Output Summary'!$C$14<>"Ergon",INDEX('Export Expenditure Forecast'!$D$8:$N$25, MATCH(1, ($B172 = 'Export Expenditure Forecast'!$B$8:$B$25)*($C172 = 'Export Expenditure Forecast'!$C$8:$C$25),0), MATCH(N$167, 'Export Expenditure Forecast'!$D$7:$N$7)),INDEX(#REF!, MATCH($B172,#REF!, 0), MATCH(N$167,#REF!,0))) -> 0
B173: ST 110/132 kv | C173: ='Control and Output Summary'!$C$14 -> Energex | D173: =IF('Control and Output Summary'!$C$14<>"Ergon",INDEX('Export Expenditure Forecast'!$D$8:$N$25, MATCH(1, ($B173 = 'Export Expenditure Forecast'!$B$8:$B$25)*($C173 = 'Export Expenditure Forecast'!$C$8:$C$25),0), MATCH(D$167, 'Export Expenditure Forecast'!$D$7:$N$7)),INDEX(#REF!, MATCH($B173,#REF!, 0), MATCH(D$167,#REF!,0))) -> 0 | E173: =IF('Control and Output Summary'!$C$14<>"Ergon",INDEX('Export Expenditure Forecast'!$D$8:$N$25, MATCH(1, ($B173 = 'Export Expenditure Forecast'!$B$8:$B$25)*($C173 = 'Export Expenditure Forecast'!$C$8:$C$25),0), MATCH(E$167, 'Export Expenditure Forecast'!$D$7:$N$7)),INDEX(#REF!, MATCH($B173,#REF!, 0), MATCH(E$167,#REF!,0))) -> 0 | F173: =IF('Control and Output Summary'!$C$14<>"Ergon",INDEX('Export Expenditure Forecast'!$D$8:$N$25, MATCH(1, ($B173 = 'Export Expenditure Forecast'!$B$8:$B$25)*($C173 = 'Export Expenditure Forecast'!$C$8:$C$25),0), MATCH(F$167, 'Export Expenditure Forecast'!$D$7:$N$7)),INDEX(#REF!, MATCH($B173,#REF!, 0), MATCH(F$167,#REF!,0))) -> 0 | G173: =IF('Control and Output Summary'!$C$14<>"Ergon",INDEX('Export Expenditure Forecast'!$D$8:$N$25, MATCH(1, ($B173 = 'Export Expenditure Forecast'!$B$8:$B$25)*($C173 = 'Export Expenditure Forecast'!$C$8:$C$25),0), MATCH(G$167, 'Export Expenditure Forecast'!$D$7:$N$7)),INDEX(#REF!, MATCH($B173,#REF!, 0), MATCH(G$167,#REF!,0))) -> 0 | H173: =IF('Control and Output Summary'!$C$14<>"Ergon",INDEX('Export Expenditure Forecast'!$D$8:$N$25, MATCH(1, ($B173 = 'Export Expenditure Forecast'!$B$8:$B$25)*($C173 = 'Export Expenditure Forecast'!$C$8:$C$25),0), MATCH(H$167, 'Export Expenditure Forecast'!$D$7:$N$7)),INDEX(#REF!, MATCH($B173,#REF!, 0), MATCH(H$167,#REF!,0))) -> 0 | I173: =IF('Control and Output Summary'!$C$14<>"Ergon",INDEX('Export Expenditure Forecast'!$D$8:$N$25, MATCH(1, ($B173 = 'Export Expenditure Forecast'!$B$8:$B$25)*($C173 = 'Export Expenditure Forecast'!$C$8:$C$25),0), MATCH(I$167, 'Export Expenditure Forecast'!$D$7:$N$7)),INDEX(#REF!, MATCH($B173,#REF!, 0), MATCH(I$167,#REF!,0))) -> 0 | J173: =IF('Control and Output Summary'!$C$14<>"Ergon",INDEX('Export Expenditure Forecast'!$D$8:$N$25, MATCH(1, ($B173 = 'Export Expenditure Forecast'!$B$8:$B$25)*($C173 = 'Export Expenditure Forecast'!$C$8:$C$25),0), MATCH(J$167, 'Export Expenditure Forecast'!$D$7:$N$7)),INDEX(#REF!, MATCH($B173,#REF!, 0), MATCH(J$167,#REF!,0))) -> 0 | K173: =IF('Control and Output Summary'!$C$14<>"Ergon",INDEX('Export Expenditure Forecast'!$D$8:$N$25, MATCH(1, ($B173 = 'Export Expenditure Forecast'!$B$8:$B$25)*($C173 = 'Export Expenditure Forecast'!$C$8:$C$25),0), MATCH(K$167, 'Export Expenditure Forecast'!$D$7:$N$7)),INDEX(#REF!, MATCH($B173,#REF!, 0), MATCH(K$167,#REF!,0))) -> 0 | L173: =IF('Control and Output Summary'!$C$14<>"Ergon",INDEX('Export Expenditure Forecast'!$D$8:$N$25, MATCH(1, ($B173 = 'Export Expenditure Forecast'!$B$8:$B$25)*($C173 = 'Export Expenditure Forecast'!$C$8:$C$25),0), MATCH(L$167, 'Export Expenditure Forecast'!$D$7:$N$7)),INDEX(#REF!, MATCH($B173,#REF!, 0), MATCH(L$167,#REF!,0))) -> 0 | M173: =IF('Control and Output Summary'!$C$14<>"Ergon",INDEX('Export Expenditure Forecast'!$D$8:$N$25, MATCH(1, ($B173 = 'Export Expenditure Forecast'!$B$8:$B$25)*($C173 = 'Export Expenditure Forecast'!$C$8:$C$25),0), MATCH(M$167, 'Export Expenditure Forecast'!$D$7:$N$7)),INDEX(#REF!, MATCH($B173,#REF!, 0), MATCH(M$167,#REF!,0))) -> 0 | N173: =IF('Control and Output Summary'!$C$14<>"Ergon",INDEX('Export Expenditure Forecast'!$D$8:$N$25, MATCH(1, ($B173 = 'Export Expenditure Forecast'!$B$8:$B$25)*($C173 = 'Export Expenditure Forecast'!$C$8:$C$25),0), MATCH(N$167, 'Export Expenditure Forecast'!$D$7:$N$7)),INDEX(#REF!, MATCH($B173,#REF!, 0), MATCH(N$167,#REF!,0))) -> 0
B176: Annualised Capex
B178: Voltage Level | C178: Pricing Zone | D178: =D$29 -> 2023 | E178: 2024 | F178: 2025 | G178: 2026 | H178: 2027 | I178: 2028 | J178: 2029 | K178: 2030 | L178: 2031 | M178: 2032 | N178: 2033
